Workbook

Sheet Overview
A1: Quick Start:
A2: 1) Go to the User Selections sheet and fill in blue shaded boxes.
A3: 2) Go to the Results sheet and click the "Recalculate All Results" button to see summary results.
A4: WARNING: Your screen may go blank and/or indicate that Excel is "Not Responding"; please be patient as the simulation calculations may take a long time to complete. Eventually your screen will return to normal and the results will be shown.
A6: Note: Do not make any changes to other cells, or to any of the data in the Data Tables sheet.
A7: This file contains information for 153 U.S. airports that are near coastal areas; it is important to note that the EWL (extreme water level) and RSL (relative sea level) stations used as data points may be some distance from the airport location. Users should review the distances shown on the User Selections sheet, inspect the available map, and consider variations in local terrain to assess whether the data collected from the listed stations can reasonably be used to project extreme water events at the airport being analyzed.
A10: OVERVIEW
A11: As part of ACRP 02-78, this Excel file generates simulation-based benefit-cost analyses (BCA) for future extreme water level events based on state-of-the-art climate science data.
A12: The user selects a specific coastal airport for analysis, along with one of three different global climate scenarios -- representing "low", "medium" or "high" greenhouse gas emissions -- that may play out over the next 80 years.
A14: The simulations depend both on localized estimates of historical extreme water level (EWL) events and scenario-specific projections of future relative sea level (RSL) rise near the airport.
A15: The EWL events and RSL projections are both subject to uncertainty and form the basis of so-called "Monte Carlo" simulations.
A16: Each simulation represents a potential future set of annual outcomes for the period 2020-2099 (or the user may specify a smaller subset of this period), and this is repeated 5,000 times.
A18: The historical EWL events are based on an extensive analysis by NOAA at 112 coastal stations around the U.S., resulting in the estimation of an "exceedance probability curve".
A19: It is important to note that the probability curves are estimated relative to the Mean Higher High Water (MHHW) datum, which is the average height of the diurnal high tide recorded at the station each day. Seawater above the MHHW baseline is considered inundation, and therefore water levels relative to MHHW are good proxies for inundation measurements; this is consistent with what NOAA's National Ocean Service (NOS) uses.
A20: However, standard airport and runway elevations are usually reported relative to MSL (Mean Sea Level), which is always below MHHW. If needed, users should factor in the difference, and use elevations relative to MHHW, when comparing airport elevations to the reported extreme water level projections shown here.
A21: Each station's probability curve can be used to provide an estimate of the annual likelihood that an extreme water (flooding) event of a given height or more will occur.
A22: For example, the exceedance probability curve for the station at Kings Point/Willets Point in New York is shown below in. This is the station closest to LaGuardia Airport, which is about 12 km to the southwest.
A36: Reading off the graph at, say, the 10-year return period shows a water level of about 1.5 meters. This means that, based on the historical data, this location would expect an extreme water event of at least 1.5 meters approximately every ten years; the ten-year return period translates into a 10 percent probability on an annual basis.
A38: The exceedance curve provides the information needed to conduct a Monte Carlo simulation of annual water levels.
A39: For example, if we were considering a time period of, say, 50 years, for each year we could draw a random number between 0 and 1 representing the annual probability of occurrence, and then compute the implied extreme water level from the curve.
A40: In accordance with the curve, in many years there would be relatively low water levels (around 1 meter), while in other years there might be higher levels (up to about 3 meters at the extreme).
A42: As described, the estimated exceedance curve for each location is based entirely on historical data. But global sea levels generally are expected to rise in the future, which presumably would affect these local extreme water levels. To address this, NOAA has also modeled projected future changes in local sea level rise for almost 2,000 different locations worldwide. (Some of these locations are actually inland -- such as in the Florida Everglades area -- but most are coastal.)
A43: There are six different projections considered for future sea level change, ranging from "Low" to "Extreme", and localized estimates of sea level rise (measured in centimeters) are made at 10-year intervals. Exceedance probabilities for each of the six projections are available under the three different global climate scenarios mentioned above. Again, these exceedance probabilities can be used to generate random draws representing future sea level rise.
A44: By interpolating between the decadal projections, we can add the estimate of sea level rise to the extreme water level in each year to obtain an estimate of the total water level for that year.
A46: Given the water event projections, the BCA can be completed after the user enters specific information regarding the relevant damage costs for different-sized water level events, the cost and timing of a user-specified mitigation project, and the extent of damage mitigation after the project is completed.
A48: Individual BCA results are computed for each simulation, and the user can view the resulting mean and standard deviation for net present value (NPV) and the Benefit-Cost ratio across all 5,000.
A49: A different way to look at the results is also presented via a "value-at-risk" graph, which plots the results for each simulation under both the base case (where no mitigation project is undertaken) and the scenario case with the project. This graph can provide valuable information that informs an airport that is deciding between the risky, but higher potential payoff of doing nothing vs. the (more) certain cost of investing in a mitigation project that reduces its exposure to damages from uncertain but increasingly likely extreme water events.

Sheet Data Tables
A1: DO NOT EDIT
T3: EWLdata | AG3: GMSLtable | AM3: RSLdata
A4: LOCIDdata | T4: https://tidesandcurrents.noaa.gov/publications/NOAA_Technical_Report_NOS_COOPS_067a.pdf. | AG4: https://tidesandcurrents.noaa.gov/publications/techrpt83_Global_and_Regional_SLR_Scenarios_for_the_US_final.pdf | AM4: https://tidesandcurrents.noaa.gov/publications/techrpt083.csv
A5: REGION | B5: LOCID | C5: APTNAME | D5: CITY | E5: STATE | F5: NLAT | G5: NLONG | H5: APTELEV | I5: RWYMINELEV | J5: EWLID | K5: EWLNAME | L5: EWLDIST | M5: EWLMHHW | N5: RSLID | O5: RSLNAME | P5: RSLDIST | Q5: state_loc | T5: STATION | U5: NAME | V5: STATE | W5: NLAT | X5: NLONG | Y5: LOC | Z5: LOC95CI | AA5: SCALE | AB5: SCALE95CI | AC5: SHAPE | AD5: SHAPE95CI | AG5: GMSL Exceedance Probabilities (Table 4 from above report): | AM5: SITE | AN5: PSMSL_ID | AO5: NLAT | AP5: NLONG | AQ5: SCENARIO | AR5: RSL_BCKGRD | AS5: RSL2000 | AT5: RSL2010 | AU5: RSL2020 | AV5: RSL2030 | AW5: RSL2040 | AX5: RSL2050 | AY5: RSL2060 | AZ5: RSL2070 | BA5: RSL2080 | BB5: RSL2090 | BC5: RSL2100 | BD5: RSL2120 | BE5: RSL2150 | BF5: RSL2200
A6: AL | B6: ADK | C6: ADAK | D6: ADAK (NAVAL) STATION/MITCHELL FIELD | E6: AK | F6: 51.88358 | G6: -176.64248 | H6: 19.5 | I6: 17.3 | J6: 9461380 | K6: ADAK ISLAND | L6: 1.49 | M6: 1.58 | N6: 487 | O6: ADAK SWEEPER COVE | P6: 1.71 | Q6: =LOCIDdata[[#This Row],[STATE]]&+"_"&LOCIDdata[[#This Row],[LOCID]] -> AK_ADK | T6: 1611400 | U6: NAWILIWILI | V6: HAWAII | W6: 21.955 | X6: -159.357 | Y6: 0.258 | Z6: 0.017 | AA6: 0.062 | AB6: 0.011 | AC6: 0.028 | AD6: 0.082 | AG6: GMSL rise Scenario | AH6: 2.6 | AI6: 4.5 | AJ6: 8.5 | AM6: SAN FRANCISCO | AN6: 10 | AO6: 37.81 | AP6: -122.47 | AQ6: 0.3 - MED | AR6: -0.07 | AS6: 0 | AT6: 3 | AU6: 6 | AV6: 10 | AW6: 13 | AX6: 17 | AY6: 21 | AZ6: 25 | BA6: 28 | BB6: 31 | BC6: 34 | BD6: 40 | BE6: 47 | BF6: 53
A7: AL | B7: ADQ | C7: KODIAK | D7: KODIAK | E7: AK | F7: 57.74997 | G7: -152.49379 | H7: 79.7 | I7: 20.3 | J7: 9457292 | K7: KODIAK ISLAND | L7: 1.41 | M7: 4.27 | N7: 567 | O7: KODIAK ISLAND | P7: 1.5 | Q7: =LOCIDdata[[#This Row],[STATE]]&+"_"&LOCIDdata[[#This Row],[LOCID]] -> AK_ADQ | T7: 1612340 | U7: HONOLULU | V7: HAWAII | W7: 21.307 | X7: -157.867 | Y7: 0.255 | Z7: 0.012 | AA7: 0.056 | AB7: 0.008 | AC7: -0.182 | AD7: 0.112 | AG7: 0.3 Low | AH7: 0.94 | AI7: 0.98 | AJ7: 1 | AM7: SAN FRANCISCO | AN7: 10 | AO7: 37.81 | AP7: -122.47 | AQ7: 0.5 - MED | AR7: -0.07 | AS7: 0 | AT7: 3 | AU7: 8 | AV7: 12 | AW7: 17 | AX7: 22 | AY7: 28 | AZ7: 33 | BA7: 38 | BB7: 43 | BC7: 48 | BD7: 56 | BE7: 70 | BF7: 92
A8: AL | B8: AGN | C8: ANGOON | D8: ANGOON | E8: AK | F8: 57.50356 | G8: -134.58509 | H8: 0 | I8: 0 | J8: 9451600 | K8: SITKA | L8: 42.07 | M8: 4.65 | N8: 1003252255 | O8: grid_57.5_225.5 | P8: 3.17 | Q8: =LOCIDdata[[#This Row],[STATE]]&+"_"&LOCIDdata[[#This Row],[LOCID]] -> AK_AGN | T8: 1612480 | U8: MOKUOLOE | V8: HAWAII | W8: 21.437 | X8: -157.793 | Y8: 0.293 | Z8: 0.016 | AA8: 0.051 | AB8: 0.011 | AC8: -0.174 | AD8: 0.174 | AG8: 0.5 Intermediate-Low | AH8: 0.49 | AI8: 0.73 | AJ8: 0.96 | AM8: SAN FRANCISCO | AN8: 10 | AO8: 37.81 | AP8: -122.47 | AQ8: 1.0 - MED | AR8: -0.07 | AS8: 0 | AT8: 5 | AU8: 10 | AV8: 17 | AW8: 25 | AX8: 36 | AY8: 47 | AZ8: 59 | BA8: 73 | BB8: 87 | BC8: 104 | BD8: 123 | BE8: 176 | BF8: 278
A9: AL | B9: DUT | C9: UNALASKA | D9: UNALASKA | E9: AK | F9: 53.89894 | G9: -166.54503 | H9: 23.3 | I9: 14.1 | J9: 9462620 | K9: UNALASKA | L9: 1.35 | M9: 1.52 | N9: 757 | O9: UNALASKA | P9: 1.32 | Q9: =LOCIDdata[[#This Row],[STATE]]&+"_"&LOCIDdata[[#This Row],[LOCID]] -> AK_DUT | T9: 1615680 | U9: KAHULUI | V9: HAWAII | W9: 20.898 | X9: -156.472 | Y9: 0.28 | Z9: 0.014 | AA9: 0.048 | AB9: 0.01 | AC9: -0.186 | AD9: 0.174 | AG9: 1.0 Intermediate | AH9: 0.02 | AI9: 0.03 | AJ9: 0.17 | AM9: SAN FRANCISCO | AN9: 10 | AO9: 37.81 | AP9: -122.47 | AQ9: 1.5 - MED | AR9: -0.07 | AS9: 0 | AT9: 7 | AU9: 13 | AV9: 22 | AW9: 34 | AX9: 51 | AY9: 69 | AZ9: 90 | BA9: 114 | BB9: 141 | BC9: 174 | BD9: 210 | BE9: 318 | BF9: 541
A10: AL | B10: EXI | C10: EXCURSION INLET | D10: SKAGWAY-YAKUTAT-ANGOON (CENSUS AREA) | E10: AK | F10: 58.4205 | G10: -135.44903 | H10: 0 | I10: 0 | J10: 9452210 | K10: JUNEAU | L10: 38.5 | M10: 7.72 | N10: 1003152245 | O10: grid_58.5_224.5 | P10: 5.79 | Q10: =LOCIDdata[[#This Row],[STATE]]&+"_"&LOCIDdata[[#This Row],[LOCID]] -> AK_EXI | T10: 1617760 | U10: HILO | V10: HAWAII | W10: 19.73 | X10: -155.057 | Y10: 0.301 | Z10: 0.016 | AA10: 0.06 | AB10: 0.012 | AC10: -0.298 | AD10: 0.162 | AG10: 1.5 Intermediate-High | AH10: 0.004 | AI10: 0.005 | AJ10: 0.013 | AM10: SAN FRANCISCO | AN10: 10 | AO10: 37.81 | AP10: -122.47 | AQ10: 2.0 - MED | AR10: -0.07 | AS10: 0 | AT10: 8 | AU10: 16 | AV10: 28 | AW10: 46 | AX10: 70 | AY10: 97 | AZ10: 127 | BA10: 163 | BB10: 204 | BC10: 253 | BD10: 324 | BE10: 500 | BF10: 872
A11: AL | B11: GST | C11: GUSTAVUS | D11: GUSTAVUS | E11: AK | F11: 58.42528 | G11: -135.70742 | H11: 35.1 | I11: 27.9 | J11: 9452210 | K11: JUNEAU | L11: 47.73 | M11: 7.72 | N11: 1003152245 | O11: grid_58.5_224.5 | P11: 9.1 | Q11: =LOCIDdata[[#This Row],[STATE]]&+"_"&LOCIDdata[[#This Row],[LOCID]] -> AK_GST | T11: 1619000 | U11: JOHNSTON ATOLL | V11: PACIFIC OCEAN | W11: 16.738 | X11: -169.53 | Y11: 0.35 | Z11: 0.024 | AA11: 0.082 | AB11: 0.017 | AC11: 0.007 | AD11: 0.146 | AG11: 2.0 High | AH11: 0.001 | AI11: 0.001 | AJ11: 0.003 | AM11: SAN FRANCISCO | AN11: 10 | AO11: 37.81 | AP11: -122.47 | AQ11: 2.5 - MED | AR11: -0.07 | AS11: 0 | AT11: 8 | AU11: 18 | AV11: 32 | AW11: 54 | AX11: 83 | AY11: 118 | AZ11: 158 | BA11: 202 | BB11: 252 | BC11: 311 | BD11: 433 | BE11: 669 | BF11: 1130
A12: AL | B12: HNH | C12: HOONAH | D12: HOONAH | E12: AK | F12: 58.0962 | G12: -135.40876 | H12: 21.5 | I12: 15.1 | J12: 9452210 | K12: JUNEAU | L12: 38.85 | M12: 7.72 | N12: 1003152245 | O12: grid_58.5_224.5 | P12: 28.08 | Q12: =LOCIDdata[[#This Row],[STATE]]&+"_"&LOCIDdata[[#This Row],[LOCID]] -> AK_HNH | T12: 1619910 | U12: MIDWAY ATOLL | V12: PACIFIC OCEAN | W12: 28.212 | X12: -177.36 | Y12: 0.366 | Z12: 0.031 | AA12: 0.114 | AB12: 0.021 | AC12: -0.05 | AD12: 0.146 | AG12: 2.5 Extreme | AH12: 0.0005 | AI12: 0.0005 | AJ12: 0.001 | AM12: NEW YORK | AN12: 12 | AO12: 40.7 | AP12: -74.01 | AQ12: 0.3 - MED | AR12: 1.29 | AS12: 0 | AT12: 5 | AU12: 11 | AV12: 15 | AW12: 20 | AX12: 25 | AY12: 31 | AZ12: 36 | BA12: 39 | BB12: 44 | BC12: 46 | BD12: 51 | BE12: 58 | BF12: 69
A13: AL | B13: HNS | C13: HAINES | D13: HAINES | E13: AK | F13: 59.24383 | G13: -135.52354 | H13: 15.3 | I13: 12 | J13: 9452400 | K13: SKAGWAY | L13: 15.83 | M13: 7.9 | N13: 495 | O13: SKAGWAY | P13: 15.78 | Q13: =LOCIDdata[[#This Row],[STATE]]&+"_"&LOCIDdata[[#This Row],[LOCID]] -> AK_HNS | T13: 1630000 | U13: GUAM | V13: GUAM | W13: 13.442 | X13: 144.653 | Y13: 0.233 | Z13: 0.018 | AA13: 0.066 | AB13: 0.012 | AC13: -0.022 | AD13: 0.115 | AM13: NEW YORK | AN13: 12 | AO13: 40.7 | AP13: -74.01 | AQ13: 0.5 - MED | AR13: 1.29 | AS13: 0 | AT13: 6 | AU13: 13 | AV13: 19 | AW13: 25 | AX13: 31 | AY13: 39 | AZ13: 45 | BA13: 50 | BB13: 56 | BC13: 61 | BD13: 70 | BE13: 85 | BF13: 110
A14: AL | B14: HOM | C14: HOMER | D14: HOMER | E14: AK | F14: 59.645 | G14: -151.48581 | H14: 84.3 | I14: 18 | J14: 9455500 | K14: SELDOVIA | L14: 16.36 | M14: 8.49 | N14: 1003052085 | O14: grid_59.5_208.5 | P14: 10.02 | Q14: =LOCIDdata[[#This Row],[STATE]]&+"_"&LOCIDdata[[#This Row],[LOCID]] -> AK_HOM | T14: 1770000 | U14: PAGO PAGO | V14: AMERICAN SAMOA | W14: -14.28 | X14: -170.69 | Y14: 0.284 | Z14: 0.018 | AA14: 0.066 | AB14: 0.011 | AC14: -0.278 | AD14: 0.091 | AM14: NEW YORK | AN14: 12 | AO14: 40.7 | AP14: -74.01 | AQ14: 1.0 - MED | AR14: 1.29 | AS14: 0 | AT14: 9 | AU14: 19 | AV14: 29 | AW14: 39 | AX14: 51 | AY14: 65 | AZ14: 80 | BA14: 96 | BB14: 114 | BC14: 130 | BD14: 148 | BE14: 202 | BF14: 295
A15: AL | B15: HYG | C15: HYDABURG | D15: HYDABURG | E15: AK | F15: 55.20632 | G15: -132.82831 | H15: 0 | I15: 0 | J15: 9450460 | K15: KETCHIKAN | L15: 48.14 | M15: 7.38 | N15: 1003452275 | O15: grid_55.5_227.5 | P15: 24.03 | Q15: =LOCIDdata[[#This Row],[STATE]]&+"_"&LOCIDdata[[#This Row],[LOCID]] -> AK_HYG | T15: 1820000 | U15: KWAJALEIN | V15: MARSHALL IS. | W15: 8.737 | X15: 167.738 | Y15: 0.448 | Z15: 0.014 | AA15: 0.053 | AB15: 0.009 | AC15: -0.272 | AD15: 0.115 | AM15: NEW YORK | AN15: 12 | AO15: 40.7 | AP15: -74.01 | AQ15: 1.5 - MED | AR15: 1.29 | AS15: 0 | AT15: 12 | AU15: 25 | AV15: 39 | AW15: 53 | AX15: 71 | AY15: 92 | AZ15: 114 | BA15: 139 | BB15: 167 | BC15: 197 | BD15: 247 | BE15: 353 | BF15: 567
A16: AL | B16: HYL | C16: CLARK BAY | D16: HOLLIS | E16: AK | F16: 55.49042 | G16: -132.62356 | H16: 0 | I16: 0 | J16: 9450460 | K16: KETCHIKAN | L16: 40.62 | M16: 7.38 | N16: 1003452275 | O16: grid_55.5_227.5 | P16: 4.88 | Q16: =LOCIDdata[[#This Row],[STATE]]&+"_"&LOCIDdata[[#This Row],[LOCID]] -> AK_HYL | T16: 1840000 | U16: CHUUK | V16: CAROLINE IS. | W16: 7.447 | X16: 151.847 | Y16: 0.246 | Z16: 0.021 | AA16: 0.064 | AB16: 0.015 | AC16: -0.026 | AD16: 0.142 | AM16: NEW YORK | AN16: 12 | AO16: 40.7 | AP16: -74.01 | AQ16: 2.0 - MED | AR16: 1.29 | AS16: 0 | AT16: 14 | AU16: 31 | AV16: 48 | AW16: 67 | AX16: 92 | AY16: 124 | AZ16: 154 | BA16: 189 | BB16: 234 | BC16: 279 | BD16: 368 | BE16: 561 | BF16: 926
A17: AL | B17: JNU | C17: JUNEAU INTERNATIONAL | D17: JUNEAU | E17: AK | F17: 58.35471 | G17: -134.57847 | H17: 25.3 | I17: 23.4 | J17: 9452210 | K17: JUNEAU | L17: 7.19 | M17: 7.72 | N17: 405 | O17: JUNEAU | P17: 7.18 | Q17: =LOCIDdata[[#This Row],[STATE]]&+"_"&LOCIDdata[[#This Row],[LOCID]] -> AK_JNU | T17: 1890000 | U17: WAKE ISLAND | V17: PACIFIC OCEAN | W17: 19.29 | X17: 166.618 | Y17: 0.322 | Z17: 0.02 | AA17: 0.071 | AB17: 0.015 | AC17: 0.222 | AD17: 0.163 | AM17: NEW YORK | AN17: 12 | AO17: 40.7 | AP17: -74.01 | AQ17: 2.5 - MED | AR17: 1.29 | AS17: 0 | AT17: 14 | AU17: 29 | AV17: 50 | AW17: 76 | AX17: 105 | AY17: 144 | AZ17: 185 | BA17: 230 | BB17: 286 | BC17: 342 | BD17: 459 | BE17: 695 | BF17: 1139
A18: AL | B18: KAE | C18: KAKE | D18: KAKE | E18: AK | F18: 56.973 | G18: -133.94561 | H18: 0 | I18: 0 | J18: 9451600 | K18: SITKA | L18: 52.78 | M18: 4.65 | N18: 1003352265 | O18: grid_56.5_226.5 | P18: 36.76 | Q18: =LOCIDdata[[#This Row],[STATE]]&+"_"&LOCIDdata[[#This Row],[LOCID]] -> AK_KAE | T18: 2695540 | U18: BERMUDA | V18: ATLANTIC OCEAN | W18: 32.373 | X18: -64.703 | Y18: 0.367 | Z18: 0.021 | AA18: 0.078 | AB18: 0.015 | AC18: 0.005 | AD18: 0.179 | AM18: HALIFAX | AN18: 96 | AO18: 44.67 | AP18: -63.58 | AQ18: 0.3 - MED | AR18: 1.32 | AS18: 0 | AT18: 5 | AU18: 11 | AV18: 16 | AW18: 20 | AX18: 27 | AY18: 32 | AZ18: 36 | BA18: 40 | BB18: 44 | BC18: 47 | BD18: 50 | BE18: 58 | BF18: 66
A19: AL | B19: KBE | C19: BELL ISLAND HOT SPRINGS | D19: BELL ISLAND | E19: AK | F19: 55.92908 | G19: -131.57169 | H19: 0 | I19: 0 | J19: 9450460 | K19: KETCHIKAN | L19: 41.21 | M19: 7.38 | N19: 1003452285 | O19: grid_55.5_228.5 | P19: 29.76 | Q19: =LOCIDdata[[#This Row],[STATE]]&+"_"&LOCIDdata[[#This Row],[LOCID]] -> AK_KBE | T19: 8410140 | U19: EASTPORT | V19: MAINE | W19: 44.903 | X19: -66.985 | Y19: 1.044 | Z19: 0.023 | AA19: 0.094 | AB19: 0.016 | AC19: 0 | AD19: 0.139 | AM19: HALIFAX | AN19: 96 | AO19: 44.67 | AP19: -63.58 | AQ19: 0.5 - MED | AR19: 1.32 | AS19: 0 | AT19: 6 | AU19: 13 | AV19: 19 | AW19: 25 | AX19: 33 | AY19: 39 | AZ19: 45 | BA19: 51 | BB19: 56 | BC19: 60 | BD19: 70 | BE19: 85 | BF19: 105
A20: AL | B20: KEB | C20: NANWALEK | D20: ENGLISH BAY | E20: AK | F20: 59.35215 | G20: -151.92516 | H20: 27 | I20: 27 | J20: 9455500 | K20: SELDOVIA | L20: 9.42 | M20: 8.49 | N20: 1070 | O20: SELDOVIA | P20: 9.42 | Q20: =LOCIDdata[[#This Row],[STATE]]&+"_"&LOCIDdata[[#This Row],[LOCID]] -> AK_KEB | T20: 8413320 | U20: BAR HARBOR | V20: MAINE | W20: 44.392 | X20: -68.205 | Y20: 0.754 | Z20: 0.026 | AA20: 0.092 | AB20: 0.019 | AC20: -0.008 | AD20: 0.189 | AM20: HALIFAX | AN20: 96 | AO20: 44.67 | AP20: -63.58 | AQ20: 1.0 - MED | AR20: 1.32 | AS20: 0 | AT20: 8 | AU20: 18 | AV20: 28 | AW20: 39 | AX20: 52 | AY20: 66 | AZ20: 81 | BA20: 97 | BB20: 114 | BC20: 130 | BD20: 149 | BE20: 199 | BF20: 285
A21: AL | B21: KKB | C21: KITOI BAY | D21: KITOI BAY | E21: AK | F21: 58.19095 | G21: -152.37049 | H21: 0 | I21: 0 | J21: 9457292 | K21: KODIAK ISLAND | L21: 32.11 | M21: 4.27 | N21: 1003152075 | O21: grid_58.5_207.5 | P21: 21.85 | Q21: =LOCIDdata[[#This Row],[STATE]]&+"_"&LOCIDdata[[#This Row],[LOCID]] -> AK_KKB | T21: 8418150 | U21: PORTLAND | V21: MAINE | W21: 43.657 | X21: -70.247 | Y21: 0.714 | Z21: 0.023 | AA21: 0.103 | AB21: 0.017 | AC21: 0.038 | AD21: 0.159 | AM21: HALIFAX | AN21: 96 | AO21: 44.67 | AP21: -63.58 | AQ21: 1.5 - MED | AR21: 1.32 | AS21: 0 | AT21: 11 | AU21: 24 | AV21: 37 | AW21: 53 | AX21: 72 | AY21: 93 | AZ21: 115 | BA21: 141 | BB21: 168 | BC21: 195 | BD21: 249 | BE21: 351 | BF21: 565
A22: AL | B22: KPR | C22: PORT WILLIAMS | D22: PORT WILLIAMS | E22: AK | F22: 58.49014 | G22: -152.58216 | H22: 0 | I22: 0 | J22: 9457292 | K22: KODIAK ISLAND | L22: 52.41 | M22: 4.27 | N22: 1003152075 | O22: grid_58.5_207.5 | P22: 3.04 | Q22: =LOCIDdata[[#This Row],[STATE]]&+"_"&LOCIDdata[[#This Row],[LOCID]] -> AK_KPR | T22: 8419870 | U22: SEAVEY ISLAND | V22: MAINE | W22: 43.08 | X22: -70.742 | Y22: 0.637 | Z22: 0.037 | AA22: 0.12 | AB22: 0.027 | AC22: -0.035 | AD22: 0.231 | AM22: HALIFAX | AN22: 96 | AO22: 44.67 | AP22: -63.58 | AQ22: 2.0 - MED | AR22: 1.32 | AS22: 0 | AT22: 14 | AU22: 29 | AV22: 46 | AW22: 70 | AX22: 97 | AY22: 128 | AZ22: 162 | BA22: 197 | BB22: 236 | BC22: 278 | BD22: 377 | BE22: 550 | BF22: 913
A23: AL | B23: KPY | C23: PORT BAILEY | D23: PORT BAILEY | E23: AK | F23: 57.93011 | G23: -153.04056 | H23: 0 | I23: 0 | J23: 9457292 | K23: KODIAK ISLAND | L23: 23.76 | M23: 4.27 | N23: 567 | O23: KODIAK ISLAND | P23: 23.9 | Q23: =LOCIDdata[[#This Row],[STATE]]&+"_"&LOCIDdata[[#This Row],[LOCID]] -> AK_KPY | T23: 8443970 | U23: BOSTON | V23: MASSACHUSETTS | W23: 42.355 | X23: -71.052 | Y23: 0.764 | Z23: 0.031 | AA23: 0.133 | AB23: 0.023 | AC23: 0.019 | AD23: 0.156 | AM23: HALIFAX | AN23: 96 | AO23: 44.67 | AP23: -63.58 | AQ23: 2.5 - MED | AR23: 1.32 | AS23: 0 | AT23: 15 | AU23: 30 | AV23: 50 | AW23: 77 | AX23: 110 | AY23: 149 | AZ23: 191 | BA23: 236 | BB23: 289 | BC23: 343 | BD23: 471 | BE23: 707 | BF23: 1154
A24: AL | B24: KTB | C24: THORNE BAY | D24: THORNE BAY | E24: AK | F24: 55.68796 | G24: -132.53668 | H24: 0 | I24: 0 | J24: 9450460 | K24: KETCHIKAN | L24: 43.26 | M24: 7.38 | N24: 1003452275 | O24: grid_55.5_227.5 | P24: 13.06 | Q24: =LOCIDdata[[#This Row],[STATE]]&+"_"&LOCIDdata[[#This Row],[LOCID]] -> AK_KTB | T24: 8447930 | U24: WOODS HOLE | V24: MASSACHUSETTS | W24: 41.523 | X24: -70.672 | Y24: 0.565 | Z24: 0.04 | AA24: 0.161 | AB24: 0.032 | AC24: 0.24 | AD24: 0.157 | AM24: FERNANDINA BEACH | AN24: 112 | AO24: 30.67 | AP24: -81.47 | AQ24: 0.3 - MED | AR24: 0.53 | AS24: 0 | AT24: 4 | AU24: 8 | AV24: 13 | AW24: 17 | AX24: 22 | AY24: 26 | AZ24: 30 | BA24: 33 | BB24: 37 | BC24: 40 | BD24: 45 | BE24: 51 | BF24: 61
A25: AL | B25: KWP | C25: WEST POINT VILLAGE | D25: WEST POINT | E25: AK | F25: 57.77011 | G25: -153.54895 | H25: 0 | I25: 0 | J25: 9457292 | K25: KODIAK ISLAND | L25: 38.29 | M25: 4.27 | N25: 1003252065 | O25: grid_57.5_206.5 | P25: 18.74 | Q25: =LOCIDdata[[#This Row],[STATE]]&+"_"&LOCIDdata[[#This Row],[LOCID]] -> AK_KWP | T25: 8449130 | U25: NANTUCKET ISLAND | V25: MASSACHUSETTS | W25: 41.285 | X25: -70.097 | Y25: 0.504 | Z25: 0.041 | AA25: 0.125 | AB25: 0.03 | AC25: 0.052 | AD25: 0.21 | AM25: FERNANDINA BEACH | AN25: 112 | AO25: 30.67 | AP25: -81.47 | AQ25: 0.5 - MED | AR25: 0.53 | AS25: 0 | AT25: 5 | AU25: 10 | AV25: 16 | AW25: 21 | AX25: 27 | AY25: 32 | AZ25: 38 | BA25: 43 | BB25: 49 | BC25: 53 | BD25: 62 | BE25: 77 | BF25: 102
A26: AL | B26: KXA | C26: KASAAN | D26: KASAAN | E26: AK | F26: 55.53741 | G26: -132.39751 | H26: 0 | I26: 0 | J26: 9450460 | K26: KETCHIKAN | L26: 33.39 | M26: 7.38 | N26: 1003452275 | O26: grid_55.5_227.5 | P26: 4.77 | Q26: =LOCIDdata[[#This Row],[STATE]]&+"_"&LOCIDdata[[#This Row],[LOCID]] -> AK_KXA | T26: 8452660 | U26: NEWPORT | V26: RHODE ISLAND | W26: 41.505 | X26: -71.327 | Y26: 0.582 | Z26: 0.032 | AA26: 0.131 | AB26: 0.027 | AC26: 0.29 | AD26: 0.17 | AM26: FERNANDINA BEACH | AN26: 112 | AO26: 30.67 | AP26: -81.47 | AQ26: 1.0 - MED | AR26: 0.53 | AS26: 0 | AT26: 8 | AU26: 14 | AV26: 23 | AW26: 32 | AX26: 43 | AY26: 54 | AZ26: 68 | BA26: 82 | BB26: 98 | BC26: 114 | BD26: 135 | BE26: 188 | BF26: 284
A27: AL | B27: MTM | C27: METLAKATLA | D27: METLAKATLA | E27: AK | F27: 55.13105 | G27: -131.57807 | H27: 0 | I27: 0 | J27: 9450460 | K27: KETCHIKAN | L27: 14.07 | M27: 7.38 | N27: 225 | O27: KETCHIKAN | P27: 13.84 | Q27: =LOCIDdata[[#This Row],[STATE]]&+"_"&LOCIDdata[[#This Row],[LOCID]] -> AK_MTM | T27: 8454000 | U27: PROVIDENCE | V27: RHODE ISLAND | W27: 41.807 | X27: -71.402 | Y27: 0.72 | Z27: 0.054 | AA27: 0.19 | AB27: 0.046 | AC27: 0.323 | AD27: 0.23 | AM27: FERNANDINA BEACH | AN27: 112 | AO27: 30.67 | AP27: -81.47 | AQ27: 1.5 - MED | AR27: 0.53 | AS27: 0 | AT27: 10 | AU27: 19 | AV27: 32 | AW27: 44 | AX27: 60 | AY27: 79 | AZ27: 101 | BA27: 125 | BB27: 153 | BC27: 184 | BD27: 224 | BE27: 329 | BF27: 543
A28: AL | B28: OUL | C28: NELSON LAGOON | D28: NELSON LAGOON | E28: AK | F28: 56.00754 | G28: -161.16037 | H28: 14 | I28: 10 | J28: 9459450 | K28: SAND POINT | L28: 52.92 | M28: 3.36 | N28: 1003351985 | O28: grid_56.5_198.5 | P28: 36.41 | Q28: =LOCIDdata[[#This Row],[STATE]]&+"_"&LOCIDdata[[#This Row],[LOCID]] -> AK_OUL | T28: 8461490 | U28: NEW LONDON | V28: CONNECTICUT | W28: 41.355 | X28: -72.087 | Y28: 0.618 | Z28: 0.048 | AA28: 0.188 | AB28: 0.037 | AC28: 0.158 | AD28: 0.158 | AM28: FERNANDINA BEACH | AN28: 112 | AO28: 30.67 | AP28: -81.47 | AQ28: 2.0 - MED | AR28: 0.53 | AS28: 0 | AT28: 12 | AU28: 22 | AV28: 38 | AW28: 55 | AX28: 78 | AY28: 105 | AZ28: 137 | BA28: 173 | BB28: 213 | BC28: 259 | BD28: 344 | BE28: 522 | BF28: 881
A29: AL | B29: SDP | C29: SAND POINT | D29: SAND POINT | E29: AK | F29: 55.31369 | G29: -160.52142 | H29: 23.6 | I29: 16 | J29: 9459450 | K29: SAND POINT | L29: 1.78 | M29: 3.36 | N29: 1634 | O29: SAND POINT | P29: 2 | Q29: =LOCIDdata[[#This Row],[STATE]]&+"_"&LOCIDdata[[#This Row],[LOCID]] -> AK_SDP | T29: 8467150 | U29: BRIDGEPORT | V29: CONNECTICUT | W29: 41.173 | X29: -73.182 | Y29: 0.704 | Z29: 0.052 | AA29: 0.16 | AB29: 0.037 | AC29: -0.037 | AD29: 0.198 | AM29: FERNANDINA BEACH | AN29: 112 | AO29: 30.67 | AP29: -81.47 | AQ29: 2.5 - MED | AR29: 0.53 | AS29: 0 | AT29: 12 | AU29: 24 | AV29: 43 | AW29: 63 | AX29: 92 | AY29: 126 | AZ29: 165 | BA29: 209 | BB29: 260 | BC29: 319 | BD29: 439 | BE29: 672 | BF29: 1127
A30: AL | B30: SGY | C30: SKAGWAY | D30: SKAGWAY | E30: AK | F30: 59.46006 | G30: -135.31566 | H30: 44 | I30: 0 | J30: 9452400 | K30: SKAGWAY | L30: 0.8 | M30: 7.9 | N30: 495 | O30: SKAGWAY | P30: 0.86 | Q30: =LOCIDdata[[#This Row],[STATE]]&+"_"&LOCIDdata[[#This Row],[LOCID]] -> AK_SGY | T30: 8510560 | U30: MONTAUK | V30: NEW YORK | W30: 41.048 | X30: -71.96 | Y30: 0.608 | Z30: 0.048 | AA30: 0.173 | AB30: 0.037 | AC30: 0.118 | AD30: 0.19 | AM30: TROIS-RIVIERES | AN30: 126 | AO30: 46.33 | AP30: -72.55 | AQ30: 0.3 - MED | AR30: -2.77 | AS30: 0 | AT30: 0 | AU30: 1 | AV30: 3 | AW30: 4 | AX30: 5 | AY30: 6 | AZ30: 7 | BA30: 7 | BB30: 6 | BC30: 5 | BD30: 1 | BE30: -4 | BF30: -14
A31: AL | B31: SIT | C31: SITKA ROCKY GUTIERREZ | D31: SITKA | E31: AK | F31: 57.04683 | G31: -135.36107 | H31: 26.5 | I31: 24.2 | J31: 9451600 | K31: SITKA | L31: 0.8 | M31: 4.65 | N31: 426 | O31: SITKA | P31: 0.82 | Q31: =LOCIDdata[[#This Row],[STATE]]&+"_"&LOCIDdata[[#This Row],[LOCID]] -> AK_SIT | T31: 8514560 | U31: PORT JEFFERSON | V31: NEW YORK | W31: 40.95 | X31: -73.077 | Y31: 0.683 | Z31: 0.097 | AA31: 0.216 | AB31: 0.079 | AC31: 0.022 | AD31: 0.517 | AM31: TROIS-RIVIERES | AN31: 126 | AO31: 46.33 | AP31: -72.55 | AQ31: 0.5 - MED | AR31: -2.77 | AS31: 0 | AT31: 2 | AU31: 4 | AV31: 6 | AW31: 8 | AX31: 11 | AY31: 13 | AZ31: 16 | BA31: 17 | BB31: 18 | BC31: 18 | BD31: 19 | BE31: 21 | BF31: 24
A32: AL | B32: SOV | C32: SELDOVIA | D32: SELDOVIA | E32: AK | F32: 59.44391 | G32: -151.70504 | H32: 29 | I32: 0 | J32: 9455500 | K32: SELDOVIA | L32: 0.59 | M32: 8.49 | N32: 1070 | O32: SELDOVIA | P32: 0.59 | Q32: =LOCIDdata[[#This Row],[STATE]]&+"_"&LOCIDdata[[#This Row],[LOCID]] -> AK_SOV | T32: 8516990 | U32: WILLETS POINT/KINGS POINT | V32: NEW YORK | W32: 40.81 | X32: -73.765 | Y32: 0.848 | Z32: 0.063 | AA32: 0.236 | AB32: 0.051 | AC32: 0.224 | AD32: 0.24 | AM32: TROIS-RIVIERES | AN32: 126 | AO32: 46.33 | AP32: -72.55 | AQ32: 1.0 - MED | AR32: -2.77 | AS32: 0 | AT32: 4 | AU32: 9 | AV32: 16 | AW32: 22 | AX32: 30 | AY32: 40 | AZ32: 51 | BA32: 62 | BB32: 74 | BC32: 86 | BD32: 93 | BE32: 131 | BF32: 195
A33: AL | B33: SWD | C33: SEWARD | D33: SEWARD | E33: AK | F33: 60.13008 | G33: -149.41684 | H33: 22.2 | I33: 12.3 | J33: 9455090 | K33: SEWARD | L33: 0.78 | M33: 5.07 | N33: 266 | O33: SEWARD | P33: 0.83 | Q33: =LOCIDdata[[#This Row],[STATE]]&+"_"&LOCIDdata[[#This Row],[LOCID]] -> AK_SWD | T33: 8518750 | U33: THE BATTERY | V33: NEW YORK | W33: 40.7 | X33: -74.015 | Y33: 0.676 | Z33: 0.03 | AA33: 0.149 | AB33: 0.022 | AC33: 0.058 | AD33: 0.124 | AM33: TROIS-RIVIERES | AN33: 126 | AO33: 46.33 | AP33: -72.55 | AQ33: 1.5 - MED | AR33: -2.77 | AS33: 0 | AT33: 7 | AU33: 15 | AV33: 25 | AW33: 37 | AX33: 51 | AY33: 66 | AZ33: 85 | BA33: 105 | BB33: 127 | BC33: 150 | BD33: 188 | BE33: 276 | BF33: 462
A34: AL | B34: TKE | C34: TENAKEE | D34: TENAKEE SPRINGS | E34: AK | F34: 57.77966 | G34: -135.21844 | H34: 0 | I34: 0 | J34: 9452210 | K34: JUNEAU | L34: 46.36 | M34: 7.72 | N34: 1003252245 | O34: grid_57.5_224.5 | P34: 21.93 | Q34: =LOCIDdata[[#This Row],[STATE]]&+"_"&LOCIDdata[[#This Row],[LOCID]] -> AK_TKE | T34: 8531680 | U34: SANDY HOOK | V34: NEW JERSEY | W34: 40.467 | X34: -74.01 | Y34: 0.706 | Z34: 0.039 | AA34: 0.157 | AB34: 0.03 | AC34: 0.142 | AD34: 0.175 | AM34: TROIS-RIVIERES | AN34: 126 | AO34: 46.33 | AP34: -72.55 | AQ34: 2.0 - MED | AR34: -2.77 | AS34: 0 | AT34: 9 | AU34: 20 | AV34: 34 | AW34: 53 | AX34: 75 | AY34: 101 | AZ34: 129 | BA34: 157 | BB34: 192 | BC34: 232 | BD34: 314 | BE34: 466 | BF34: 799
A35: AL | B35: TYE | C35: TYONEK | D35: TYONEK | E35: AK | F35: 61.07666 | G35: -151.13807 | H35: 110 | I35: 0 | J35: 9455760 | K35: NIKISKI | L35: 28.55 | M35: 9.29 | N35: 1350 | O35: NIKISKI | P35: 28.77 | Q35: =LOCIDdata[[#This Row],[STATE]]&+"_"&LOCIDdata[[#This Row],[LOCID]] -> AK_TYE | T35: 8534720 | U35: ATLANTIC CITY | V35: NEW JERSEY | W35: 39.355 | X35: -74.418 | Y35: 0.674 | Z35: 0.031 | AA35: 0.137 | AB35: 0.023 | AC35: 0.097 | AD35: 0.162 | AM35: TROIS-RIVIERES | AN35: 126 | AO35: 46.33 | AP35: -72.55 | AQ35: 2.5 - MED | AR35: -2.77 | AS35: 0 | AT35: 10 | AU35: 22 | AV35: 38 | AW35: 61 | AX35: 88 | AY35: 121 | AZ35: 159 | BA35: 197 | BB35: 245 | BC35: 294 | BD35: 401 | BE35: 615 | BF35: 1030
A36: AL | B36: WSJ | C36: SAN JUAN /UGANIK/ | D36: SAN JUAN | E36: AK | F36: 57.73037 | G36: -153.3206 | H36: 0 | I36: 0 | J36: 9457292 | K36: KODIAK ISLAND | L36: 29.81 | M36: 4.27 | N36: 1003252065 | O36: grid_57.5_206.5 | P36: 17.23 | Q36: =LOCIDdata[[#This Row],[STATE]]&+"_"&LOCIDdata[[#This Row],[LOCID]] -> AK_WSJ | T36: 8536110 | U36: CAPE MAY | V36: NEW JERSEY | W36: 38.968 | X36: -74.96 | Y36: 0.638 | Z36: 0.043 | AA36: 0.13 | AB36: 0.031 | AC36: -0.138 | AD36: 0.222 | AM36: SEATTLE | AN36: 127 | AO36: 47.6 | AP36: -122.34 | AQ36: 0.3 - MED | AR36: 0.21 | AS36: 0 | AT36: 2 | AU36: 5 | AV36: 9 | AW36: 12 | AX36: 16 | AY36: 19 | AZ36: 23 | BA36: 27 | BB36: 30 | BC36: 33 | BD36: 38 | BE36: 44 | BF36: 49
A37: AL | B37: YAK | C37: YAKUTAT | D37: YAKUTAT | E37: AK | F37: 59.50332 | G37: -139.66027 | H37: 32.7 | I37: 15 | J37: 9453220 | K37: YAKUTAT | L37: 4.05 | M37: 4.78 | N37: 445 | O37: YAKUTAT | P37: 4.04 | Q37: =LOCIDdata[[#This Row],[STATE]]&+"_"&LOCIDdata[[#This Row],[LOCID]] -> AK_YAK | T37: 8545240 | U37: PHILADELPHIA | V37: PENNSYLVANIA | W37: 39.933 | X37: -75.142 | Y37: 0.589 | Z37: 0.033 | AA37: 0.158 | AB37: 0.023 | AC37: -0.038 | AD37: 0.125 | AM37: SEATTLE | AN37: 127 | AO37: 47.6 | AP37: -122.34 | AQ37: 0.5 - MED | AR37: 0.21 | AS37: 0 | AT37: 3 | AU37: 6 | AV37: 11 | AW37: 15 | AX37: 20 | AY37: 25 | AZ37: 29 | BA37: 35 | BB37: 40 | BC37: 45 | BD37: 53 | BE37: 65 | BF37: 85
A38: SO | B38: BFM | C38: MOBILE DOWNTOWN | D38: MOBILE | E38: AL | F38: 30.62678 | G38: -88.06808 | H38: 26.2 | I38: 18.5 | J38: 8735180 | K38: DAUPHIN ISLAND | L38: 26.02 | M38: 0.64 | N38: 1156 | O38: DAUPHIN ISLAND | P38: 26.03 | Q38: =LOCIDdata[[#This Row],[STATE]]&+"_"&LOCIDdata[[#This Row],[LOCID]] -> AL_BFM | T38: 8557380 | U38: LEWES | V38: DELAWARE | W38: 38.782 | X38: -75.12 | Y38: 0.669 | Z38: 0.036 | AA38: 0.136 | AB38: 0.027 | AC38: 0.079 | AD38: 0.195 | AM38: SEATTLE | AN38: 127 | AO38: 47.6 | AP38: -122.34 | AQ38: 1.0 - MED | AR38: 0.21 | AS38: 0 | AT38: 4 | AU38: 9 | AV38: 15 | AW38: 23 | AX38: 32 | AY38: 41 | AZ38: 53 | BA38: 67 | BB38: 80 | BC38: 96 | BD38: 114 | BE38: 162 | BF38: 256
A39: SO | B39: JKA | C39: JACK EDWARDS | D39: GULF SHORES | E39: AL | F39: 30.28964 | G39: -87.67178 | H39: 17.1 | I39: 11.3 | J39: 8735180 | K39: DAUPHIN ISLAND | L39: 24.2 | M39: 0.64 | N39: 1005952725 | O39: grid_30.5_272.5 | P39: 17.77 | Q39: =LOCIDdata[[#This Row],[STATE]]&+"_"&LOCIDdata[[#This Row],[LOCID]] -> AL_JKA | T39: 8571892 | U39: CAMBRIDGE | V39: MARYLAND | W39: 38.573 | X39: -76.068 | Y39: 0.503 | Z39: 0.029 | AA39: 0.089 | AB39: 0.024 | AC39: 0.187 | AD39: 0.279 | AM39: SEATTLE | AN39: 127 | AO39: 47.6 | AP39: -122.34 | AQ39: 1.5 - MED | AR39: 0.21 | AS39: 0 | AT39: 6 | AU39: 12 | AV39: 20 | AW39: 32 | AX39: 47 | AY39: 63 | AZ39: 82 | BA39: 106 | BB39: 131 | BC39: 162 | BD39: 200 | BE39: 303 | BF39: 512
A40: WP | B40: APC | C40: NAPA COUNTY | D40: NAPA | E40: CA | F40: 38.21319 | G40: -122.28069 | H40: 35.4 | I40: 12.4 | J40: 9414290 | K40: SAN FRANCISCO | L40: 29.78 | M40: 2.72 | N40: 1005152375 | O40: grid_38.5_237.5 | P40: 23.09 | Q40: =LOCIDdata[[#This Row],[STATE]]&+"_"&LOCIDdata[[#This Row],[LOCID]] -> CA_APC | T40: 8574680 | U40: BALTIMORE | V40: MARYLAND | W40: 39.267 | X40: -76.578 | Y40: 0.533 | Z40: 0.028 | AA40: 0.132 | AB40: 0.023 | AC40: 0.264 | AD40: 0.143 | AM40: SEATTLE | AN40: 127 | AO40: 47.6 | AP40: -122.34 | AQ40: 2.0 - MED | AR40: 0.21 | AS40: 0 | AT40: 7 | AU40: 14 | AV40: 26 | AW40: 44 | AX40: 66 | AY40: 90 | AZ40: 119 | BA40: 155 | BB40: 193 | BC40: 240 | BD40: 309 | BE40: 482 | BF40: 832
A41: WP | B41: CCR | C41: BUCHANAN FIELD | D41: CONCORD | E41: CA | F41: 37.98967 | G41: -122.05689 | H41: 25.5 | I41: 17.1 | J41: 9414750 | K41: ALAMEDA | L41: 19.96 | M41: 3.15 | N41: 437 | O41: ALAMEDA | P41: 20.14 | Q41: =LOCIDdata[[#This Row],[STATE]]&+"_"&LOCIDdata[[#This Row],[LOCID]] -> CA_CCR | T41: 8575512 | U41: ANNAPOLIS | V41: MARYLAND | W41: 38.983 | X41: -76.48 | Y41: 0.51 | Z41: 0.028 | AA41: 0.118 | AB41: 0.023 | AC41: 0.247 | AD41: 0.14 | AM41: SEATTLE | AN41: 127 | AO41: 47.6 | AP41: -122.34 | AQ41: 2.5 - MED | AR41: 0.21 | AS41: 0 | AT41: 8 | AU41: 16 | AV41: 31 | AW41: 52 | AX41: 80 | AY41: 112 | AZ41: 150 | BA41: 194 | BB41: 242 | BC41: 300 | BD41: 419 | BE41: 648 | BF41: 1094
A42: WP | B42: DVO | C42: GNOSS FIELD | D42: NOVATO | E42: CA | F42: 38.14357 | G42: -122.55709 | H42: 2 | I42: 1 | J42: 9414290 | K42: SAN FRANCISCO | L42: 23.77 | M42: 2.72 | N42: 10 | O42: SAN FRANCISCO | P42: 23.51 | Q42: =LOCIDdata[[#This Row],[STATE]]&+"_"&LOCIDdata[[#This Row],[LOCID]] -> CA_DVO | T42: 8577330 | U42: SOLOMONS ISLAND | V42: MARYLAND | W42: 38.317 | X42: -76.452 | Y42: 0.478 | Z42: 0.028 | AA42: 0.11 | AB42: 0.02 | AC42: -0.026 | AD42: 0.139 | AM42: PHILADELPHIA | AN42: 135 | AO42: 39.93 | AP42: -75.14 | AQ42: 0.3 - MED | AR42: 1.2 | AS42: 0 | AT42: 5 | AU42: 10 | AV42: 16 | AW42: 21 | AX42: 25 | AY42: 30 | AZ42: 35 | BA42: 39 | BB42: 43 | BC42: 45 | BD42: 50 | BE42: 58 | BF42: 68
A43: WP | B43: HWD | C43: HAYWARD EXECUTIVE | D43: HAYWARD | E43: CA | F43: 37.65893 | G43: -122.12174 | H43: 52.1 | I43: 27.7 | J43: 9414750 | K43: ALAMEDA | L43: 12.4 | M43: 3.15 | N43: 437 | O43: ALAMEDA | P43: 12.39 | Q43: =LOCIDdata[[#This Row],[STATE]]&+"_"&LOCIDdata[[#This Row],[LOCID]] -> CA_HWD | T43: 8594900 | U43: WASHINGTON | V43: D. C. | W43: 38.873 | X43: -77.022 | Y43: 0.557 | Z43: 0.046 | AA43: 0.188 | AB43: 0.042 | AC43: 0.413 | AD43: 0.182 | AM43: PHILADELPHIA | AN43: 135 | AO43: 39.93 | AP43: -75.14 | AQ43: 0.5 - MED | AR43: 1.2 | AS43: 0 | AT43: 6 | AU43: 12 | AV43: 19 | AW43: 25 | AX43: 31 | AY43: 37 | AZ43: 43 | BA43: 50 | BB43: 55 | BC43: 59 | BD43: 69 | BE43: 84 | BF43: 109
A44: WP | B44: LGB | C44: LONG BEACH /DAUGHERTY FIELD/ | D44: LONG BEACH | E44: CA | F44: 33.81764 | G44: -118.15147 | H44: 60.4 | I44: 25.7 | J44: 9410660 | K44: LOS ANGELES | L44: 9.66 | M44: 2.67 | N44: 245 | O44: LOS ANGELES | P44: 9.58 | Q44: =LOCIDdata[[#This Row],[STATE]]&+"_"&LOCIDdata[[#This Row],[LOCID]] -> CA_LGB | T44: 8632200 | U44: KIPTOPEKE | V44: VIRGINIA | W44: 37.167 | X44: -75.988 | Y44: 0.579 | Z44: 0.033 | AA44: 0.117 | AB44: 0.025 | AC44: 0.09 | AD44: 0.186 | AM44: PHILADELPHIA | AN44: 135 | AO44: 39.93 | AP44: -75.14 | AQ44: 1.0 - MED | AR44: 1.2 | AS44: 0 | AT44: 8 | AU44: 17 | AV44: 27 | AW44: 37 | AX44: 49 | AY44: 63 | AZ44: 77 | BA44: 94 | BB44: 111 | BC44: 128 | BD44: 145 | BE44: 198 | BF44: 292
A45: WP | B45: NTD | C45: POINT MUGU NAS | D45: POINT MUGU | E45: CA | F45: 34.11927 | G45: -119.11958 | H45: 13 | I45: 9.1 | J45: 9411270 | K45: RINCON ISLAND | L45: 24.3 | M45: 2.63 | N45: 1013 | O45: RINCON ISLAND | P45: 24.26 | Q45: =LOCIDdata[[#This Row],[STATE]]&+"_"&LOCIDdata[[#This Row],[LOCID]] -> CA_NTD | T45: 8635150 | U45: COLONIAL BEACH | V45: VIRGINIA | W45: 38.252 | X45: -76.96 | Y45: 0.498 | Z45: 0.035 | AA45: 0.093 | AB45: 0.029 | AC45: 0.251 | AD45: 0.304 | AM45: PHILADELPHIA | AN45: 135 | AO45: 39.93 | AP45: -75.14 | AQ45: 1.5 - MED | AR45: 1.2 | AS45: 0 | AT45: 11 | AU45: 22 | AV45: 36 | AW45: 51 | AX45: 68 | AY45: 88 | AZ45: 110 | BA45: 137 | BB45: 164 | BC45: 195 | BD45: 241 | BE45: 349 | BF45: 563
A46: WP | B46: NUQ | C46: MOFFETT FEDERAL AIRFIELD | D46: MOUNTAIN VIEW | E46: CA | F46: 37.41614 | G46: -122.04914 | H46: 36.6 | I46: 4 | J46: 9414750 | K46: ALAMEDA | L46: 28.09 | M46: 3.15 | N46: 1005252375 | O46: grid_37.5_237.5 | P46: 25.38 | Q46: =LOCIDdata[[#This Row],[STATE]]&+"_"&LOCIDdata[[#This Row],[LOCID]] -> CA_NUQ | T46: 8635750 | U46: LEWISETTA | V46: VIRGINIA | W46: 37.995 | X46: -76.465 | Y46: 0.488 | Z46: 0.035 | AA46: 0.099 | AB46: 0.027 | AC46: 0.146 | AD46: 0.215 | AM46: PHILADELPHIA | AN46: 135 | AO46: 39.93 | AP46: -75.14 | AQ46: 2.0 - MED | AR46: 1.2 | AS46: 0 | AT46: 13 | AU46: 26 | AV46: 44 | AW46: 64 | AX46: 89 | AY46: 120 | AZ46: 150 | BA46: 185 | BB46: 229 | BC46: 275 | BD46: 365 | BE46: 555 | BF46: 918
A47: WP | B47: NZY | C47: NORTH ISLAND NAS /HALSEY FIELD/ | D47: SAN DIEGO | E47: CA | F47: 32.6982 | G47: -117.21311 | H47: 25.9 | I47: 9.9 | J47: 9410170 | K47: SAN DIEGO | L47: 2.54 | M47: 2.78 | N47: 158 | O47: SAN DIEGO | P47: 2.63 | Q47: =LOCIDdata[[#This Row],[STATE]]&+"_"&LOCIDdata[[#This Row],[LOCID]] -> CA_NZY | T47: 8637624 | U47: GLOUCESTER POINT | V47: VIRGINIA | W47: 37.247 | X47: -76.5 | Y47: 0.582 | Z47: 0.042 | AA47: 0.141 | AB47: 0.03 | AC47: 0.044 | AD47: 0.158 | AM47: PHILADELPHIA | AN47: 135 | AO47: 39.93 | AP47: -75.14 | AQ47: 2.5 - MED | AR47: 1.2 | AS47: 0 | AT47: 14 | AU47: 27 | AV47: 48 | AW47: 72 | AX47: 102 | AY47: 139 | AZ47: 180 | BA47: 226 | BB47: 280 | BC47: 338 | BD47: 455 | BE47: 690 | BF47: 1134
A48: WP | B48: OAK | C48: METROPOLITAN OAKLAND INTERNATIONAL | D48: OAKLAND | E48: CA | F48: 37.71869 | G48: -122.22166 | H48: 9.4 | I48: 1.5 | J48: 9414750 | K48: ALAMEDA | L48: 5.56 | M48: 3.15 | N48: 437 | O48: ALAMEDA | P48: 5.55 | Q48: =LOCIDdata[[#This Row],[STATE]]&+"_"&LOCIDdata[[#This Row],[LOCID]] -> CA_OAK | T48: 8638610 | U48: SEWELLS POINT | V48: VIRGINIA | W48: 36.947 | X48: -76.33 | Y48: 0.678 | Z48: 0.041 | AA48: 0.17 | AB48: 0.031 | AC48: 0.12 | AD48: 0.163 | AM48: PORT-SAINT-FRANCOIS | AN48: 137 | AO48: 46.27 | AP48: -72.62 | AQ48: 0.3 - MED | AR48: -2.92 | AS48: 0 | AT48: 0 | AU48: 1 | AV48: 2 | AW48: 3 | AX48: 4 | AY48: 5 | AZ48: 6 | BA48: 6 | BB48: 5 | BC48: 4 | BD48: -1 | BE48: -6 | BF48: -17
A49: WP | B49: PAO | C49: PALO ALTO | D49: PALO ALTO | E49: CA | F49: 37.46111 | G49: -122.11506 | H49: 6.8 | I49: 6.7 | J49: 9414750 | K49: ALAMEDA | L49: 23.68 | M49: 3.15 | N49: 1005252375 | O49: grid_37.5_237.5 | P49: 21.26 | Q49: =LOCIDdata[[#This Row],[STATE]]&+"_"&LOCIDdata[[#This Row],[LOCID]] -> CA_PAO | T49: 8638660 | U49: PORTSMOUTH | V49: VIRGINIA | W49: 36.822 | X49: -76.293 | Y49: 0.697 | Z49: 0.052 | AA49: 0.17 | AB49: 0.038 | AC49: 0.076 | AD49: 0.196 | AM49: PORT-SAINT-FRANCOIS | AN49: 137 | AO49: 46.27 | AP49: -72.62 | AQ49: 0.5 - MED | AR49: -2.92 | AS49: 0 | AT49: 2 | AU49: 4 | AV49: 5 | AW49: 7 | AX49: 10 | AY49: 12 | AZ49: 15 | BA49: 16 | BB49: 17 | BC49: 17 | BD49: 17 | BE49: 19 | BF49: 21
A50: WP | B50: SAN | C50: SAN DIEGO INTERNATIONAL | D50: SAN DIEGO | E50: CA | F50: 32.73356 | G50: -117.18967 | H50: 16.8 | I50: 13.7 | J50: 9410170 | K50: SAN DIEGO | L50: 1.72 | M50: 2.78 | N50: 158 | O50: SAN DIEGO | P50: 1.99 | Q50: =LOCIDdata[[#This Row],[STATE]]&+"_"&LOCIDdata[[#This Row],[LOCID]] -> CA_SAN | T50: 8638863 | U50: CHES. BAY BR. TNL. | V50: VIRGINIA | W50: 36.967 | X50: -76.113 | Y50: 0 | Z50: 0.653 | AA50: 0.055 | AB50: 0.145 | AC50: 0.042 | AD50: 0.105 | AM50: PORT-SAINT-FRANCOIS | AN50: 137 | AO50: 46.27 | AP50: -72.62 | AQ50: 1.0 - MED | AR50: -2.92 | AS50: 0 | AT50: 4 | AU50: 9 | AV50: 15 | AW50: 21 | AX50: 29 | AY50: 39 | AZ50: 50 | BA50: 61 | BB50: 73 | BC50: 85 | BD50: 91 | BE50: 129 | BF50: 192
A51: WP | B51: SBA | C51: SANTA BARBARA MUNICIPAL | D51: SANTA BARBARA | E51: CA | F51: 34.42619 | G51: -119.84149 | H51: 13.4 | I51: 10.7 | J51: 9411270 | K51: RINCON ISLAND | L51: 23.34 | M51: 2.63 | N51: 2126 | O51: SANTA BARBARA | P51: 8.7 | Q51: =LOCIDdata[[#This Row],[STATE]]&+"_"&LOCIDdata[[#This Row],[LOCID]] -> CA_SBA | T51: 8656483 | U51: BEAUFORT | V51: NORTH CAROLINA | W51: 34.72 | X51: -76.67 | Y51: 0.424 | Z51: 0.037 | AA51: 0.121 | AB51: 0.029 | AC51: 0.163 | AD51: 0.203 | AM51: PORT-SAINT-FRANCOIS | AN51: 137 | AO51: 46.27 | AP51: -72.62 | AQ51: 1.5 - MED | AR51: -2.92 | AS51: 0 | AT51: 7 | AU51: 15 | AV51: 24 | AW51: 36 | AX51: 50 | AY51: 65 | AZ51: 84 | BA51: 104 | BB51: 126 | BC51: 149 | BD51: 187 | BE51: 274 | BF51: 459
A52: WP | B52: SCK | C52: STOCKTON METROPOLITAN | D52: STOCKTON | E52: CA | F52: 37.89417 | G52: -121.23831 | H52: 33.2 | I52: 25.9 | J52: 9414750 | K52: ALAMEDA | L52: 58.4 | M52: 3.15 | N52: 1005252385 | O52: grid_37.5_238.5 | P52: 30.74 | Q52: =LOCIDdata[[#This Row],[STATE]]&+"_"&LOCIDdata[[#This Row],[LOCID]] -> CA_SCK | T52: 8658120 | U52: WILMINGTON | V52: NORTH CAROLINA | W52: 34.227 | X52: -77.953 | Y52: 0.375 | Z52: 0.026 | AA52: 0.104 | AB52: 0.018 | AC52: 0.045 | AD52: 0.127 | AM52: PORT-SAINT-FRANCOIS | AN52: 137 | AO52: 46.27 | AP52: -72.62 | AQ52: 2.0 - MED | AR52: -2.92 | AS52: 0 | AT52: 10 | AU52: 20 | AV52: 33 | AW52: 52 | AX52: 74 | AY52: 100 | AZ52: 128 | BA52: 156 | BB52: 191 | BC52: 231 | BD52: 312 | BE52: 464 | BF52: 796
A53: WP | B53: SFO | C53: SAN FRANCISCO INTERNATIONAL | D53: SAN FRANCISCO INTERNATIONAL AIRPORT | E53: CA | F53: 37.61881 | G53: -122.37542 | H53: 13.1 | I53: 5.5 | J53: 9414750 | K53: ALAMEDA | L53: 11.39 | M53: 3.15 | N53: 1005252375 | O53: grid_37.5_237.5 | P53: 10.67 | Q53: =LOCIDdata[[#This Row],[STATE]]&+"_"&LOCIDdata[[#This Row],[LOCID]] -> CA_SFO | T53: 8661070 | U53: SPRINGMAID PIER | V53: SOUTH CAROLINA | W53: 33.655 | X53: -78.918 | Y53: 0.574 | Z53: 0.027 | AA53: 0.088 | AB53: 0.018 | AC53: -0.026 | AD53: 0.122 | AM53: PORT-SAINT-FRANCOIS | AN53: 137 | AO53: 46.27 | AP53: -72.62 | AQ53: 2.5 - MED | AR53: -2.92 | AS53: 0 | AT53: 10 | AU53: 22 | AV53: 37 | AW53: 60 | AX53: 87 | AY53: 120 | AZ53: 158 | BA53: 196 | BB53: 244 | BC53: 293 | BD53: 400 | BE53: 613 | BF53: 1028
A54: NE | B54: BDR | C54: IGOR I SIKORSKY MEMORIAL | D54: BRIDGEPORT | E54: CT | F54: 41.16347 | G54: -73.12617 | H54: 8.5 | I54: 5.7 | J54: 8467150 | K54: BRIDGEPORT | L54: 2.98 | M54: 3.7 | N54: 1068 | O54: BRIDGEPORT | P54: 2.83 | Q54: =LOCIDdata[[#This Row],[STATE]]&+"_"&LOCIDdata[[#This Row],[LOCID]] -> CT_BDR | T54: 8665530 | U54: CHARLESTON | V54: SOUTH CAROLINA | W54: 32.782 | X54: -79.925 | Y54: 0.526 | Z54: 0.022 | AA54: 0.094 | AB54: 0.017 | AC54: 0.234 | AD54: 0.153 | AM54: POINTE-AU-PERE | AN54: 138 | AO54: 48.52 | AP54: -68.47 | AQ54: 0.3 - MED | AR54: -2.04 | AS54: 0 | AT54: 1 | AU54: 4 | AV54: 5 | AW54: 7 | AX54: 9 | AY54: 11 | AZ54: 12 | BA54: 11 | BB54: 12 | BC54: 12 | BD54: 8 | BE54: 4 | BF54: -4
A55: NE | B55: GON | C55: GROTON-NEW LONDON | D55: GROTON | E55: CT | F55: 41.33006 | G55: -72.04514 | H55: 9.1 | I55: 5.2 | J55: 8461490 | K55: NEW LONDON | L55: 2.77 | M55: 1.51 | N55: 429 | O55: NEW LONDON | P55: 3.11 | Q55: =LOCIDdata[[#This Row],[STATE]]&+"_"&LOCIDdata[[#This Row],[LOCID]] -> CT_GON | T55: 8670870 | U55: FORT PULASKI | V55: GEORGIA | W55: 32.033 | X55: -80.902 | Y55: 0.579 | Z55: 0.018 | AA55: 0.072 | AB55: 0.014 | AC55: 0.101 | AD55: 0.147 | AM55: POINTE-AU-PERE | AN55: 138 | AO55: 48.52 | AP55: -68.47 | AQ55: 0.5 - MED | AR55: -2.04 | AS55: 0 | AT55: 3 | AU55: 6 | AV55: 9 | AW55: 12 | AX55: 15 | AY55: 18 | AZ55: 20 | BA55: 22 | BB55: 24 | BC55: 25 | BD55: 26 | BE55: 30 | BF55: 34
A56: NE | B56: HFD | C56: HARTFORD-BRAINARD | D56: HARTFORD | E56: CT | F56: 41.73672 | G56: -72.64944 | H56: 18.3 | I56: 11 | J56: 8461490 | K56: NEW LONDON | L56: 39.24 | M56: 1.51 | N56: 1004852875 | O56: grid_41.5_287.5 | P56: 18.07 | Q56: =LOCIDdata[[#This Row],[STATE]]&+"_"&LOCIDdata[[#This Row],[LOCID]] -> CT_HFD | T56: 8720030 | U56: FERNANDINA BEACH | V56: FLORIDA | W56: 30.672 | X56: -81.465 | Y56: 0.556 | Z56: 0.021 | AA56: 0.096 | AB56: 0.016 | AC56: 0.154 | AD56: 0.118 | AM56: POINTE-AU-PERE | AN56: 138 | AO56: 48.52 | AP56: -68.47 | AQ56: 1.0 - MED | AR56: -2.04 | AS56: 0 | AT56: 5 | AU56: 11 | AV56: 18 | AW56: 25 | AX56: 35 | AY56: 46 | AZ56: 57 | BA56: 69 | BB56: 82 | BC56: 94 | BD56: 110 | BE56: 146 | BF56: 213
A57: NE | B57: HVN | C57: TWEED-NEW HAVEN | D57: NEW HAVEN | E57: CT | F57: 41.26375 | G57: -72.88681 | H57: 12.4 | I57: 4.5 | J57: 8467150 | K57: BRIDGEPORT | L57: 16.56 | M57: 3.7 | N57: 1068 | O57: BRIDGEPORT | P57: 16.55 | Q57: =LOCIDdata[[#This Row],[STATE]]&+"_"&LOCIDdata[[#This Row],[LOCID]] -> CT_HVN | T57: 8720220 | U57: MAYPORT | V57: FLORIDA | W57: 30.397 | X57: -81.43 | Y57: 0.428 | Z57: 0.018 | AA57: 0.076 | AB57: 0.013 | AC57: -0.01 | AD57: 0.148 | AM57: POINTE-AU-PERE | AN57: 138 | AO57: 48.52 | AP57: -68.47 | AQ57: 1.5 - MED | AR57: -2.04 | AS57: 0 | AT57: 9 | AU57: 18 | AV57: 27 | AW57: 40 | AX57: 55 | AY57: 73 | AZ57: 92 | BA57: 113 | BB57: 135 | BC57: 160 | BD57: 212 | BE57: 299 | BF57: 494
A58: SO | B58: APF | C58: NAPLES MUNICIPAL | D58: NAPLES | E58: FL | F58: 26.15244 | G58: -81.77564 | H58: 8.2 | I58: 4.6 | J58: 8725110 | K58: NAPLES | L58: 2.49 | M58: 1.22 | N58: 1107 | O58: NAPLES | P58: 2.63 | Q58: =LOCIDdata[[#This Row],[STATE]]&+"_"&LOCIDdata[[#This Row],[LOCID]] -> FL_APF | T58: 8723170 | U58: MIAMI BEACH | V58: FLORIDA | W58: 25.768 | X58: -80.132 | Y58: 0.391 | Z58: 0.033 | AA58: 0.105 | AB58: 0.025 | AC58: 0.14 | AD58: 0.181 | AM58: POINTE-AU-PERE | AN58: 138 | AO58: 48.52 | AP58: -68.47 | AQ58: 2.0 - MED | AR58: -2.04 | AS58: 0 | AT58: 12 | AU58: 22 | AV58: 36 | AW58: 58 | AX58: 80 | AY58: 108 | AZ58: 136 | BA58: 166 | BB58: 201 | BC58: 240 | BD58: 342 | BE58: 504 | BF58: 853
A59: SO | B59: BCT | C59: BOCA RATON | D59: BOCA RATON | E59: FL | F59: 26.3785 | G59: -80.10769 | H59: 13 | I59: 11.4 | J59: 8723170 | K59: MIAMI BEACH | L59: 42.18 | M59: 1.29 | N59: 1006352795 | O59: grid_26.5_279.5 | P59: 25.66 | Q59: =LOCIDdata[[#This Row],[STATE]]&+"_"&LOCIDdata[[#This Row],[LOCID]] -> FL_BCT | T59: 8723970 | U59: VACA KEY | V59: FLORIDA | W59: 24.712 | X59: -81.105 | Y59: 0.268 | Z59: 0.02 | AA59: 0.057 | AB59: 0.017 | AC59: 0.325 | AD59: 0.242 | AM59: POINTE-AU-PERE | AN59: 138 | AO59: 48.52 | AP59: -68.47 | AQ59: 2.5 - MED | AR59: -2.04 | AS59: 0 | AT59: 13 | AU59: 25 | AV59: 40 | AW59: 66 | AX59: 95 | AY59: 130 | AZ59: 164 | BA59: 209 | BB59: 260 | BC59: 310 | BD59: 428 | BE59: 648 | BF59: 1063
A60: SO | B60: CGC | C60: CRYSTAL RIVER-CAPTAIN TOM DAVIS FIELD | D60: CRYSTAL RIVER | E60: FL | F60: 28.86761 | G60: -82.57411 | H60: 8.9 | I60: 5.7 | J60: 8727520 | K60: CEDAR KEY | L60: 33.25 | M60: 1.76 | N60: 1006152775 | O60: grid_28.5_277.5 | P60: 25.78 | Q60: =LOCIDdata[[#This Row],[STATE]]&+"_"&LOCIDdata[[#This Row],[LOCID]] -> FL_CGC | T60: 8724580 | U60: KEY WEST | V60: FLORIDA | W60: 24.553 | X60: -81.808 | Y60: 0.276 | Z60: 0.014 | AA60: 0.067 | AB60: 0.01 | AC60: 0.053 | AD60: 0.096 | AM60: BATISCAN | AN60: 144 | AO60: 46.5 | AP60: -72.25 | AQ60: 0.3 - MED | AR60: -2.78 | AS60: 0 | AT60: 0 | AU60: 1 | AV60: 3 | AW60: 4 | AX60: 5 | AY60: 6 | AZ60: 7 | BA60: 7 | BB60: 6 | BC60: 5 | BD60: 1 | BE60: -4 | BF60: -15
A61: SO | B61: DTS | C61: DESTIN EXECUTIVE | D61: DESTIN | E61: FL | F61: 30.40005 | G61: -86.47147 | H61: 21.5 | I61: 20.2 | J61: 8729840 | K61: PENSACOLA | L61: 44.1 | M61: 0.64 | N61: 1005952735 | O61: grid_30.5_273.5 | P61: 7.11 | Q61: =LOCIDdata[[#This Row],[STATE]]&+"_"&LOCIDdata[[#This Row],[LOCID]] -> FL_DTS | T61: 8725110 | U61: NAPLES | V61: FLORIDA | W61: 26.13 | X61: -81.807 | Y61: 0.414 | Z61: 0.034 | AA61: 0.104 | AB61: 0.027 | AC61: 0.172 | AD61: 0.249 | AM61: BATISCAN | AN61: 144 | AO61: 46.5 | AP61: -72.25 | AQ61: 0.5 - MED | AR61: -2.78 | AS61: 0 | AT61: 2 | AU61: 4 | AV61: 6 | AW61: 8 | AX61: 11 | AY61: 13 | AZ61: 15 | BA61: 17 | BB61: 17 | BC61: 18 | BD61: 19 | BE61: 21 | BF61: 22
A62: SO | B62: EYW | C62: KEY WEST INTERNATIONAL | D62: KEY WEST | E62: FL | F62: 24.55611 | G62: -81.75956 | H62: 2.8 | I62: 2.5 | J62: 8724580 | K62: KEY WEST | L62: 3.05 | M62: 0.92 | N62: 188 | O62: KEY WEST | P62: 3.2 | Q62: =LOCIDdata[[#This Row],[STATE]]&+"_"&LOCIDdata[[#This Row],[LOCID]] -> FL_EYW | T62: 8725520 | U62: FORT MYERS | V62: FLORIDA | W62: 26.647 | X62: -81.872 | Y62: 0.418 | Z62: 0.047 | AA62: 0.141 | AB62: 0.037 | AC62: 0.177 | AD62: 0.25 | AM62: BATISCAN | AN62: 144 | AO62: 46.5 | AP62: -72.25 | AQ62: 1.0 - MED | AR62: -2.78 | AS62: 0 | AT62: 4 | AU62: 9 | AV62: 16 | AW62: 22 | AX62: 30 | AY62: 39 | AZ62: 51 | BA62: 62 | BB62: 74 | BC62: 86 | BD62: 93 | BE62: 130 | BF62: 193
A63: SO | B63: FHB | C63: FERNANDINA BEACH MUNICIPAL | D63: FERNANDINA BEACH | E63: FL | F63: 30.61183 | G63: -81.46119 | H63: 15.7 | I63: 12.2 | J63: 8720030 | K63: FERNANDINA BEACH | L63: 4.16 | M63: 3.27 | N63: 112 | O63: FERNANDINA BEACH | P63: 4.05 | Q63: =LOCIDdata[[#This Row],[STATE]]&+"_"&LOCIDdata[[#This Row],[LOCID]] -> FL_FHB | T63: 8726520 | U63: ST. PETERSBURG | V63: FLORIDA | W63: 27.76 | X63: -82.627 | Y63: 0 | Z63: 0.445 | AA63: 0.037 | AB63: 0.129 | AC63: 0.03 | AD63: 0.224 | AM63: BATISCAN | AN63: 144 | AO63: 46.5 | AP63: -72.25 | AQ63: 1.5 - MED | AR63: -2.78 | AS63: 0 | AT63: 7 | AU63: 15 | AV63: 25 | AW63: 37 | AX63: 51 | AY63: 66 | AZ63: 85 | BA63: 104 | BB63: 127 | BC63: 149 | BD63: 188 | BE63: 276 | BF63: 460
A64: SO | B64: FLL | C64: FORT LAUDERDALE/HOLLYWOOD INTERNATIONAL | D64: FORT LAUDERDALE | E64: FL | F64: 26.07167 | G64: -80.14969 | H64: 65.1 | I64: 5.2 | J64: 8723170 | K64: MIAMI BEACH | L64: 21 | M64: 1.29 | N64: 363 | O64: MIAMI BEACH | P64: 20.87 | Q64: =LOCIDdata[[#This Row],[STATE]]&+"_"&LOCIDdata[[#This Row],[LOCID]] -> FL_FLL | T64: 8726724 | U64: CLEARWATER BEACH | V64: FLORIDA | W64: 27.978 | X64: -82.832 | Y64: 0.467 | Z64: 0.048 | AA64: 0.122 | AB64: 0.04 | AC64: 0.257 | AD64: 0.37 | AM64: BATISCAN | AN64: 144 | AO64: 46.5 | AP64: -72.25 | AQ64: 2.0 - MED | AR64: -2.78 | AS64: 0 | AT64: 10 | AU64: 20 | AV64: 34 | AW64: 53 | AX64: 75 | AY64: 101 | AZ64: 129 | BA64: 157 | BB64: 192 | BC64: 232 | BD64: 314 | BE64: 466 | BF64: 797
A65: SO | B65: FMY | C65: PAGE FIELD | D65: FORT MYERS | E65: FL | F65: 26.58661 | G65: -81.86325 | H65: 17.1 | I65: 12.8 | J65: 8725520 | K65: FORT MYERS | L65: 4.2 | M65: 0.69 | N65: 1106 | O65: FORT MYERS | P65: 4.4 | Q65: =LOCIDdata[[#This Row],[STATE]]&+"_"&LOCIDdata[[#This Row],[LOCID]] -> FL_FMY | T65: 8727520 | U65: CEDAR KEY | V65: FLORIDA | W65: 29.135 | X65: -83.032 | Y65: 0.524 | Z65: 0.036 | AA65: 0.152 | AB65: 0.029 | AC65: 0.224 | AD65: 0.171 | AM65: BATISCAN | AN65: 144 | AO65: 46.5 | AP65: -72.25 | AQ65: 2.5 - MED | AR65: -2.78 | AS65: 0 | AT65: 10 | AU65: 22 | AV65: 38 | AW65: 61 | AX65: 88 | AY65: 121 | AZ65: 159 | BA65: 197 | BB65: 244 | BC65: 294 | BD65: 401 | BE65: 615 | BF65: 1029
A66: SO | B66: FXE | C66: FORT LAUDERDALE EXECUTIVE | D66: FORT LAUDERDALE | E66: FL | F66: 26.19728 | G66: -80.17071 | H66: 13.4 | I66: 10.9 | J66: 8723170 | K66: MIAMI BEACH | L66: 29.74 | M66: 1.29 | N66: 1006352795 | O66: grid_26.5_279.5 | P66: 29.19 | Q66: =LOCIDdata[[#This Row],[STATE]]&+"_"&LOCIDdata[[#This Row],[LOCID]] -> FL_FXE | T66: 8729840 | U66: PENSACOLA | V66: FLORIDA | W66: 30.403 | X66: -87.212 | Y66: 0.397 | Z66: 0.03 | AA66: 0.126 | AB66: 0.027 | AC66: 0.426 | AD66: 0.194 | AM66: BALTIMORE | AN66: 148 | AO66: 39.27 | AP66: -76.58 | AQ66: 0.3 - MED | AR66: 1.4 | AS66: 0 | AT66: 5 | AU66: 11 | AV66: 15 | AW66: 22 | AX66: 26 | AY66: 31 | AZ66: 37 | BA66: 41 | BB66: 45 | BC66: 47 | BD66: 54 | BE66: 62 | BF66: 73
A67: SO | B67: HST | C67: HOMESTEAD ARB | D67: HOMESTEAD | E67: FL | F67: 25.48855 | G67: -80.38357 | H67: 5.6 | I67: 5.5 | J67: 8723170 | K67: MIAMI BEACH | L67: 24.85 | M67: 1.29 | N67: 1006452795 | O67: grid_25.5_279.5 | P67: 7.3 | Q67: =LOCIDdata[[#This Row],[STATE]]&+"_"&LOCIDdata[[#This Row],[LOCID]] -> FL_HST | T67: 8735180 | U67: DAUPHIN ISLAND | V67: ALABAMA | W67: 30.25 | X67: -88.075 | Y67: 0.404 | Z67: 0.046 | AA67: 0.131 | AB67: 0.041 | AC67: 0.385 | AD67: 0.248 | AM67: BALTIMORE | AN67: 148 | AO67: 39.27 | AP67: -76.58 | AQ67: 0.5 - MED | AR67: 1.4 | AS67: 0 | AT67: 6 | AU67: 13 | AV67: 19 | AW67: 26 | AX67: 32 | AY67: 38 | AZ67: 45 | BA67: 50 | BB67: 56 | BC67: 61 | BD67: 72 | BE67: 88 | BF67: 113
A68: SO | B68: JAX | C68: JACKSONVILLE INTERNATIONAL | D68: JACKSONVILLE | E68: FL | F68: 30.49406 | G68: -81.68783 | H68: 29.2 | I68: 23.8 | J68: 8720220 | K68: MAYPORT | L68: 16.75 | M68: 2.45 | N68: 1005952785 | O68: grid_30.5_278.5 | P68: 11.18 | Q68: =LOCIDdata[[#This Row],[STATE]]&+"_"&LOCIDdata[[#This Row],[LOCID]] -> FL_JAX | T68: 8761724 | U68: GRAND ISLE | V68: LOUISIANA | W68: 29.263 | X68: -89.957 | Y68: 0.433 | Z68: 0.047 | AA68: 0.168 | AB68: 0.039 | AC68: 0.261 | AD68: 0.206 | AM68: BALTIMORE | AN68: 148 | AO68: 39.27 | AP68: -76.58 | AQ68: 1.0 - MED | AR68: 1.4 | AS68: 0 | AT68: 8 | AU68: 17 | AV68: 27 | AW68: 38 | AX68: 50 | AY68: 63 | AZ68: 78 | BA68: 93 | BB68: 111 | BC68: 128 | BD68: 146 | BE68: 200 | BF68: 294
A69: SO | B69: LNA | C69: PALM BEACH COUNTY PARK | D69: WEST PALM BEACH | E69: FL | F69: 26.59306 | G69: -80.08506 | H69: 14.2 | I69: 12.4 | J69: 8723170 | K69: MIAMI BEACH | L69: 57.04 | M69: 1.29 | N69: 1006352795 | O69: grid_26.5_279.5 | P69: 26.42 | Q69: =LOCIDdata[[#This Row],[STATE]]&+"_"&LOCIDdata[[#This Row],[LOCID]] -> FL_LNA | T69: 8764311 | U69: EUGENE ISLAND | V69: LOUISIANA | W69: 29.372 | X69: -91.385 | Y69: 0.567 | Z69: 0.066 | AA69: 0.171 | AB69: 0.053 | AC69: 0.228 | AD69: 0.289 | AM69: BALTIMORE | AN69: 148 | AO69: 39.27 | AP69: -76.58 | AQ69: 1.5 - MED | AR69: 1.4 | AS69: 0 | AT69: 10 | AU69: 22 | AV69: 35 | AW69: 50 | AX69: 68 | AY69: 87 | AZ69: 110 | BA69: 136 | BB69: 164 | BC69: 196 | BD69: 240 | BE69: 348 | BF69: 563
A70: SO | B70: MIA | C70: MIAMI INTERNATIONAL | D70: MIAMI | E70: FL | F70: 25.79536 | G70: -80.29011 | H70: 8.5 | I70: 7.4 | J70: 8723170 | K70: MIAMI BEACH | L70: 10.01 | M70: 1.29 | N70: 1858 | O70: VIRGINIA KEY | P70: 9.26 | Q70: =LOCIDdata[[#This Row],[STATE]]&+"_"&LOCIDdata[[#This Row],[LOCID]] -> FL_MIA | T70: 8770570 | U70: SABINE PASS | V70: TEXAS | W70: 29.73 | X70: -93.87 | Y70: 0.498 | Z70: 0.053 | AA70: 0.175 | AB70: 0.042 | AC70: 0.238 | AD70: 0.172 | AM70: BALTIMORE | AN70: 148 | AO70: 39.27 | AP70: -76.58 | AQ70: 2.0 - MED | AR70: 1.4 | AS70: 0 | AT70: 12 | AU70: 26 | AV70: 43 | AW70: 64 | AX70: 89 | AY70: 119 | AZ70: 150 | BA70: 185 | BB70: 228 | BC70: 274 | BD70: 366 | BE70: 548 | BF70: 908
A71: SO | B71: MKY | C71: MARCO ISLAND | D71: MARCO ISLAND | E71: FL | F71: 25.99503 | G71: -81.67253 | H71: 5.2 | I71: 5 | J71: 8725110 | K71: NAPLES | L71: 12.51 | M71: 1.22 | N71: 1107 | O71: NAPLES | P71: 12.63 | Q71: =LOCIDdata[[#This Row],[STATE]]&+"_"&LOCIDdata[[#This Row],[LOCID]] -> FL_MKY | T71: 8771450 | U71: GALVESTON PIER 21 | V71: TEXAS | W71: 29.31 | X71: -94.793 | Y71: 0.522 | Z71: 0.038 | AA71: 0.172 | AB71: 0.034 | AC71: 0.386 | AD71: 0.175 | AM71: BALTIMORE | AN71: 148 | AO71: 39.27 | AP71: -76.58 | AQ71: 2.5 - MED | AR71: 1.4 | AS71: 0 | AT71: 14 | AU71: 28 | AV71: 47 | AW71: 71 | AX71: 101 | AY71: 138 | AZ71: 180 | BA71: 223 | BB71: 277 | BC71: 336 | BD71: 450 | BE71: 688 | BF71: 1123
A72: SO | B72: MTH | C72: THE FLORIDA KEYS MARATHON INTERNATIONAL | D72: MARATHON | E72: FL | F72: 24.72619 | G72: -81.05136 | H72: 5.2 | I72: 4.6 | J72: 8723970 | K72: VACA KEY | L72: 3.5 | M72: 0.47 | N72: 1701 | O72: VACA KEY | P72: 3.84 | Q72: =LOCIDdata[[#This Row],[STATE]]&+"_"&LOCIDdata[[#This Row],[LOCID]] -> FL_MTH | T72: 8771510 | U72: GALVES. PLEASURE PIER | V72: TEXAS | W72: 29.285 | X72: -94.788 | Y72: 0.592 | Z72: 0.066 | AA72: 0.212 | AB72: 0.055 | AC72: 0.292 | AD72: 0.208 | AM72: HONOLULU | AN72: 155 | AO72: 21.31 | AP72: -157.87 | AQ72: 0.3 - MED | AR72: -0.19 | AS72: 0 | AT72: 3 | AU72: 7 | AV72: 10 | AW72: 14 | AX72: 19 | AY72: 24 | AZ72: 27 | BA72: 30 | BB72: 34 | BC72: 38 | BD72: 45 | BE72: 51 | BF72: 55
A73: SO | B73: NIP | C73: JACKSONVILLE NAS (TOWERS FIELD) | D73: JACKSONVILLE | E73: FL | F73: 30.23371 | G73: -81.67606 | H73: 22.5 | I73: 7.4 | J73: 8720220 | K73: MAYPORT | L73: 18.5 | M73: 2.45 | N73: 316 | O73: MAYPORT | P73: 18.21 | Q73: =LOCIDdata[[#This Row],[STATE]]&+"_"&LOCIDdata[[#This Row],[LOCID]] -> FL_NIP | T73: 8772440 | U73: FREEPORT | V73: TEXAS | W73: 28.948 | X73: -95.308 | Y73: 0.532 | Z73: 0.047 | AA73: 0.155 | AB73: 0.036 | AC73: 0.128 | AD73: 0.222 | AM73: HONOLULU | AN73: 155 | AO73: 21.31 | AP73: -157.87 | AQ73: 0.5 - MED | AR73: -0.19 | AS73: 0 | AT73: 4 | AU73: 9 | AV73: 13 | AW73: 19 | AX73: 25 | AY73: 31 | AZ73: 36 | BA73: 41 | BB73: 47 | BC73: 53 | BD73: 63 | BE73: 76 | BF73: 99
A74: SO | B74: NPA | C74: PENSACOLA NAS/FORREST SHERMAN FIELD | D74: PENSACOLA | E74: FL | F74: 30.35327 | G74: -87.31797 | H74: 28.3 | I74: 15.2 | J74: 8729840 | K74: PENSACOLA | L74: 7.19 | M74: 0.64 | N74: 246 | O74: PENSACOLA | P74: 7.2 | Q74: =LOCIDdata[[#This Row],[STATE]]&+"_"&LOCIDdata[[#This Row],[LOCID]] -> FL_NPA | T74: 8774770 | U74: ROCKPORT | V74: TEXAS | W74: 28.022 | X74: -97.047 | Y74: 0.351 | Z74: 0.033 | AA74: 0.105 | AB74: 0.028 | AC74: 0.331 | AD74: 0.282 | AM74: HONOLULU | AN74: 155 | AO74: 21.31 | AP74: -157.87 | AQ74: 1.0 - MED | AR74: -0.19 | AS74: 0 | AT74: 6 | AU74: 12 | AV74: 19 | AW74: 28 | AX74: 40 | AY74: 52 | AZ74: 67 | BA74: 82 | BB74: 99 | BC74: 119 | BD74: 143 | BE74: 206 | BF74: 324
A75: SO | B75: NQX | C75: KEY WEST NAS /BOCA CHICA FIELD/ | D75: KEY WEST | E75: FL | F75: 24.57464 | G75: -81.68665 | H75: 5.7 | I75: 3.3 | J75: 8724580 | K75: KEY WEST | L75: 7.77 | M75: 0.92 | N75: 188 | O75: KEY WEST | P75: 7.93 | Q75: =LOCIDdata[[#This Row],[STATE]]&+"_"&LOCIDdata[[#This Row],[LOCID]] -> FL_NQX | T75: 8778490 | U75: PORT MANSFIELD | V75: TEXAS | W75: 26.565 | X75: -97.43 | Y75: 0.388 | Z75: 0.046 | AA75: 0.116 | AB75: 0.035 | AC75: 0.135 | AD75: 0.27 | AM75: HONOLULU | AN75: 155 | AO75: 21.31 | AP75: -157.87 | AQ75: 1.5 - MED | AR75: -0.19 | AS75: 0 | AT75: 8 | AU75: 16 | AV75: 26 | AW75: 39 | AX75: 57 | AY75: 77 | AZ75: 101 | BA75: 127 | BB75: 156 | BC75: 193 | BD75: 240 | BE75: 364 | BF75: 615
A76: SO | B76: NRB | C76: MAYPORT NS (ADM DAVID L MCDONALD FIELD) | D76: MAYPORT | E76: FL | F76: 30.39137 | G76: -81.42452 | H76: 15.1 | I76: 12.4 | J76: 8720220 | K76: MAYPORT | L76: 0.51 | M76: 2.45 | N76: 316 | O76: MAYPORT | P76: 0.34 | Q76: =LOCIDdata[[#This Row],[STATE]]&+"_"&LOCIDdata[[#This Row],[LOCID]] -> FL_NRB | T76: 8779750 | U76: PADRE ISLAND | V76: TEXAS | W76: 26.068 | X76: -97.152 | Y76: 0.341 | Z76: 0.043 | AA76: 0.115 | AB76: 0.038 | AC76: 0.401 | AD76: 0.277 | AM76: HONOLULU | AN76: 155 | AO76: 21.31 | AP76: -157.87 | AQ76: 2.0 - MED | AR76: -0.19 | AS76: 0 | AT76: 9 | AU76: 19 | AV76: 32 | AW76: 51 | AX76: 75 | AY76: 104 | AZ76: 138 | BA76: 176 | BB76: 216 | BC76: 270 | BD76: 352 | BE76: 543 | BF76: 938
A77: SO | B77: OPF | C77: OPA-LOCKA EXECUTIVE | D77: MIAMI | E77: FL | F77: 25.90742 | G77: -80.27822 | H77: 8 | I77: 5.8 | J77: 8723170 | K77: MIAMI BEACH | L77: 13.24 | M77: 1.29 | N77: 363 | O77: MIAMI BEACH | P77: 13.22 | Q77: =LOCIDdata[[#This Row],[STATE]]&+"_"&LOCIDdata[[#This Row],[LOCID]] -> FL_OPF | T77: 8779770 | U77: PORT ISABEL | V77: TEXAS | W77: 26.06 | X77: -97.215 | Y77: 0.373 | Z77: 0.027 | AA77: 0.103 | AB77: 0.023 | AC77: 0.282 | AD77: 0.17 | AM77: HONOLULU | AN77: 155 | AO77: 21.31 | AP77: -157.87 | AQ77: 2.5 - MED | AR77: -0.19 | AS77: 0 | AT77: 9 | AU77: 20 | AV77: 36 | AW77: 57 | AX77: 88 | AY77: 123 | AZ77: 165 | BA77: 210 | BB77: 263 | BC77: 331 | BD77: 451 | BE77: 699 | BF77: 1210
A78: SO | B78: PGD | C78: PUNTA GORDA | D78: PUNTA GORDA | E78: FL | F78: 26.91894 | G78: -81.99093 | H78: 25.5 | I78: 18.5 | J78: 8725520 | K78: FORT MYERS | L78: 20.16 | M78: 0.69 | N78: 1106 | O78: FORT MYERS | P78: 20.01 | Q78: =LOCIDdata[[#This Row],[STATE]]&+"_"&LOCIDdata[[#This Row],[LOCID]] -> FL_PGD | T78: 9410170 | U78: SAN DIEGO | V78: CALIFORNIA | W78: 32.713 | X78: -117.173 | Y78: 0.554 | Z78: 0.012 | AA78: 0.058 | AB78: 0.008 | AC78: -0.19 | AD78: 0.09 | AM78: SAN DIEGO | AN78: 158 | AO78: 32.71 | AP78: -117.17 | AQ78: 0.3 - MED | AR78: 0.22 | AS78: 0 | AT78: 3 | AU78: 6 | AV78: 11 | AW78: 15 | AX78: 19 | AY78: 23 | AZ78: 28 | BA78: 32 | BB78: 35 | BC78: 37 | BD78: 45 | BE78: 52 | BF78: 60
A79: SO | B79: PIE | C79: ST PETE-CLEARWATER INTERNATIONAL | D79: CLEARWATER | E79: FL | F79: 27.90869 | G79: -82.68649 | H79: 10.5 | I79: 5.1 | J79: 8726724 | K79: CLEARWATER BEACH | L79: 10.08 | M79: 1.28 | N79: 1638 | O79: CLEARWATER BEACH | P79: 10.04 | Q79: =LOCIDdata[[#This Row],[STATE]]&+"_"&LOCIDdata[[#This Row],[LOCID]] -> FL_PIE | T79: 9410230 | U79: LA JOLLA | V79: CALIFORNIA | W79: 32.867 | X79: -117.258 | Y79: 0.525 | Z79: 0.014 | AA79: 0.058 | AB79: 0.009 | AC79: -0.213 | AD79: 0.129 | AM79: SAN DIEGO | AN79: 158 | AO79: 32.71 | AP79: -117.17 | AQ79: 0.5 - MED | AR79: 0.22 | AS79: 0 | AT79: 3 | AU79: 8 | AV79: 14 | AW79: 18 | AX79: 24 | AY79: 29 | AZ79: 36 | BA79: 41 | BB79: 46 | BC79: 51 | BD79: 61 | BE79: 75 | BF79: 98
A80: SO | B80: RSW | C80: SOUTHWEST FLORIDA INTERNATIONAL | D80: FORT MYERS | E80: FL | F80: 26.53617 | G80: -81.75517 | H80: 29.7 | I80: 26.5 | J80: 8725520 | K80: FORT MYERS | L80: 10.52 | M80: 0.69 | N80: 1106 | O80: FORT MYERS | P80: 10.58 | Q80: =LOCIDdata[[#This Row],[STATE]]&+"_"&LOCIDdata[[#This Row],[LOCID]] -> FL_RSW | T80: 9410580 | U80: NEWPORT BEACH | V80: CALIFORNIA | W80: 33.603 | X80: -117.883 | Y80: 0.536 | Z80: 0.018 | AA80: 0.052 | AB80: 0.012 | AC80: -0.167 | AD80: 0.176 | AM80: SAN DIEGO | AN80: 158 | AO80: 32.71 | AP80: -117.17 | AQ80: 1.0 - MED | AR80: 0.22 | AS80: 0 | AT80: 5 | AU80: 11 | AV80: 18 | AW80: 27 | AX80: 37 | AY80: 48 | AZ80: 62 | BA80: 77 | BB80: 92 | BC80: 109 | BD80: 130 | BE80: 183 | BF80: 287
A81: SO | B81: SGJ | C81: NORTHEAST FLORIDA REGIONAL | D81: SAINT AUGUSTINE | E81: FL | F81: 29.95925 | G81: -81.33972 | H81: 9.9 | I81: 5.5 | J81: 8720220 | K81: MAYPORT | L81: 30.7 | M81: 2.45 | N81: 316 | O81: MAYPORT | P81: 30.23 | Q81: =LOCIDdata[[#This Row],[STATE]]&+"_"&LOCIDdata[[#This Row],[LOCID]] -> FL_SGJ | T81: 9410660 | U81: LOS ANGELES | V81: CALIFORNIA | W81: 33.72 | X81: -118.272 | Y81: 0.536 | Z81: 0.012 | AA81: 0.054 | AB81: 0.009 | AC81: -0.172 | AD81: 0.123 | AM81: SAN DIEGO | AN81: 158 | AO81: 32.71 | AP81: -117.17 | AQ81: 1.5 - MED | AR81: 0.22 | AS81: 0 | AT81: 7 | AU81: 14 | AV81: 24 | AW81: 36 | AX81: 52 | AY81: 71 | AZ81: 93 | BA81: 118 | BB81: 144 | BC81: 177 | BD81: 217 | BE81: 323 | BF81: 551
A82: SO | B82: SRQ | C82: SARASOTA/BRADENTON INTERNATIONAL | D82: SARASOTA | E82: FL | F82: 27.39544 | G82: -82.55439 | H82: 29.9 | I82: 21.8 | J82: 8726520 | K82: ST. PETERSBURG | L82: 25.56 | M82: 1.06 | N82: 1006252775 | O82: grid_27.5_277.5 | P82: 7.95 | Q82: =LOCIDdata[[#This Row],[STATE]]&+"_"&LOCIDdata[[#This Row],[LOCID]] -> FL_SRQ | T82: 9410840 | U82: SANTA MONICA | V82: CALIFORNIA | W82: 34.008 | X82: -118.5 | Y82: 0.536 | Z82: 0.014 | AA82: 0.054 | AB82: 0.01 | AC82: 0.045 | AD82: 0.156 | AM82: SAN DIEGO | AN82: 158 | AO82: 32.71 | AP82: -117.17 | AQ82: 2.0 - MED | AR82: 0.22 | AS82: 0 | AT82: 8 | AU82: 16 | AV82: 29 | AW82: 47 | AX82: 71 | AY82: 98 | AZ82: 129 | BA82: 166 | BB82: 206 | BC82: 252 | BD82: 332 | BE82: 502 | BF82: 876
A83: SO | B83: TMB | C83: MIAMI EXECUTIVE | D83: MIAMI | E83: FL | F83: 25.64756 | G83: -80.43322 | H83: 10 | I83: 7.8 | J83: 8723170 | K83: MIAMI BEACH | L83: 20.5 | M83: 1.29 | N83: 1006452795 | O83: grid_25.5_279.5 | P83: 11 | Q83: =LOCIDdata[[#This Row],[STATE]]&+"_"&LOCIDdata[[#This Row],[LOCID]] -> FL_TMB | T83: 9411270 | U83: RINCON ISLAND | V83: CALIFORNIA | W83: 34.348 | X83: -119.443 | Y83: 0.548 | Z83: 0.03 | AA83: 0.073 | AB83: 0.021 | AC83: -0.182 | AD83: 0.233 | AM83: SAN DIEGO | AN83: 158 | AO83: 32.71 | AP83: -117.17 | AQ83: 2.5 - MED | AR83: 0.22 | AS83: 0 | AT83: 8 | AU83: 18 | AV83: 33 | AW83: 55 | AX83: 84 | AY83: 118 | AZ83: 159 | BA83: 204 | BB83: 253 | BC83: 312 | BD83: 436 | BE83: 671 | BF83: 1130
A84: SO | B84: TPA | C84: TAMPA INTERNATIONAL | D84: TAMPA | E84: FL | F84: 27.97547 | G84: -82.53325 | H84: 26.4 | I84: 10.7 | J84: 8726520 | K84: ST. PETERSBURG | L84: 15.94 | M84: 1.06 | N84: 520 | O84: ST. PETERSBURG | P84: 16.01 | Q84: =LOCIDdata[[#This Row],[STATE]]&+"_"&LOCIDdata[[#This Row],[LOCID]] -> FL_TPA | T84: 9412110 | U84: PORT SAN LUIS | V84: CALIFORNIA | W84: 35.177 | X84: -120.76 | Y84: 0.512 | Z84: 0.02 | AA84: 0.071 | AB84: 0.014 | AC84: -0.2 | AD84: 0.188 | AM84: GALVESTON II | AN84: 161 | AO84: 29.31 | AP84: -94.79 | AQ84: 0.3 - MED | AR84: 4.59 | AS84: 0 | AT84: 8 | AU84: 16 | AV84: 25 | AW84: 33 | AX84: 42 | AY84: 51 | AZ84: 58 | BA84: 66 | BB84: 73 | BC84: 80 | BD84: 94 | BE84: 113 | BF84: 143
A85: SO | B85: VNC | C85: VENICE MUNICIPAL | D85: VENICE | E85: FL | F85: 27.07161 | G85: -82.44033 | H85: 17.6 | I85: 12.5 | J85: 8725520 | K85: FORT MYERS | L85: 45.66 | M85: 0.69 | N85: 1006252775 | O85: grid_27.5_277.5 | P85: 29.8 | Q85: =LOCIDdata[[#This Row],[STATE]]&+"_"&LOCIDdata[[#This Row],[LOCID]] -> FL_VNC | T85: 9413450 | U85: MONTEREY | V85: CALIFORNIA | W85: 36.605 | X85: -121.888 | Y85: 0.499 | Z85: 0.025 | AA85: 0.068 | AB85: 0.018 | AC85: -0.011 | AD85: 0.255 | AM85: GALVESTON II | AN85: 161 | AO85: 29.31 | AP85: -94.79 | AQ85: 0.5 - MED | AR85: 4.59 | AS85: 0 | AT85: 9 | AU85: 18 | AV85: 28 | AW85: 37 | AX85: 47 | AY85: 57 | AZ85: 66 | BA85: 76 | BB85: 85 | BC85: 93 | BD85: 112 | BE85: 139 | BF85: 182
A86: SO | B86: BQK | C86: BRUNSWICK GOLDEN ISLES | D86: BRUNSWICK | E86: GA | F86: 31.25903 | G86: -81.46632 | H86: 25.6 | I86: 19.8 | J86: 8720030 | K86: FERNANDINA BEACH | L86: 40.53 | M86: 3.27 | N86: 1005852785 | O86: grid_31.5_278.5 | P86: 16.76 | Q86: =LOCIDdata[[#This Row],[STATE]]&+"_"&LOCIDdata[[#This Row],[LOCID]] -> GA_BQK | T86: 9414290 | U86: SAN FRANCISCO | V86: CALIFORNIA | W86: 37.807 | X86: -122.465 | Y86: 0.46 | Z86: 0.02 | AA86: 0.096 | AB86: 0.014 | AC86: -0.118 | AD86: 0.119 | AM86: GALVESTON II | AN86: 161 | AO86: 29.31 | AP86: -94.79 | AQ86: 1.0 - MED | AR86: 4.59 | AS86: 0 | AT86: 11 | AU86: 22 | AV86: 35 | AW86: 47 | AX86: 62 | AY86: 79 | AZ86: 96 | BA86: 115 | BB86: 134 | BC86: 155 | BD86: 187 | BE86: 252 | BF86: 372
A87: SO | B87: SAV | C87: SAVANNAH/HILTON HEAD INTERNATIONAL | D87: SAVANNAH | E87: GA | F87: 32.12758 | G87: -81.20214 | H87: 50.2 | I87: 16.9 | J87: 8670870 | K87: FORT PULASKI | L87: 18.73 | M87: 3.68 | N87: 395 | O87: FORT PULASKI | P87: 18.92 | Q87: =LOCIDdata[[#This Row],[STATE]]&+"_"&LOCIDdata[[#This Row],[LOCID]] -> GA_SAV | T87: 9414750 | U87: ALAMEDA | V87: CALIFORNIA | W87: 37.772 | X87: -122.298 | Y87: 0.47 | Z87: 0.025 | AA87: 0.098 | AB87: 0.018 | AC87: -0.064 | AD87: 0.151 | AM87: GALVESTON II | AN87: 161 | AO87: 29.31 | AP87: -94.79 | AQ87: 1.5 - MED | AR87: 4.59 | AS87: 0 | AT87: 14 | AU87: 26 | AV87: 41 | AW87: 57 | AX87: 78 | AY87: 101 | AZ87: 126 | BA87: 156 | BB87: 187 | BC87: 222 | BD87: 277 | BE87: 394 | BF87: 630
A88: SO | B88: SSI | C88: MCKINNON ST SIMONS ISLAND | D88: BRUNSWICK | E88: GA | F88: 31.15197 | G88: -81.39106 | H88: 18.7 | I88: 10.2 | J88: 8720030 | K88: FERNANDINA BEACH | L88: 33.43 | M88: 3.27 | N88: 1005852785 | O88: grid_31.5_278.5 | P88: 24.87 | Q88: =LOCIDdata[[#This Row],[STATE]]&+"_"&LOCIDdata[[#This Row],[LOCID]] -> GA_SSI | T88: 9415020 | U88: POINT REYES | V88: CALIFORNIA | W88: 37.997 | X88: -122.975 | Y88: 0.515 | Z88: 0.034 | AA88: 0.093 | AB88: 0.025 | AC88: 0.024 | AD88: 0.265 | AM88: GALVESTON II | AN88: 161 | AO88: 29.31 | AP88: -94.79 | AQ88: 2.0 - MED | AR88: 4.59 | AS88: 0 | AT88: 16 | AU88: 29 | AV88: 48 | AW88: 68 | AX88: 95 | AY88: 127 | AZ88: 162 | BA88: 201 | BB88: 245 | BC88: 293 | BD88: 388 | BE88: 576 | BF88: 957
A89: SO | B89: SVN | C89: HUNTER AAF | D89: SAVANNAH | E89: GA | F89: 32.01002 | G89: -81.14599 | H89: 41.3 | I89: 17.4 | J89: 8670870 | K89: FORT PULASKI | L89: 14.37 | M89: 3.68 | N89: 395 | O89: FORT PULASKI | P89: 14.47 | Q89: =LOCIDdata[[#This Row],[STATE]]&+"_"&LOCIDdata[[#This Row],[LOCID]] -> GA_SVN | T89: 9419750 | U89: CRESCENT CITY | V89: CALIFORNIA | W89: 41.745 | X89: -124.183 | Y89: 0.66 | Z89: 0.032 | AA89: 0.129 | AB89: 0.022 | AC89: -0.167 | AD89: 0.133 | AM89: GALVESTON II | AN89: 161 | AO89: 29.31 | AP89: -94.79 | AQ89: 2.5 - MED | AR89: 4.59 | AS89: 0 | AT89: 16 | AU89: 30 | AV89: 52 | AW89: 76 | AX89: 108 | AY89: 147 | AZ89: 188 | BA89: 237 | BB89: 292 | BC89: 353 | BD89: 486 | BE89: 730 | BF89: 1197
A90: WP | B90: HNL | C90: DANIEL K INOUYE INTERNATIONAL | D90: HONOLULU | E90: HI | F90: 21.31783 | G90: -157.92026 | H90: 12.9 | I90: 0 | J90: 1612340 | K90: HONOLULU | L90: 3.51 | M90: 1.16 | N90: 155 | O90: HONOLULU | P90: 3.28 | Q90: =LOCIDdata[[#This Row],[STATE]]&+"_"&LOCIDdata[[#This Row],[LOCID]] -> HI_HNL | T90: 9432780 | U90: CHARLESTON | V90: OREGON | W90: 43.345 | X90: -124.322 | Y90: 0.698 | Z90: 0.049 | AA90: 0.14 | AB90: 0.035 | AC90: -0.17 | AD90: 0.253 | AM90: TOFINO | AN90: 165 | AO90: 49.15 | AP90: -125.92 | AQ90: 0.3 - MED | AR90: -3 | AS90: 0 | AT90: -1 | AU90: -2 | AV90: -2 | AW90: -2 | AX90: -2 | AY90: -2 | AZ90: -2 | BA90: -2 | BB90: -2 | BC90: -2 | BD90: -4 | BE90: -7 | BF90: -18
A91: WP | B91: ITO | C91: HILO INTERNATIONAL | D91: HILO | E91: HI | F91: 19.72026 | G91: -155.04847 | H91: 37.6 | I91: 25.4 | J91: 1617760 | K91: HILO | L91: 0.87 | M91: 1.25 | N91: 300 | O91: HILO | P91: 1.01 | Q91: =LOCIDdata[[#This Row],[STATE]]&+"_"&LOCIDdata[[#This Row],[LOCID]] -> HI_ITO | T91: 9435380 | U91: SOUTH BEACH | V91: OREGON | W91: 44.625 | X91: -124.043 | Y91: 0.753 | Z91: 0.046 | AA91: 0.139 | AB91: 0.033 | AC91: -0.135 | AD91: 0.218 | AM91: TOFINO | AN91: 165 | AO91: 49.15 | AP91: -125.92 | AQ91: 0.5 - MED | AR91: -3 | AS91: 0 | AT91: -1 | AU91: -1 | AV91: 0 | AW91: 1 | AX91: 2 | AY91: 4 | AZ91: 5 | BA91: 7 | BB91: 8 | BC91: 10 | BD91: 11 | BE91: 14 | BF91: 18
A92: WP | B92: JRF | C92: KALAELOA (JOHN RODGERS FIELD) | D92: KAPOLEI | E92: HI | F92: 21.30735 | G92: -158.0703 | H92: 30 | I92: 10 | J92: 1612340 | K92: HONOLULU | L92: 13.08 | M92: 1.16 | N92: 155 | O92: HONOLULU | P92: 12.89 | Q92: =LOCIDdata[[#This Row],[STATE]]&+"_"&LOCIDdata[[#This Row],[LOCID]] -> HI_JRF | T92: 9439040 | U92: ASTORIA | V92: OREGON | W92: 46.208 | X92: -123.767 | Y92: 0.755 | Z92: 0.031 | AA92: 0.128 | AB92: 0.022 | AC92: -0.135 | AD92: 0.169 | AM92: TOFINO | AN92: 165 | AO92: 49.15 | AP92: -125.92 | AQ92: 1.0 - MED | AR92: -3 | AS92: 0 | AT92: 1 | AU92: 2 | AV92: 4 | AW92: 9 | AX92: 15 | AY92: 21 | AZ92: 29 | BA92: 39 | BB92: 49 | BC92: 62 | BD92: 72 | BE92: 111 | BF92: 191
A93: WP | B93: LUP | C93: KALAUPAPA | D93: KALAUPAPA | E93: HI | F93: 21.21104 | G93: -156.9736 | H93: 23.9 | I93: 22.8 | J93: 1615680 | K93: KAHULUI | L93: 38.88 | M93: 1.13 | N93: 1006852035 | O93: grid_21.5_203.5 | P93: 36.41 | Q93: =LOCIDdata[[#This Row],[STATE]]&+"_"&LOCIDdata[[#This Row],[LOCID]] -> HI_LUP | T93: 9440910 | U93: TOKE POINT | V93: WASHINGTON | W93: 46.708 | X93: -123.965 | Y93: 0.973 | Z93: 0.074 | AA93: 0.209 | AB93: 0.054 | AC93: -0.094 | AD93: 0.262 | AM93: TOFINO | AN93: 165 | AO93: 49.15 | AP93: -125.92 | AQ93: 1.5 - MED | AR93: -3 | AS93: 0 | AT93: 3 | AU93: 5 | AV93: 10 | AW93: 18 | AX93: 30 | AY93: 43 | AZ93: 59 | BA93: 80 | BB93: 102 | BC93: 130 | BD93: 160 | BE93: 254 | BF93: 452
A94: WP | B94: NGF | C94: KANEOHE BAY MCAS (MARION E CARL FIELD) | D94: KANEOHE | E94: HI | F94: 21.45046 | G94: -157.76795 | H94: 23 | I94: 12 | J94: 1612480 | K94: MOKUOLOE | L94: 1.86 | M94: 1.07 | N94: 823 | O94: MOKUOLOE ISLAND | P94: 2 | Q94: =LOCIDdata[[#This Row],[STATE]]&+"_"&LOCIDdata[[#This Row],[LOCID]] -> HI_NGF | T94: 9443090 | U94: NEAH BAY | V94: WASHINGTON | W94: 48.368 | X94: -124.617 | Y94: 0.835 | Z94: 0.039 | AA94: 0.16 | AB94: 0.028 | AC94: -0.285 | AD94: 0.146 | AM94: TOFINO | AN94: 165 | AO94: 49.15 | AP94: -125.92 | AQ94: 2.0 - MED | AR94: -3 | AS94: 0 | AT94: 4 | AU94: 8 | AV94: 16 | AW94: 31 | AX94: 50 | AY94: 71 | AZ94: 97 | BA94: 128 | BB94: 164 | BC94: 211 | BD94: 271 | BE94: 436 | BF94: 775
A95: WP | B95: OGG | C95: KAHULUI | D95: KAHULUI | E95: HI | F95: 20.89865 | G95: -156.43046 | H95: 53.5 | I95: 12.4 | J95: 1615680 | K95: KAHULUI | L95: 2.68 | M95: 1.13 | N95: 521 | O95: KAHULUI HARBOR | P95: 3.25 | Q95: =LOCIDdata[[#This Row],[STATE]]&+"_"&LOCIDdata[[#This Row],[LOCID]] -> HI_OGG | T95: 9444090 | U95: PORT ANGELES | V95: WASHINGTON | W95: 48.125 | X95: -123.44 | Y95: 0.668 | Z95: 0.051 | AA95: 0.141 | AB95: 0.035 | AC95: -0.269 | AD95: 0.203 | AM95: TOFINO | AN95: 165 | AO95: 49.15 | AP95: -125.92 | AQ95: 2.5 - MED | AR95: -3 | AS95: 0 | AT95: 4 | AU95: 9 | AV95: 22 | AW95: 40 | AX95: 63 | AY95: 93 | AZ95: 129 | BA95: 169 | BB95: 215 | BC95: 272 | BD95: 384 | BE95: 607 | BF95: 1043
A96: SW | B96: ARA | C96: ACADIANA REGIONAL | D96: NEW IBERIA | E96: LA | F96: 30.03776 | G96: -91.8839 | H96: 24 | I96: 18.8 | J96: 8764311 | K96: EUGENE ISLAND | L96: 54.85 | M96: 0.84 | N96: 1005952685 | O96: grid_30.5_268.5 | P96: 39.28 | Q96: =LOCIDdata[[#This Row],[STATE]]&+"_"&LOCIDdata[[#This Row],[LOCID]] -> LA_ARA | T96: 9444900 | U96: PORT TOWNSEND | V96: WASHINGTON | W96: 48.112 | X96: -122.758 | Y96: 0.631 | Z96: 0.049 | AA96: 0.139 | AB96: 0.036 | AC96: -0.298 | AD96: 0.25 | AM96: VICTORIA | AN96: 166 | AO96: 48.42 | AP96: -123.37 | AQ96: 0.3 - MED | AR96: -1.21 | AS96: 0 | AT96: 1 | AU96: 3 | AV96: 4 | AW96: 5 | AX96: 8 | AY96: 10 | AZ96: 12 | BA96: 13 | BB96: 15 | BC96: 17 | BD96: 18 | BE96: 21 | BF96: 20
A97: SW | B97: CWF | C97: CHENNAULT INTERNATIONAL | D97: LAKE CHARLES | E97: LA | F97: 30.21058 | G97: -93.14319 | H97: 16.5 | I97: 14.4 | J97: 8770570 | K97: SABINE PASS | L97: 54.69 | M97: 0.64 | N97: 1005952665 | O97: grid_30.5_266.5 | P97: 29.18 | Q97: =LOCIDdata[[#This Row],[STATE]]&+"_"&LOCIDdata[[#This Row],[LOCID]] -> LA_CWF | T97: 9447130 | U97: SEATTLE | V97: WASHINGTON | W97: 47.605 | X97: -122.338 | Y97: 0.649 | Z97: 0.023 | AA97: 0.11 | AB97: 0.016 | AC97: -0.214 | AD97: 0.132 | AM97: VICTORIA | AN97: 166 | AO97: 48.42 | AP97: -123.37 | AQ97: 0.5 - MED | AR97: -1.21 | AS97: 0 | AT97: 1 | AU97: 4 | AV97: 5 | AW97: 8 | AX97: 12 | AY97: 15 | AZ97: 19 | BA97: 22 | BB97: 25 | BC97: 29 | BD97: 33 | BE97: 42 | BF97: 55
A98: SW | B98: HUM | C98: HOUMA-TERREBONNE | D98: HOUMA | E98: LA | F98: 29.5665 | G98: -90.66043 | H98: 9 | I98: 5.3 | J98: 8764311 | K98: EUGENE ISLAND | L98: 45.58 | M98: 0.84 | N98: 1006052695 | O98: grid_29.5_269.5 | P98: 10.68 | Q98: =LOCIDdata[[#This Row],[STATE]]&+"_"&LOCIDdata[[#This Row],[LOCID]] -> LA_HUM | T98: 9449424 | U98: CHERRY POINT | V98: WASHINGTON | W98: 48.863 | X98: -122.758 | Y98: 0.689 | Z98: 0.045 | AA98: 0.13 | AB98: 0.031 | AC98: -0.154 | AD98: 0.193 | AM98: VICTORIA | AN98: 166 | AO98: 48.42 | AP98: -123.37 | AQ98: 1.0 - MED | AR98: -1.21 | AS98: 0 | AT98: 3 | AU98: 6 | AV98: 10 | AW98: 16 | AX98: 24 | AY98: 33 | AZ98: 43 | BA98: 54 | BB98: 66 | BC98: 81 | BD98: 94 | BE98: 139 | BF98: 226
A99: SW | B99: LCH | C99: LAKE CHARLES REGIONAL | D99: LAKE CHARLES | E99: LA | F99: 30.12608 | G99: -93.22342 | H99: 14.6 | I99: 10 | J99: 8770570 | K99: SABINE PASS | L99: 47.38 | M99: 0.64 | N99: 1005952665 | O99: grid_30.5_266.5 | P99: 30.63 | Q99: =LOCIDdata[[#This Row],[STATE]]&+"_"&LOCIDdata[[#This Row],[LOCID]] -> LA_LCH | T99: 9449880 | U99: FRIDAY HARBOR | V99: WASHINGTON | W99: 48.547 | X99: -123.01 | Y99: 0.65 | Z99: 0.033 | AA99: 0.137 | AB99: 0.023 | AC99: -0.277 | AD99: 0.123 | AM99: VICTORIA | AN99: 166 | AO99: 48.42 | AP99: -123.37 | AQ99: 1.5 - MED | AR99: -1.21 | AS99: 0 | AT99: 5 | AU99: 9 | AV99: 15 | AW99: 26 | AX99: 39 | AY99: 55 | AZ99: 72 | BA99: 94 | BB99: 118 | BC99: 148 | BD99: 180 | BE99: 281 | BF99: 484
A100: SW | B100: MSY | C100: LOUIS ARMSTRONG NEW ORLEANS INTERNATIONAL | D100: METAIRIE | E100: LA | F100: 29.99328 | G100: -90.25903 | H100: 3.7 | I100: -2.4 | J100: 8761724 | K100: GRAND ISLE | L100: 53.58 | M100: 0.52 | N100: 1006052695 | O100: grid_29.5_269.5 | P100: 37 | Q100: =LOCIDdata[[#This Row],[STATE]]&+"_"&LOCIDdata[[#This Row],[LOCID]] -> LA_MSY | T100: 9450460 | U100: KETCHIKAN | V100: ALASKA | W100: 55.333 | X100: -131.625 | Y100: 1.275 | Z100: 0.036 | AA100: 0.162 | AB100: 0.024 | AC100: -0.263 | AD100: 0.096 | AM100: VICTORIA | AN100: 166 | AO100: 48.42 | AP100: -123.37 | AQ100: 2.0 - MED | AR100: -1.21 | AS100: 0 | AT100: 6 | AU100: 12 | AV100: 21 | AW100: 38 | AX100: 59 | AY100: 83 | AZ100: 110 | BA100: 143 | BB100: 180 | BC100: 227 | BD100: 290 | BE100: 461 | BF100: 806
A101: SW | B101: NBG | C101: NEW ORLEANS NAS JRB/ALVIN CALLENDER FIELD | D101: NEW ORLEANS | E101: LA | F101: 29.82721 | G101: -90.02659 | H101: 2.3 | I101: -2.3 | J101: 8761724 | K101: GRAND ISLE | L101: 39.18 | M101: 0.52 | N101: 1006052695 | O101: grid_29.5_269.5 | P101: 36.29 | Q101: =LOCIDdata[[#This Row],[STATE]]&+"_"&LOCIDdata[[#This Row],[LOCID]] -> LA_NBG | T101: 9451600 | U101: SITKA | V101: ALASKA | W101: 57.052 | X101: -135.342 | Y101: 0.978 | Z101: 0.03 | AA101: 0.119 | AB101: 0.021 | AC101: -0.117 | AD101: 0.139 | AM101: VICTORIA | AN101: 166 | AO101: 48.42 | AP101: -123.37 | AQ101: 2.5 - MED | AR101: -1.21 | AS101: 0 | AT101: 7 | AU101: 13 | AV101: 27 | AW101: 46 | AX101: 73 | AY101: 105 | AZ101: 142 | BA101: 183 | BB101: 231 | BC101: 288 | BD101: 402 | BE101: 629 | BF101: 1071
A102: SW | B102: NEW | C102: LAKEFRONT | D102: NEW ORLEANS | E102: LA | F102: 30.04242 | G102: -90.02825 | H102: 7.3 | I102: 4.7 | J102: 8761724 | K102: GRAND ISLE | L102: 53.99 | M102: 0.52 | N102: 1006052695 | O102: grid_29.5_269.5 | P102: 46.93 | Q102: =LOCIDdata[[#This Row],[STATE]]&+"_"&LOCIDdata[[#This Row],[LOCID]] -> LA_NEW | T102: 9452210 | U102: JUNEAU | V102: ALASKA | W102: 58.298 | X102: -134.412 | Y102: 1.366 | Z102: 0.037 | AA102: 0.147 | AB102: 0.025 | AC102: -0.106 | AD102: 0.117 | AM102: PRINCE RUPERT | AN102: 167 | AO102: 54.32 | AP102: -130.33 | AQ102: 0.3 - MED | AR102: -0.61 | AS102: 0 | AT102: 1 | AU102: 4 | AV102: 6 | AW102: 9 | AX102: 11 | AY102: 14 | AZ102: 17 | BA102: 19 | BB102: 21 | BC102: 23 | BD102: 25 | BE102: 28 | BF102: 28
A103: NE | B103: ACK | C103: NANTUCKET MEMORIAL | D103: NANTUCKET | E103: MA | F103: 41.25298 | G103: -70.05991 | H103: 47 | I103: 24.6 | J103: 8449130 | K103: NANTUCKET ISLAND | L103: 2.93 | M103: 1.8 | N103: 1111 | O103: NANTUCKET ISLAND | P103: 2.79 | Q103: =LOCIDdata[[#This Row],[STATE]]&+"_"&LOCIDdata[[#This Row],[LOCID]] -> MA_ACK | T103: 9452400 | U103: SKAGWAY | V103: ALASKA | W103: 59.45 | X103: -135.327 | Y103: 1.405 | Z103: 0.04 | AA103: 0.15 | AB103: 0.029 | AC103: -0.118 | AD103: 0.173 | AM103: PRINCE RUPERT | AN103: 167 | AO103: 54.32 | AP103: -130.33 | AQ103: 0.5 - MED | AR103: -0.61 | AS103: 0 | AT103: 2 | AU103: 5 | AV103: 7 | AW103: 11 | AX103: 14 | AY103: 18 | AZ103: 23 | BA103: 26 | BB103: 30 | BC103: 34 | BD103: 40 | BE103: 49 | BF103: 62
A104: NE | B104: BOS | C104: GENERAL EDWARD LAWRENCE LOGAN INTERNATIONAL | D104: BOSTON | E104: MA | F104: 42.36294 | G104: -71.00639 | H104: 19.1 | I104: 13.9 | J104: 8443970 | K104: BOSTON | L104: 2.39 | M104: 5.07 | N104: 235 | O104: BOSTON | P104: 2.4 | Q104: =LOCIDdata[[#This Row],[STATE]]&+"_"&LOCIDdata[[#This Row],[LOCID]] -> MA_BOS | T104: 9453220 | U104: YAKUTAT | V104: ALASKA | W104: 59.548 | X104: -139.735 | Y104: 1.041 | Z104: 0.038 | AA104: 0.147 | AB104: 0.026 | AC104: -0.289 | AD104: 0.131 | AM104: PRINCE RUPERT | AN104: 167 | AO104: 54.32 | AP104: -130.33 | AQ104: 1.0 - MED | AR104: -0.61 | AS104: 0 | AT104: 3 | AU104: 7 | AV104: 11 | AW104: 18 | AX104: 25 | AY104: 33 | AZ104: 43 | BA104: 54 | BB104: 65 | BC104: 79 | BD104: 101 | BE104: 145 | BF104: 232
A105: NE | B105: GHG | C105: MARSHFIELD MUNICIPAL - GEORGE HARLOW FIELD | D105: MARSHFIELD | E105: MA | F105: 42.0975 | G105: -70.67302 | H105: 8.9 | I105: 3.5 | J105: 8443970 | K105: BOSTON | L105: 26.3 | M105: 5.07 | N105: 775 | O105: SANDWICH MARINA | P105: 24.3 | Q105: =LOCIDdata[[#This Row],[STATE]]&+"_"&LOCIDdata[[#This Row],[LOCID]] -> MA_GHG | T105: 9454050 | U105: CORDOVA | V105: ALASKA | W105: 60.558 | X105: -145.753 | Y105: 1.088 | Z105: 0.053 | AA105: 0.167 | AB105: 0.038 | AC105: -0.295 | AD105: 0.189 | AM105: PRINCE RUPERT | AN105: 167 | AO105: 54.32 | AP105: -130.33 | AQ105: 1.5 - MED | AR105: -0.61 | AS105: 0 | AT105: 5 | AU105: 10 | AV105: 16 | AW105: 26 | AX105: 39 | AY105: 52 | AZ105: 69 | BA105: 91 | BB105: 113 | BC105: 141 | BD105: 188 | BE105: 285 | BF105: 493
A106: NE | B106: PVC | C106: PROVINCETOWN MUNICIPAL | D106: PROVINCETOWN | E106: MA | F106: 42.07228 | G106: -70.22072 | H106: 7.8 | I106: 7.6 | J106: 8447930 | K106: WOODS HOLE | L106: 44.47 | M106: 1.22 | N106: 775 | O106: SANDWICH MARINA | P106: 25.33 | Q106: =LOCIDdata[[#This Row],[STATE]]&+"_"&LOCIDdata[[#This Row],[LOCID]] -> MA_PVC | T106: 9454240 | U106: VALDEZ | V106: ALASKA | W106: 61.125 | X106: -146.362 | Y106: 1.086 | Z106: 0.051 | AA106: 0.141 | AB106: 0.036 | AC106: -0.251 | AD106: 0.226 | AM106: PRINCE RUPERT | AN106: 167 | AO106: 54.32 | AP106: -130.33 | AQ106: 2.0 - MED | AR106: -0.61 | AS106: 0 | AT106: 7 | AU106: 13 | AV106: 21 | AW106: 37 | AX106: 57 | AY106: 79 | AZ106: 104 | BA106: 137 | BB106: 173 | BC106: 220 | BD106: 295 | BE106: 453 | BF106: 807
A107: EA | B107: MTN | C107: MARTIN STATE | D107: MIDDLE RIVER | E107: MD | F107: 39.32567 | G107: -76.41378 | H107: 21.5 | I107: 9.2 | J107: 8574680 | K107: BALTIMORE | L107: 9.66 | M107: 0.85 | N107: 148 | O107: BALTIMORE | P107: 9.68 | Q107: =LOCIDdata[[#This Row],[STATE]]&+"_"&LOCIDdata[[#This Row],[LOCID]] -> MD_MTN | T107: 9455090 | U107: SEWARD | V107: ALASKA | W107: 60.12 | X107: -149.427 | Y107: 1.052 | Z107: 0.043 | AA107: 0.13 | AB107: 0.03 | AC107: -0.125 | AD107: 0.191 | AM107: PRINCE RUPERT | AN107: 167 | AO107: 54.32 | AP107: -130.33 | AQ107: 2.5 - MED | AR107: -0.61 | AS107: 0 | AT107: 7 | AU107: 14 | AV107: 26 | AW107: 44 | AX107: 69 | AY107: 97 | AZ107: 129 | BA107: 171 | BB107: 216 | BC107: 276 | BD107: 403 | BE107: 624 | BF107: 1072
A108: EA | B108: NHK | C108: PATUXENT RIVER NAS/TRAPNELL FIELD/ | D108: PATUXENT RIVER NAVAL AIR TEST CENTER | E108: MD | F108: 38.28633 | G108: -76.40996 | H108: 38.7 | I108: 15.8 | J108: 8577330 | K108: SOLOMONS ISLAND | L108: 3.11 | M108: 0.72 | N108: 412 | O108: SOLOMON'S ISLAND | P108: 3.18 | Q108: =LOCIDdata[[#This Row],[STATE]]&+"_"&LOCIDdata[[#This Row],[LOCID]] -> MD_NHK | T108: 9455500 | U108: SELDOVIA | V108: ALASKA | W108: 59.44 | X108: -151.72 | Y108: 1.494 | Z108: 0.066 | AA108: 0.213 | AB108: 0.045 | AC108: -0.245 | AD108: 0.129 | AM108: QUEBEC | AN108: 173 | AO108: 46.83 | AP108: -71.17 | AQ108: 0.3 - MED | AR108: -2.18 | AS108: 0 | AT108: 1 | AU108: 3 | AV108: 4 | AW108: 6 | AX108: 8 | AY108: 10 | AZ108: 11 | BA108: 12 | BB108: 11 | BC108: 11 | BD108: 8 | BE108: 4 | BF108: -3
A109: EA | B109: OXB | C109: OCEAN CITY MUNICIPAL | D109: OCEAN CITY | E109: MD | F109: 38.31044 | G109: -75.12397 | H109: 11.7 | I109: 8.8 | J109: 8557380 | K109: LEWES | L109: 32.56 | M109: 2.42 | N109: 224 | O109: LEWES | P109: 32.42 | Q109: =LOCIDdata[[#This Row],[STATE]]&+"_"&LOCIDdata[[#This Row],[LOCID]] -> MD_OXB | T109: 9455760 | U109: NIKISKI | V109: ALASKA | W109: 60.683 | X109: -151.398 | Y109: 1.438 | Z109: 0.074 | AA109: 0.177 | AB109: 0.054 | AC109: -0.455 | AD109: 0.234 | AM109: QUEBEC | AN109: 173 | AO109: 46.83 | AP109: -71.17 | AQ109: 0.5 - MED | AR109: -2.18 | AS109: 0 | AT109: 3 | AU109: 6 | AV109: 7 | AW109: 10 | AX109: 14 | AY109: 17 | AZ109: 20 | BA109: 22 | BB109: 23 | BC109: 24 | BD109: 26 | BE109: 30 | BF109: 34
A110: SO | B110: PQL | C110: TRENT LOTT INTERNATIONAL | D110: PASCAGOULA | E110: MS | F110: 30.46278 | G110: -88.52923 | H110: 17.1 | I110: 16.1 | J110: 8735180 | K110: DAUPHIN ISLAND | L110: 30.79 | M110: 0.64 | N110: 1005952715 | O110: grid_30.5_271.5 | P110: 3.1 | Q110: =LOCIDdata[[#This Row],[STATE]]&+"_"&LOCIDdata[[#This Row],[LOCID]] -> MS_PQL | T110: 9455920 | U110: ANCHORAGE | V110: ALASKA | W110: 61.238 | X110: -149.89 | Y110: 1.425 | Z110: 0.041 | AA110: 0.122 | AB110: 0.029 | AC110: -0.312 | AD110: 0.198 | AM110: QUEBEC | AN110: 173 | AO110: 46.83 | AP110: -71.17 | AQ110: 1.0 - MED | AR110: -2.18 | AS110: 0 | AT110: 5 | AU110: 11 | AV110: 17 | AW110: 24 | AX110: 34 | AY110: 44 | AZ110: 56 | BA110: 68 | BB110: 80 | BC110: 92 | BD110: 104 | BE110: 142 | BF110: 210
A111: SO | B111: ECG | C111: ELIZABETH CITY CG AIR STATION/REGIONAL | D111: ELIZABETH CITY | E111: NC | F111: 36.26058 | G111: -76.17457 | H111: 10.5 | I111: 7.3 | J111: 8638660 | K111: PORTSMOUTH | L111: 39.32 | M111: 1.58 | N111: 1636 | O111: DUCK PIER OUTSIDE | P111: 24.3 | Q111: =LOCIDdata[[#This Row],[STATE]]&+"_"&LOCIDdata[[#This Row],[LOCID]] -> NC_ECG | T111: 9457292 | U111: KODIAK ISLAND | V111: ALASKA | W111: 57.732 | X111: -152.512 | Y111: 0.864 | Z111: 0.045 | AA111: 0.136 | AB111: 0.031 | AC111: -0.165 | AD111: 0.181 | AM111: QUEBEC | AN111: 173 | AO111: 46.83 | AP111: -71.17 | AQ111: 1.5 - MED | AR111: -2.18 | AS111: 0 | AT111: 9 | AU111: 17 | AV111: 26 | AW111: 38 | AX111: 53 | AY111: 70 | AZ111: 89 | BA111: 111 | BB111: 133 | BC111: 156 | BD111: 203 | BE111: 291 | BF111: 481
A112: SO | B112: EWN | C112: COASTAL CAROLINA REGIONAL | D112: NEW BERN | E112: NC | F112: 35.07285 | G112: -77.04302 | H112: 18 | I112: 11.6 | J112: 8656483 | K112: BEAUFORT | L112: 32.25 | M112: 1.83 | N112: 2295 | O112: BEAUFORT | P112: 32.25 | Q112: =LOCIDdata[[#This Row],[STATE]]&+"_"&LOCIDdata[[#This Row],[LOCID]] -> NC_EWN | T112: 9459450 | U112: SAND POINT | V112: ALASKA | W112: 55.337 | X112: -160.502 | Y112: 0.858 | Z112: 0.053 | AA112: 0.152 | AB112: 0.037 | AC112: -0.224 | AD112: 0.182 | AM112: QUEBEC | AN112: 173 | AO112: 46.83 | AP112: -71.17 | AQ112: 2.0 - MED | AR112: -2.18 | AS112: 0 | AT112: 11 | AU112: 22 | AV112: 35 | AW112: 56 | AX112: 78 | AY112: 105 | AZ112: 133 | BA112: 163 | BB112: 197 | BC112: 237 | BD112: 322 | BE112: 491 | BF112: 831
A113: SO | B113: ILM | C113: WILMINGTON INTERNATIONAL | D113: WILMINGTON | E113: NC | F113: 34.27114 | G113: -77.90289 | H113: 31.7 | I113: 18.3 | J113: 8658120 | K113: WILMINGTON | L113: 4.18 | M113: 2.24 | N113: 396 | O113: WILMINGTON | P113: 3.91 | Q113: =LOCIDdata[[#This Row],[STATE]]&+"_"&LOCIDdata[[#This Row],[LOCID]] -> NC_ILM | T113: 9461380 | U113: ADAK ISLAND | V113: ALASKA | W113: 51.863 | X113: -176.632 | Y113: 0.587 | Z113: 0.028 | AA113: 0.105 | AB113: 0.02 | AC113: -0.234 | AD113: 0.166 | AM113: QUEBEC | AN113: 173 | AO113: 46.83 | AP113: -71.17 | AQ113: 2.5 - MED | AR113: -2.18 | AS113: 0 | AT113: 12 | AU113: 24 | AV113: 39 | AW113: 63 | AX113: 91 | AY113: 125 | AZ113: 162 | BA113: 204 | BB113: 250 | BC113: 303 | BD113: 412 | BE113: 629 | BF113: 1048
A114: SO | B114: ONX | C114: CURRITUCK COUNTY REGIONAL | D114: CURRITUCK | E114: NC | F114: 36.39994 | G114: -76.01544 | H114: 17.9 | I114: 12.9 | J114: 8638660 | K114: PORTSMOUTH | L114: 32.95 | M114: 1.58 | N114: 1636 | O114: DUCK PIER OUTSIDE | P114: 21.19 | Q114: =LOCIDdata[[#This Row],[STATE]]&+"_"&LOCIDdata[[#This Row],[LOCID]] -> NC_ONX | T114: 9462620 | U114: UNALASKA | V114: ALASKA | W114: 53.88 | X114: -166.537 | Y114: 0.558 | Z114: 0.027 | AA114: 0.109 | AB114: 0.018 | AC114: -0.285 | AD114: 0.092 | AM114: VANCOUVER | AN114: 175 | AO114: 49.28 | AP114: -123.12 | AQ114: 0.3 - MED | AR114: -1.37 | AS114: 0 | AT114: 1 | AU114: 1 | AV114: 2 | AW114: 4 | AX114: 5 | AY114: 7 | AZ114: 8 | BA114: 10 | BB114: 11 | BC114: 12 | BD114: 14 | BE114: 15 | BF114: 13
A115: SO | B115: SUT | C115: CAPE FEAR REGIONAL JETPORT/HOWIE FRANKLIN FIELD | D115: SOUTHPORT | E115: NC | F115: 33.93081 | G115: -78.07336 | H115: 26.3 | I115: 19.1 | J115: 8658120 | K115: WILMINGTON | L115: 21.58 | M115: 2.24 | N115: 396 | O115: WILMINGTON | P115: 21.83 | Q115: =LOCIDdata[[#This Row],[STATE]]&+"_"&LOCIDdata[[#This Row],[LOCID]] -> NC_SUT | T115: 9751639 | U115: CHARLOTTE AMALIE | V115: VIRGIN ISLANDS | W115: 18.335 | X115: -64.92 | Y115: 0.175 | Z115: 0.019 | AA115: 0.052 | AB115: 0.016 | AC115: 0.343 | AD115: 0.248 | AM115: VANCOUVER | AN115: 175 | AO115: 49.28 | AP115: -123.12 | AQ115: 0.5 - MED | AR115: -1.37 | AS115: 0 | AT115: 1 | AU115: 2 | AV115: 4 | AW115: 7 | AX115: 9 | AY115: 12 | AZ115: 14 | BA115: 18 | BB115: 21 | BC115: 24 | BD115: 28 | BE115: 35 | BF115: 47
A116: EA | B116: EWR | C116: NEWARK LIBERTY INTERNATIONAL | D116: NEWARK | E116: NJ | F116: 40.69248 | G116: -74.16869 | H116: 17.4 | I116: 8.9 | J116: 8518750 | K116: THE BATTERY | L116: 8.06 | M116: 2.48 | N116: 1637 | O116: BERGEN POINT | P116: 3.92 | Q116: =LOCIDdata[[#This Row],[STATE]]&+"_"&LOCIDdata[[#This Row],[LOCID]] -> NJ_EWR | T116: 9755371 | U116: SAN JUAN | V116: PUERTO RICO | W116: 18.458 | X116: -66.117 | Y116: 0.204 | Z116: 0.016 | AA116: 0.053 | AB116: 0.012 | AC116: 0.097 | AD116: 0.133 | AM116: VANCOUVER | AN116: 175 | AO116: 49.28 | AP116: -123.12 | AQ116: 1.0 - MED | AR116: -1.37 | AS116: 0 | AT116: 2 | AU116: 4 | AV116: 8 | AW116: 14 | AX116: 21 | AY116: 29 | AZ116: 38 | BA116: 49 | BB116: 61 | BC116: 75 | BD116: 87 | BE116: 130 | BF116: 215
A117: EA | B117: TEB | C117: TETERBORO | D117: TETERBORO | E117: NJ | F117: 40.85011 | G117: -74.06083 | H117: 8.4 | I117: 4.9 | J117: 8518750 | K117: THE BATTERY | L117: 10.64 | M117: 2.48 | N117: 12 | O117: NEW YORK | P117: 10.7 | Q117: =LOCIDdata[[#This Row],[STATE]]&+"_"&LOCIDdata[[#This Row],[LOCID]] -> NJ_TEB | T117: 9759110 | U117: MAGUEYES ISLAND | V117: PUERTO RICO | W117: 17.972 | X117: -67.047 | Y117: 0.152 | Z117: 0.012 | AA117: 0.041 | AB117: 0.01 | AC117: 0.291 | AD117: 0.228 | AM117: VANCOUVER | AN117: 175 | AO117: 49.28 | AP117: -123.12 | AQ117: 1.5 - MED | AR117: -1.37 | AS117: 0 | AT117: 4 | AU117: 7 | AV117: 13 | AW117: 24 | AX117: 36 | AY117: 51 | AZ117: 67 | BA117: 89 | BB117: 113 | BC117: 141 | BD117: 174 | BE117: 271 | BF117: 472
A118: EA | B118: WWD | C118: CAPE MAY COUNTY | D118: WILDWOOD | E118: NJ | F118: 39.0085 | G118: -74.90858 | H118: 21.3 | I118: 15 | J118: 8536110 | K118: CAPE MAY | L118: 3.93 | M118: 2.88 | N118: 1153 | O118: CAPE MAY | P118: 3.83 | Q118: =LOCIDdata[[#This Row],[STATE]]&+"_"&LOCIDdata[[#This Row],[LOCID]] -> NJ_WWD | AM118: VANCOUVER | AN118: 175 | AO118: 49.28 | AP118: -123.12 | AQ118: 2.0 - MED | AR118: -1.37 | AS118: 0 | AT118: 6 | AU118: 10 | AV118: 20 | AW118: 36 | AX118: 56 | AY118: 79 | AZ118: 105 | BA118: 137 | BB118: 174 | BC118: 221 | BD118: 284 | BE118: 449 | BF118: 790
A119: EA | B119: HTO | C119: EAST HAMPTON | D119: EAST HAMPTON | E119: NY | F119: 40.95942 | G119: -72.25167 | H119: 54.9 | I119: 29.8 | J119: 8510560 | K119: MONTAUK | L119: 16.38 | M119: 1.29 | N119: 519 | O119: MONTAUK | P119: 16.43 | Q119: =LOCIDdata[[#This Row],[STATE]]&+"_"&LOCIDdata[[#This Row],[LOCID]] -> NY_HTO | AM119: VANCOUVER | AN119: 175 | AO119: 49.28 | AP119: -123.12 | AQ119: 2.5 - MED | AR119: -1.37 | AS119: 0 | AT119: 6 | AU119: 12 | AV119: 25 | AW119: 45 | AX119: 70 | AY119: 101 | AZ119: 136 | BA119: 178 | BB119: 225 | BC119: 281 | BD119: 395 | BE119: 617 | BF119: 1054
A120: EA | B120: JFK | C120: JOHN F KENNEDY INTERNATIONAL | D120: NEW YORK | E120: NY | F120: 40.63993 | G120: -73.77869 | H120: 12.7 | I120: 11.3 | J120: 8516990 | K120: WILLETS POINT/KINGS POINT | L120: 11.76 | M120: 3.91 | N120: 362 | O120: WILLETS POINT | P120: 10.36 | Q120: =LOCIDdata[[#This Row],[STATE]]&+"_"&LOCIDdata[[#This Row],[LOCID]] -> NY_JFK | AM120: HARRINGTON HBR | AN120: 176 | AO120: 50.5 | AP120: -59.48 | AQ120: 0.3 - MED | AR120: -2.52 | AS120: 0 | AT120: 0 | AU120: 2 | AV120: 3 | AW120: 4 | AX120: 4 | AY120: 6 | AZ120: 5 | BA120: 6 | BB120: 4 | BC120: 4 | BD120: -3 | BE120: -7 | BF120: -17
A121: EA | B121: LGA | C121: LAGUARDIA | D121: NEW YORK | E121: NY | F121: 40.77725 | G121: -73.87261 | H121: 20.6 | I121: 6.7 | J121: 8516990 | K121: WILLETS POINT/KINGS POINT | L121: 6.06 | M121: 3.91 | N121: 362 | O121: WILLETS POINT | P121: 4.92 | Q121: =LOCIDdata[[#This Row],[STATE]]&+"_"&LOCIDdata[[#This Row],[LOCID]] -> NY_LGA | AM121: HARRINGTON HBR | AN121: 176 | AO121: 50.5 | AP121: -59.48 | AQ121: 0.5 - MED | AR121: -2.52 | AS121: 0 | AT121: 1 | AU121: 4 | AV121: 5 | AW121: 8 | AX121: 9 | AY121: 12 | AZ121: 13 | BA121: 14 | BB121: 14 | BC121: 15 | BD121: 15 | BE121: 17 | BF121: 17
A122: EA | B122: MTP | C122: MONTAUK | D122: MONTAUK | E122: NY | F122: 41.07667 | G122: -71.92047 | H122: 6.8 | I122: 4.3 | J122: 8510560 | K122: MONTAUK | L122: 2.86 | M122: 1.29 | N122: 519 | O122: MONTAUK | P122: 2.76 | Q122: =LOCIDdata[[#This Row],[STATE]]&+"_"&LOCIDdata[[#This Row],[LOCID]] -> NY_MTP | AM122: HARRINGTON HBR | AN122: 176 | AO122: 50.5 | AP122: -59.48 | AQ122: 1.0 - MED | AR122: -2.52 | AS122: 0 | AT122: 4 | AU122: 9 | AV122: 14 | AW122: 20 | AX122: 27 | AY122: 35 | AZ122: 43 | BA122: 52 | BB122: 61 | BC122: 72 | BD122: 83 | BE122: 121 | BF122: 176
A123: NM | B123: AST | C123: ASTORIA REGIONAL | D123: ASTORIA | E123: OR | F123: 46.15797 | G123: -123.87861 | H123: 14.3 | I123: 11.2 | J123: 9439040 | K123: ASTORIA | L123: 6.36 | M123: 4.1 | N123: 265 | O123: ASTORIA | P123: 6.31 | Q123: =LOCIDdata[[#This Row],[STATE]]&+"_"&LOCIDdata[[#This Row],[LOCID]] -> OR_AST | AM123: HARRINGTON HBR | AN123: 176 | AO123: 50.5 | AP123: -59.48 | AQ123: 1.5 - MED | AR123: -2.52 | AS123: 0 | AT123: 7 | AU123: 14 | AV123: 22 | AW123: 32 | AX123: 43 | AY123: 58 | AZ123: 73 | BA123: 93 | BB123: 113 | BC123: 135 | BD123: 178 | BE123: 273 | BF123: 445
A124: NM | B124: OTH | C124: SOUTHWEST OREGON REGIONAL | D124: NORTH BEND | E124: OR | F124: 43.41694 | G124: -124.24703 | H124: 17.4 | I124: 13.1 | J124: 9432780 | K124: CHARLESTON | L124: 6.23 | M124: 3.54 | N124: 1269 | O124: CHARLESTON II | P124: 6.45 | Q124: =LOCIDdata[[#This Row],[STATE]]&+"_"&LOCIDdata[[#This Row],[LOCID]] -> OR_OTH | AM124: HARRINGTON HBR | AN124: 176 | AO124: 50.5 | AP124: -59.48 | AQ124: 2.0 - MED | AR124: -2.52 | AS124: 0 | AT124: 9 | AU124: 18 | AV124: 30 | AW124: 48 | AX124: 67 | AY124: 90 | AZ124: 115 | BA124: 144 | BB124: 174 | BC124: 211 | BD124: 305 | BE124: 459 | BF124: 790
A125: EA | B125: PHL | C125: PHILADELPHIA INTERNATIONAL | D125: PHILADELPHIA | E125: PA | F125: 39.87208 | G125: -75.24066 | H125: 36.1 | I125: 8.3 | J125: 8545240 | K125: PHILADELPHIA | L125: 6.71 | M125: 3.2 | N125: 135 | O125: PHILADELPHIA | P125: 6.67 | Q125: =LOCIDdata[[#This Row],[STATE]]&+"_"&LOCIDdata[[#This Row],[LOCID]] -> PA_PHL | AM125: HARRINGTON HBR | AN125: 176 | AO125: 50.5 | AP125: -59.48 | AQ125: 2.5 - MED | AR125: -2.52 | AS125: 0 | AT125: 10 | AU125: 20 | AV125: 34 | AW125: 56 | AX125: 79 | AY125: 108 | AZ125: 142 | BA125: 181 | BB125: 221 | BC125: 272 | BD125: 397 | BE125: 601 | BF125: 1017
A126: SO | B126: CPX | C126: BENJAMIN RIVERA NORIEGA | D126: CULEBRA | E126: PR | F126: 18.31295 | G126: -65.30388 | H126: 49 | I126: 7.5 | J126: 9751639 | K126: CHARLOTTE AMALIE | L126: 25.21 | M126: 0.41 | N126: 1007152945 | O126: grid_18.5_294.5 | P126: 18.22 | Q126: =LOCIDdata[[#This Row],[STATE]]&+"_"&LOCIDdata[[#This Row],[LOCID]] -> PR_CPX | AM126: ATLANTIC CITY | AN126: 180 | AO126: 39.35 | AP126: -74.42 | AQ126: 0.3 - MED | AR126: 2.16 | AS126: 0 | AT126: 6 | AU126: 12 | AV126: 18 | AW126: 25 | AX126: 30 | AY126: 36 | AZ126: 42 | BA126: 47 | BB126: 51 | BC126: 55 | BD126: 62 | BE126: 72 | BF126: 88
A127: SO | B127: MAZ | C127: EUGENIO MARIA DE HOSTOS | D127: MAYAGUEZ | E127: PR | F127: 18.25569 | G127: -67.14847 | H127: 27.7 | I127: 15.3 | J127: 9759110 | K127: MAGUEYES ISLAND | L127: 20.69 | M127: 0.33 | N127: 759 | O127: MAGUEYES ISLAND | P127: 20.76 | Q127: =LOCIDdata[[#This Row],[STATE]]&+"_"&LOCIDdata[[#This Row],[LOCID]] -> PR_MAZ | AM127: ATLANTIC CITY | AN127: 180 | AO127: 39.35 | AP127: -74.42 | AQ127: 0.5 - MED | AR127: 2.16 | AS127: 0 | AT127: 7 | AU127: 14 | AV127: 21 | AW127: 29 | AX127: 36 | AY127: 44 | AZ127: 51 | BA127: 57 | BB127: 63 | BC127: 70 | BD127: 82 | BE127: 99 | BF127: 129
A128: SO | B128: PSE | C128: MERCEDITA | D128: PONCE | E128: PR | F128: 18.00831 | G128: -66.563 | H128: 28.8 | I128: 27 | J128: 9759110 | K128: MAGUEYES ISLAND | L128: 31.88 | M128: 0.33 | N128: 759 | O128: MAGUEYES ISLAND | P128: 32.09 | Q128: =LOCIDdata[[#This Row],[STATE]]&+"_"&LOCIDdata[[#This Row],[LOCID]] -> PR_PSE | AM128: ATLANTIC CITY | AN128: 180 | AO128: 39.35 | AP128: -74.42 | AQ128: 1.0 - MED | AR128: 2.16 | AS128: 0 | AT128: 9 | AU128: 19 | AV128: 29 | AW128: 42 | AX128: 55 | AY128: 70 | AZ128: 85 | BA128: 102 | BB128: 120 | BC128: 139 | BD128: 159 | BE128: 214 | BF128: 315
A129: SO | B129: RVR | C129: JOSE APONTE DE LA TORRE | D129: CEIBA | E129: PR | F129: 18.24511 | G129: -65.64342 | H129: 38 | I129: 9.3 | J129: 9755371 | K129: SAN JUAN | L129: 34.34 | M129: 0.81 | N129: 1007152945 | O129: grid_18.5_294.5 | P129: 19.95 | Q129: =LOCIDdata[[#This Row],[STATE]]&+"_"&LOCIDdata[[#This Row],[LOCID]] -> PR_RVR | AM129: ATLANTIC CITY | AN129: 180 | AO129: 39.35 | AP129: -74.42 | AQ129: 1.5 - MED | AR129: 2.16 | AS129: 0 | AT129: 12 | AU129: 24 | AV129: 38 | AW129: 54 | AX129: 73 | AY129: 95 | AZ129: 119 | BA129: 145 | BB129: 173 | BC129: 206 | BD129: 256 | BE129: 368 | BF129: 589
A130: SO | B130: SIG | C130: FERNANDO LUIS RIBAS DOMINICCI | D130: SAN JUAN | E130: PR | F130: 18.45678 | G130: -66.09847 | H130: 9.8 | I130: 6.5 | J130: 9755371 | K130: SAN JUAN | L130: 1.22 | M130: 0.81 | N130: 1001 | O130: SAN JUAN | P130: 0.79 | Q130: =LOCIDdata[[#This Row],[STATE]]&+"_"&LOCIDdata[[#This Row],[LOCID]] -> PR_SIG | AM130: ATLANTIC CITY | AN130: 180 | AO130: 39.35 | AP130: -74.42 | AQ130: 2.0 - MED | AR130: 2.16 | AS130: 0 | AT130: 14 | AU130: 28 | AV130: 46 | AW130: 69 | AX130: 95 | AY130: 127 | AZ130: 159 | BA130: 194 | BB130: 240 | BC130: 288 | BD130: 382 | BE130: 577 | BF130: 950
A131: SO | B131: SJU | C131: LUIS MUNOZ MARIN INTERNATIONAL | D131: SAN JUAN | E131: PR | F131: 18.4394 | G131: -66.00213 | H131: 9.4 | I131: 6.9 | J131: 9755371 | K131: SAN JUAN | L131: 7.63 | M131: 0.81 | N131: 1001 | O131: SAN JUAN | P131: 7.21 | Q131: =LOCIDdata[[#This Row],[STATE]]&+"_"&LOCIDdata[[#This Row],[LOCID]] -> PR_SJU | AM131: ATLANTIC CITY | AN131: 180 | AO131: 39.35 | AP131: -74.42 | AQ131: 2.5 - MED | AR131: 2.16 | AS131: 0 | AT131: 14 | AU131: 29 | AV131: 50 | AW131: 76 | AX131: 108 | AY131: 146 | AZ131: 189 | BA131: 236 | BB131: 289 | BC131: 350 | BD131: 473 | BE131: 712 | BF131: 1167
A132: SO | B132: VQS | C132: ANTONIO RIVERA RODRIGUEZ | D132: VIEQUES | E132: PR | F132: 18.13481 | G132: -65.49362 | H132: 49 | I132: 25.6 | J132: 9751639 | K132: CHARLOTTE AMALIE | L132: 40.08 | M132: 0.41 | N132: 1007152945 | O132: grid_18.5_294.5 | P132: 25.22 | Q132: =LOCIDdata[[#This Row],[STATE]]&+"_"&LOCIDdata[[#This Row],[LOCID]] -> PR_VQS | AM132: PORTLAND | AN132: 183 | AO132: 43.66 | AP132: -70.25 | AQ132: 0.3 - MED | AR132: 0 | AS132: 0 | AT132: 4 | AU132: 8 | AV132: 12 | AW132: 15 | AX132: 19 | AY132: 24 | AZ132: 27 | BA132: 30 | BB132: 32 | BC132: 34 | BD132: 36 | BE132: 40 | BF132: 42
A133: NE | B133: OQU | C133: QUONSET STATE | D133: NORTH KINGSTOWN | E133: RI | F133: 41.59714 | G133: -71.41214 | H133: 18.3 | I133: 9.3 | J133: 8452660 | K133: NEWPORT | L133: 7.73 | M133: 2.11 | N133: 351 | O133: NEWPORT | P133: 7.36 | Q133: =LOCIDdata[[#This Row],[STATE]]&+"_"&LOCIDdata[[#This Row],[LOCID]] -> RI_OQU | AM133: PORTLAND | AN133: 183 | AO133: 43.66 | AP133: -70.25 | AQ133: 0.5 - MED | AR133: 0 | AS133: 0 | AT133: 5 | AU133: 10 | AV133: 15 | AW133: 20 | AX133: 25 | AY133: 31 | AZ133: 36 | BA133: 40 | BB133: 44 | BC133: 47 | BD133: 54 | BE133: 65 | BF133: 82
A134: SO | B134: ARW | C134: BEAUFORT COUNTY | D134: BEAUFORT | E134: SC | F134: 32.41217 | G134: -80.63435 | H134: 9 | I134: 7.2 | J134: 8670870 | K134: FORT PULASKI | L134: 30.49 | M134: 3.68 | N134: 1005752795 | O134: grid_32.5_279.5 | P134: 9.9 | Q134: =LOCIDdata[[#This Row],[STATE]]&+"_"&LOCIDdata[[#This Row],[LOCID]] -> SC_ARW | AM134: PORTLAND | AN134: 183 | AO134: 43.66 | AP134: -70.25 | AQ134: 1.0 - MED | AR134: 0 | AS134: 0 | AT134: 7 | AU134: 15 | AV134: 24 | AW134: 34 | AX134: 45 | AY134: 58 | AZ134: 71 | BA134: 86 | BB134: 102 | BC134: 117 | BD134: 130 | BE134: 178 | BF134: 261
A135: SO | B135: CHS | C135: CHARLESTON AFB/INTERNATIONAL | D135: CHARLESTON | E135: SC | F135: 32.89864 | G135: -80.04053 | H135: 46 | I135: 20.6 | J135: 8665530 | K135: CHARLESTON | L135: 10.48 | M135: 2.84 | N135: 234 | O135: CHARLESTON I | P135: 10.77 | Q135: =LOCIDdata[[#This Row],[STATE]]&+"_"&LOCIDdata[[#This Row],[LOCID]] -> SC_CHS | AM135: PORTLAND | AN135: 183 | AO135: 43.66 | AP135: -70.25 | AQ135: 1.5 - MED | AR135: 0 | AS135: 0 | AT135: 10 | AU135: 21 | AV135: 34 | AW135: 49 | AX135: 66 | AY135: 85 | AZ135: 106 | BA135: 130 | BB135: 156 | BC135: 183 | BD135: 228 | BE135: 327 | BF135: 530
A136: SO | B136: CRE | C136: GRAND STRAND | D136: NORTH MYRTLE BEACH | E136: SC | F136: 33.81175 | G136: -78.72394 | H136: 31.4 | I136: 29 | J136: 8661070 | K136: SPRINGMAID PIER | L136: 15.53 | M136: 2.89 | N136: 1444 | O136: SPRINGMAID PIER | P136: 15.38 | Q136: =LOCIDdata[[#This Row],[STATE]]&+"_"&LOCIDdata[[#This Row],[LOCID]] -> SC_CRE | AM136: PORTLAND | AN136: 183 | AO136: 43.66 | AP136: -70.25 | AQ136: 2.0 - MED | AR136: 0 | AS136: 0 | AT136: 13 | AU136: 25 | AV136: 42 | AW136: 65 | AX136: 90 | AY136: 119 | AZ136: 150 | BA136: 182 | BB136: 222 | BC136: 266 | BD136: 354 | BE136: 522 | BF136: 880
A137: SO | B137: HXD | C137: HILTON HEAD | D137: HILTON HEAD ISLAND | E137: SC | F137: 32.22436 | G137: -80.69747 | H137: 19.1 | I137: 12.1 | J137: 8670870 | K137: FORT PULASKI | L137: 17.82 | M137: 3.68 | N137: 395 | O137: FORT PULASKI | P137: 17.9 | Q137: =LOCIDdata[[#This Row],[STATE]]&+"_"&LOCIDdata[[#This Row],[LOCID]] -> SC_HXD | AM137: PORTLAND | AN137: 183 | AO137: 43.66 | AP137: -70.25 | AQ137: 2.5 - MED | AR137: 0 | AS137: 0 | AT137: 14 | AU137: 27 | AV137: 46 | AW137: 72 | AX137: 103 | AY137: 140 | AZ137: 180 | BA137: 223 | BB137: 275 | BC137: 329 | BD137: 445 | BE137: 672 | BF137: 1111
A138: SO | B138: JZI | C138: CHARLESTON EXECUTIVE | D138: CHARLESTON | E138: SC | F138: 32.70103 | G138: -80.00325 | H138: 18.6 | I138: 9.8 | J138: 8665530 | K138: CHARLESTON | L138: 7.2 | M138: 2.84 | N138: 234 | O138: CHARLESTON I | P138: 7.29 | Q138: =LOCIDdata[[#This Row],[STATE]]&+"_"&LOCIDdata[[#This Row],[LOCID]] -> SC_JZI | AM138: KEY WEST | AN138: 188 | AO138: 24.55 | AP138: -81.81 | AQ138: 0.3 - MED | AR138: 0.54 | AS138: 0 | AT138: 4 | AU138: 8 | AV138: 13 | AW138: 17 | AX138: 22 | AY138: 26 | AZ138: 31 | BA138: 34 | BB138: 38 | BC138: 40 | BD138: 46 | BE138: 53 | BF138: 63
A139: SO | B139: MYR | C139: MYRTLE BEACH INTERNATIONAL | D139: MYRTLE BEACH | E139: SC | F139: 33.67975 | G139: -78.92833 | H139: 24.5 | I139: 9 | J139: 8661070 | K139: SPRINGMAID PIER | L139: 1.81 | M139: 2.89 | N139: 1444 | O139: SPRINGMAID PIER | P139: 1.45 | Q139: =LOCIDdata[[#This Row],[STATE]]&+"_"&LOCIDdata[[#This Row],[LOCID]] -> SC_MYR | AM139: KEY WEST | AN139: 188 | AO139: 24.55 | AP139: -81.81 | AQ139: 0.5 - MED | AR139: 0.54 | AS139: 0 | AT139: 5 | AU139: 10 | AV139: 16 | AW139: 21 | AX139: 28 | AY139: 33 | AZ139: 39 | BA139: 44 | BB139: 50 | BC139: 54 | BD139: 64 | BE139: 79 | BF139: 103
A140: SO | B140: NBC | C140: BEAUFORT MCAS /MERRITT FIELD/ | D140: BEAUFORT | E140: SC | F140: 32.48057 | G140: -80.71924 | H140: 37.1 | I140: 13.1 | J140: 8670870 | K140: FORT PULASKI | L140: 32.69 | M140: 3.68 | N140: 1005752795 | O140: grid_32.5_279.5 | P140: 12.84 | Q140: =LOCIDdata[[#This Row],[STATE]]&+"_"&LOCIDdata[[#This Row],[LOCID]] -> SC_NBC | AM140: KEY WEST | AN140: 188 | AO140: 24.55 | AP140: -81.81 | AQ140: 1.0 - MED | AR140: 0.54 | AS140: 0 | AT140: 7 | AU140: 14 | AV140: 23 | AW140: 31 | AX140: 42 | AY140: 54 | AZ140: 68 | BA140: 83 | BB140: 100 | BC140: 117 | BD140: 143 | BE140: 197 | BF140: 298
A141: SW | B141: BPT | C141: JACK BROOKS REGIONAL | D141: BEAUMONT | E141: TX | F141: 29.95083 | G141: -94.02069 | H141: 15.4 | I141: 6.6 | J141: 8770570 | K141: SABINE PASS | L141: 17.72 | M141: 0.64 | N141: 1835 | O141: SABINE PASS NORTH | P141: 17.72 | Q141: =LOCIDdata[[#This Row],[STATE]]&+"_"&LOCIDdata[[#This Row],[LOCID]] -> TX_BPT | AM141: KEY WEST | AN141: 188 | AO141: 24.55 | AP141: -81.81 | AQ141: 1.5 - MED | AR141: 0.54 | AS141: 0 | AT141: 9 | AU141: 17 | AV141: 30 | AW141: 42 | AX141: 59 | AY141: 78 | AZ141: 101 | BA141: 127 | BB141: 156 | BC141: 187 | BD141: 233 | BE141: 341 | BF141: 563
A142: SW | B142: BRO | C142: BROWNSVILLE/SOUTH PADRE ISLAND INTERNATIONAL | D142: BROWNSVILLE | E142: TX | F142: 25.90614 | G142: -97.42599 | H142: 22.4 | I142: 17.1 | J142: 8779770 | K142: PORT ISABEL | L142: 16.86 | M142: 0.56 | N142: 497 | O142: PORT ISABEL | P142: 16.62 | Q142: =LOCIDdata[[#This Row],[STATE]]&+"_"&LOCIDdata[[#This Row],[LOCID]] -> TX_BRO | AM142: KEY WEST | AN142: 188 | AO142: 24.55 | AP142: -81.81 | AQ142: 2.0 - MED | AR142: 0.54 | AS142: 0 | AT142: 10 | AU142: 21 | AV142: 36 | AW142: 53 | AX142: 75 | AY142: 103 | AZ142: 137 | BA142: 175 | BB142: 216 | BC142: 261 | BD142: 345 | BE142: 518 | BF142: 892
A143: SW | B143: EFD | C143: ELLINGTON | D143: HOUSTON | E143: TX | F143: 29.60733 | G143: -95.15875 | H143: 32.5 | I143: 26 | J143: 8771450 | K143: GALVESTON PIER 21 | L143: 30.08 | M143: 0.58 | N143: 1006052645 | O143: grid_29.5_264.5 | P143: 21.8 | Q143: =LOCIDdata[[#This Row],[STATE]]&+"_"&LOCIDdata[[#This Row],[LOCID]] -> TX_EFD | AM143: KEY WEST | AN143: 188 | AO143: 24.55 | AP143: -81.81 | AQ143: 2.5 - MED | AR143: 0.54 | AS143: 0 | AT143: 11 | AU143: 22 | AV143: 41 | AW143: 60 | AX143: 89 | AY143: 123 | AZ143: 163 | BA143: 209 | BB143: 261 | BC143: 318 | BD143: 445 | BE143: 683 | BF143: 1149
A144: SW | B144: GLS | C144: SCHOLES INTERNATIONAL AT GALVESTON | D144: GALVESTON | E144: TX | F144: 29.26533 | G144: -94.86042 | H144: 5.6 | I144: 4.6 | J144: 8771510 | K144: GALVES. PLEASURE PIER | L144: 4.57 | M144: 0.93 | N144: 828 | O144: GALVESTON I | P144: 4.57 | Q144: =LOCIDdata[[#This Row],[STATE]]&+"_"&LOCIDdata[[#This Row],[LOCID]] -> TX_GLS | AM144: NEUVILLE | AN144: 192 | AO144: 46.7 | AP144: -71.57 | AQ144: 0.3 - MED | AR144: -2.61 | AS144: 0 | AT144: 0 | AU144: 2 | AV144: 3 | AW144: 5 | AX144: 6 | AY144: 7 | AZ144: 8 | BA144: 8 | BB144: 8 | BC144: 7 | BD144: 3 | BE144: -1 | BF144: -11
A145: SW | B145: LBX | C145: TEXAS GULF COAST REGIONAL | D145: ANGLETON | E145: TX | F145: 29.10864 | G145: -95.46208 | H145: 25.2 | I145: 24.4 | J145: 8772440 | K145: FREEPORT | L145: 14.48 | M145: 0.81 | N145: 725 | O145: FREEPORT | P145: 14.29 | Q145: =LOCIDdata[[#This Row],[STATE]]&+"_"&LOCIDdata[[#This Row],[LOCID]] -> TX_LBX | AM145: NEUVILLE | AN145: 192 | AO145: 46.7 | AP145: -71.57 | AQ145: 0.5 - MED | AR145: -2.61 | AS145: 0 | AT145: 2 | AU145: 4 | AV145: 6 | AW145: 9 | AX145: 12 | AY145: 14 | AZ145: 17 | BA145: 18 | BB145: 19 | BC145: 20 | BD145: 21 | BE145: 24 | BF145: 26
A146: SW | B146: PSX | C146: PALACIOS MUNICIPAL | D146: PALACIOS | E146: TX | F146: 28.7275 | G146: -96.25094 | H146: 14.1 | I146: 10.8 | J146: 8772440 | K146: FREEPORT | L146: 59.03 | M146: 0.81 | N146: 1006152635 | O146: grid_28.5_263.5 | P146: 21.79 | Q146: =LOCIDdata[[#This Row],[STATE]]&+"_"&LOCIDdata[[#This Row],[LOCID]] -> TX_PSX | AM146: NEUVILLE | AN146: 192 | AO146: 46.7 | AP146: -71.57 | AQ146: 1.0 - MED | AR146: -2.61 | AS146: 0 | AT146: 4 | AU146: 10 | AV146: 16 | AW146: 23 | AX146: 31 | AY146: 41 | AZ146: 52 | BA146: 63 | BB146: 76 | BC146: 88 | BD146: 95 | BE146: 133 | BF146: 197
A147: EA | B147: CPK | C147: CHESAPEAKE REGIONAL | D147: CHESAPEAKE | E147: VA | F147: 36.66561 | G147: -76.32067 | H147: 18.7 | I147: 16.5 | J147: 8638660 | K147: PORTSMOUTH | L147: 10.91 | M147: 1.58 | N147: 399 | O147: PORTSMOUTH | P147: 10.79 | Q147: =LOCIDdata[[#This Row],[STATE]]&+"_"&LOCIDdata[[#This Row],[LOCID]] -> VA_CPK | AM147: NEUVILLE | AN147: 192 | AO147: 46.7 | AP147: -71.57 | AQ147: 1.5 - MED | AR147: -2.61 | AS147: 0 | AT147: 7 | AU147: 16 | AV147: 25 | AW147: 38 | AX147: 52 | AY147: 67 | AZ147: 86 | BA147: 106 | BB147: 129 | BC147: 151 | BD147: 190 | BE147: 279 | BF147: 464
A148: EA | B148: DCA | C148: RONALD REAGAN WASHINGTON NATIONAL | D148: ARLINGTON | E148: VA | F148: 38.85144 | G148: -77.03772 | H148: 14.1 | I148: 10.3 | J148: 8594900 | K148: WASHINGTON | L148: 1.71 | M148: 1.62 | N148: 360 | O148: WASHINGTON DC | P148: 1.6 | Q148: =LOCIDdata[[#This Row],[STATE]]&+"_"&LOCIDdata[[#This Row],[LOCID]] -> VA_DCA | AM148: NEUVILLE | AN148: 192 | AO148: 46.7 | AP148: -71.57 | AQ148: 2.0 - MED | AR148: -2.61 | AS148: 0 | AT148: 10 | AU148: 21 | AV148: 34 | AW148: 54 | AX148: 76 | AY148: 102 | AZ148: 131 | BA148: 159 | BB148: 194 | BC148: 234 | BD148: 315 | BE148: 468 | BF148: 799
A149: EA | B149: FYJ | C149: MIDDLE PENINSULA REGIONAL | D149: MATTAPONI | E149: VA | F149: 37.52136 | G149: -76.76275 | H149: 20.4 | I149: 13 | J149: 8637624 | K149: GLOUCESTER POINT | L149: 23.8 | M149: 1.4 | N149: 1005252835 | O149: grid_37.5_283.5 | P149: 14.47 | Q149: =LOCIDdata[[#This Row],[STATE]]&+"_"&LOCIDdata[[#This Row],[LOCID]] -> VA_FYJ | AM149: NEUVILLE | AN149: 192 | AO149: 46.7 | AP149: -71.57 | AQ149: 2.5 - MED | AR149: -2.61 | AS149: 0 | AT149: 11 | AU149: 23 | AV149: 38 | AW149: 62 | AX149: 89 | AY149: 122 | AZ149: 160 | BA149: 199 | BB149: 246 | BC149: 296 | BD149: 403 | BE149: 618 | BF149: 1036
A150: EA | B150: JGG | C150: WILLIAMSBURG-JAMESTOWN | D150: WILLIAMSBURG | E150: VA | F150: 37.23917 | G150: -76.7161 | H150: 49 | I150: 22 | J150: 8637624 | K150: GLOUCESTER POINT | L150: 11.89 | M150: 1.4 | N150: 597 | O150: GLOUCESTER POINT | P150: 11.9 | Q150: =LOCIDdata[[#This Row],[STATE]]&+"_"&LOCIDdata[[#This Row],[LOCID]] -> VA_JGG | AM150: POINT ATKINSON | AN150: 193 | AO150: 49.33 | AP150: -123.25 | AQ150: 0.3 - MED | AR150: -0.94 | AS150: 0 | AT150: 1 | AU150: 2 | AV150: 3 | AW150: 5 | AX150: 6 | AY150: 8 | AZ150: 10 | BA150: 12 | BB150: 15 | BC150: 16 | BD150: 18 | BE150: 21 | BF150: 20
A151: EA | B151: NGU | C151: NORFOLK NS (CHAMBERS FIELD) | D151: NORFOLK | E151: VA | F151: 36.93747 | G151: -76.28928 | H151: 14.8 | I151: 12.5 | J151: 8638610 | K151: SEWELLS POINT | L151: 2.34 | M151: 1.4 | N151: 299 | O151: SEWELLS POINT | P151: 2.41 | Q151: =LOCIDdata[[#This Row],[STATE]]&+"_"&LOCIDdata[[#This Row],[LOCID]] -> VA_NGU | AM151: POINT ATKINSON | AN151: 193 | AO151: 49.33 | AP151: -123.25 | AQ151: 0.5 - MED | AR151: -0.94 | AS151: 0 | AT151: 1 | AU151: 3 | AV151: 5 | AW151: 7 | AX151: 10 | AY151: 13 | AZ151: 17 | BA151: 20 | BB151: 25 | BC151: 28 | BD151: 33 | BE151: 41 | BF151: 54
A152: EA | B152: ORF | C152: NORFOLK INTERNATIONAL | D152: NORFOLK | E152: VA | F152: 36.89461 | G152: -76.20122 | H152: 26.7 | I152: 15.5 | J152: 8638863 | K152: CHES. BAY BR. TNL. | L152: 6.98 | M152: 1.49 | N152: 399 | O152: PORTSMOUTH | P152: 7.11 | Q152: =LOCIDdata[[#This Row],[STATE]]&+"_"&LOCIDdata[[#This Row],[LOCID]] -> VA_ORF | AM152: POINT ATKINSON | AN152: 193 | AO152: 49.33 | AP152: -123.25 | AQ152: 1.0 - MED | AR152: -0.94 | AS152: 0 | AT152: 2 | AU152: 5 | AV152: 9 | AW152: 15 | AX152: 23 | AY152: 31 | AZ152: 40 | BA152: 52 | BB152: 64 | BC152: 79 | BD152: 92 | BE152: 136 | BF152: 223
A153: SO | B153: STT | C153: CYRIL E KING | D153: CHARLOTTE AMALIE | E153: VI | F153: 18.33731 | G153: -64.97333 | H153: 23.6 | I153: 11.7 | J153: 9751639 | K153: CHARLOTTE AMALIE | L153: 3.5 | M153: 0.41 | N153: 1393 | O153: CHARLOTTE AMALIE | P153: 3.5 | Q153: =LOCIDdata[[#This Row],[STATE]]&+"_"&LOCIDdata[[#This Row],[LOCID]] -> VI_STT | AM153: POINT ATKINSON | AN153: 193 | AO153: 49.33 | AP153: -123.25 | AQ153: 1.5 - MED | AR153: -0.94 | AS153: 0 | AT153: 4 | AU153: 8 | AV153: 14 | AW153: 25 | AX153: 38 | AY153: 52 | AZ153: 70 | BA153: 92 | BB153: 116 | BC153: 146 | BD153: 179 | BE153: 277 | BF153: 480
A154: SO | B154: STX | C154: HENRY E ROHLSEN | D154: CHRISTIANSTED | E154: VI | F154: 17.7015 | G154: -64.80194 | H154: 74.1 | I154: 22.5 | J154: 9751639 | K154: CHARLOTTE AMALIE | L154: 44.42 | M154: 0.41 | N154: 1447 | O154: LIME TREE BAY | P154: 3.51 | Q154: =LOCIDdata[[#This Row],[STATE]]&+"_"&LOCIDdata[[#This Row],[LOCID]] -> VI_STX | AM154: POINT ATKINSON | AN154: 193 | AO154: 49.33 | AP154: -123.25 | AQ154: 2.0 - MED | AR154: -0.94 | AS154: 0 | AT154: 6 | AU154: 11 | AV154: 21 | AW154: 37 | AX154: 57 | AY154: 80 | AZ154: 108 | BA154: 140 | BB154: 178 | BC154: 226 | BD154: 289 | BE154: 455 | BF154: 798
A155: NM | B155: BFI | C155: BOEING FIELD/KING COUNTY INTERNATIONAL | D155: SEATTLE | E155: WA | F155: 47.52997 | G155: -122.30194 | H155: 21.6 | I155: 17.1 | J155: 9447130 | K155: SEATTLE | L155: 5.45 | M155: 4.72 | N155: 127 | O155: SEATTLE | P155: 5.15 | Q155: =LOCIDdata[[#This Row],[STATE]]&+"_"&LOCIDdata[[#This Row],[LOCID]] -> WA_BFI | AM155: POINT ATKINSON | AN155: 193 | AO155: 49.33 | AP155: -123.25 | AQ155: 2.5 - MED | AR155: -0.94 | AS155: 0 | AT155: 6 | AU155: 12 | AV155: 26 | AW155: 46 | AX155: 71 | AY155: 103 | AZ155: 139 | BA155: 181 | BB155: 229 | BC155: 286 | BD155: 400 | BE155: 624 | BF155: 1063
A156: NM | B156: NUW | C156: WHIDBEY ISLAND NAS /AULT FIELD | D156: OAK HARBOR | E156: WA | F156: 48.35184 | G156: -122.65596 | H156: 47.4 | I156: 18.3 | J156: 9444900 | K156: PORT TOWNSEND | L156: 17.21 | M156: 3.52 | N156: 1004152375 | O156: grid_48.5_237.5 | P156: 12.48 | Q156: =LOCIDdata[[#This Row],[STATE]]&+"_"&LOCIDdata[[#This Row],[LOCID]] -> WA_NUW | AM156: SAINT JOHN | AN156: 195 | AO156: 45.27 | AP156: -66.07 | AQ156: 0.3 - MED | AR156: 0.48 | AS156: 0 | AT156: 3 | AU156: 9 | AV156: 13 | AW156: 17 | AX156: 21 | AY156: 26 | AZ156: 30 | BA156: 33 | BB156: 35 | BC156: 38 | BD156: 40 | BE156: 45 | BF156: 51
A157: NM | B157: ORS | C157: ORCAS ISLAND | D157: EASTSOUND | E157: WA | F157: 48.70833 | G157: -122.91058 | H157: 34.7 | I157: 11.2 | J157: 9449880 | K157: FRIDAY HARBOR | L157: 12.03 | M157: 3.21 | N157: 384 | O157: FRIDAY HARBOR | P157: 11.84 | Q157: =LOCIDdata[[#This Row],[STATE]]&+"_"&LOCIDdata[[#This Row],[LOCID]] -> WA_ORS | AM157: SAINT JOHN | AN157: 195 | AO157: 45.27 | AP157: -66.07 | AQ157: 0.5 - MED | AR157: 0.48 | AS157: 0 | AT157: 5 | AU157: 11 | AV157: 16 | AW157: 22 | AX157: 27 | AY157: 33 | AZ157: 38 | BA157: 43 | BB157: 47 | BC157: 52 | BD157: 59 | BE157: 71 | BF157: 89
A158: NM | B158: RNT | C158: RENTON MUNICIPAL | D158: RENTON | E158: WA | F158: 47.49314 | G158: -122.21575 | H158: 32 | I158: 24.1 | J158: 9447130 | K158: SEATTLE | L158: 9.6 | M158: 4.72 | N158: 127 | O158: SEATTLE | P158: 9.38 | Q158: =LOCIDdata[[#This Row],[STATE]]&+"_"&LOCIDdata[[#This Row],[LOCID]] -> WA_RNT | AM158: SAINT JOHN | AN158: 195 | AO158: 45.27 | AP158: -66.07 | AQ158: 1.0 - MED | AR158: 0.48 | AS158: 0 | AT158: 7 | AU158: 16 | AV158: 25 | AW158: 35 | AX158: 47 | AY158: 61 | AZ158: 74 | BA158: 89 | BB158: 105 | BC158: 120 | BD158: 136 | BE158: 183 | BF158: 266
AM159: SAINT JOHN | AN159: 195 | AO159: 45.27 | AP159: -66.07 | AQ159: 1.5 - MED | AR159: 0.48 | AS159: 0 | AT159: 10 | AU159: 22 | AV159: 34 | AW159: 50 | AX159: 67 | AY159: 87 | AZ159: 109 | BA159: 132 | BB159: 158 | BC159: 185 | BD159: 235 | BE159: 334 | BF159: 541
AM160: SAINT JOHN | AN160: 195 | AO160: 45.27 | AP160: -66.07 | AQ160: 2.0 - MED | AR160: 0.48 | AS160: 0 | AT160: 13 | AU160: 27 | AV160: 43 | AW160: 66 | AX160: 92 | AY160: 122 | AZ160: 154 | BA160: 187 | BB160: 226 | BC160: 270 | BD160: 362 | BE160: 529 | BF160: 887
AM161: SAINT JOHN | AN161: 195 | AO161: 45.27 | AP161: -66.07 | AQ161: 2.5 - MED | AR161: 0.48 | AS161: 0 | AT161: 14 | AU161: 28 | AV161: 47 | AW161: 74 | AX161: 105 | AY161: 143 | AZ161: 183 | BA161: 227 | BB161: 278 | BC161: 333 | BD161: 455 | BE161: 683 | BF161: 1123
AM162: DESCHAILLONS | AN162: 201 | AO162: 46.57 | AP162: -72.1 | AQ162: 0.3 - MED | AR162: -2.76 | AS162: 0 | AT162: 0 | AU162: 1 | AV162: 3 | AW162: 4 | AX162: 5 | AY162: 6 | AZ162: 7 | BA162: 7 | BB162: 6 | BC162: 5 | BD162: 1 | BE162: -3 | BF162: -14
AM163: DESCHAILLONS | AN163: 201 | AO163: 46.57 | AP163: -72.1 | AQ163: 0.5 - MED | AR163: -2.76 | AS163: 0 | AT163: 2 | AU163: 4 | AV163: 6 | AW163: 8 | AX163: 11 | AY163: 13 | AZ163: 15 | BA163: 17 | BB163: 17 | BC163: 18 | BD163: 19 | BE163: 22 | BF163: 23
AM164: DESCHAILLONS | AN164: 201 | AO164: 46.57 | AP164: -72.1 | AQ164: 1.0 - MED | AR164: -2.76 | AS164: 0 | AT164: 4 | AU164: 9 | AV164: 16 | AW164: 22 | AX164: 30 | AY164: 39 | AZ164: 51 | BA164: 62 | BB164: 73 | BC164: 85 | BD164: 93 | BE164: 131 | BF164: 194
AM165: DESCHAILLONS | AN165: 201 | AO165: 46.57 | AP165: -72.1 | AQ165: 1.5 - MED | AR165: -2.76 | AS165: 0 | AT165: 7 | AU165: 15 | AV165: 25 | AW165: 37 | AX165: 51 | AY165: 66 | AZ165: 85 | BA165: 104 | BB165: 127 | BC165: 149 | BD165: 188 | BE165: 277 | BF165: 461
AM166: DESCHAILLONS | AN166: 201 | AO166: 46.57 | AP166: -72.1 | AQ166: 2.0 - MED | AR166: -2.76 | AS166: 0 | AT166: 10 | AU166: 20 | AV166: 34 | AW166: 53 | AX166: 75 | AY166: 101 | AZ166: 129 | BA166: 157 | BB166: 192 | BC166: 232 | BD166: 314 | BE166: 466 | BF166: 797
AM167: DESCHAILLONS | AN167: 201 | AO167: 46.57 | AP167: -72.1 | AQ167: 2.5 - MED | AR167: -2.76 | AS167: 0 | AT167: 10 | AU167: 22 | AV167: 38 | AW167: 61 | AX167: 88 | AY167: 121 | AZ167: 159 | BA167: 197 | BB167: 244 | BC167: 294 | BD167: 401 | BE167: 616 | BF167: 1030
AM168: LEWES | AN168: 224 | AO168: 38.78 | AP168: -75.12 | AQ168: 0.3 - MED | AR168: 1.73 | AS168: 0 | AT168: 6 | AU168: 11 | AV168: 17 | AW168: 23 | AX168: 28 | AY168: 33 | AZ168: 39 | BA168: 44 | BB168: 48 | BC168: 50 | BD168: 58 | BE168: 68 | BF168: 81
AM169: LEWES | AN169: 224 | AO169: 38.78 | AP169: -75.12 | AQ169: 0.5 - MED | AR169: 1.73 | AS169: 0 | AT169: 7 | AU169: 13 | AV169: 20 | AW169: 27 | AX169: 34 | AY169: 40 | AZ169: 47 | BA169: 54 | BB169: 60 | BC169: 65 | BD169: 76 | BE169: 93 | BF169: 121
AM170: LEWES | AN170: 224 | AO170: 38.78 | AP170: -75.12 | AQ170: 1.0 - MED | AR170: 1.73 | AS170: 0 | AT170: 9 | AU170: 17 | AV170: 28 | AW170: 39 | AX170: 52 | AY170: 66 | AZ170: 81 | BA170: 98 | BB170: 116 | BC170: 132 | BD170: 153 | BE170: 208 | BF170: 306
AM171: LEWES | AN171: 224 | AO171: 38.78 | AP171: -75.12 | AQ171: 1.5 - MED | AR171: 1.73 | AS171: 0 | AT171: 11 | AU171: 23 | AV171: 36 | AW171: 52 | AX171: 71 | AY171: 90 | AZ171: 113 | BA171: 141 | BB171: 169 | BC171: 201 | BD171: 251 | BE171: 359 | BF171: 579
AM172: LEWES | AN172: 224 | AO172: 38.78 | AP172: -75.12 | AQ172: 2.0 - MED | AR172: 1.73 | AS172: 0 | AT172: 13 | AU172: 26 | AV172: 44 | AW172: 66 | AX172: 92 | AY172: 122 | AZ172: 154 | BA172: 190 | BB172: 235 | BC172: 281 | BD172: 376 | BE172: 560 | BF172: 928
AM173: LEWES | AN173: 224 | AO173: 38.78 | AP173: -75.12 | AQ173: 2.5 - MED | AR173: 1.73 | AS173: 0 | AT173: 15 | AU173: 28 | AV173: 49 | AW173: 73 | AX173: 104 | AY173: 141 | AZ173: 184 | BA173: 230 | BB173: 284 | BC173: 344 | BD173: 466 | BE173: 703 | BF173: 1149
AM174: KETCHIKAN | AN174: 225 | AO174: 55.33 | AP174: -131.62 | AQ174: 0.3 - MED | AR174: -2.17 | AS174: 0 | AT174: 0 | AU174: 1 | AV174: 1 | AW174: 2 | AX174: 3 | AY174: 5 | AZ174: 6 | BA174: 7 | BB174: 6 | BC174: 7 | BD174: 6 | BE174: 4 | BF174: -4
AM175: KETCHIKAN | AN175: 225 | AO175: 55.33 | AP175: -131.62 | AQ175: 0.5 - MED | AR175: -2.17 | AS175: 0 | AT175: 1 | AU175: 2 | AV175: 2 | AW175: 4 | AX175: 6 | AY175: 9 | AZ175: 11 | BA175: 14 | BB175: 15 | BC175: 17 | BD175: 20 | BE175: 24 | BF175: 30
AM176: KETCHIKAN | AN176: 225 | AO176: 55.33 | AP176: -131.62 | AQ176: 1.0 - MED | AR176: -2.17 | AS176: 0 | AT176: 2 | AU176: 4 | AV176: 6 | AW176: 11 | AX176: 17 | AY176: 24 | AZ176: 32 | BA176: 41 | BB176: 50 | BC176: 62 | BD176: 81 | BE176: 120 | BF176: 199
AM177: KETCHIKAN | AN177: 225 | AO177: 55.33 | AP177: -131.62 | AQ177: 1.5 - MED | AR177: -2.17 | AS177: 0 | AT177: 4 | AU177: 7 | AV177: 11 | AW177: 19 | AX177: 30 | AY177: 43 | AZ177: 58 | BA177: 78 | BB177: 98 | BC177: 124 | BD177: 169 | BE177: 260 | BF177: 459
AM178: KETCHIKAN | AN178: 225 | AO178: 55.33 | AP178: -131.62 | AQ178: 2.0 - MED | AR178: -2.17 | AS178: 0 | AT178: 6 | AU178: 10 | AV178: 17 | AW178: 29 | AX178: 48 | AY178: 70 | AZ178: 93 | BA178: 124 | BB178: 157 | BC178: 203 | BD178: 275 | BE178: 427 | BF178: 775
AM179: KETCHIKAN | AN179: 225 | AO179: 55.33 | AP179: -131.62 | AQ179: 2.5 - MED | AR179: -2.17 | AS179: 0 | AT179: 6 | AU179: 11 | AV179: 22 | AW179: 37 | AX179: 60 | AY179: 88 | AZ179: 117 | BA179: 157 | BB179: 200 | BC179: 259 | BD179: 382 | BE179: 598 | BF179: 1037
AM180: CHARLESTON I | AN180: 234 | AO180: 32.78 | AP180: -79.92 | AQ180: 0.3 - MED | AR180: 1.27 | AS180: 0 | AT180: 4 | AU180: 10 | AV180: 15 | AW180: 20 | AX180: 25 | AY180: 31 | AZ180: 35 | BA180: 39 | BB180: 43 | BC180: 47 | BD180: 53 | BE180: 62 | BF180: 74
AM181: CHARLESTON I | AN181: 234 | AO181: 32.78 | AP181: -79.92 | AQ181: 0.5 - MED | AR181: 1.27 | AS181: 0 | AT181: 5 | AU181: 12 | AV181: 18 | AW181: 24 | AX181: 30 | AY181: 37 | AZ181: 43 | BA181: 49 | BB181: 54 | BC181: 60 | BD181: 71 | BE181: 87 | BF181: 115
AM182: CHARLESTON I | AN182: 234 | AO182: 32.78 | AP182: -79.92 | AQ182: 1.0 - MED | AR182: 1.27 | AS182: 0 | AT182: 8 | AU182: 16 | AV182: 25 | AW182: 35 | AX182: 46 | AY182: 59 | AZ182: 73 | BA182: 88 | BB182: 104 | BC182: 122 | BD182: 142 | BE182: 196 | BF182: 292
AM183: CHARLESTON I | AN183: 234 | AO183: 32.78 | AP183: -79.92 | AQ183: 1.5 - MED | AR183: 1.27 | AS183: 0 | AT183: 10 | AU183: 21 | AV183: 34 | AW183: 47 | AX183: 64 | AY183: 84 | AZ183: 107 | BA183: 132 | BB183: 160 | BC183: 193 | BD183: 231 | BE183: 340 | BF183: 551
AM184: CHARLESTON I | AN184: 234 | AO184: 32.78 | AP184: -79.92 | AQ184: 2.0 - MED | AR184: 1.27 | AS184: 0 | AT184: 12 | AU184: 24 | AV184: 40 | AW184: 59 | AX184: 82 | AY184: 112 | AZ184: 144 | BA184: 180 | BB184: 222 | BC184: 269 | BD184: 355 | BE184: 534 | BF184: 892
AM185: CHARLESTON I | AN185: 234 | AO185: 32.78 | AP185: -79.92 | AQ185: 2.5 - MED | AR185: 1.27 | AS185: 0 | AT185: 12 | AU185: 26 | AV185: 45 | AW185: 67 | AX185: 97 | AY185: 133 | AZ185: 173 | BA185: 217 | BB185: 268 | BC185: 329 | BD185: 449 | BE185: 682 | BF185: 1140
AM186: BOSTON | AN186: 235 | AO186: 42.35 | AP186: -71.05 | AQ186: 0.3 - MED | AR186: 0.79 | AS186: 0 | AT186: 5 | AU186: 10 | AV186: 14 | AW186: 18 | AX186: 23 | AY186: 29 | AZ186: 34 | BA186: 36 | BB186: 40 | BC186: 42 | BD186: 45 | BE186: 53 | BF186: 59
AM187: BOSTON | AN187: 235 | AO187: 42.35 | AP187: -71.05 | AQ187: 0.5 - MED | AR187: 0.79 | AS187: 0 | AT187: 6 | AU187: 12 | AV187: 17 | AW187: 23 | AX187: 29 | AY187: 36 | AZ187: 42 | BA187: 46 | BB187: 51 | BC187: 56 | BD187: 63 | BE187: 79 | BF187: 99
AM188: BOSTON | AN188: 235 | AO188: 42.35 | AP188: -71.05 | AQ188: 1.0 - MED | AR188: 0.79 | AS188: 0 | AT188: 8 | AU188: 17 | AV188: 26 | AW188: 36 | AX188: 49 | AY188: 63 | AZ188: 77 | BA188: 92 | BB188: 108 | BC188: 125 | BD188: 140 | BE188: 192 | BF188: 281
AM189: BOSTON | AN189: 235 | AO189: 42.35 | AP189: -71.05 | AQ189: 1.5 - MED | AR189: 0.79 | AS189: 0 | AT189: 11 | AU189: 23 | AV189: 35 | AW189: 51 | AX189: 69 | AY189: 89 | AZ189: 112 | BA189: 136 | BB189: 162 | BC189: 192 | BD189: 237 | BE189: 341 | BF189: 549
AM190: BOSTON | AN190: 235 | AO190: 42.35 | AP190: -71.05 | AQ190: 2.0 - MED | AR190: 0.79 | AS190: 0 | AT190: 14 | AU190: 27 | AV190: 44 | AW190: 67 | AX190: 92 | AY190: 123 | AZ190: 154 | BA190: 187 | BB190: 228 | BC190: 273 | BD190: 363 | BE190: 535 | BF190: 901
AM191: BOSTON | AN191: 235 | AO191: 42.35 | AP191: -71.05 | AQ191: 2.5 - MED | AR191: 0.79 | AS191: 0 | AT191: 15 | AU191: 29 | AV191: 48 | AW191: 74 | AX191: 105 | AY191: 143 | AZ191: 185 | BA191: 227 | BB191: 281 | BC191: 338 | BD191: 452 | BE191: 686 | BF191: 1132
AM192: LOS ANGELES | AN192: 245 | AO192: 33.72 | AP192: -118.27 | AQ192: 0.3 - MED | AR192: -1 | AS192: 0 | AT192: 2 | AU192: 4 | AV192: 7 | AW192: 10 | AX192: 13 | AY192: 16 | AZ192: 19 | BA192: 22 | BB192: 24 | BC192: 25 | BD192: 30 | BE192: 34 | BF192: 35
AM193: LOS ANGELES | AN193: 245 | AO193: 33.72 | AP193: -118.27 | AQ193: 0.5 - MED | AR193: -1 | AS193: 0 | AT193: 2 | AU193: 6 | AV193: 10 | AW193: 13 | AX193: 18 | AY193: 22 | AZ193: 27 | BA193: 31 | BB193: 35 | BC193: 39 | BD193: 46 | BE193: 57 | BF193: 74
AM194: LOS ANGELES | AN194: 245 | AO194: 33.72 | AP194: -118.27 | AQ194: 1.0 - MED | AR194: -1 | AS194: 0 | AT194: 4 | AU194: 9 | AV194: 14 | AW194: 22 | AX194: 31 | AY194: 42 | AZ194: 53 | BA194: 67 | BB194: 81 | BC194: 97 | BD194: 115 | BE194: 164 | BF194: 263
AM195: LOS ANGELES | AN195: 245 | AO195: 33.72 | AP195: -118.27 | AQ195: 1.5 - MED | AR195: -1 | AS195: 0 | AT195: 6 | AU195: 12 | AV195: 20 | AW195: 31 | AX195: 47 | AY195: 64 | AZ195: 84 | BA195: 108 | BB195: 134 | BC195: 166 | BD195: 202 | BE195: 305 | BF195: 526
AM196: LOS ANGELES | AN196: 245 | AO196: 33.72 | AP196: -118.27 | AQ196: 2.0 - MED | AR196: -1 | AS196: 0 | AT196: 7 | AU196: 14 | AV196: 25 | AW196: 42 | AX196: 65 | AY196: 91 | AZ196: 121 | BA196: 156 | BB196: 196 | BC196: 241 | BD196: 317 | BE196: 484 | BF196: 853
AM197: LOS ANGELES | AN197: 245 | AO197: 33.72 | AP197: -118.27 | AQ197: 2.5 - MED | AR197: -1 | AS197: 0 | AT197: 7 | AU197: 16 | AV197: 29 | AW197: 51 | AX197: 78 | AY197: 112 | AZ197: 151 | BA197: 195 | BB197: 243 | BC197: 302 | BD197: 422 | BE197: 655 | BF197: 1109
AM198: PENSACOLA | AN198: 246 | AO198: 30.4 | AP198: -87.21 | AQ198: 0.3 - MED | AR198: 0.31 | AS198: 0 | AT198: 3 | AU198: 8 | AV198: 12 | AW198: 16 | AX198: 21 | AY198: 25 | AZ198: 28 | BA198: 31 | BB198: 34 | BC198: 37 | BD198: 42 | BE198: 49 | BF198: 56
AM199: PENSACOLA | AN199: 246 | AO199: 30.4 | AP199: -87.21 | AQ199: 0.5 - MED | AR199: 0.31 | AS199: 0 | AT199: 4 | AU199: 10 | AV199: 15 | AW199: 20 | AX199: 26 | AY199: 31 | AZ199: 36 | BA199: 41 | BB199: 46 | BC199: 50 | BD199: 60 | BE199: 74 | BF199: 95
AM200: PENSACOLA | AN200: 246 | AO200: 30.4 | AP200: -87.21 | AQ200: 1.0 - MED | AR200: 0.31 | AS200: 0 | AT200: 6 | AU200: 14 | AV200: 21 | AW200: 30 | AX200: 40 | AY200: 52 | AZ200: 65 | BA200: 79 | BB200: 95 | BC200: 111 | BD200: 134 | BE200: 185 | BF200: 281
AM201: PENSACOLA | AN201: 246 | AO201: 30.4 | AP201: -87.21 | AQ201: 1.5 - MED | AR201: 0.31 | AS201: 0 | AT201: 8 | AU201: 18 | AV201: 28 | AW201: 40 | AX201: 56 | AY201: 75 | AZ201: 96 | BA201: 119 | BB201: 147 | BC201: 178 | BD201: 223 | BE201: 325 | BF201: 540
... 361 more rows

Sheet User Selections
A1: User should select or enter values in blue shaded boxes only
A4: State_Locid | B4: LA_MSY
A5: Name | B5: =INDEX(LOCIDdata[APTNAME],MATCH(State_Locid,LOCIDdata[state_loc],0)) -> LOUIS ARMSTRONG NEW ORLEANS INTERNATIONAL
B7: Relative to MSL | C7: Relative to MHHW
A8: Airport Elevation (ft) | B8: =INDEX(LOCIDdata[APTELEV],MATCH(State_Locid,LOCIDdata[state_loc],0)) -> 3.7 | C8: =B8-INDEX(LOCIDdata[EWLMHHW],MATCH(State_Locid,LOCIDdata[state_loc],0)) -> 3.18
A9: Lowest Runway Elevation (ft) | B9: =INDEX(LOCIDdata[RWYMINELEV],MATCH(State_Locid,LOCIDdata[state_loc],0)) -> -2.4 | C9: =B9-INDEX(LOCIDdata[EWLMHHW],MATCH(State_Locid,LOCIDdata[state_loc],0)) -> -2.92
A11: Historical extreme water levels (EWL) based on: | D11: EWL Curve Parameters | G11: Implied Water Levels above MHHW baseline based on historical data (ft)
A12: EWL_Station | B12: =INDEX(LOCIDdata[EWLNAME],MATCH(State_Locid,LOCIDdata[state_loc],0)) -> GRAND ISLE | D12: Location | E12: =INDEX(EWLdata[LOC],MATCH(EWL_Station,EWLdata[NAME],0)) -> 0.433 | G12: 100-yr event | H12: =(LOCATION+SCALE/SHAPE*((-1/LN(1-0.01))^SHAPE-1))*Feet_per_meter -> 6.325028194
A13: EWL_Distance (miles) | B13: =INDEX(LOCIDdata[EWLDIST],MATCH(State_Locid,LOCIDdata[state_loc],0)) -> 53.58 | D13: Scale | E13: =INDEX(EWLdata[SCALE],MATCH(EWL_Station,EWLdata[NAME],0)) -> 0.168 | G13: 50-yr event | H13: =(LOCATION+SCALE/SHAPE*((-1/LN(1-0.02))^SHAPE-1))*Feet_per_meter -> 5.156169034
D14: Shape | E14: =INDEX(EWLdata[SHAPE],MATCH(EWL_Station,EWLdata[NAME],0)) -> 0.261 | G14: 10-yr event | H14: =(LOCATION+SCALE/SHAPE*((-1/LN(1-0.1))^SHAPE-1))*Feet_per_meter -> 3.108524162
G15: 1.01-yr event | H15: =(LOCATION+SCALE/SHAPE*((-1/LN(1-0.99))^SHAPE-1))*Feet_per_meter -> 0.7264112293
A16: Projected relative sea levels (RSL) based on:
A17: RSL_Station | B17: =INDEX(LOCIDdata[RSLNAME],MATCH(State_Locid,LOCIDdata[state_loc],0)) -> grid_29.5_269.5 | D17: Click here for map
A18: RSL_Distance (miles) | B18: =INDEX(LOCIDdata[RSLDIST],MATCH(State_Locid,LOCIDdata[state_loc],0)) -> 37
A21: RCP_Scenario | B21: 8.5 | D21: RCP stands for Representative Concentration Pathway:
D22: There are 4 different RCP scenarios, each one representing different assumptions about the future path of global greenhouse gas emissions reductions.
D23: Sea level rise projections for 3 of the 4 scenarios are available for this ACRP project analysis of extreme water levels.
D24: RCP 2.6 represents a "low emissions" scenario where significant global efforts are made to curb emissions.
D25: RCP 8.5 represents a "high emissions" scenario and assumes little or no successful global efforts to mitigate greenhouse gases.
D26: RCP 4.5 represents an intermediate case.
D27: Choice of RCP scenario determines Exceedance Probabilities in RSLtable projections shown below.
A32: Analysis_Start_Yr | B32: 2020 | D32: Discounted benefit-cost calculations reflect time horizon between Analysis_Start_Yr and Analysis_End_Yr.
A33: Analysis_End_Yr | B33: 2099 | D33: Maximum time horizon is 2020 - 2099. User may wish to consider a time horizon matching the expected/remaining life of current or new assets.
A35: Discount_Rate | B35: 0.07 | D35: Traditional FAA guidance (based on Office of Management and Budget directives) suggests using a 7% real discount rate for standard investment projects.
D36: But see discussion in Handbook for possible use of a lower rate that may be appropriate for climate resilience projects with a long time horizon.
A38: Mitigation_Project_Type | B38: Simplified | D38: Simplified Mitigation Project assumes upfront construction costs, then constant annual maintenance or rehab costs according to schedule below.
A39: Project_Start_Yr | B39: 2020 | D39: To enter user-specified costs year-by-year instead:
A40: Mitigation_Start_Yr | B40: 2021
D41: Project_Start_Yr signifies first year of construction; this can be after Analysis_Start_Yr if considering a delayed project start.
D42: Mitigation_Start_Yr signifies first year of damage mitigation.
A43: Simplified Mitigation Project Costs
A44: Construction_Cost | B44: 5000000 | D44: If using Simplified Mitigation Project:
A45: Annual_Maint_Cost | B45: 500000 | D45: -- Construction_Cost is spread evenly between Project_Start_Yr and Mitigation_Start_Yr.
A46: Rehab_Interval_Yrs | B46: 25 | D46: -- Final Rehab_Cost before end of analysis time horizon is prorated.
A47: Rehab_Cost | B47: 2000000
A50: Flooding Event Damage Costs
A51: EWL above MHHW (ft) | B51: Without Project | C51: With Project
A52: 0-1 | B52: 0 | C52: 0
A53: 1-2 | B53: 0 | C53: 0
A54: 2-3 | B54: 250000 | C54: 0
A55: 3-4 | B55: 500000 | C55: 0
A56: 4-5 | B56: 1500000 | C56: 300000
A57: 5-6 | B57: 3000000 | C57: 600000
A58: 6-7 | B58: 5000000 | C58: 1000000
A59: 7-8 | B59: 10000000 | C59: 2000000
A60: 8-9 | B60: 10000000 | C60: 2000000
A61: 9+ | B61: 10000000 | C61: 2000000
B67: Enter any positive integer
A68: Random_Seed | B68: 123456 | D68: Random_Seed determines the specific sequence of random numbers generated for the Monte Carlo simulations.
D69: By keeping the seed number fixed, you can assess the effects of changing cost or discount parameters without affecting the extreme water level projections themselves.
A70: Lehmer_Constant | B70: 48271 | D70: Do not change Lehmer_Constant; but you may change Random_Seed at any time to generate a new set of Monte Carlo simulation projections.
A71: Feet_per_meter | B71: 3.281
A113: DO NOT EDIT BELOW THIS ROW
D118: RSLtable
A119: GMSL Scenario | B119: RSL Label | C119: RSL in 2010 (cm) | D119: Exceedance Prob | E119: RSL in 2020 (cm) | F119: RSL in 2030 (cm) | G119: RSL in 2040 (cm) | H119: RSL in 2050 (cm) | I119: RSL in 2060 (cm) | J119: RSL in 2070 (cm) | K119: RSL in 2080 (cm) | L119: RSL in 2090 (cm) | M119: RSL in 2100 (cm)
A120: Low | B120: 0.3 - MED | C120: =SUMPRODUCT((RSLdata[RSL2010])*(RSLdata[SITE]=RSL_Station)*(RSLdata[SCENARIO]='User Selections'!$B120)) -> 11 | D120: =HLOOKUP(RCP_Scenario,GMSLtable,2,FALSE) -> 1 | E120: =SUMPRODUCT((RSLdata[RSL2020])*(RSLdata[SITE]=RSL_Station)*(RSLdata[SCENARIO]='User Selections'!$B120))-$C120 -> 11 | F120: =SUMPRODUCT((RSLdata[RSL2030])*(RSLdata[SITE]=RSL_Station)*(RSLdata[SCENARIO]='User Selections'!$B120))-$C120 -> 23 | G120: =SUMPRODUCT((RSLdata[RSL2040])*(RSLdata[SITE]=RSL_Station)*(RSLdata[SCENARIO]='User Selections'!$B120))-$C120 -> 35 | H120: =SUMPRODUCT((RSLdata[RSL2050])*(RSLdata[SITE]=RSL_Station)*(RSLdata[SCENARIO]='User Selections'!$B120))-$C120 -> 47 | I120: =SUMPRODUCT((RSLdata[RSL2060])*(RSLdata[SITE]=RSL_Station)*(RSLdata[SCENARIO]='User Selections'!$B120))-$C120 -> 59 | J120: =SUMPRODUCT((RSLdata[RSL2070])*(RSLdata[SITE]=RSL_Station)*(RSLdata[SCENARIO]='User Selections'!$B120))-$C120 -> 69 | K120: =SUMPRODUCT((RSLdata[RSL2080])*(RSLdata[SITE]=RSL_Station)*(RSLdata[SCENARIO]='User Selections'!$B120))-$C120 -> 80 | L120: =SUMPRODUCT((RSLdata[RSL2090])*(RSLdata[SITE]=RSL_Station)*(RSLdata[SCENARIO]='User Selections'!$B120))-$C120 -> 90 | M120: =SUMPRODUCT((RSLdata[RSL2100])*(RSLdata[SITE]=RSL_Station)*(RSLdata[SCENARIO]='User Selections'!$B120))-$C120 -> 101
A121: Intermediate-Low | B121: 0.5 - MED | C121: =SUMPRODUCT((RSLdata[RSL2010])*(RSLdata[SITE]=RSL_Station)*(RSLdata[SCENARIO]='User Selections'!$B121)) -> 12 | D121: =HLOOKUP(RCP_Scenario,GMSLtable,3,FALSE) -> 0.96 | E121: =SUMPRODUCT((RSLdata[RSL2020])*(RSLdata[SITE]=RSL_Station)*(RSLdata[SCENARIO]='User Selections'!$B121))-$C121 -> 12 | F121: =SUMPRODUCT((RSLdata[RSL2030])*(RSLdata[SITE]=RSL_Station)*(RSLdata[SCENARIO]='User Selections'!$B121))-$C121 -> 25 | G121: =SUMPRODUCT((RSLdata[RSL2040])*(RSLdata[SITE]=RSL_Station)*(RSLdata[SCENARIO]='User Selections'!$B121))-$C121 -> 38 | H121: =SUMPRODUCT((RSLdata[RSL2050])*(RSLdata[SITE]=RSL_Station)*(RSLdata[SCENARIO]='User Selections'!$B121))-$C121 -> 51 | I121: =SUMPRODUCT((RSLdata[RSL2060])*(RSLdata[SITE]=RSL_Station)*(RSLdata[SCENARIO]='User Selections'!$B121))-$C121 -> 64 | J121: =SUMPRODUCT((RSLdata[RSL2070])*(RSLdata[SITE]=RSL_Station)*(RSLdata[SCENARIO]='User Selections'!$B121))-$C121 -> 76 | K121: =SUMPRODUCT((RSLdata[RSL2080])*(RSLdata[SITE]=RSL_Station)*(RSLdata[SCENARIO]='User Selections'!$B121))-$C121 -> 89 | L121: =SUMPRODUCT((RSLdata[RSL2090])*(RSLdata[SITE]=RSL_Station)*(RSLdata[SCENARIO]='User Selections'!$B121))-$C121 -> 101 | M121: =SUMPRODUCT((RSLdata[RSL2100])*(RSLdata[SITE]=RSL_Station)*(RSLdata[SCENARIO]='User Selections'!$B121))-$C121 -> 112
A122: Intermediate | B122: 1.0 - MED | C122: =SUMPRODUCT((RSLdata[RSL2010])*(RSLdata[SITE]=RSL_Station)*(RSLdata[SCENARIO]='User Selections'!$B122)) -> 14 | D122: =HLOOKUP(RCP_Scenario,GMSLtable,4,FALSE) -> 0.17 | E122: =SUMPRODUCT((RSLdata[RSL2020])*(RSLdata[SITE]=RSL_Station)*(RSLdata[SCENARIO]='User Selections'!$B122))-$C122 -> 14 | F122: =SUMPRODUCT((RSLdata[RSL2030])*(RSLdata[SITE]=RSL_Station)*(RSLdata[SCENARIO]='User Selections'!$B122))-$C122 -> 29 | G122: =SUMPRODUCT((RSLdata[RSL2040])*(RSLdata[SITE]=RSL_Station)*(RSLdata[SCENARIO]='User Selections'!$B122))-$C122 -> 46 | H122: =SUMPRODUCT((RSLdata[RSL2050])*(RSLdata[SITE]=RSL_Station)*(RSLdata[SCENARIO]='User Selections'!$B122))-$C122 -> 64 | I122: =SUMPRODUCT((RSLdata[RSL2060])*(RSLdata[SITE]=RSL_Station)*(RSLdata[SCENARIO]='User Selections'!$B122))-$C122 -> 84 | J122: =SUMPRODUCT((RSLdata[RSL2070])*(RSLdata[SITE]=RSL_Station)*(RSLdata[SCENARIO]='User Selections'!$B122))-$C122 -> 103 | K122: =SUMPRODUCT((RSLdata[RSL2080])*(RSLdata[SITE]=RSL_Station)*(RSLdata[SCENARIO]='User Selections'!$B122))-$C122 -> 125 | L122: =SUMPRODUCT((RSLdata[RSL2090])*(RSLdata[SITE]=RSL_Station)*(RSLdata[SCENARIO]='User Selections'!$B122))-$C122 -> 148 | M122: =SUMPRODUCT((RSLdata[RSL2100])*(RSLdata[SITE]=RSL_Station)*(RSLdata[SCENARIO]='User Selections'!$B122))-$C122 -> 172
A123: Intermediate-High | B123: 1.5 - MED | C123: =SUMPRODUCT((RSLdata[RSL2010])*(RSLdata[SITE]=RSL_Station)*(RSLdata[SCENARIO]='User Selections'!$B123)) -> 17 | D123: =HLOOKUP(RCP_Scenario,GMSLtable,5,FALSE) -> 0.013 | E123: =SUMPRODUCT((RSLdata[RSL2020])*(RSLdata[SITE]=RSL_Station)*(RSLdata[SCENARIO]='User Selections'!$B123))-$C123 -> 15 | F123: =SUMPRODUCT((RSLdata[RSL2030])*(RSLdata[SITE]=RSL_Station)*(RSLdata[SCENARIO]='User Selections'!$B123))-$C123 -> 33 | G123: =SUMPRODUCT((RSLdata[RSL2040])*(RSLdata[SITE]=RSL_Station)*(RSLdata[SCENARIO]='User Selections'!$B123))-$C123 -> 53 | H123: =SUMPRODUCT((RSLdata[RSL2050])*(RSLdata[SITE]=RSL_Station)*(RSLdata[SCENARIO]='User Selections'!$B123))-$C123 -> 76 | I123: =SUMPRODUCT((RSLdata[RSL2060])*(RSLdata[SITE]=RSL_Station)*(RSLdata[SCENARIO]='User Selections'!$B123))-$C123 -> 103 | J123: =SUMPRODUCT((RSLdata[RSL2070])*(RSLdata[SITE]=RSL_Station)*(RSLdata[SCENARIO]='User Selections'!$B123))-$C123 -> 131 | K123: =SUMPRODUCT((RSLdata[RSL2080])*(RSLdata[SITE]=RSL_Station)*(RSLdata[SCENARIO]='User Selections'!$B123))-$C123 -> 162 | L123: =SUMPRODUCT((RSLdata[RSL2090])*(RSLdata[SITE]=RSL_Station)*(RSLdata[SCENARIO]='User Selections'!$B123))-$C123 -> 197 | M123: =SUMPRODUCT((RSLdata[RSL2100])*(RSLdata[SITE]=RSL_Station)*(RSLdata[SCENARIO]='User Selections'!$B123))-$C123 -> 235
A124: High | B124: 2.0 - MED | C124: =SUMPRODUCT((RSLdata[RSL2010])*(RSLdata[SITE]=RSL_Station)*(RSLdata[SCENARIO]='User Selections'!$B124)) -> 19 | D124: =HLOOKUP(RCP_Scenario,GMSLtable,6,FALSE) -> 0.003 | E124: =SUMPRODUCT((RSLdata[RSL2020])*(RSLdata[SITE]=RSL_Station)*(RSLdata[SCENARIO]='User Selections'!$B124))-$C124 -> 17 | F124: =SUMPRODUCT((RSLdata[RSL2030])*(RSLdata[SITE]=RSL_Station)*(RSLdata[SCENARIO]='User Selections'!$B124))-$C124 -> 38 | G124: =SUMPRODUCT((RSLdata[RSL2040])*(RSLdata[SITE]=RSL_Station)*(RSLdata[SCENARIO]='User Selections'!$B124))-$C124 -> 61 | H124: =SUMPRODUCT((RSLdata[RSL2050])*(RSLdata[SITE]=RSL_Station)*(RSLdata[SCENARIO]='User Selections'!$B124))-$C124 -> 92 | I124: =SUMPRODUCT((RSLdata[RSL2060])*(RSLdata[SITE]=RSL_Station)*(RSLdata[SCENARIO]='User Selections'!$B124))-$C124 -> 127 | J124: =SUMPRODUCT((RSLdata[RSL2070])*(RSLdata[SITE]=RSL_Station)*(RSLdata[SCENARIO]='User Selections'!$B124))-$C124 -> 164 | K124: =SUMPRODUCT((RSLdata[RSL2080])*(RSLdata[SITE]=RSL_Station)*(RSLdata[SCENARIO]='User Selections'!$B124))-$C124 -> 206 | L124: =SUMPRODUCT((RSLdata[RSL2090])*(RSLdata[SITE]=RSL_Station)*(RSLdata[SCENARIO]='User Selections'!$B124))-$C124 -> 253 | M124: =SUMPRODUCT((RSLdata[RSL2100])*(RSLdata[SITE]=RSL_Station)*(RSLdata[SCENARIO]='User Selections'!$B124))-$C124 -> 303
A125: Extreme | B125: 2.5 - MED | C125: =SUMPRODUCT((RSLdata[RSL2010])*(RSLdata[SITE]=RSL_Station)*(RSLdata[SCENARIO]='User Selections'!$B125)) -> 19 | D125: =HLOOKUP(RCP_Scenario,GMSLtable,7,FALSE) -> 0.001 | E125: =SUMPRODUCT((RSLdata[RSL2020])*(RSLdata[SITE]=RSL_Station)*(RSLdata[SCENARIO]='User Selections'!$B125))-$C125 -> 17 | F125: =SUMPRODUCT((RSLdata[RSL2030])*(RSLdata[SITE]=RSL_Station)*(RSLdata[SCENARIO]='User Selections'!$B125))-$C125 -> 42 | G125: =SUMPRODUCT((RSLdata[RSL2040])*(RSLdata[SITE]=RSL_Station)*(RSLdata[SCENARIO]='User Selections'!$B125))-$C125 -> 69 | H125: =SUMPRODUCT((RSLdata[RSL2050])*(RSLdata[SITE]=RSL_Station)*(RSLdata[SCENARIO]='User Selections'!$B125))-$C125 -> 103 | I125: =SUMPRODUCT((RSLdata[RSL2060])*(RSLdata[SITE]=RSL_Station)*(RSLdata[SCENARIO]='User Selections'!$B125))-$C125 -> 145 | J125: =SUMPRODUCT((RSLdata[RSL2070])*(RSLdata[SITE]=RSL_Station)*(RSLdata[SCENARIO]='User Selections'!$B125))-$C125 -> 191 | K125: =SUMPRODUCT((RSLdata[RSL2080])*(RSLdata[SITE]=RSL_Station)*(RSLdata[SCENARIO]='User Selections'!$B125))-$C125 -> 242 | L125: =SUMPRODUCT((RSLdata[RSL2090])*(RSLdata[SITE]=RSL_Station)*(RSLdata[SCENARIO]='User Selections'!$B125))-$C125 -> 301 | M125: =SUMPRODUCT((RSLdata[RSL2100])*(RSLdata[SITE]=RSL_Station)*(RSLdata[SCENARIO]='User Selections'!$B125))-$C125 -> 365
B126: Notes: | C126: 2020 and beyond adjusted to 2010 baseline (since EWL curves are based on data through 2010)
C127: For RCP 2.6 and 4.5, we will assume 0 RSL for prob =100% and then interpolate as usual
D129: RSLdiff
D130: Exceedance Prob | E130: 2020 | F130: 2030 | G130: 2040 | H130: 2050 | I130: 2060 | J130: 2070 | K130: 2080 | L130: 2090 | M130: 2100
D131: =D120 -> 1 | E131: =E121-E120 -> 1 | F131: 2 | G131: 3 | H131: 4 | I131: 5 | J131: 7 | K131: 9 | L131: 11 | M131: 11
D132: 0.96 | E132: =E122-E121 -> 2 | F132: 4 | G132: 8 | H132: 13 | I132: 20 | J132: 27 | K132: 36 | L132: 47 | M132: 60
D133: 0.17 | E133: =E123-E122 -> 1 | F133: 4 | G133: 7 | H133: 12 | I133: 19 | J133: 28 | K133: 37 | L133: 49 | M133: 63
D134: 0.013 | E134: =E124-E123 -> 2 | F134: 5 | G134: 8 | H134: 16 | I134: 24 | J134: 33 | K134: 44 | L134: 56 | M134: 68
D135: 0.003 | E135: =E125-E124 -> 0 | F135: 4 | G135: 8 | H135: 11 | I135: 18 | J135: 27 | K135: 36 | L135: 48 | M135: 62
D136: 0.001
A140: Simulations | B140: Random # from seed | I140: Interpolated Values | AB140: Random numbers from seed
B141: Lehmer RNG: | C141: https://stackoverflow.com/questions/33161114/setting-seed-for-excel-random-number | I141: 2 | J141: 3 | K141: 4 | L141: 5 | M141: 6 | N141: 7 | O141: 8 | P141: 9 | Q141: 10 | AB141: 2020 | AC141: 2021 | AD141: 2022 | AE141: 2023 | AF141: 2024 | AG141: 2025 | AH141: 2026 | AI141: 2027 | AJ141: 2028 | AK141: 2029 | AL141: 2030 | AM141: 2031 | AN141: 2032 | AO141: 2033 | AP141: 2034 | AQ141: 2035 | AR141: 2036 | AS141: 2037 | AT141: 2038 | AU141: 2039 | AV141: 2040 | AW141: 2041 | AX141: 2042 | AY141: 2043 | AZ141: 2044 | BA141: 2045 | BB141: 2046 | BC141: 2047 | BD141: 2048 | BE141: 2049 | BF141: 2050 | BG141: 2051 | BH141: 2052 | BI141: 2053 | BJ141: 2054 | BK141: 2055 | BL141: 2056 | BM141: 2057 | BN141: 2058 | BO141: 2059 | BP141: 2060 | BQ141: 2061 | BR141: 2062 | BS141: 2063 | BT141: 2064 | BU141: 2065 | BV141: 2066 | BW141: 2067 | BX141: 2068 | BY141: 2069 | BZ141: 2070 | CA141: 2071 | CB141: 2072 | CC141: 2073 | CD141: 2074 | CE141: 2075 | CF141: 2076 | CG141: 2077 | CH141: 2078 | CI141: 2079 | CJ141: 2080 | CK141: 2081 | CL141: 2082 | CM141: 2083 | CN141: 2084 | CO141: 2085 | CP141: 2086 | CQ141: 2087 | CR141: 2088 | CS141: 2089 | CT141: 2090 | CU141: 2091 | CV141: 2092 | CW141: 2093 | CX141: 2094 | CY141: 2095 | CZ141: 2096 | DA141: 2097 | DB141: 2098 | DC141: 2099
A142: Sim # | B142: =Random_Seed -> 123456 | C142: GMSL Prob | D142: upper row | E142: lower row | F142: upper value | G142: lower value | H142: interp share | I142: RSL2020 | J142: RSL2030 | K142: RSL2040 | L142: RSL2050 | M142: RSL2060 | N142: RSL2070 | O142: RSL2080 | P142: RSL2090 | Q142: RSL2100 | R142: dif2020s | S142: dif2030s | T142: dif2040s | U142: dif2050s | V142: dif2060s | W142: dif2070s | X142: dif2080s | Y142: dif2090s | Z142: dif2100 | AB142: =B5142 -> 280182052 | AC142: =AB5142 -> 904354281 | AD142: 215004544 | AE142: 1753056372 | AF142: 1191452627 | AG142: 790814651 | AH142: 595807259 | AI142: 1906504019 | AJ142: 1807861660 | AK142: 1071400595 | AL142: 663679696 | AM142: 352466749 | AN142: 214265806 | AO142: 2039041389 | AP142: 1082398124 | AQ142: 770046630 | AR142: 1411439981 | AS142: 874584079 | AT142: 655920528 | AU142: 1560597722 | AV142: 679985495 | AW142: 810931562 | AX142: 1844471730 | AY142: 981669121 | AZ142: 729299797 | BA142: 1019838433 | BB142: 563069828 | BC142: 1848362188 | BD142: 2064522350 | BE142: 1004318880 | BF142: 62535247 | BG142: 53812612 | BH142: 156134980 | BI142: =BH5142 -> 1602971294 | BJ142: 1214024332 | BK142: 394021506 | BL142: 1553563351 | BM142: 1022976017 | BN142: 1460644461 | BO142: 1541312052 | BP142: 373836305 | BQ142: 811054321 | BR142: 351801497 | BS142: 621243576 | BT142: 1508627907 | BU142: 270054549 | BV142: 1370486764 | BW142: 504431848 | BX142: 949168753 | BY142: 2088577784 | BZ142: 584460782 | CA142: 341080745 | CB142: 1235489418 | CC142: 1436528951 | CD142: 532608702 | CE142: 1030998985 | CF142: 1259215485 | CG142: 485218554 | CH142: 387019460 | CI142: 860896776 | CJ142: 1651428971 | CK142: 2058746670 | CL142: 1127602375 | CM142: 155798626 | CN142: 741513271 | CO142: 681879026 | CP142: =CO5142 -> 2132737294 | CQ142: 1136228586 | CR142: 1126584339 | CS142: 312088685 | CT142: 259433158 | CU142: 1665358830 | CV142: 1688026718 | CW142: 538685240 | CX142: 892076302 | CY142: 506694613 | CZ142: 137788192 | DA142: 146958748 | DB142: 363798758 | DC142: 1536169155
A143: 1 | B143: =MOD(ROUND(Lehmer_Constant*B142,0),2^31-1) -> 1664377282 | C143: =B143/(2^31-1) -> 0.7750360681 | D143: =IFERROR(MATCH($C143,$D$120:$D$125,-1),0) -> 2 | E143: =IFERROR(IF($C143=INDEX($D$120:$D$125,D143),D143,MIN(D143+1,6)),1) -> 3 | F143: =IFERROR(INDEX($D$120:$D$125,D143,1),1) -> 0.96 | G143: =INDEX($D$120:$D$125,E143,1) -> 0.17 | H143: =(C143-F143)/(G143-F143) -> 0.2341315594 | I143: =IF($D143>0,INDEX(RSLtable,$D143,I$141)+IF($E143>$D143,$H143*INDEX(RSLdiff,$D143,I$141),0),$H143*INDEX(RSLtable,$E143,I$141)) -> 12.46826312 | J143: 25.93652624 | K143: 39.87305248 | L143: 54.04371027 | M143: 68.68263119 | N143: 82.3215521 | O143: 97.42873614 | P143: 112.0041833 | Q143: 126.0478936 | R143: =J143-I143 -> 13.46826312 | S143: =K143-J143 -> 13.93652624 | T143: =L143-K143 -> 14.1706578 | U143: =M143-L143 -> 14.63892092 | V143: =N143-M143 -> 13.63892092 | W143: =O143-N143 -> 15.10718403 | X143: =P143-O143 -> 14.57544715 | Y143: =Q143-P143 -> 14.04371027 | Z143: 0 | AB143: =MOD(ROUND(Lehmer_Constant*AB142,0),2^31-1) -> 1963306933 | AC143: =MOD(ROUND(Lehmer_Constant*AC142,0),2^31-1) -> 37921935 | AD143: =MOD(ROUND(Lehmer_Constant*AD142,0),2^31-1) -> 1843361120 | AE143: =MOD(ROUND(Lehmer_Constant*AE142,0),2^31-1) -> 191022777 | AF143: =MOD(ROUND(Lehmer_Constant*AF142,0),2^31-1) -> 850207610 | AG143: =MOD(ROUND(Lehmer_Constant*AG142,0),2^31-1) -> 1892192996 | AH143: =MOD(ROUND(Lehmer_Constant*AH142,0),2^31-1) -> 1111198565 | AI143: =MOD(ROUND(Lehmer_Constant*AI142,0),2^31-1) -> 591292611 | AJ143: =MOD(ROUND(Lehmer_Constant*AJ142,0),2^31-1) -> 2144710368 | AK143: =MOD(ROUND(Lehmer_Constant*AK142,0),2^31-1) -> 1876934191 | AL143: =MOD(ROUND(Lehmer_Constant*AL142,0),2^31-1) -> 321559670 | AM143: =MOD(ROUND(Lehmer_Constant*AM142,0),2^31-1) -> 1556989445 | AN143: =MOD(ROUND(Lehmer_Constant*AN142,0),2^31-1) -> 543477474 | AO143: =MOD(ROUND(Lehmer_Constant*AO142,0),2^31-1) -> 948895468 | AP143: =MOD(ROUND(Lehmer_Constant*AP142,0),2^31-1) -> 162712094 | AQ143: =MOD(ROUND(Lehmer_Constant*AQ142,0),2^31-1) -> 126430807 | AR143: =MOD(ROUND(Lehmer_Constant*AR142,0),2^31-1) -> 553138129 | AS143: =MOD(ROUND(Lehmer_Constant*AS142,0),2^31-1) -> 1814544683 | AT143: =MOD(ROUND(Lehmer_Constant*AT142,0),2^31-1) -> 1588399367 | AU143: =MOD(ROUND(Lehmer_Constant*AU142,0),2^31-1) -> 33785549 | AV143: =MOD(ROUND(Lehmer_Constant*AV142,0),2^31-1) -> 1439768397 | AW143: =MOD(ROUND(Lehmer_Constant*AW142,0),2^31-1) -> 145511786 | AX143: =MOD(ROUND(Lehmer_Constant*AX142,0),2^31-1) -> 1970357857 | AY143: =MOD(ROUND(Lehmer_Constant*AY142,0),2^31-1) -> 1923468736 | AZ143: =MOD(ROUND(Lehmer_Constant*AZ142,0),2^31-1) -> 331075716 | BA143: =MOD(ROUND(Lehmer_Constant*BA142,0),2^31-1) -> 1853359162 | BB143: =MOD(ROUND(Lehmer_Constant*BB142,0),2^31-1) -> 1390630956 | BC143: =MOD(ROUND(Lehmer_Constant*BC142,0),2^31-1) -> 788095039 | BD143: =MOD(ROUND(Lehmer_Constant*BD142,0),2^31-1) -> 432234168 | BE143: =MOD(ROUND(Lehmer_Constant*BE142,0),2^31-1) -> 33325455 | BF143: =MOD(ROUND(Lehmer_Constant*BF142,0),2^31-1) -> 1424383902 | BG143: =MOD(ROUND(Lehmer_Constant*BG142,0),2^31-1) -> 1280864629 | BH143: =MOD(ROUND(Lehmer_Constant*BH142,0),2^31-1) -> 1271502257 | BI143: =MOD(ROUND(Lehmer_Constant*BI142,0),2^31-1) -> 1044047617 | BJ143: =MOD(ROUND(Lehmer_Constant*BJ142,0),2^31-1) -> 1634770636 | BK143: =MOD(ROUND(Lehmer_Constant*BK142,0),2^31-1) -> 1696938294 | BL143: =MOD(ROUND(Lehmer_Constant*BL142,0),2^31-1) -> 1927562881 | BM143: =MOD(ROUND(Lehmer_Constant*BM142,0),2^31-1) -> 836337489 | BN143: =MOD(ROUND(Lehmer_Constant*BN142,0),2^31-1) -> 585678627 | BO143: =MOD(ROUND(Lehmer_Constant*BO142,0),2^31-1) -> 1103111777 | BP143: =MOD(ROUND(Lehmer_Constant*BP142,0),2^31-1) -> 147192914 | BQ143: =MOD(ROUND(Lehmer_Constant*BQ142,0),2^31-1) -> 1776244181 | BR143: =MOD(ROUND(Lehmer_Constant*BR142,0),2^31-1) -> 1656864858 | BS143: =MOD(ROUND(Lehmer_Constant*BS142,0),2^31-1) -> 587010388 | BT143: =MOD(ROUND(Lehmer_Constant*BT142,0),2^31-1) -> 1807229027 | BU143: =MOD(ROUND(Lehmer_Constant*BU142,0),2^31-1) -> 577397489 | BV143: =MOD(ROUND(Lehmer_Constant*BV142,0),2^31-1) -> 1532839209 | BW143: =MOD(ROUND(Lehmer_Constant*BW142,0),2^31-1) -> 1260145122 | BX143: =MOD(ROUND(Lehmer_Constant*BX142,0),2^31-1) -> 761267318 | BY143: =MOD(ROUND(Lehmer_Constant*BY142,0),2^31-1) -> 1970919402 | BZ143: =MOD(ROUND(Lehmer_Constant*BZ142,0),2^31-1) -> 1013737283 | CA143: =MOD(ROUND(Lehmer_Constant*CA142,0),2^31-1) -> 1699003993 | CB143: =MOD(ROUND(Lehmer_Constant*CB142,0),2^31-1) -> 541335441 | CC143: =MOD(ROUND(Lehmer_Constant*CC142,0),2^31-1) -> 442032091 | CD143: =MOD(ROUND(Lehmer_Constant*CD142,0),2^31-1) -> 2027916005 | CE143: =MOD(ROUND(Lehmer_Constant*CE142,0),2^31-1) -> 1565969357 | CF143: =MOD(ROUND(Lehmer_Constant*CF142,0),2^31-1) -> 1213531747 | CG143: =MOD(ROUND(Lehmer_Constant*CG142,0),2^31-1) -> 1528165952 | CH143: =MOD(ROUND(Lehmer_Constant*CH142,0),2^31-1) -> 856108407 | CI143: =MOD(ROUND(Lehmer_Constant*CI142,0),2^31-1) -> 392221199 | CJ143: =MOD(ROUND(Lehmer_Constant*CJ142,0),2^31-1) -> 1534882501 | CK143: =MOD(ROUND(Lehmer_Constant*CK142,0),2^31-1) -> 807258998 | CL143: =MOD(ROUND(Lehmer_Constant*CL142,0),2^31-1) -> 373726763 | CM143: =MOD(ROUND(Lehmer_Constant*CM142,0),2^31-1) -> 67743852 | CN143: =MOD(ROUND(Lehmer_Constant*CN142,0),2^31-1) -> 1477159892 | CO143: =MOD(ROUND(Lehmer_Constant*CO142,0),2^31-1) -> 500606477 | CP143: =MOD(ROUND(Lehmer_Constant*CP142,0),2^31-1) -> 1143365141 | CQ143: =MOD(ROUND(Lehmer_Constant*CQ142,0),2^31-1) -> 157730426 | CR143: =MOD(ROUND(Lehmer_Constant*CR142,0),2^31-1) -> 624234888 | CS143: =MOD(ROUND(Lehmer_Constant*CS142,0),2^31-1) -> 235129930 | CT143: =MOD(ROUND(Lehmer_Constant*CT142,0),2^31-1) -> 1120824161 | CU143: =MOD(ROUND(Lehmer_Constant*CU142,0),2^31-1) -> 1780724779 | CV143: =MOD(ROUND(Lehmer_Constant*CV142,0),2^31-1) -> 765686457 | CW143: =MOD(ROUND(Lehmer_Constant*CW142,0),2^31-1) -> 1143222164 | CX143: =MOD(ROUND(Lehmer_Constant*CX142,0),2^31-1) -> 73084198 | CY143: =MOD(ROUND(Lehmer_Constant*CY142,0),2^31-1) -> 964408440 | CZ143: =MOD(ROUND(Lehmer_Constant*CZ142,0),2^31-1) -> 416961273 | DA143: =MOD(ROUND(Lehmer_Constant*DA142,0),2^31-1) -> 707238667 | DB143: =MOD(ROUND(Lehmer_Constant*DB142,0),2^31-1) -> 956065899 | DC143: =MOD(ROUND(Lehmer_Constant*DC142,0),2^31-1) -> 1958433742
A144: 2 | B144: 1645061505 | C144: 0.7660414585 | D144: 2 | E144: 3 | F144: 0.96 | G144: 0.17 | H144: 0.2455171412 | I144: 12.49103428 | J144: 25.98206856 | K144: 39.96413713 | L144: 54.19172284 | M144: 68.91034282 | N144: 82.62896281 | O144: 97.83861708 | P144: 112.5393056 | Q144: 126.7310285 | R144: 13.49103428 | S144: 13.98206856 | T144: 14.22758571 | U144: 14.71861999 | V144: 13.71861999 | W144: 15.20965427 | X144: 14.70068855 | Y144: 14.19172284 | Z144: 0 | AB144: 188137086 | AC144: 873657141 | AD144: 2047193722 | AE144: 1713171996 | AF144: 1959048140 | AG144: 1273635712 | AH144: 966879996 | AI144: 80473304 | AJ144: 1422519152 | AK144: 1302750478 | AL144: 2142513701 | AM144: 1952305536 | AN144: 540915702 | AO144: 454428965 | AP144: 927792395 | AQ144: 1940443570 | AR144: 866441808 | AS144: 470882904 | AT144: 2017195616 | AU144: 922147706 | AV144: 47023726 | AW144: 1727896316 | AX144: 1240873264 | AY144: 1303877411 | AZ144: 1930069709 | BA144: 1478858529 | BB144: 1103039150 | BC144: 1610304611 | BD144: 1571892923 | BE144: 187786702 | BF144: 451407443 | BG144: 414825682 | BH144: 1602816387 | BI144: 76292411 | BJ144: 579277694 | BK144: 1439642153 | BL144: 1363855182 | BM144: 301851566 | BN144: 1818274809 | BO144: 1451560202 | BP144: 1273247418 | BQ144: 650770929 | BR144: 1937578944 | BS144: 1679200630 | BT144: 1671653883 | BU144: 1511420753 | BV144: 132400254 | BW144: 990882787 | BX144: 1542023361 | BY144: 429924548 | BZ144: 1550007151 | CA144: 221267173 | CB144: 222055815 | CC144: 2081031716 | CD144: 786396154 | CE144: 1629940994 | CF144: 1479520218 | CG144: 35394542 | CH144: 1181095076 | CI144: 693664977 | CJ144: 2127384271 | CK144: 1108317643 | CL144: 1301941973 | CM144: 1593369158 | CN144: 1085615391 | CO144: 1289255223 | CP144: 1048993311 | CQ144: 975864831 | CR144: 1099227591 | CS144: 505776635 | CT144: 1747556760 | CU144: 37868640 | CV144: 109917330 | CW144: 589801485 | CX144: 1679173284 | CY144: 1956791221 | CZ144: 920869299 | DA144: 570158398 | DB144: 833436599 | DC144: 1177535495
A145: 3 | B145: 1261092736 | C145: 0.5872420671 | D145: 2 | E145: 3 | F145: 0.96 | G145: 0.17 | H145: 0.4718454846 | I145: 12.94369097 | J145: 26.88738194 | K145: 41.77476388 | L145: 57.1339913 | M145: 73.43690969 | N145: 88.73982809 | O145: 105.9864374 | P145: 123.1767378 | Q145: 140.3107291 | R145: 13.94369097 | S145: 14.88738194 | T145: 15.35922742 | U145: 16.30291839 | V145: 15.30291839 | W145: 17.24660936 | X145: 17.19030033 | Y145: 17.1339913 | Z145: 0 | AB145: 2004418790 | AC145: 19993425 | AD145: 1480654310 | AE145: 1225140240 | AF145: 770370295 | AG145: 1507607636 | AH145: 1002186665 | AI145: 1876423608 | AJ145: 632373367 | AK145: 304688437 | AL145: 613905098 | AM145: 1715646955 | AN145: 1435671016 | AO145: 1342599057 | AP145: 1842724507 | AQ145: 357336271 | AR145: 1768488643 | AS145: 1021739136 | AT145: 846057662 | AU145: 2098364957 | AV145: 2139546514 | AW145: 1165703803 | AX145: 579444420 | AY145: 1015780105 | AZ145: 2111865338 | BA145: 1476143432 | BB145: 93265932 | BC145: 695790769 | BD145: 1951070329 | BE145: 123418255 | BF145: 1519598591 | BG145: 912971194 | BH145: 8982761 | BI145: 1924000423 | BJ145: 2076483134 | BK145: 395550543 | BL145: 1394807890 | BM145: 397491 | BN145: 139168702 | BO145: 166076426 | BP145: 2091620785 | BQ145: 2120209090 | BR145: 1665411680 | BS145: 2070838362 | BT145: 706550268 | BU145: 1329228532 | BV145: 181327362 | BW145: 2147225293 | BX145: 1078970164 | BY145: 1753375547 | BZ145: 2064924441 | CA145: 1351531352 | CB145: 765363688 | CC145: 639407317 | CD145: 1207805362 | CE145: 1523346235 | CF145: 1204278446 | CG145: 1280437517 | CH145: 1244553040 | CI145: 337080743 | CJ145: 445629548 | CK145: 1488331189 | CL145: 2079532875 | CM145: 1395808513 | CN145: 844584867 | CO145: 1710263020 | CP145: 439202668 | CQ145: 917460256 | CR145: 789095085 | CS145: 1749848989 | CT145: 1007224153 | CU145: 448537843 | CV145: 1534828340 | CW145: 1116774156 | CX145: 750819596 | CY145: 1348299243 | CZ145: 517922776 | DA145: 2113093553 | DB145: 2006911078 | DC145: 1218710349
A146: 4 | B146: 1636001594 | C146: 0.7618226087 | D146: 2 | E146: 3 | F146: 0.96 | G146: 0.17 | H146: 0.2508574574 | I146: 12.50171491 | J146: 26.00342983 | K146: 40.00685966 | L146: 54.26114695 | M146: 69.01714915 | N146: 82.77315135 | O146: 98.03086847 | P146: 112.7903005 | Q146: 127.0514474 | R146: 13.50171491 | S146: 14.00342983 | T146: 14.25428729 | U146: 14.7560022 | V146: 13.7560022 | W146: 15.25771712 | X146: 14.75943203 | Y146: 14.26114695 | Z146: 0 | AB146: 423696505 | AC146: 882460672 | AD146: 113458556 | AE146: 1339853954 | AF146: 717678493 | AG146: 1949851467 | AH146: 188390246 | AI146: 278718602 | AJ146: 962239999 | AK146: 1647527771 | AL146: 686140605 | AM146: 434801897 | AN146: 1978324646 | AO146: 1837581281 | AP146: 1382018657 | AQ146: 390484737 | AR146: 2092834356 | AS146: 1260396854 | AT146: 1352887403 | AU146: 1961144945 | AV146: 1266225770 | AW146: 1321755919 | AX146: 1534579292 | AY146: 1374820151 | AZ146: 803007508 | BA146: 1412198612 | BB146: 914079460 | BC146: 2019454966 | BD146: 73028327 | BE146: 402950327 | BF146: 944655582 | BG146: 1520585487 | BH146: 1962643184 | BI146: 1199136824 | BJ146: 118137589 | BK146: 343155676 | BL146: 864357446 | BM146: 2007418885 | BN146: 483566426 | BO146: 118705195 | BP146: 683249030 | BQ146: 1984818311 | BR146: 36879835 | BS146: 369771546 | BT146: 1700188621 | BU146: 674063106 | BV146: 1857229577 | BW146: 413895948 | BX146: 47895753 | BY146: 565533673 | BZ146: 514216006 | CA146: 1364180179 | CB146: 1709404107 | CC146: 1195624223 | CD146: 2086580346 | CE146: 1458552758 | CF146: 1490026223 | CG146: 1272538800 | CH146: 2112252662 | CI146: 1888435681 | CJ146: 1787703156 | CK146: 1316897481 | CL146: 1303297404 | CM146: 1920790045 | CN146: 1126560309 | CO146: 392396799 | CP146: 793423844 | CQ146: 1316248942 | CR146: 491401196 | CS146: 2133744215 | CT146: 687321383 | CU146: 440090399 | CV146: 1660462287 | CW146: 1670777282 | CX146: 1878691744 | CY146: 2113352871 | CZ146: 1793185569 | DA146: 2108115304 | DB146: 469846321 | DC146: 200230661
A147: 5 | B147: 2016792843 | C147: 0.9391423519 | D147: 2 | E147: 3 | F147: 0.96 | G147: 0.17 | H147: 0.02640208615 | I147: 12.05280417 | J147: 25.10560834 | K147: 38.21121669 | L147: 51.34322712 | M147: 64.52804172 | N147: 76.71285633 | O147: 89.9504751 | P147: 102.240898 | Q147: 113.5841252 | R147: 13.05280417 | S147: 13.10560834 | T147: 13.13201043 | U147: 13.1848146 | V147: 12.1848146 | W147: 13.23761878 | X147: 12.29042295 | Y147: 11.34322712 | Z147: 0 | AB147: 1767222474 | AC147: 1920959867 | AD147: 674656826 | AE147: 325216835 | AF147: 1999825846 | AG147: 1366882841 | AH147: 1339803268 | AI147: 40588687 | AJ147: 363190766 | AK147: 51134590 | AL147: 52856274 | AM147: 964687956 | AN147: 1406172270 | AO147: 73975816 | AP147: 1990581639 | AQ147: 624770008 | AR147: 1281476302 | AS147: 257336277 | AT147: 250124943 | AU147: 1053513041 | AV147: 304582756 | AW147: 740813679 | AX147: 376084514 | AY147: 256365680 | AZ147: 2043073965 | BA147: 665793131 | BB147: 1330602398 | BC147: 385475515 | BD147: 1129707890 | BE147: 1055843738 | BF147: 1949321971 | BG147: 1338472164 | BH147: 360563812 | BI147: 259410066 | BJ147: 1050475834 | BK147: 926266885 | BL147: 2085981950 | BM147: 1359877901 | BN147: 1235190203 | BO147: 532097649 | BP147: 60076504 | BQ147: 1329263023 | BR147: 2110055569 | BS147: 1505706749 | BT147: 1569870539 | BU147: 1175454029 | BV147: 1476583705 | BW147: 1130937867 | BX147: 1283488891 | BY147: 63808719 | BZ147: 1104833600 | CA147: 2050352548 | CB147: 1881480316 | CC147: 353855308 | CD147: 41870172 | CE147: 548814523 | CF147: 1533505109 | CG147: 98176012 | CH147: 172171489 | CI147: 292909695 | CJ147: 1883655875 | CK147: 294870504 | CL147: 935549619 | CM147: 849802970 | CN147: 1611766405 | CO147: 580117989 | CP147: 1139013126 | CQ147: 1201499140 | CR147: 1470251001 | CS147: 356324851 | CT147: 1215616290 | CU147: 695414005 | CV147: 1642898796 | CW147: 1341816337 | CX147: 242245461 | CY147: 1740752600 | CZ147: 237241570 | DA147: 173742642 | DB147: 376965024 | DC147: 1657825631
A148: 6 | B148: 731155002 | C148: 0.3404705796 | D148: 2 | E148: 3 | F148: 0.96 | G148: 0.17 | H148: 0.7842144562 | I148: 13.56842891 | J148: 28.13685782 | K148: 44.27371565 | L148: 61.19478793 | M148: 79.68428912 | N148: 97.17379032 | O148: 117.2317204 | P148: 137.8580794 | Q148: 159.0528674 | R148: 14.56842891 | S148: 16.13685782 | T148: 16.92107228 | U148: 18.48950119 | V148: 17.48950119 | W148: 20.05793011 | X148: 20.62635902 | Y148: 21.19478793 | Z148: 0 | AB148: 1103132673 | AC148: 457346144 | AD148: 1917624738 | AE148: 436382715 | AF148: 2055995969 | AG148: 1514047483 | AH148: 26036576 | AI148: 751424113 | AJ148: 1672455125 | AK148: 859083487 | AL148: 214629618 | AM148: 416922528 | AN148: 1826014441 | AO148: 1768792822 | AP148: 357994801 | AQ148: 1160201347 | AR148: 2023605654 | AS148: 834012819 | AT148: 628060119 | AU148: 1715241151 | AV148: 841167514 | AW148: 2066892812 | AX148: 1296307203 | AY148: 1226965266 | AZ148: 184359687 | BA148: 1407449146 | BB148: 419955735 | BC148: 1490266957 | BD148: 1077309919 | BE148: 403682747 | BF148: 1577385189 | BG148: 196824802 | BH148: 1568293764 | BI148: 6150229 | BJ148: 1135110050 | BK148: 1219275295 | BL148: 1221467914 | BM148: 533521322 | BN148: 1130313705 | BO148: 981196759 | BP148: 850001134 | BQ148: 191494520 | BR148: 1490477636 | BS148: 386448264 | BT148: 965336380 | BU148: 1675996472 | BV148: 1189780125 | BW148: 319987570 | BX148: 389041511 | BY148: 619125051 | BZ148: 813816002 | CA148: 1489005219 | CB148: 1705418359 | CC148: 2012127877 | CD148: 332960785 | CE148: 467570341 | CF148: 63804449 | CG148: 1705349970 | CH148: 128231629 | CI148: 11555497 | CJ148: 1495128145 | CK148: 172486268 | CL148: 482045986 | CM148: 1754023523 | CN148: 391088592 | CO148: 1836173786 | CP148: 1426274652 | CQ148: 474132411 | CR148: 446503215 | CS148: 960353798 | CT148: 1170763962 | CU148: 1012549098 | CV148: 2091665300 | CW148: 562126160 | CX148: 382190016 | CY148: 1128614784 | CZ148: 1505019666 | DA148: 807430447 | DB148: 849732473 | DC148: 1070412193
A149: 7 | B149: 1836846744 | C149: 0.8553484198 | D149: 2 | E149: 3 | F149: 0.96 | G149: 0.17 | H149: 0.1324703547 | I149: 12.26494071 | J149: 25.52988142 | K149: 39.05976284 | L149: 52.72211461 | M149: 66.64940709 | N149: 79.57669958 | O149: 93.76893277 | P149: 107.2261067 | Q149: 119.9482213 | R149: 13.26494071 | S149: 13.52988142 | T149: 13.66235177 | U149: 13.92729248 | V149: 12.92729248 | W149: 14.19223319 | X149: 13.4571739 | Y149: 12.72211461 | Z149: 0 | AB149: 312747371 | AC149: 423825864 | AD149: 528607710 | AE149: 2110425989 | AF149: 1172157141 | AG149: 1422577189 | AH149: 533626601 | AI149: 994560793 | AJ149: 728597204 | AK149: 909777407 | AL149: 925177350 | AM149: 1198093051 | AN149: 76790396 | AO149: 1743473336 | AP149: 2113615309 | AQ149: 2000674571 | AR149: 1027356792 | AS149: 1904339287 | AT149: 1063359550 | AU149: 173589836 | AV149: 1523754465 | AW149: 1040172079 | AX149: 666489727 | AY149: 1388854473 | AZ149: 54218009 | BA149: 1185070074 | BB149: 1585140152 | BC149: 269074141 | BD149: 1510587944 | BE149: 2050751206 | BF149: 780270187 | BG149: 462363014 | BH149: 14758000 | BI149: 524960773 | BJ149: 1999453992 | BK149: 1700935263 | BL149: 166664662 | BM149: 983839438 | BN149: 255834726 | BO149: 596919104 | BP149: 582179732 | BQ149: 862358232 | BR149: 1848825562 | BS149: 1201193702 | BT149: 1652226374 | BU149: 2021750128 | BV149: 1721242154 | BW149: 1417602246 | BX149: 1825768113 | BY149: 1402905169 | BZ149: 1941361618 | CA149: 1640744906 | CB149: 611483191 | CC149: 1034364151 | CD149: 582438587 | CE149: 34800441 | CF149: 413007881 | CG149: 1605245066 | CH149: 821092805 | CI149: 1597131114 | CJ149: 847762566 | CK149: 290543209 | CL149: 856474961 | CM149: 1779212111 | CN149: 1856167302 | CO149: 852261375 | CP149: 1525487519 | CQ149: 1112385302 | CR149: 1010809973 | CS149: 1656179116 | CT149: 767555250 | CU149: 29703838 | CV149: 684548948 | CW149: 935989515 | CX149: 1809734606 | CY149: 1999081368 | CZ149: 1580003123 | DA149: 794397734 | DB149: 498546483 | DC149: 1410421483
A150: 8 | B150: 1124362288 | C150: 0.5235719907 | D150: 2 | E150: 3 | F150: 0.96 | G150: 0.17 | H150: 0.5524405181 | I150: 13.10488104 | J150: 27.20976207 | K150: 42.41952415 | L150: 58.18172674 | M150: 75.04881036 | N150: 90.91589399 | O150: 108.8878587 | P150: 126.9647044 | Q150: 145.1464311 | R150: 14.10488104 | S150: 15.20976207 | T150: 15.76220259 | U150: 16.86708363 | V150: 15.86708363 | W150: 17.97196466 | X150: 18.0768457 | Y150: 18.18172674 | Z150: 0 | AB150: 1965790778 | AC150: 1569059822 | AD150: 22075756 | AE150: 43668633 | AF150: 1445705702 | AG150: 1286393747 | AH150: 1770794753 | AI150: 1447110218 | AJ150: 775947365 | AK150: 1972115794 | AL150: 165938838 | AM150: 1415051111 | AN150: 192430594 | AO150: 1464759773 | AP150: 1523995416 | AQ150: 75127504 | AR150: 1847330108 | AS150: 1324212942 | AT150: 274707456 | AU150: 2021266609 | AV150: 1836870265 | AW150: 1978758549 | AX150: 673096310 | AY150: 1249774137 | AZ150: 1522430393 | BA150: 1995636915 | BB150: 1457934582 | BC150: 496763155 | BD150: 1930894586 | BE150: 1405272714 | BF150: 1853995591 | BG150: 2074989170 | BH150: 1566330843 | BI150: 74438883 | BJ150: 1286100711 | BK150: 1103804522 | BL150: 596157740 | BM150: 1460141940 | BN150: 1367088496 | BO150: 1093977385 | BP150: 426838730 | BQ150: 71203424 | BR150: 1680784923 | BS150: 762720242 | BT150: 1371617068 | BU150: 1653574420 | BV150: 2085196951 | BW150: 1659088658 | BX150: 1071193390 | BY150: 886088301 | BZ150: 1722758339 | CA150: 1200456166 | CB150: 1889868393 | CC150: 797140171 | CD150: 37126553 | CE150: 519875557 | CF150: 1212728650 | CG150: 1279629832 | CH150: 1012601123 | CI150: 453076594 | CJ150: 2045929801 | CK150: 1743026729 | CL150: 1695154034 | CM150: 34315610 | CN150: 1739114708 | CO150: 164607046 | CP150: 1741257666 | CQ150: 269803254 | CR150: 1979746843 | CS150: 1048381567 | CT150: 124111059 | CU150: 1462371549 | CV150: 531392519 | CW150: 241429332 | CX150: 211889913 | CY150: 479036783 | CZ150: 449027128 | DA150: 905017082 | DB150: 635532611 | DC150: 781345052
A151: 9 | B151: 737793417 | C151: 0.3435618325 | D151: 2 | E151: 3 | F151: 0.96 | G151: 0.17 | H151: 0.7803014779 | I151: 13.56060296 | J151: 28.12120591 | K151: 44.24241182 | L151: 61.14391921 | M151: 79.60602956 | N151: 97.0681399 | O151: 117.0908532 | P151: 137.6741695 | Q151: 158.8180887 | R151: 14.56060296 | S151: 16.12120591 | T151: 16.90150739 | U151: 18.46211035 | V151: 17.46211035 | W151: 20.0227133 | X151: 20.58331626 | Y151: 21.14391921 | Z151: 0 | AB151: 1974218496 | AC151: 485921719 | AD151: 466928964 | AE151: 1247125836 | AF151: 1031348330 | AG151: 1022908432 | AH151: 1741920522 | AI151: 109263462 | AJ151: 1492968588 | AK151: 198904311 | AL151: 2067129435 | AM151: 919818952 | AN151: 950429699 | AO151: 1667408655 | AP151: 582914104 | AQ151: 1527349448 | AR151: 360685240 | AS151: 1232170327 | AT151: 1839571998 | AU151: 1935948888 | AV151: 112260832 | AW151: 876267513 | AX151: 1751884547 | AY151: 736755603 | AZ151: 199616516 | BA151: 1715570486 | BB151: 773611885 | BC151: 451852603 | BD151: 1127313712 | BE151: 1353219705 | BF151: 2135151730 | BG151: 1017445343 | BH151: 1899362524 | BI151: 499179862 | BJ151: 1910153205 | BK151: 531315745 | BL151: 849397740 | BM151: 2098291200 | BN151: 703801753 | BO151: 759471605 | BP151: 974226512 | BQ151: 1086644704 | BR151: 1236834473 | BS151: 809157414 | BT151: 259168771 | BU151: 2018636124 | BV151: 1983486831 | BW151: 1908446394 | BX151: 464876224 | BY151: 936580272 | BZ151: 111035441 | CA151: 1668341985 | CB151: 731873943 | CC151: 141207395 | CD151: 1134478265 | CE151: 1566596752 | CF151: 1367930577 | CG151: 939481811 | CH151: 393518966 | CI151: 486807926 | CJ151: 599465835 | CK151: 1381429746 | CL151: 1210973573 | CM151: 738918473 | CN151: 1522824991 | CO151: 57223566 | CP151: 1886335553 | CQ151: 1332038426 | CR151: 1337566953 | CS151: 974479102 | CT151: 1633037506 | CU151: 202081242 | CV151: 1303604881 | CW151: 1789016350 | CX151: 1820863409 | CY151: 1628124944 | CZ151: 436046517 | DA151: 1967217948 | DB151: 990768186 | DC151: 51712831
A152: 10 | B152: 157230159 | C152: 0.07321599828 | D152: 3 | E152: 4 | F152: 0.17 | G152: 0.013 | H152: 0.6164586097 | I152: 14.61645861 | J152: 31.46583444 | K152: 50.31521027 | L152: 71.39750332 | M152: 95.71271358 | N152: 120.2608411 | O152: 147.8089686 | P152: 178.2064719 | Q152: 210.8368924 | R152: 16.84937583 | S152: 18.84937583 | T152: 21.08229305 | U152: 24.31521027 | V152: 24.54812749 | W152: 27.54812749 | X152: 30.39750332 | Y152: 32.63042054 | Z152: 0 | AB152: 766701144 | AC152: 1110905315 | AD152: 1287145979 | AE152: 1749636852 | AF152: 1249332676 | AG152: 1868909248 | AH152: 1670802824 | AI152: 36737170 | AJ152: 1830485322 | AK152: 2058094191 | AL152: 1724782677 | AM152: 1356230267 | AN152: 1498849568 | AO152: 1943579592 | AP152: 1515971190 | AQ152: 1424119251 | AR152: 987293811 | AS152: 1386767305 | AT152: 1678595655 | AU152: 290389796 | AV152: 841380091 | AW152: 1471208711 | AX152: 1607916671 | AY152: 1600518093 | AZ152: 2077203394 | BA152: 1038534092 | BB152: 426163152 | BC152: 1533080481 | BD152: 1472060619 | BE152: 1258289256 | BF152: 1726488359 | BG152: 153145063 | BH152: 1609054633 | BI152: 1144599262 | BJ152: 647490963 | BK152: 1892614421 | BL152: 1520519016 | BM152: 548304445 | BN152: 23123523 | BO152: 760507018 | BP152: 1291058746 | BQ152: 1138428809 | BR152: 1043975936 | BS152: 404959558 | BT152: 1243501166 | BU152: 1661342626 | BV152: 1481901353 | BW152: 2009879415 | BX152: 983581201 | BY152: 840573068 | BZ152: 1820073246 | CA152: 1899195435 | CB152: 33625756 | CC152: 109068467 | CD152: 1567331315 | CE152: 1850153981 | CF152: 549704411 | CG152: 1314325082 | CH152: 1061150071 | CI152: 939330472 | CJ152: 1620661607 | CK152: 1480546169 | CL152: 400470943 | CM152: 777717160 | CN152: 2067387398 | CO152: 574784344 | CP152: 1996846063 | CQ152: 1018986619 | CR152: 1598541208 | CS152: 598928754 | CT152: 671221697 | CU152: 792907908 | CV152: 745386357 | CW152: 848334039 | CX152: 539427776 | CY152: 1907626212 | CZ152: 914197860 | DA152: 2145664862 | DB152: 910287716 | DC152: 854067387
A153: 11 | B153: 449796591 | C153: 0.2094528597 | D153: 2 | E153: 3 | F153: 0.96 | G153: 0.17 | H153: 0.9500596713 | I153: =IF($D153>0,INDEX(RSLtable,$D153,I$141)+IF($E153>$D153,$H153*INDEX(RSLdiff,$D153,I$141),0),$H153*INDEX(RSLtable,$E153,I$141)) -> 13.90011934 | J153: 28.80023869 | K153: 45.60047737 | L153: 63.35077573 | M153: 83.00119343 | N153: 101.6516111 | O153: 123.2021482 | P153: 145.6528046 | Q153: 169.0035803 | R153: 14.90011934 | S153: 16.80023869 | T153: 17.75029836 | U153: 19.6504177 | V153: 18.6504177 | W153: 21.55053704 | X153: 22.45065638 | Y153: 23.35077573 | Z153: 0 | AB153: 1845233273 | AC153: 1843794775 | AD153: 826677305 | AE153: 483613676 | AF153: 901828142 | AG153: 477783385 | AH153: 427270572 | AI153: 1665924295 | AJ153: 1142322447 | AK153: 1523699894 | AL153: 1191090924 | AM153: 552239562 | AN153: 95945851 | AO153: 1412398943 | AP153: 1940040965 | AQ153: 561340904 | AR153: 702456557 | AS153: 1431819018 | AT153: 785377548 | AU153: 780078747 | AV153: 1047640597 | AW153: 1578966038 | AX153: 1391655967 | AY153: 737182731 | AZ153: 526069697 | BA153: 220899364 | BB153: 575655579 | BC153: 1041422731 | BD153: 1899227813 | BE153: 1600688275 | BF153: 1921688160 | BG153: 826623099 | BH153: 487644847 | BI153: 491705986 | BJ153: 559276535 | BK153: 141405417 | BL153: 277334170 | BM153: 1615398967 | BN153: 1651565940 | BO153: 1348804060 | BP153: 721292226 | BQ153: 1137996156 | BR153: 911146154 | BS153: 1406669224 | BT153: 729366689 | BU153: 1188069725 | BV153: 179929093 | BW153: 2020520946 | BX153: 1879685595 | BY153: 746539010 | BZ153: 1052175249 | CA153: 2133436102 | CB153: 1798714391 | CC153: 1361551760 | CD153: 801022555 | CE153: 1380389062 | CF153: 473681049 | CG153: 676649901 | CH153: 995128997 | CI153: 451491154 | CJ153: 274654934 | CK153: 1335835286 | CL153: 1632582906 | CM153: 1023397153 | CN153: 1292012768 | CO153: 2073833631 | CP153: 2100295125 | CQ153: 1537634861 | CR153: 1947731011 | CS153: 1465028420 | CT153: 1456753598 | CU153: 2004070234 | CV153: 1603816909 | CW153: 1714215573 | CX153: 478955421 | CY153: 1073579739 | CZ153: 603437857 | DA153: 252258792 | DB153: 835437769 | DC153: 1443266418
A154: 12 | B154: 1071572991 | C154: 0.4989900587 | D154: 2 | E154: 3 | F154: 0.96 | G154: 0.17 | H154: 0.5835568878 | I154: 13.16711378 | J154: 27.33422755 | K154: 42.6684551 | L154: 58.58623954 | M154: 75.67113776 | N154: 91.75603597 | O154: 110.008048 | P154: 128.4271737 | Q154: 147.0134133 | R154: 14.16711378 | S154: 15.33422755 | T154: 15.91778444 | U154: 17.08489821 | V154: 16.08489821 | W154: 18.25201199 | X154: 18.41912577 | Y154: 18.58623954 | Z154: 0 | AB154: 76094364 | AC154: 1505317757 | AD154: 2146544748 | AE154: 1368511306 | AF154: 505234145 | AG154: 1254892202 | AH154: 344835224 | AI154: 1158998383 | AJ154: 109235118 | AK154: 1350157171 | AL154: 570311273 | AM154: 441387091 | AN154: 1427430689 | AO154: 1746036244 | AP154: 250543139 | AQ154: 1685602785 | AR154: 1661160464 | AS154: 722122830 | AT154: 1430799017 | AU154: 1202929939 | AV154: 1714338231 | AW154: 1927504621 | AX154: 1189221250 | AY154: 743577311 | AZ154: 2063701759 | BA154: 776892289 | BB154: 1179545376 | BC154: 71955478 | BD154: 1548870893 | BE154: 362103465 | BF154: 1253039195 | BG154: 1677450569 | BH154: 536154770 | BI154: 1150383562 | BJ154: 820694548 | BK154: 1077853841 | BL154: 1932148319 | BM154: 1792313487 | BN154: 1704062159 | BO154: 711570514 | BP154: 344672435 | BQ154: 1728239663 | BR154: 1470909174 | BS154: 44677211 | BT154: 1412535801 | BU154: 762902340 | BV154: 933379735 | BW154: 301788567 | BX154: 971786848 | BY154: 1408955050 | BZ154: 1563192929 | CA154: 515787757 | CB154: 831036104 | CC154: 1875474172 | CD154: 716688170 | CE154: 637812686 | CF154: 799526670 | CG154: 1488583948 | CH154: 957598091 | CI154: 1265444978 | CJ154: 1451766183 | CK154: 1761105684 | CL154: 202061567 | CM154: 1837640522 | CN154: 1675731601 | CO154: 1072997096 | CP154: 643004005 | CQ154: 1842567717 | CR154: 2089566321 | CS154: 1750366110 | CT154: 1748391690 | CU154: 778419005 | CV154: 1060539989 | CW154: 60038079 | CX154: 1995667136 | CY154: 1839695512 | CZ154: 80607339 | DA154: 551870142 | DB154: 1968624033 | DC154: 1396270951
A155: 13 | B155: 1608726919 | C155: 0.7491218484 | D155: 2 | E155: 3 | F155: 0.96 | G155: 0.17 | H155: 0.2669343691 | I155: 12.53386874 | J155: 26.06773748 | K155: 40.13547495 | L155: 54.4701468 | M155: 69.33868738 | N155: 83.20722797 | O155: 98.60963729 | P155: 113.5459153 | Q155: 128.0160621 | R155: 13.53386874 | S155: 14.06773748 | T155: 14.33467185 | U155: 14.86854058 | V155: 13.86854058 | W155: 15.40240932 | X155: 14.93627806 | Y155: 14.4701468 | Z155: 0 | AB155: 954008274 | AC155: 936768255 | AD155: 1923046605 | AE155: 664786559 | AF155: 1333117963 | AG155: 830251813 | AH155: 395349807 | AI155: 1914457796 | AJ155: 816027593 | AK155: 1603082185 | AL155: 902588090 | AM155: 1011007774 | AN155: 1493974724 | AO155: 624840315 | AP155: 1487446412 | AQ155: 1871617199 | AR155: 984862411 | AS155: 1784052473 | AT155: 877778440 | AU155: 820754236 | AV155: 1685895103 | AW155: 699070369 | AX155: 513590793 | AY155: 178703323 | AZ155: 1623675300 | BA155: 2008238405 | BB155: 1600911985 | BC155: 881821339 | BD155: 903705698 | BE155: 726956082 | BF155: 1578064090 | BG155: 1345506064 | BH155: 1401472673 | BI155: 532777176 | BJ155: 1115690299 | BK155: 1996443042 | BL155: 1516717239 | BM155: 1090644288 | BN155: 1718346048 | BO155: 1366831176 | BP155: 1127296576 | BQ155: 559537664 | BR155: 4917393 | BS155: 540070593 | BT155: 1909857821 | BU155: 1009275384 | BV155: 966274125 | BW155: 1254340056 | BX155: 1637638387 | BY155: 862118060 | BZ155: 752971120 | CA155: 1812898476 | CB155: 2096733871 | CC155: 1693133680 | CD155: 1440584547 | CE155: 1530602514 | CF155: 1523267333 | CG155: 632925288 | CH155: 1779432633 | CI155: 1269677770 | CJ155: 1519050689 | CK155: 44822222 | CL155: 1990659630 | CM155: 786114480 | CN155: 2121063969 | CO155: 1632222670 | CP155: 865175264 | CQ155: 256059508 | CR155: 296465048 | CS155: 1325888242 | CT155: 507940890 | CU155: 542418796 | CV155: 1610631833 | CW155: 1142671606 | CX155: 1026884730 | CY155: 1198289008 | CZ155: 1903976152 | DA155: 1936467094 | DB155: 1299317193 | DC155: 620814626
A156: 14 | B156: 1848431529 | C156: 0.8607430057 | D156: 2 | E156: 3 | F156: 0.96 | G156: 0.17 | H156: 0.1256417649 | I156: 12.25128353 | J156: 25.50256706 | K156: 39.00513412 | L156: 52.63334294 | M156: 66.5128353 | N156: 79.39232765 | O156: 93.52310354 | P156: 106.905163 | Q156: 119.5385059 | R156: 13.25128353 | S156: 13.50256706 | T156: 13.62820882 | U156: 13.87949235 | V156: 12.87949235 | W156: 14.13077588 | X156: 13.38205941 | Y156: 12.63334294 | Z156: 0 | AB156: 294067986 | AC156: 1324765873 | AD156: 254544733 | AE156: 63852368 | AF156: 1589709618 | AG156: 745445009 | AH156: 1390846455 | AI156: 128489365 | AJ156: 1322888429 | AK156: 2101899784 | AL156: 681462054 | AM156: 790380679 | AN156: 1005552297 | AO156: 259023250 | AP156: 1557499854 | AQ156: 196783639 | AR156: 1447947742 | AS156: 1755195836 | AT156: 1390721930 | AU156: 1849406100 | AV156: 949713848 | AW156: 1415236688 | AX156: 989947935 | AY156: 1893778181 | AZ156: 1867225388 | BA156: 116738528 | BB156: 423390640 | BC156: 1124487682 | BD156: 942426647 | BE156: 1014242242 | BF156: 1339245653 | BG156: 427795476 | BH156: 457550589 | BI156: 1570389871 | BJ156: 891523563 | BK156: 1973421257 | BL156: 1445350245 | BM156: 928819843 | BN156: 1873701280 | BO156: 1167609915 | BP156: 644888763 | BQ156: 540750625 | BR156: 1144276333 | BS156: 1443603770 | BT156: 1421395428 | BU156: 918045222 | BV156: 1820958682 | BW156: 2094899658 | BX156: 1569532807 | BY156: 1362762694 | BZ156: 508208045 | CA156: 463719746 | CB156: 536403931 | CC156: 323229754 | CD156: 788694730 | CE156: 1686561906 | CF156: 1944841610 | CG156: 1834214826 | CH156: 2089198484 | CI156: 1579833937 | CJ156: 266681904 | CK156: 1097445633 | CL156: 1975214715 | CM156: 496021590 | CN156: 301009580 | CO156: 2140462434 | CP156: 760685335 | CQ156: 1480122183 | CR156: 1980792047 | CS156: 496198041 | CT156: 993903391 | CU156: 977077492 | CV156: 1458738402 | CW156: 1931103678 | CX156: 535261776 | CY156: 136673223 | CZ156: 975192533 | DA156: 1682391505 | DB156: 2080312668 | DC156: 1356001408
A157: 15 | B157: 1987770803 | C157: 0.9256279114 | D157: 2 | E157: 3 | F157: 0.96 | G157: 0.17 | H157: 0.04350897288 | I157: 12.08701795 | J157: 25.17403589 | K157: 38.34807178 | L157: 51.56561665 | M157: 64.87017946 | N157: 77.17474227 | O157: 90.56632302 | P157: 103.0449217 | Q157: 114.6105384 | R157: 13.08701795 | S157: 13.17403589 | T157: 13.21754486 | U157: 13.30456281 | V157: 12.30456281 | W157: 13.39158076 | X157: 12.4785987 | Y157: 11.56561665 | Z157: 0 | AB157: 88845536 | AC157: 5415217 | AD157: 1374862156 | AE157: 578622283 | AF157: 839812227 | AG157: 140040307 | AH157: 767973144 | AI157: 377365379 | AJ157: 1721112714 | AK157: 792087302 | AL157: 1847787535 | AM157: 271283407 | AN157: 1589538993 | AO157: 661507916 | AP157: 820454611 | AQ157: 622867488 | AR157: 1882678820 | AS157: 385874465 | AT157: 1199477810 | AU157: 1786647310 | AV157: 1303744299 | AW157: 1287871731 | AX157: 2118140988 | AY157: 482689555 | AZ157: 800555911 | BA157: 88395360 | BB157: 2035198588 | BC157: 348236250 | BD157: 1730582936 | BE157: 155079276 | BF157: 1026690322 | BG157: 2060156091 | BH157: 1702655871 | BI157: 264207588 | BJ157: 1309107340 | BK157: 937883021 | BL157: 1052952659 | BM157: 2046543034 | BN157: 2013209828 | BO157: 989891450 | BP157: 1650015508 | BQ157: 2057173737 | BR157: 2083469403 | BS157: 500720167 | BT157: 76183338 | BU157: 1635855317 | BV157: 843383465 | BW157: 43937735 | BX157: 1842544184 | BY157: 198927170 | BZ157: 1004840514 | CA157: 993806485 | CB157: 543821422 | CC157: 1154759879 | CD157: 493217814 | CE157: 924706756 | CF157: 54244058 | CG157: 780583683 | CH157: 1867958044 | CI157: 872184310 | CJ157: 985207866 | CK157: 671546347 | CL157: 1610548259 | CM157: 1162990487 | CN157: 159080578 | CO157: 381443503 | CP157: 1366409379 | CQ157: 196959903 | CR157: 251001709 | CS157: 1090522120 | CT157: 1925912981 | CU157: 1471760918 | CV157: 920101459 | CW157: 482975409 | CX157: 1245432239 | CY157: 283383849 | CZ157: 677218203 | DA157: 1478742903 | DB157: 289979661 | DC157: 242405008
A158: 16 | B158: 2115083653 | C158: 0.9849125771 | D158: 1 | E158: 2 | F158: 1 | G158: 0.96 | H158: 0.377185573 | I158: 11.37718557 | J158: 23.75437115 | K158: 36.13155672 | L158: 48.50874229 | M158: 60.88592787 | N158: 71.64029901 | O158: 83.39467016 | P158: 94.1490413 | Q158: 105.1490413 | R158: 12.37718557 | S158: 12.37718557 | T158: 12.37718557 | U158: 12.37718557 | V158: 10.75437115 | W158: 11.75437115 | X158: 10.75437115 | Y158: 11 | Z158: 0 | AB158: 138025197 | AC158: 1552418520 | AD158: 136505388 | AE158: 503909811 | AF158: 527205098 | AG158: 1754622088 | AH158: 968919510 | AI158: 847915855 | AJ158: 131966005 | AK158: 1047303654 | AL158: 966307487 | AM158: 1913543538 | AN158: 1193507440 | AO158: 714265993 | AP158: 271109607 | AQ158: 1665455248 | AR158: 1576346474 | AS158: 1420629584 | AT158: 1686759743 | AU158: 309037490 | AV158: 1032781694 | AW158: 1499713745 | AX158: 939714431 | AY158: 1857423102 | AZ158: 1813635763 | BA158: 2029899618 | BB158: 136642039 | BC158: 1357518681 | BD158: 2002519003 | BE158: 1851222001 | BF158: 1888411443 | BG158: 121943385 | BH158: 407411057 | BI158: 1806584462 | BJ158: 66612518 | BK158: 1448544284 | BL158: 434845393 | BM158: 136064920 | BN158: 1721613344 | BO158: 1539037200 | BP158: 2025086732 | BQ158: 42137800 | BR158: 197395909 | BS158: 334734272 | BT158: 953904934 | BU158: 1398306717 | BV158: 1115742836 | BW158: 1352046596 | BX158: 1267581712 | BY158: 1014037333 | BZ158: 1590800152 | CA158: 1543130749 | CB158: 2111244081 | CC158: 1328577677 | CD158: 1113388952 | CE158: 1072215981 | CF158: 632358025 | CG158: 1954375478 | CH158: 1806855335 | CI158: 1939412222 | CJ158: 943536871 | CK158: 2095548219 | CL158: 1719505142 | CM158: 1343781750 | CN158: 1724542613 | CO158: 134543935 | CP158: 134399751 | CQ158: 541372444 | CR158: 758765 | CS158: 1474099256 | CT158: 1178427221 | CU158: 317262724 | CV158: 2108223782 | CW158: 623496007 | CX158: 1602394651 | CY158: 1898427336 | CZ158: 1003802379 | DA158: 189728080 | DB158: 309804985 | DC158: 1641232312
A159: 17 | B159: 1535468289 | C159: 0.7150081404 | D159: 2 | E159: 3 | F159: 0.96 | G159: 0.17 | H159: 0.310116278 | I159: 12.62023256 | J159: 26.24046511 | K159: 40.48093022 | L159: 55.03151161 | M159: 70.20232556 | N159: 84.37313951 | O159: 100.164186 | P159: 115.5754651 | Q159: 130.6069767 | R159: 13.62023256 | S159: 14.24046511 | T159: 14.55058139 | U159: 15.17081395 | V159: 14.17081395 | W159: 15.7910465 | X159: 15.41127906 | Y159: 15.03151161 | Z159: 0 | AB159: 1120011393 | AC159: 352516855 | AD159: 771755152 | AE159: 1830700859 | AF159: 1036068608 | AG159: 607772168 | AH159: 667319197 | AI159: 855408532 | AJ159: 694530353 | AK159: 482148207 | AL159: 1283892137 | AM159: 1093498034 | AN159: 1253838171 | AO159: 483795518 | AP159: 2113978326 | AQ159: 2139950763 | AR159: 32582303 | AS159: 1762833260 | AT159: 1884561995 | AU159: 1127267728 | AV159: 1719769616 | AW159: 1008444525 | AX159: 1805706867 | AY159: 80810745 | AZ159: 1693562171 | BA159: 2048098809 | BB159: 925584632 | BC159: 468245993 | BD159: 1060875049 | BE159: 1395174954 | BF159: 1270400844 | BG159: 76460908 | BH159: 1631376868 | BI159: 622627826 | BJ159: 669836819 | BK159: 613586644 | BL159: 916799725 | BM159: 984760794 | BN159: 675556618 | BO159: 815396882 | BP159: 1653512579 | BQ159: 366730091 | BR159: 112981600 | BS159: 291083684 | BT159: 1748193787 | BU159: 105027450 | BV159: 1280053443 | BW159: 465719539 | BX159: 1332749628 | BY159: 1001335172 | BZ159: 1941371413 | CA159: 846605137 | CB159: 879081919 | CC159: 1468896106 | CD159: 1472352170 | CE159: 434242504 | CF159: 221666317 | CG159: 702085828 | CH159: 813036527 | CI159: 2112744491 | CJ159: 1635114465 | CK159: 1285854708 | CL159: 1989752932 | CM159: 945296615 | CN159: 340379815 | CO159: 579737857 | CP159: 62282934 | CQ159: 2008227628 | CR159: 119123316 | CS159: 1522026678 | CT159: 1313543155 | CU159: 883063447 | CV159: 1115116886 | CW159: 1939924839 | CX159: 1126200775 | CY159: 1563751272 | CZ159: 871109448 | DA159: 1493878872 | DB159: 1667796874 | DC159: 1105711075
A160: 18 | B160: 339185761 | C160: 0.1579456782 | D160: 3 | E160: 4 | F160: 0.17 | G160: 0.013 | H160: 0.07677911989 | I160: 14.07677912 | J160: 29.30711648 | K160: 46.53745384 | L160: 64.92134944 | M160: 85.45880328 | N160: 105.1498154 | O160: 127.8408274 | P160: 151.7621769 | Q160: 176.8370846 | R160: 15.23033736 | S160: 17.23033736 | T160: 18.3838956 | U160: 20.53745384 | V160: 19.69101208 | W160: 22.69101208 | X160: 23.92134944 | Y160: 25.07490768 | Z160: 0 | AB160: 1169138278 | AC160: 1828172524 | AD160: 994117683 | AE160: 809090739 | AF160: 1468605432 | AG160: 996219861 | AH160: 2057737034 | AI160: 1757167303 | AJ160: 1307456346 | AK160: 1495817558 | AL160: 526776354 | AM160: 1243039601 | AN160: 1490728940 | AO160: 1556271900 | AP160: 1867319847 | AQ160: 1452376426 | AR160: 822318509 | AS160: 1832264732 | AT160: 137290078 | AU160: 1399850602 | AV160: 1871275504 | AW160: 1613839726 | AX160: 1209912521 | AY160: 985168943 | AZ160: 1679565992 | BA160: 72952300 | BB160: 498495437 | BC160: 436943428 | BD160: 604443917 | BE160: 1403034614 | BF160: 2123600639 | BG160: 1467584522 | BH160: 2114943385 | BI160: 834149081 | BJ160: 1179300717 | BK160: 346433100 | BL160: 1644011746 | BM160: 837760829 | BN160: 254327783 | BO160: 942608806 | BP160: 1180992860 | BQ160: 720520440 | BR160: 1273833867 | BS160: 2062491690 | BT160: 1692383412 | BU160: 1718632030 | BV160: 2060255569 | BW160: 889050273 | BX160: 989680009 | BY160: 2035644583 | BZ160: 48089137 | CA160: 2010249364 | CB160: 2033930976 | CC160: 1616359727 | CD160: 940300605 | CE160: 1879515864 | CF160: 1291258553 | CG160: 945570081 | CH160: 822545892 | CI160: 290929031 | CJ160: 2143861824 | CK160: 772760627 | CL160: 1157668497 | CM160: 680371209 | CN160: 76666668 | CO160: 666691190 | CP160: 2129884961 | CQ160: 1744005608 | CR160: 1387863617 | CS160: 39242574 | CT160: 1586957330 | CU160: 952740834 | CV160: 1129592051 | CW160: 1087475934 | CX160: 1436569867 | CY160: 1934942309 | CZ160: 1594356148 | DA160: 673647699 | DB160: 1355946118 | DC160: 220738787
A161: 19 | B161: 420544503 | C161: 0.1958312947 | D161: 2 | E161: 3 | F161: 0.96 | G161: 0.17 | H161: 0.9673021586 | I161: 13.93460432 | J161: 28.86920863 | K161: 45.73841727 | L161: 63.57492806 | M161: 83.34604317 | N161: 102.1171583 | O161: 123.8228777 | P161: 146.4632015 | Q161: 170.0381295 | R161: 14.93460432 | S161: 16.86920863 | T161: 17.83651079 | U161: 19.77111511 | V161: 18.77111511 | W161: 21.70571943 | X161: 22.64032374 | Y161: 23.57492806 | Z161: 0 | AB161: 1751057825 | AC161: 1170399833 | AD161: 1532583878 | AE161: 1481457927 | AF161: 470136955 | AG161: 2075086707 | AH161: 1463243523 | AI161: 1061277554 | AJ161: 1975859730 | AK161: 1914162784 | AL161: 1815003454 | AM161: 2071482691 | AN161: 1094619064 | AO161: 1675429193 | AP161: 1065219006 | AQ161: 911319484 | AR161: 49016791 | AS161: 1136876677 | AT161: 2142304143 | AU161: 1615456287 | AV161: 882693470 | AW161: 1688118821 | AX161: 722037379 | AY161: 1212168385 | AZ161: 379874641 | BA161: 1754775867 | BB161: 318974792 | BC161: 1259315801 | BD161: 1399489365 | BE161: 692076955 | BF161: 342039271 | BG161: 581914226 | BH161: 1207042602 | BI161: 2039391348 | BJ161: 528395631 | BK161: 217010911 | BL161: 2127783575 | BM161: 288420002 | BN161: 1639886941 | BO161: 1933645437 | BP161: 605451798 | BQ161: 1744496075 | BR161: 335329406 | BS161: 1194493070 | BT161: 614265125 | BU161: 645952873 | BV161: 628878629 | BW161: 32526335 | BX161: 2069986924 | BY161: 190430214 | BZ161: 2028393367 | CA161: 550976302 | CB161: 1224768950 | CC161: 924519213 | CD161: 36140963 | CE161: 1368636335 | CF161: 1776241335 | CG161: 995946613 | CH161: 287603349 | CI161: 1039687668 | CJ161: 1264641021 | CK161: 137277527 | CL161: 2144040100 | CM161: 731216068 | CN161: 662407247 | CO161: 1807982195 | CP161: 897352306 | CQ161: 1388257721 | CR161: 664804395 | CS161: 197712900 | CT161: 1128104293 | CU161: 1390497509 | CV161: 1928096491 | CW161: 460542846 | CX161: 269604680 | CY161: 1093938768 | CZ161: 1794162569 | DA161: 450695555 | DB161: 1868468712 | DC161: 1615614510
A162: 20 | B162: 2088272869 | C162: 0.9724278329 | D162: 1 | E162: 2 | F162: 1 | G162: 0.96 | H162: 0.689304178 | I162: 11.68930418 | J162: 24.37860836 | K162: 37.06791253 | L162: 49.75721671 | M162: 62.44652089 | N162: 73.82512925 | O162: 86.2037376 | P162: 97.58234596 | Q162: 108.582346 | R162: 12.68930418 | S162: 12.68930418 | T162: 12.68930418 | U162: 12.68930418 | V162: 11.37860836 | W162: 12.37860836 | X162: 11.37860836 | Y162: 11 | Z162: 0 | AB162: 355924655 | AC162: 370553467 | AD162: 692219435 | AE162: 250149117 | AF162: 1521256956 | AG162: 1430686576 | AH162: 1490948903 | AI162: 706409949 | AJ162: 533812619 | AK162: 920350642 | AL162: 1141381375 | AM162: 1407405647 | AN162: 1669187556 | AO162: 408429283 | AP162: 1985678505 | AQ162: 1247787016 | AR162: 1710023014 | AS162: 1376960029 | AT162: 1235749115 | AU162: 264239913 | AV162: 273450243 | AW162: 916623076 | AX162: 1954214546 | AY162: 93182526 | AZ162: 1713417625 | BA162: 1588387336 | BB162: 1921919289 | BC162: 1760918089 | BD162: 1358054236 | BE162: 991082073 | BF162: 723372305 | BG162: 495500486 | BH162: 1774614385 | BI162: 661897181 | BJ162: 522228582 | BK162: 2055938462 | BL162: 393080109 | BM162: 185433041 | BN162: 587816944 | BO162: 769656219 | BP162: 658789235 | BQ162: 1441270161 | BR162: 1101509587 | BS162: 1586543667 | BT162: 885134746 | BU162: 1476061790 | BV162: 1918950114 | BW162: 268170828 | BX162: 72197141 | BY162: 1026850834 | BZ162: 206817139 | CA162: 1739589394 | CB162: 597183540 | CC162: 609262416 | CD162: 803703609 | CE162: 257610477 | CF162: 513391663 | CG162: 1770034381 | CH162: 1566965371 | CI162: 70591638 | CJ162: 1116575069 | CK162: 1536454822 | CL162: 1280267229 | CM162: 489596336 | CN162: 1176199754 | CO162: 1520604412 | CP162: 1348002936 | CQ162: 361245756 | CR162: 924813924 | CS162: 382068632 | CT162: 979490424 | CU162: 1103869954 | CV162: 1351939728 | CW162: 113005522 | CX162: 336607460 | CY162: 1042874045 | CZ162: 153368336 | DA162: 1515791295 | DB162: 687506599 | DC162: 1459371405
A163: 21 | B163: 137269319 | C163: 0.06392100782 | D163: 3 | E163: 4 | F163: 0.17 | G163: 0.013 | H163: 0.6756623706 | I163: =IF($D163>0,INDEX(RSLtable,$D163,I$141)+IF($E163>$D163,$H163*INDEX(RSLdiff,$D163,I$141),0),$H163*INDEX(RSLtable,$E163,I$141)) -> 14.67566237 | J163: 31.70264948 | K163: 50.72963659 | L163: 72.10794845 | M163: 96.83758504 | N163: 121.9185464 | O163: 149.9995077 | P163: 181.1074562 | Q163: 214.5667293 | R163: 17.02698711 | S163: 19.02698711 | T163: 21.37831185 | U163: 24.72963659 | V163: 25.08096133 | W163: 28.08096133 | X163: 31.10794845 | Y163: 33.45927319 | Z163: 0 | AB163: 969845505 | AC163: 595109694 | AD163: 1426283212 | AE163: 1794963273 | AF163: 1538697558 | AG163: 1892589870 | AH163: 975034802 | AI163: 1369301113 | AJ163: 12651396 | AK163: 1251634493 | AL163: 1927388840 | AM163: 1232813492 | AN163: 1913563883 | AO163: 1390040233 | AP163: 2049498304 | AQ163: 1453201927 | AR163: 1691969055 | AS163: 471201562 | AT163: 192267446 | AU163: 1219460890 | AV163: 1282185391 | AW163: 1706922455 | AX163: 1523671844 | AY163: 1182955728 | AZ163: 196995817 | BA163: 1436447215 | BB163: 1672448919 | BC163: 1726842212 | BD163: 550217634 | BE163: 1029541564 | BF163: 1967918082 | BG163: 1778583067 | BH163: 1435783152 | BI163: 177123985 | BJ163: 1332833236 | BK163: 543720391 | BL163: 1351920294 | BM163: 326481415 | BN163: 1957759660 | BO163: 608254249 | BP163: 477317909 | BQ163: 1671713419 | BR163: 1421658004 | BS163: 487530443 | BT163: 4683454 | BU163: 1766224924 | BV163: 81323196 | BW163: 1990097919 | BX163: 1809717777 | BY163: 1046551607 | BZ163: 1766125413 | CA163: 814072780 | CB163: 973665659 | CC163: 2065020718 | CD163: 1284826984 | CE163: 1185019137 | CF163: 2115161940 | CG163: 1545225709 | CH163: 316408907 | CI163: 1619893756 | CJ163: 650583293 | CK163: 715479970 | CL163: 1642501340 | CM163: 247199821 | CN163: 1165665948 | CO163: 104517192 | CP163: 695219556 | CQ163: 126674236 | CR163: 1950355215 | CS163: 245374836 | CT163: 1982284552 | CU163: 1542300170 | CV163: 1749545252 | CW163: 281089082 | CX163: 517428458 | CY163: 1408856868 | CZ163: 866815847 | DA163: 1846264008 | DB163: 1566243238 | DC163: 1411018214
A164: 22 | B164: 1140246454 | C164: 0.5309686319 | D164: 2 | E164: 3 | F164: 0.96 | G164: 0.17 | H164: 0.5430776812 | I164: 13.08615536 | J164: 27.17231072 | K164: 42.34462145 | L164: 58.06000986 | M164: 74.86155362 | N164: 90.66309739 | O164: 108.5507965 | P164: 126.524651 | Q164: 144.5846609 | R164: 14.08615536 | S164: 15.17231072 | T164: 15.71538841 | U164: 16.80154377 | V164: 15.80154377 | W164: 17.88769913 | X164: 17.97385449 | Y164: 18.06000986 | Z164: 0 | AB164: 268867255 | AC164: 1798776802 | AD164: 1938687279 | AE164: 149445474 | AF164: 1600407076 | AG164: 1103787743 | AH164: 1653319690 | AI164: 134854610 | AJ164: 810180568 | AK164: 343686905 | AL164: 1552656659 | AM164: 220730315 | AN164: 2075571529 | AO164: 505536628 | AP164: 1055982388 | AQ164: 2104372609 | AR164: 2087674848 | AS164: 1371293925 | AT164: 1665047179 | AU164: 2069856920 | AV164: 1892302421 | AW164: 201257209 | AX164: 2143639268 | AY164: 865772558 | AZ164: 127493491 | BA164: 791520929 | BB164: 429027378 | BC164: 1822657147 | BD164: 1625148365 | BE164: 2081760617 | BF164: 1582094824 | BG164: 1881987391 | BH164: 948790561 | BI164: 819481228 | BJ164: 730554483 | BK164: 1529343974 | BL164: 811446638 | BM164: 1349381779 | BN164: 851177978 | BO164: 644431695 | BP164: 260736676 | BQ164: 1432928877 | BR164: 2013571199 | BS164: 1456210227 | BT164: 589225099 | BU164: 195036857 | BV164: 2099371047 | BW164: 630666798 | BX164: 1547020901 | BY164: 687309469 | BZ164: 1833992317 | CA164: 1451390574 | CB164: 2135410994 | CC164: 866635779 | CD164: 555619304 | CE164: 1684340635 | CF164: 1019492772 | CG164: 1040687888 | CH164: 470652333 | CI164: 1864424959 | CJ164: 1652766322 | CK164: 1101620816 | CL164: 85935900 | CM164: 1163416759 | CN164: 1641940861 | CO164: 710288229 | CP164: 216236007 | CQ164: 806102947 | CR164: 2060982432 | CS164: 1116395351 | CT164: 1428750213 | CU164: 1555915521 | CV164: 356957370 | CW164: 649395476 | CX164: 1554281508 | CY164: 417742032 | CZ164: 496372389 | DA164: 438579668 | DB164: 1965548863 | DC164: 1668859742
A165: 23 | B165: 830708424 | C165: 0.3868287543 | D165: 2 | E165: 3 | F165: 0.96 | G165: 0.17 | H165: 0.7255332224 | I165: 13.45106644 | J165: 27.90213289 | K165: 43.80426578 | L165: 60.43193189 | M165: 78.51066445 | N165: 95.58939701 | O165: 115.119196 | P165: 135.1000615 | Q165: 155.5319933 | R165: 14.45106644 | S165: 15.90213289 | T165: 16.62766611 | U165: 18.07873256 | V165: 17.07873256 | W165: 19.529799 | X165: 19.98086545 | Y165: 20.43193189 | Z165: 0 | AB165: 1247587284 | AC165: 1696193838 | AD165: 1478759290 | AE165: 484905181 | AF165: 1820732065 | AG165: 1868860283 | AH165: 459982529 | AI165: 543945253 | AJ165: 401502411 | AK165: 799418180 | AL165: 1110306289 | AM165: 1206662598 | AN165: 1211209221 | AO165: 901889327 | AP165: 654005956 | AQ165: 2046222292 | AR165: 1334968686 | AS165: 1840602194 | AT165: 1769404887 | AU165: 239224998 | AV165: 113238946 | AW165: 1818200258 | AX165: 1259058580 | AY165: 1675376598 | AZ165: 1697655406 | BA165: 1625199982 | BB165: 1395755417 | BC165: 1225608894 | BD165: 2106585652 | BE165: 1464449136 | BF165: 485794690 | BG165: 412631920 | BH165: 1832914109 | BI165: 529579048 | BJ165: 766481506 | BK165: 1065119682 | BL165: 1386425265 | BM165: 681356952 | BN165: 1555041634 | BO165: 1061722550 | BP165: 1765915776 | BQ165: 609035444 | BR165: 1985483709 | BS165: 1289133913 | BT165: 1211332961 | BU165: 55815799 | BV165: 1133991454 | BW165: 188826386 | BX165: 1797055040 | BY165: 640515596 | BZ165: 777269979 | CA165: 567897826 | CB165: 1356519021 | CC165: 394244549 | CD165: 376156001 | CE165: 1075916665 | CF165: 200342560 | CG165: 1107571024 | CH165: 629264630 | CI165: 912517413 | CJ165: 1665643212 | CK165: 348342122 | CL165: 1420906543 | CM165: 445520992 | CN165: 948341502 | CO165: 1746677704 | CP165: 1157769477 | CQ165: 1139154644 | CR165: 1355544150 | CS165: 565350303 | CT165: 764208318 | CU165: 1652527660 | CV165: 1427907389 | CW165: 150226737 | CX165: 86497429 | CY165: 2101664989 | CZ165: 916539840 | DA165: 785361902 | DB165: 1034157766 | DC165: 1122039818
A166: 24 | B166: 1311678120 | C166: 0.6107977222 | D166: 2 | E166: 3 | F166: 0.96 | G166: 0.17 | H166: 0.4420281998 | I166: 12.8840564 | J166: 26.7681128 | K166: 41.5362256 | L166: 56.7463666 | M166: 72.840564 | N166: 87.93476139 | O166: 104.9130152 | P166: 121.7753254 | Q166: 138.521692 | R166: 13.8840564 | S166: 14.7681128 | T166: 15.210141 | U166: 16.0941974 | V166: 15.0941974 | W166: 16.9782538 | X166: 16.8623102 | Y166: 16.7463666 | Z166: 0 | AB166: 401873143 | AC166: 2011228576 | AD166: 980744957 | AE166: 1433723398 | AF166: 641772493 | AG166: 261677517 | AH166: 983231026 | AI166: 1646239341 | AJ166: 2030450853 | AK166: 581313837 | AL166: 845498140 | AM166: 611310477 | AN166: 1038017316 | AO166: 1311211633 | AP166: 1511891176 | AQ166: 1833397014 | AR166: 731646377 | AS166: 2015062890 | AT166: 1223691893 | AU166: 610308539 | AV166: 811280751 | AW166: 835484675 | AX166: 82021433 | AY166: 17099685 | AZ166: 1695617153 | BA166: 303222565 | BB166: 1505276676 | BC166: 339931071 | BD166: 1497838595 | BE166: 1705035557 | BF166: 1421539397 | BG166: 244584395 | BH166: 270699139 | BI166: 1812375767 | BJ166: 1980505610 | BK166: 1486176995 | BL166: 2101075354 | BM166: 1069376187 | BN166: 271317576 | BO166: 711975395 | BP166: 304539278 | BQ166: 1846273541 | BR166: 1236435176 | BS166: 149475304 | BT166: 568619915 | BU166: 1339940191 | BV166: 1690797651 | BW166: 917880738 | BX166: 189398922 | BY166: 1006268657 | BZ166: 912359572 | CA166: 367204891 | CB166: 1605782014 | CC166: 1726028712 | CD166: 452088886 | CE166: 828817167 | CF166: 616851319 | CG166: 1955507439 | CH166: 1224251562 | CI166: 1090959306 | CJ166: 475742772 | CK166: 25615052 | CL166: 99535620 | CM166: 842563774 | CN166: 1631223590 | CO166: 1523984917 | CP166: 575994739 | CQ166: 1815039089 | CR166: 1792424207 | CS166: 1949773684 | CT166: 1773113659 | CU166: 882608045 | CV166: 882440307 | CW166: 1690029455 | CX166: 609185491 | CY166: 195716092 | CZ166: 1984004793 | DA166: 675550951 | DB166: 1572148071 | DC166: 298993691
A167: 25 | B167: 1754166019 | C167: 0.8168472069 | D167: 2 | E167: 3 | F167: 0.96 | G167: 0.17 | H167: 0.1812060672 | I167: 12.36241213 | J167: 25.72482427 | K167: 39.44964854 | L167: 53.35567887 | M167: 67.62412134 | N167: 80.89256381 | O167: 95.52341842 | P167: 109.5166852 | Q167: 122.872364 | R167: 13.36241213 | S167: 13.72482427 | T167: 13.90603034 | U167: 14.26844247 | V167: 13.26844247 | W167: 14.6308546 | X167: 13.99326674 | Y167: 13.35567887 | Z167: 0 | AB167: 598702402 | AC167: 573878520 | AD167: 262821232 | AE167: 306652989 | AF167: 1548401628 | AG167: 2084095100 | AH167: 8773699 | AI167: 134355823 | AJ167: 739476083 | AK167: 1578894125 | AL167: 114004705 | AM167: 2142725487 | AN167: 1045408832 | AO167: 711208512 | AP167: 414697048 | AQ167: 2106169924 | AR167: 1933689252 | AS167: 976455972 | AT167: 146172621 | AU167: 1022816523 | AV167: 1968828476 | AW167: 2085339912 | AX167: 1444230922 | AY167: 785174187 | AZ167: 2091354352 | BA167: 1755380810 | BB167: 1101230951 | BC167: 2037665161 | BD167: 687392049 | BE167: 1460600672 | BF167: 583259996 | BG167: 1615723486 | BH167: 1627630321 | BI167: 1001837371 | BJ167: 1456786811 | BK167: 411013963 | BL167: 1798216065 | BM167: 793499738 | BN167: 1415431690 | BO167: 1583489104 | BP167: 889924623 | BQ167: 898747111 | BR167: 1096863272 | BS167: 1924829111 | BT167: 863424658 | BU167: 192995768 | BV167: 1377407186 | BW167: 138499094 | BX167: 637478583 | BY167: 1809214201 | BZ167: 2061750983 | CA167: 17271123 | CB167: 1428842976 | CC167: 1208904293 | CD167: 53795292 | CE167: 213124647 | CF167: 1169253794 | CG167: 1655884084 | CH167: 1392151156 | CI167: 1102668192 | CJ167: 1536709841 | CK167: 1661078067 | CL167: 762994681 | CM167: 203144221 | CN167: 1158511988 | CO167: 76116875 | CP167: 371268560 | CQ167: 714034813 | CR167: 2140242114 | CS167: 1907186942 | CT167: 2008682404 | CU167: 444867362 | CV167: 937920952 | CW167: 803040069 | CX167: 499257690 | CY167: 630913779 | CZ167: 714641291 | DA167: 2128259673 | DB167: 1382417555 | DC167: 1634350421
A168: 26 | B168: 67701939 | C168: 0.03152617208 | D168: 3 | E168: 4 | F168: 0.17 | G168: 0.013 | H168: 0.8819989039 | I168: 14.8819989 | J168: 32.52799562 | K168: 52.17399233 | L168: 74.58398685 | M168: 100.7579792 | N168: 127.6959693 | O168: 157.6339594 | P168: 191.2179463 | Q168: 227.5659309 | R168: 17.64599671 | S168: 19.64599671 | T168: 22.40999452 | U168: 26.17399233 | V168: 26.93799014 | W168: 29.93799014 | X168: 33.58398685 | Y168: 36.34798466 | Z168: 0 | AB168: 1276209263 | AC168: 1298476267 | AD168: 1457787043 | AE168: 1989136895 | AF168: 1874135000 | AG168: 335644738 | AH168: 460945970 | AI168: 89318093 | AJ168: 1924305706 | AK168: 603675845 | AL168: 1268011441 | AM168: 99608869 | AN168: 1358992266 | AO168: 1072501810 | AP168: 1146130321 | AQ168: 757585130 | AR168: 737166437 | AS168: 1535140056 | AT168: 1414807896 | AU168: 1727337203 | AV168: 430567011 | AW168: 294422674 | AX168: 709203301 | AY168: 204294774 | AZ168: 707163569 | BA168: 724819831 | BB168: 856521530 | BC168: 1088986737 | BD168: 331767482 | BE168: 619423455 | BF168: 1032654746 | BG168: 277300960 | BH168: 1653999496 | BI168: 507488748 | BJ168: 1204132766 | BK168: 1601076987 | BL168: 398661875 | BM168: 507525106 | BN168: 2110878685 | BO168: 1217091513 | BP168: 1436085892 | BQ168: 2104642034 | BR168: 477685927 | BS168: 398545979 | BT168: 9045342 | BU168: 314656442 | BV168: 581080639 | BW168: 373173363 | BX168: 435502130 | BY168: 861223922 | BZ168: 1947047472 | CA168: 470723297 | CB168: 947003797 | CC168: 1445987472 | CD168: 444810909 | CE168: 1293166207 | CF168: 884679720 | CG168: 1839277424 | CH168: 1470169352 | CI168: 1514105137 | CJ168: 140600237 | CK168: 1302444118 | CL168: 1171700501 | CM168: 564359689 | CN168: 2058004868 | CO168: 2040636755 | CP168: 753625545 | CQ168: 61923973 | CR168: 483795018 | CS168: 1344414039 | CT168: 74177787 | CU168: 1503444749 | CV168: 1132027938 | CW168: 1467342349 | CX168: 606467356 | CY168: 1373428002 | CZ168: 1419936100 | DA168: 1899970197 | DB168: 1918434174 | DC168: 1769915899
A169: 27 | B169: 1717670382 | C169: 0.7998526016 | D169: 2 | E169: 3 | F169: 0.96 | G169: 0.17 | H169: 0.2027182258 | I169: 12.40543645 | J169: 25.8108729 | K169: 39.62174581 | L169: 53.63533694 | M169: 68.05436452 | N169: 81.4733921 | O169: 96.29785613 | P169: 110.5277566 | Q169: 124.1630935 | R169: 13.40543645 | S169: 13.8108729 | T169: 14.01359113 | U169: 14.41902758 | V169: 13.41902758 | W169: 14.82446403 | X169: 14.22990048 | Y169: 13.63533694 | Z169: 0 | AB169: 1181436431 | AC169: 142679368 | AD169: 94207757 | AE169: 1485717528 | AF169: 1474471478 | AG169: 1290515030 | AH169: 244851303 | AI169: 1473987674 | AJ169: 903066988 | AK169: 831107852 | AL169: 601361717 | AM169: 3829866 | AN169: 732707177 | AO169: 1346592281 | AP169: 1383010977 | AQ169: 2040269114 | AR169: 2104533284 | AS169: 1674919794 | AT169: 2064489569 | AU169: 2094047591 | AV169: 553452315 | AW169: 30120808 | AX169: 915725744 | AY169: 268128730 | AZ169: 1240070134 | BA169: 974485277 | BB169: 1795602586 | BC169: 374070461 | BD169: 962567943 | BE169: 774779124 | BF169: 2034313649 | BG169: 329068409 | BH169: 1062643250 | BI169: 643393379 | BJ169: 900357884 | BK169: 1945751241 | BL169: 206407358 | BM169: 250946750 | BN169: 420920779 | BO169: 1514293044 | BP169: 529967572 | BQ169: 19250938 | BR169: 845464378 | BS169: 1054442483 | BT169: 688523341 | BU169: 1776760198 | BV169: 1059611702 | BW169: 358574337 | BX169: 405896747 | BY169: 1151500236 | BZ169: 1306709957 | CA169: 1907284227 | CB169: 1483374945 | CC169: 1747766118 | CD169: 925885633 | CE169: 1518810748 | CF169: 1662443525 | CG169: 344115983 | CH169: 800191630 | CI169: 2058109776 | CJ169: 865715707 | CK169: 548770406 | CL169: 878072732 | CM169: 1376485524 | CN169: 1506956655 | CO169: 649396362 | CP169: 2033186162 | CQ169: 1982347706 | CR169: 1532136400 | CS169: 1401747876 | CT169: 780716728 | CU169: 719112261 | CV169: 1399197283 | CW169: 1776883225 | CX169: 288665572 | CY169: 1775418005 | CZ169: 499921801 | DA169: 877266958 | DB169: 946187220 | DC169: 120948381
A170: 28 | B170: 1470882499 | C170: 0.6849330383 | D170: 2 | E170: 3 | F170: 0.96 | G170: 0.17 | H170: 0.3481860275 | I170: 12.69637205 | J170: 26.39274411 | K170: 40.78548822 | L170: 55.52641836 | M170: 70.96372055 | N170: 85.40102274 | O170: 101.534697 | P170: 117.3647433 | Q170: 132.8911616 | R170: 13.69637205 | S170: 14.39274411 | T170: 14.74093014 | U170: 15.43730219 | V170: 14.43730219 | W170: 16.13367425 | X170: 15.8300463 | Y170: 15.52641836 | Z170: 0 | AB170: 542231069 | AC170: 295716799 | AD170: 1279757448 | AE170: 1854402523 | AF170: 162202017 | AG170: 245380954 | AH170: 1614737672 | AI170: 430819250 | AJ170: 176027295 | AK170: 1265114285 | AL170: 794984808 | AM170: 187868044 | AN170: 1599958524 | AO170: 1320968755 | AP170: 498736478 | AQ170: 82866827 | AR170: 1212230629 | AS170: 1589033918 | AT170: 997346164 | AU170: 1863484518 | AV170: 1000128685 | AW170: 115093949 | AX170: 1341482423 | AY170: 2105469008 | AZ170: 466261836 | BA170: 897002179 | BB170: 944952239 | BC170: 712718955 | BD170: 1160990061 | BE170: 935382099 | BF170: 369424510 | BG170: 1672117627 | BH170: 57928508 | BI170: 333294795 | BJ170: 401370578 | BK170: 1013369119 | BL170: 1312939585 | BM170: 1642800170 | BN170: 924138842 | BO170: 391150338 | BP170: 1239464948 | BQ170: 1549092694 | BR170: 631762850 | BS170: 1483179346 | BT170: 1253272439 | BU170: 1937107419 | BV170: 1898446643 | BW170: 23626507 | BX170: 1548562856 | BY170: 748656655 | BZ170: 306654663 | CA170: 1745490980 | CB170: 444728174 | CC170: 375725936 | CD170: 2143212826 | CE170: 1569391775 | CF170: 642474179 | CG170: 36605848 | CH170: 1409296788 | CI170: 128519782 | CJ170: 1078605624 | CK170: 485482281 | CL170: 564105533 | CM170: 1188690824 | CN170: 591118674 | CO170: 192994843 | CP170: 1779074355 | CQ170: 182289653 | CR170: 566845367 | CS170: 856972720 | CT170: 1934139732 | CU170: 342280623 | CV170: 143865896 | CW170: 1433292795 | CX170: 1301924276 | CY170: 1572618526 | CZ170: 451514732 | DA170: 323294425 | DB170: 721092224 | DC170: 1438746705
A171: 29 | B171: 864772115 | C171: 0.4026908965 | D171: 2 | E171: 3 | F171: 0.96 | G171: 0.17 | H171: 0.7054545614 | I171: 13.41090912 | J171: 27.82181825 | K171: 43.64363649 | L171: 60.1709093 | M171: 78.10909123 | N171: 95.04727316 | O171: 114.3963642 | P171: 134.1563644 | Q171: 154.3272737 | R171: 14.41090912 | S171: 15.82181825 | T171: 16.52727281 | U171: 17.93818193 | V171: 16.93818193 | W171: 19.34909105 | X171: 19.76000018 | Y171: 20.1709093 | Z171: 0 | AB171: 505242063 | AC171: 221802920 | AD171: 657182806 | AE171: 303329832 | AF171: 2075669292 | AG171: 1411717329 | AH171: 2083197247 | AI171: 1991862849 | AJ171: 1568249413 | AK171: 339181496 | AL171: 1326378725 | AM171: 1902394290 | AN171: 1643514943 | AO171: 1398325881 | AP171: 1216846668 | AQ171: 1450055403 | AR171: 950279003 | AS171: 435352232 | AT171: 608283998 | AU171: 613646489 | AV171: 1779369075 | AW171: 159817390 | AX171: 1623632642 | AY171: 1283407246 | AZ171: 1296464996 | BA171: 1626891695 | BB171: 1236866489 | BC171: 968651865 | BD171: 1417982419 | BE171: 985622654 | BF171: 1933801169 | BG171: 1617100422 | BH171: 243301274 | BI171: 1673049768 | BJ171: 2109191051 | BK171: 958231883 | BL171: 369317271 | BM171: 1625856948 | BN171: 1575726698 | BO171: 541741174 | BP171: 1318099488 | BQ171: 872843534 | BR171: 1556744950 | BS171: 1740387080 | BT171: 2099566979 | BU171: 379264875 | BV171: 348235822 | BW171: 161302840 | BX171: 1066837200 | BY171: 550581789 | BZ171: 2069942549 | CA171: 74205535 | CB171: 1227151742 | CC171: 1167257741 | CD171: 1629621 | CE171: 1477239453 | CF171: 1059748182 | CG171: 1769330974 | CH171: 178283882 | CI171: 1845624386 | CJ171: 1778538236 | CK171: 1373630087 | CL171: 1993023130 | CM171: 679201111 | CN171: 274294965 | CO171: 270005767 | CP171: 1974630322 | CQ171: 1063338204 | CR171: 1103564030 | CS171: 2100158606 | CT171: 1007450047 | CU171: 1636256462 | CV171: 1736035065 | CW171: 995852046 | CX171: 1225280988 | CY171: 469430743 | CZ171: 256094969 | DA171: 2129010073 | DB171: 1427794128 | DC171: 121053075
A172: 30 | B172: 627632779 | C172: 0.292264288 | D172: 2 | E172: 3 | F172: 0.96 | G172: 0.17 | H172: 0.8452350785 | I172: 13.69047016 | J172: 28.38094031 | K172: 44.76188063 | L172: 61.98805602 | M172: 80.90470157 | N172: 98.82134712 | O172: 119.4284628 | P172: 140.7260487 | Q172: 162.7141047 | R172: 14.69047016 | S172: 16.38094031 | T172: 17.22617539 | U172: 18.91664555 | V172: 17.91664555 | W172: 20.60711571 | X172: 21.29758586 | Y172: 21.98805602 | Z172: 0 | AB172: 1715327741 | AC172: 1442771025 | AD172: 242794942 | AE172: 490815226 | AF172: 1635359700 | AG172: 1056101555 | AH172: 2092539162 | AI172: 2073740595 | AJ172: 21374526 | AK172: 214668688 | AL172: 549982817 | AM172: 1926543223 | AN172: 1768926079 | AO172: 1030092894 | AP172: 432798284 | AQ172: 542367895 | AR172: 667053893 | AS172: 1760104977 | AT172: 2080445674 | AU172: 1087727448 | AV172: 1168673913 | AW172: 783972666 | AX172: 1955564717 | AY172: 742923010 | AZ172: 1840864689 | BA172: 359522202 | BB172: 441936625 | BC172: 632729284 | BD172: 683066718 | BE172: 1638415596 | BF172: 1844544650 | BG172: 171385559 | BH172: 1955215458 | BI172: 1515322046 | BJ172: 561518551 | BK172: 160951560 | BL172: 1052234694 | BM172: 1950857293 | BN172: 180146065 | BO172: 479840635 | BP172: 334891932 | BQ172: 1548559221 | BR172: 887705626 | BS172: 664468040 | BT172: 2001890438 | BU172: 196690450 | BV172: 1336858693 | BW172: 1621169265 | BX172: 640626140 | BY172: 2023405194 | BZ172: 77655163 | CA172: 2120140436 | CB172: 1800302881 | CC172: 1169969472 | CD172: 1354023999 | CE172: 631137128 | CF172: 2044021782 | CG172: 1950804764 | CH172: 974294493 | CI172: 1775640811 | CJ172: 1865433837 | CK172: 792844805 | CL172: 99606277 | CM172: 83990332 | CN172: 1255571760 | CO172: 370125214 | CP172: 1318601167 | CQ172: 1391798337 | CR172: 1807428295 | CS172: 495546297 | CT172: 854032422 | CU172: 1434624189 | CV172: 1041749381 | CW172: 1500158018 | CX172: 1691449721 | CY172: 1791435856 | CZ172: 1044376467 | DA172: 1615306598 | DB172: 1857669517 | DC172: 49979838
A173: 31 | B173: 1910066880 | C173: 0.8894442026 | D173: 2 | E173: 3 | F173: 0.96 | G173: 0.17 | H173: 0.08931113595 | I173: =IF($D173>0,INDEX(RSLtable,$D173,I$141)+IF($E173>$D173,$H173*INDEX(RSLdiff,$D173,I$141),0),$H173*INDEX(RSLtable,$E173,I$141)) -> 12.17862227 | J173: 25.35724454 | K173: 38.71448909 | L173: 52.16104477 | M173: 65.78622272 | N173: 78.41140067 | O173: 92.21520089 | P173: 105.1976234 | Q173: 117.3586682 | R173: 13.17862227 | S173: 13.35724454 | T173: 13.44655568 | U173: 13.62517795 | V173: 12.62517795 | W173: 13.80380022 | X173: 12.9824225 | Y173: 12.16104477 | Z173: 0 | AB173: 58408432 | AC173: 1105475565 | AD173: 1136383603 | AE173: 1102180542 | AF173: 1096698627 | AG173: 2111348919 | AH173: 2064552257 | AI173: 877023634 | AJ173: 977593986 | AK173: 663641673 | AL173: 1027715193 | AM173: 1536067745 | AN173: 1733471042 | AO173: 777723636 | AP173: 885048948 | AQ173: 667518968 | AR173: 2136149532 | AS173: 1131818506 | AT173: 267861346 | AU173: 1863956905 | AV173: 810531380 | AW173: 187733052 | AX173: 125783128 | AY173: 807194457 | AZ173: 1801057153 | BA173: 680861335 | BB173: 1767759724 | BC173: 962840330 | BD173: 1997112187 | BE173: 431482800 | BF173: 1195311883 | BG173: 845310245 | BH173: 446571115 | BI173: 669981999 | BJ173: 1670866534 | BK173: 1844401561 | BL173: 137695230 | BM173: 526985806 | BN173: 669416912 | BO173: 1776159190 | BP173: 1459038603 | BQ173: 891372115 | BR173: 1697064055 | BS173: 1868490895 | BT173: 784184992 | BU173: 419508563 | BV173: 1769861100 | BW173: 1157494135 | BX173: 2047370787 | BY173: 2088370367 | BZ173: 1133409158 | CA173: 818304724 | CB173: 199625602 | CC173: 1071434106 | CD173: 1427659284 | CE173: 1417289346 | CF173: 839277507 | CG173: 138842094 | CH173: 277602303 | CI173: 1590268717 | CJ173: 219943470 | CK173: 1105508968 | CL173: 2026195081 | CM173: 1995674083 | CN173: 1420941326 | CO173: 1397745601 | CP173: 929118824 | CQ173: 1619112579 | CR173: 553101276 | CS173: 1842442201 | CT173: 1902954550 | CU173: 839062410 | CV173: 807292099 | CW173: 979110038 | CX173: 641223451 | CY173: 1676191227 | CZ173: 917825232 | DA173: 1628536782 | DB173: 1238090975 | DC173: 952624517
A174: 32 | B174: 775464182 | C174: 0.3611036494 | D174: 2 | E174: 3 | F174: 0.96 | G174: 0.17 | H174: 0.7580966463 | I174: 13.51619329 | J174: 28.03238659 | K174: 44.06477317 | L174: 60.8552564 | M174: 79.16193293 | N174: 96.46860945 | O174: 116.2914793 | P174: 136.6305424 | Q174: 157.4857988 | R174: 14.51619329 | S174: 16.03238659 | T174: 16.79048323 | U174: 18.30667652 | V174: 17.30667652 | W174: 19.82286982 | X174: 20.33906311 | Y174: 20.8552564 | Z174: 0 | AB174: 1934876208 | AC174: 1737337459 | AD174: 1198105092 | AE174: 1597072104 | AF174: 1120041720 | AG174: 1644749723 | AH174: 1875874965 | AI174: 1462703503 | AJ174: 633639028 | AK174: 633635084 | AL174: 1967835603 | AM174: 1358238926 | AN174: 1827846674 | AO174: 1336000149 | AP174: 158095490 | AQ174: 963464740 | AR174: 499264820 | AS174: 2027123446 | AT174: 2083477826 | AU174: 1941402896 | AV174: 155679287 | AW174: 1828646399 | AX174: 741101619 | AY174: 140342679 | AZ174: 101867315 | BA174: 767768097 | BB174: 1266923659 | BC174: 1424481056 | BD174: 2061464847 | BE174: 1809830194 | BF174: 309276697 | BG174: 1781543395 | BH174: 2140927226 | BI174: 1744833556 | BJ174: 1355132335 | BK174: 730713705 | BL174: 224559865 | BM174: 1188042711 | BN174: 237322743 | BO174: 843137662 | BP174: 378718401 | BQ174: 441011873 | BR174: 1067800443 | BS174: 1758302192 | BT174: 1846986810 | BU174: 1474537010 | BV174: 1770713146 | BW174: 169862939 | BX174: 1437824337 | BY174: 548627983 | BZ174: 1500074846 | CA174: 1720612933 | CB174: 368310053 | CC174: 1347060025 | CD174: 1791065734 | CE174: 1587478287 | CF174: 485539742 | CG174: 1897740834 | CH174: 1990294480 | CI174: 2058276292 | CJ174: 1879573249 | CK174: 1202250025 | CL174: 1467535983 | CM174: 1362223367 | CN174: 1778545813 | CO174: 936684425 | CP174: 1446269356 | CQ174: 663451991 | CR174: 1234994292 | CS174: 639727613 | CT174: 1053566272 | CU174: 840010690 | CV174: 558652367 | CW174: 800541122 | CX174: 815399010 | CY174: 685350498 | CZ174: 1754136262 | DA174: 312621840 | DB174: 1567041862 | DC174: 70726896
A175: 33 | B175: 1791562112 | C175: 0.8342611198 | D175: 2 | E175: 3 | F175: 0.96 | G175: 0.17 | H175: 0.1591631396 | I175: 12.31832628 | J175: 25.63665256 | K175: 39.27330512 | L175: 53.06912081 | M175: 67.18326279 | N175: 80.29740477 | O175: 94.72987302 | P175: 108.4806676 | Q175: 121.5497884 | R175: 13.31832628 | S175: 13.63665256 | T175: 13.7958157 | U175: 14.11414198 | V175: 13.11414198 | W175: 14.43246826 | X175: 13.75079454 | Y175: 13.06912081 | Z175: 0 | AB175: 50661044 | AC175: 1632584392 | AD175: 1996282222 | AE175: 1899572178 | AF175: 485569248 | AG175: 1243449343 | AH175: 1712459760 | AI175: 1193447247 | AJ175: 1927420014 | AK175: 1737039190 | AL175: 1895718309 | AM175: 875454036 | AN175: 473680012 | AO175: 1129272969 | AP175: 1417999999 | AQ175: 1500605108 | AR175: 950639586 | AS175: 1183486311 | AT175: 603982542 | AU175: 1567805030 | AV175: 749581924 | AW175: 422499841 | AX175: 933659023 | AY175: 1318035371 | AZ175: 1647094382 | BA175: 1808514008 | BB175: 1780127970 | BC175: 846160883 | BD175: 1019878498 | BE175: 531050967 | BF175: 1936610590 | BG175: 898575930 | BH175: 1342581665 | BI175: 551946336 | BJ175: 1241055165 | BK175: 2009835727 | BL175: 1379277006 | BM175: 1606393193 | BN175: 1128354255 | BO175: 2135488105 | BP175: 1735131407 | BQ175: 78728872 | BR175: 2040172406 | BS175: 8929651 | BT175: 969216658 | BU175: 1178013542 | BV175: 2097636319 | BW175: 361364223 | BX175: 694583934 | BY175: 53032589 | BZ175: 1259281720 | CA175: 1776841118 | CB175: 1824938497 | CC175: 277119262 | CD175: 989901341 | CE175: 505415876 | CF175: 1999846371 | CG175: 637867935 | CH175: 1528928241 | CI175: 1723962677 | CJ175: 1991184023 | CK175: 212880247 | CL175: 386371804 | CM175: 2082360964 | CN175: 83699557 | CO175: 1573175237 | CP175: 322203153 | CQ175: 67429850 | CR175: 263428412 | CS175: 1624246910 | CT175: 2137271105 | CU175: 1517277983 | CV175: 756252078 | CW175: 1099755944 | CX175: 1045329494 | CY175: 568306923 | CZ175: 778785439 | DA175: 201251171 | DB175: 1861222321 | DC175: 1706481733
A176: 34 | B176: 1328243662 | C176: 0.6185116538 | D176: 2 | E176: 3 | F176: 0.96 | G176: 0.17 | H176: 0.4322637294 | I176: 12.86452746 | J176: 26.72905492 | K176: 41.45810984 | L176: 56.61942848 | M176: 72.64527459 | N176: 87.67112069 | O176: 104.5614943 | P176: 121.3163953 | Q176: 137.9358238 | R176: 13.86452746 | S176: 14.72905492 | T176: 15.16131865 | U176: 16.02584611 | V176: 15.02584611 | W176: 16.89037356 | X176: 16.75490102 | Y176: 16.61942848 | Z176: 0 | AB176: 1622864638 | AC176: 273792273 | AD176: 652929978 | AE176: 991844632 | AF176: 1276646850 | AG176: 375302303 | AH176: 1204534636 | AI176: 495745515 | AJ176: 909973166 | AK176: 119743375 | AL176: 1792811422 | AM176: 858566090 | AN176: 749469643 | AO176: 1558074798 | AP176: 1531670898 | AQ176: 1085754958 | AR176: 892886710 | AS176: 707740787 | AT176: 603293210 | AU176: 45399203 | AV176: 117085101 | AW176: 1985112999 | AX176: 1562883291 | AY176: 1534867519 | AZ176: 605850641 | BA176: 1421945971 | BB176: 1294072459 | BC176: 2040501000 | BD176: 1639853130 | BE176: 1996417465 | BF176: 19152333 | BG176: 284014924 | BH176: 998052049 | BI176: 1319460374 | BJ176: 770053003 | BK176: 2059141145 | BL176: 644848685 | BM176: 866293427 | BN176: 160504244 | BO176: 783776808 | BP176: 370947003 | BQ176: 1422808769 | BR176: 1857125900 | BS176: 1546454021 | BT176: 2126048423 | BU176: 672196969 | BV176: 1148798399 | BW176: 1550227499 | BX176: 1746381150 | BY176: 135596395 | BZ176: 115794138 | CA176: 1548229445 | CB176: 1826988747 | CC176: 148258839 | CD176: 2016485661 | CE176: 1515520476 | CF176: 899274597 | CG176: 2050043346 | CH176: 324624862 | CI176: 263576570 | CJ176: 1518385454 | CK176: 233152042 | CL176: 1805360336 | CM176: 379028115 | CN176: 844575940 | CO176: 1572623660 | CP176: 991826889 | CQ176: 1468564145 | CR176: 702201765 | CS176: 1542124287 | CT176: 951623928 | CU176: 595736458 | CV176: 2117025432 | CW176: 523418984 | CX176: 1824234962 | CY176: 787373355 | CZ176: 1050685234 | DA176: 1526739960 | DB176: 936801099 | DC176: 402002017
A177: 35 | B177: 378043570 | C177: 0.1760402555 | D177: 2 | E177: 3 | F177: 0.96 | G177: 0.17 | H177: 0.9923541069 | I177: 13.98470821 | J177: 28.96941643 | K177: 45.93883286 | L177: 63.90060339 | M177: 83.84708214 | N177: 102.7935609 | O177: 124.7247478 | P177: 147.640643 | Q177: 171.5412464 | R177: 14.98470821 | S177: 16.96941643 | T177: 17.96177053 | U177: 19.94647875 | V177: 18.94647875 | W177: 21.93118696 | X177: 22.91589518 | Y177: 23.90060339 | Z177: 0 | AB177: 1390465632 | AC177: 612446345 | AD177: 1112964666 | AE177: 1331805054 | AF177: 829362038 | AG177: 45422021 | AH177: 971671831 | AI177: 721476044 | AJ177: 684180248 | AK177: 1253960548 | AL177: 1504144556 | AM177: 1704310584 | AN177: 1139619891 | AO177: 656289024 | AP177: 1718918442 | AQ177: 1139172583 | AR177: 537583120 | AS177: 1185672801 | AT177: 1688286590 | AU177: 1031608073 | AV177: 1785435114 | AW177: 521761942 | AX177: 838820751 | AY177: 1404188149 | AZ177: 583986865 | BA177: 881640727 | BB177: 167344453 | BC177: 538817698 | BD177: 1103209810 | BE177: 738793890 | BF177: 1084298033 | BG177: 148793956 | BH177: 322320481 | BI177: 1601710628 | BJ177: 434061890 | BK177: 521608900 | BL177: 1862894017 | BM177: 1048440333 | BN177: 1726847395 | BO177: 1470889769 | BP177: 264133127 | BQ177: 1727573692 | BR177: 766958532 | BS177: 202994324 | BT177: 387420150 | BU177: 1289468076 | BV177: 1324785295 | BW177: 1963924514 | BX177: 93928665 | BY177: 1990910636 | BZ177: 1746385904 | CA177: 5140348 | CB177: 2010358735 | CC177: 1186905565 | CD177: 935558209 | CE177: 1658461941 | CF177: 1797114976 | CG177: 1595901006 | CH177: 1926025090 | CI177: 1411485642 | CJ177: 367377924 | CK177: 1667909102 | CL177: 1662383796 | CM177: 1652950372 | CN177: 695645092 | CO177: 717254057 | CP177: 475332701 | CQ177: 624655825 | CR177: 99514067 | CS177: 1655801816 | CT177: 1163419158 | CU177: 1988530788 | CV177: 777801930 | CW177: 812669709 | CX177: 78905467 | CY177: 1133634599 | CZ177: 505639215 | DA177: 2068295061 | DB177: 762694950 | DC177: 377128315
A178: 36 | B178: 1372618911 | C178: 0.6391754894 | D178: 2 | E178: 3 | F178: 0.96 | G178: 0.17 | H178: 0.4061069755 | I178: 12.81221395 | J178: 26.6244279 | K178: 41.2488558 | L178: 56.27939068 | M178: 72.12213951 | N178: 86.96488834 | O178: 103.6198511 | P178: 120.0870278 | Q178: 136.3664185 | R178: 13.81221395 | S178: 14.6244279 | T178: 15.03053488 | U178: 15.84274883 | V178: 14.84274883 | W178: 16.65496278 | X178: 16.46717673 | Y178: 16.27939068 | Z178: 0 | AB178: 1712618934 | AC178: 1137634893 | AD178: 318995487 | AE178: 491305042 | AF178: 744788924 | AG178: 2133055751 | AH178: 380620074 | AI178: 627816525 | AJ178: 2061227642 | AK178: 955538166 | AL178: 139757606 | AM178: 825167341 | AN178: 650656909 | AO178: 48716960 | AP178: 1586444643 | AQ178: 533488911 | AR178: 1629878819 | AS178: 1025100874 | AT178: 425065887 | AU178: 902485147 | AV178: 1924666490 | AW178: 282490266 | AX178: 2059790983 | AY178: 539790118 | AZ178: 1759609893 | BA178: 996100418 | BB178: 1198094396 | BC178: 1094651341 | BD178: 1888743851 | BE178: 1206422108 | BF178: 1678906259 | BG178: 1247734508 | BH178: 212915836 | BI178: 319981247 | BJ178: 1751032058 | BK178: 1484934472 | BL178: 26860129 | BM178: 1663689041 | BN178: 2072845740 | BO178: 1215702285 | BP178: 359761178 | BQ178: 624706228 | BR178: 1384707539 | BS178: 1918616190 | BT178: 870462574 | BU178: 1247471948 | BV178: 942934579 | BW178: 2082102126 | BX178: 692609398 | BY178: 1206623459 | BZ178: 323408999 | CA178: 1169118903 | CB178: 1535456549 | CC178: 402309802 | CD178: 896693876 | CE178: 1720961145 | CF178: 935085931 | CG178: 1204075442 | CH178: 147589819 | CI178: 609756613 | CJ178: 1927296125 | CK178: 330852965 | CL178: 2054262914 | CM178: 1959986174 | CN178: 1429931440 | CO178: 839228513 | CP178: 1069525423 | CQ178: 2090924695 | CR178: 1870093465 | CS178: 15602443 | CT178: 561323121 | CU178: 145613942 | CV178: 820362529 | CW178: 295743390 | CX178: 1357291426 | CY178: 1644919122 | CZ178: 1558899110 | DA178: 8656854 | DB178: 1735770929 | DC178: 142017746
A179: 37 | B179: 1374491990 | C179: 0.6400477098 | D179: 2 | E179: 3 | F179: 0.96 | G179: 0.17 | H179: 0.405002899 | I179: 12.8100058 | J179: 26.6200116 | K179: 41.24002319 | L179: 56.26503769 | M179: 72.10005798 | N179: 86.93507827 | O179: 103.5801044 | P179: 120.0351363 | Q179: 136.3001739 | R179: 13.8100058 | S179: 14.6200116 | T179: 15.0250145 | U179: 15.83502029 | V179: 14.83502029 | W179: 16.64502609 | X179: 16.45503189 | Y179: 16.26503769 | Z179: 0 | AB179: 298088202 | AC179: 1469582566 | AD179: 773403987 | AE179: 1123768561 | AF179: 682415977 | AG179: 1483217459 | AH179: 1188991969 | AI179: 42251811 | AJ179: 307174178 | AK179: 1129040720 | AL179: 993263999 | AM179: 126032855 | AN179: 911316964 | AO179: 121782695 | AP179: 2510233 | AQ179: 1566811704 | AR179: 669580457 | AS179: 326094680 | AT179: 1296667939 | AU179: 7267795 | AV179: 1138602276 | AW179: 1713955283 | AX179: 1825167940 | AY179: 789696927 | AZ179: 855938859 | BA179: 604420948 | BB179: 1479975606 | BC179: 1079746976 | BD179: 136198236 | BE179: 1887519569 | BF179: 746157703 | BG179: 1066071906 | BH179: 1951068661 | BI179: 1112384713 | BJ179: 1259609445 | BK179: 562728346 | BL179: 1632647818 | BM179: 635234899 | BN179: 631150869 | BO179: 1026861313 | BP179: 1479053596 | BQ179: 228960614 | BR179: 789102194 | BS179: 1142346968 | BT179: 433872352 | BU179: 1276940028 | BV179: 479164744 | BW179: 769560899 | BX179: 922834362 | BY179: 869515455 | BZ179: 1217160686 | CA179: 815807200 | CB179: 1919967868 | CC179: 201832521 | CD179: 1777183111 | CE179: 1405513394 | CF179: 1721682655 | CG179: 280754727 | CH179: 1104895850 | CI179: 150600341 | CJ179: 1372178188 | CK179: 1915074423 | CL179: 1267721469 | CM179: 953052922 | CN179: 1948642013 | CO179: 268034015 | CP179: 1554819753 | CQ179: 1442026992 | CR179: 1806547370 | CS179: 1526249603 | CT179: 827199592 | CU179: 216617651 | CV179: 121186679 | CW179: 1505377081 | CX179: 235838123 | CY179: 830573884 | CZ179: 1791947930 | DA179: 1263171916 | DB179: 1176542407 | DC179: 570815942
A180: 38 | B180: 1595575225 | C180: 0.7429976136 | D180: 2 | E180: 3 | F180: 0.96 | G180: 0.17 | H180: 0.274686565 | I180: 12.54937313 | J180: 26.09874626 | K180: 40.19749252 | L180: 54.57092535 | M180: 69.4937313 | N180: 83.41653726 | O180: 98.88871634 | P180: 113.9102686 | Q180: 128.4811939 | R180: 13.54937313 | S180: 14.09874626 | T180: 14.37343283 | U180: 14.92280596 | V180: 13.92280596 | W180: 15.47217909 | X180: 15.02155222 | Y180: 14.57092535 | Z180: 0 | AB180: 875163842 | AC180: 392732035 | AD180: 1128137029 | AE180: 2142768458 | AF180: 649964434 | AG180: 1432656056 | AH180: 183385877 | AI180: 1575187778 | AJ180: 1377647350 | AK180: 1084601554 | AL180: 1126592807 | AM180: 2058255401 | AN180: 1126144096 | AO180: 909728506 | AP180: 912372911 | AQ180: 1488683738 | AR180: 1689352497 | AS180: 2008649417 | AT180: 899708007 | AU180: 783897984 | AV180: 921487125 | AW180: 380481371 | AX180: 17529918 | AY180: 1625628967 | AZ180: 1586778156 | BA180: 290752766 | BB180: 1711476124 | BC180: 1038165806 | BD180: 977606489 | BE180: 1168423930 | BF180: 182754029 | BG180: 206341465 | BH180: 2139995946 | BI180: 241371635 | BJ180: 903022084 | BK180: 2086822510 | BL180: 1187945072 | BM180: 1652297763 | BN180: 2080581157 | BO180: 1552383416 | BP180: 154804354 | BQ180: 1206950932 | BR180: 834559735 | BS180: 1292888309 | BT180: 1191777848 | BU180: 2096455394 | BV180: 1362479434 | BW180: 302029823 | BX180: 884198381 | BY180: 1960131337 | BZ180: 558375633 | CA180: 1421716161 | CB180: 1964686296 | CC180: 1671798399 | CD180: 876704372 | CE180: 86182103 | CF180: 1873784252 | CG180: 1689614447 | CH180: 1671202105 | CI180: 396915316 | CJ180: 1575188527 | CK180: 1976403871 | CL180: 1636508834 | CM180: 1422911828 | CN180: 967387276 | CO180: 1828448537 | CP180: 298318060 | CQ180: 1697480621 | CR180: 979643541 | CS180: 2020592431 | CT180: 1588056761 | CU180: 252754178 | CV180: 56727581 | CW180: 1652913412 | CX180: 331222586 | CY180: 1259748721 | CZ180: 624711517 | DA180: 1068367965 | DB180: 525999735 | DC180: 1641145272
A181: 39 | B181: 510686320 | C181: 0.2378068493 | D181: 2 | E181: 3 | F181: 0.96 | G181: 0.17 | H181: 0.9141685452 | I181: 13.82833709 | J181: 28.65667418 | K181: 45.31334836 | L181: 62.88419109 | M181: 82.2833709 | N181: 100.6825507 | O181: 121.9100676 | P181: 143.9659216 | Q181: 166.8501127 | R181: 14.82833709 | S181: 16.65667418 | T181: 17.57084273 | U181: 19.39917982 | V181: 18.39917982 | W181: 21.22751691 | X181: 22.055854 | Y181: 22.88419109 | Z181: 0 | AB181: 1882997045 | AC181: 1729909416 | AD181: 412206233 | AE181: 26378363 | AF181: 1844594591 | AG181: 324594835 | AH181: 292075733 | AI181: 2083226156 | AJ181: 1436618848 | AK181: 1297782921 | AL181: 1032993716 | AM181: 715533216 | AN181: 848101505 | AO181: 1759099270 | AP181: 558154205 | AQ181: 1154921084 | AR181: 337855156 | AS181: 629345957 | AT181: 1243412616 | AU181: 877725524 | AV181: 276230564 | AW181: 936110397 | AX181: 78114860 | AY181: 1683404677 | AZ181: 1069130727 | BA181: 1121134441 | BB181: 968081514 | BC181: 1770718681 | BD181: 1237171341 | BE181: 1628503869 | BF181: 2004395630 | BG181: 279702229 | BH181: 1485921372 | BI181: 1151408110 | BJ181: 155949958 | BK181: 993950381 | BL181: 1188228318 | BM181: 522668193 | BN181: 365310298 | BO181: 805495318 | BP181: 1465364021 | BQ181: 1644579109 | BR181: 387234112 | BS181: 989298272 | BT181: 1516564972 | BU181: 2126426193 | BV181: 1558069239 | BW181: 15106550 | BX181: 2050048773 | BY181: 1517765154 | BZ181: 282927046 | CA181: 525900452 | CB181: 199375402 | CC181: 1240031163 | CD181: 1083993030 | CE181: 420469674 | CF181: 1723383946 | CG181: 97541724 | CH181: 373610900 | CI181: 1797603749 | CJ181: 2119381135 | CK181: 1030239066 | CL181: 731971119 | CM181: 259883740 | CN181: 1866779428 | CO181: 1608921474 | CP181: 1233221125 | CQ181: 1848505006 | CR181: 783460671 | CS181: 1604957355 | CT181: 511646919 | CU181: 842327631 | CV181: 255412526 | CW181: 175890014 | CX181: 429696891 | CY181: 1183562939 | CZ181: 484265933 | DA181: 1517739457 | DB181: 834049704 | DC181: 1199170529
A182: 40 | B182: 374568807 | C182: 0.1744221929 | D182: 2 | E182: 3 | F182: 0.96 | G182: 0.17 | H182: 0.9944022874 | I182: 13.98880457 | J182: 28.97760915 | K182: 45.9552183 | L182: 63.92722974 | M182: 83.88804575 | N182: 102.8488618 | O182: 124.7984823 | P182: 147.7369075 | Q182: 171.6641372 | R182: 14.98880457 | S182: 16.97760915 | T182: 17.97201144 | U182: 19.96081601 | V182: 18.96081601 | W182: 21.94962059 | X182: 22.93842516 | Y182: 23.92722974 | Z182: 0 | AB182: 1904999920 | AC182: 1703289788 | AD182: 1171083688 | AE182: 1999641349 | AF182: 1458530247 | AG182: 476591773 | AH182: 557565088 | AI182: 1340521854 | AJ182: 486482884 | AK182: 1033912954 | AL182: 1216865343 | AM182: 1524374835 | AN182: 1226985094 | AO182: 1977459790 | AP182: 331794293 | AQ182: 520169644 | AR182: 615419958 | AS182: 855019885 | AT182: 749936933 | AU182: 983897341 | AV182: 199590621 | AW182: 1781557060 | AX182: 1848606575 | AY182: 993444634 | AZ182: 1829801960 | BA182: 1692697111 | BB182: 1018603574 | BC182: 217332657 | BD182: 125061988 | BE182: 871362064 | BF182: 1453223792 | BG182: 276607370 | BH182: 956738012 | BI182: 596609803 | BJ182: 930239883 | BK182: 2046683624 | BL182: 1975894102 | BM182: 1078459347 | BN182: 905169241 | BO182: 1873066243 | BP182: 770292805 | BQ182: 1597675537 | BR182: 480156864 | BS182: 823029373 | BT182: 537720829 | BU182: 1442886644 | BV182: 387950535 | BW182: 1211318717 | BX182: 1857867723 | BY182: 489647682 | BZ182: 1322926193 | CA182: 336527305 | CB182: 1175807735 | CC182: 732576342 | CD182: 1988491975 | CE182: 623685857 | CF182: 244939880 | CG182: 1152404980 | CH182: 4086394 | CI182: 906327297 | CJ182: 673308152 | CK182: 1391141307 | CL182: 429441158 | CM182: 1396031413 | CN182: 748457221 | CO182: 502377699 | CP182: 570230035 | CQ182: 1239611776 | CR182: 1243026171 | CS182: 276434033 | CT182: 1646486549 | CU182: 1689187350 | CV182: 314425119 | CW182: 1384009203 | CX182: 1501562735 | CY182: 111683681 | CZ182: 641354248 | DA182: 1396711442 | DB182: 1537331475 | DC182: 1886384121
A183: 41 | B183: 1146058604 | C183: 0.5336751251 | D183: 2 | E183: 3 | F183: 0.96 | G183: 0.17 | H183: 0.5396517404 | I183: =IF($D183>0,INDEX(RSLtable,$D183,I$141)+IF($E183>$D183,$H183*INDEX(RSLdiff,$D183,I$141),0),$H183*INDEX(RSLtable,$E183,I$141)) -> 13.07930348 | J183: 27.15860696 | K183: 42.31721392 | L183: 58.01547262 | M183: 74.79303481 | N183: 90.57059699 | O183: 108.4274627 | P183: 126.3636318 | Q183: 144.3791044 | R183: 14.07930348 | S183: 15.15860696 | T183: 15.6982587 | U183: 16.77756218 | V183: 15.77756218 | W183: 17.85686566 | X183: 17.93616914 | Y183: 18.01547262 | Z183: 0 | AB183: 1001373780 | AC183: 942447506 | AD183: 1168663467 | AE183: 1740075870 | AF183: 1609669689 | AG183: 1716647819 | AH183: 1959298644 | AI183: 353163030 | AJ183: 281613619 | AK183: 492246254 | AL183: 1334259209 | AM183: 1717979477 | AN183: 198488214 | AO183: 460897587 | AP183: 109278077 | AQ183: 730084800 | AR183: 795503667 | AS183: 176657142 | AT183: 73855364 | AU183: 2107694006 | AV183: 827225849 | AW183: 1558199145 | AX183: 1847481681 | AY183: 1256090304 | AZ183: 368010050 | BA183: 724444025 | BB183: 227538842 | BC183: 407070452 | BD183: 290691031 | BE183: 903481202 | BF183: 1012334377 | BG183: 1208523871 | BH183: 1064748517 | BI183: 1196094343 | BJ183: 1873817170 | BK183: 480033869 | BL183: 45499784 | BM183: 1160052110 | BN183: 722150449 | BO183: 1424109859 | BP183: 1272125997 | BQ183: 963115463 | BR183: 2008463720 | BS183: 3394583 | BT183: 1834779017 | BU183: 244069373 | BV183: 702873145 | BW183: 2028531438 | BX183: 68274566 | BY183: 578238940 | BZ183: 1396535111 | CA183: 943233747 | CB183: 1569869622 | CC183: 1726873180 | CD183: 419555266 | CE183: 366755954 | CF183: 1595470745 | CG183: 1471881339 | CH183: 1833312897 | CI183: 788096803 | CJ183: 1240291494 | CK183: 2115872154 | CL183: 2041976974 | CM183: 1942977710 | CN183: 1661121410 | CO183: 888566505 | CP183: 1276115886 | CQ183: 1963182935 | CR183: 1423203161 | CS183: 1431308132 | CT183: 1329914956 | CU183: 955978907 | CV183: 1347985900 | CW183: 1439463490 | CX183: 66727641 | CY183: 899011581 | CZ183: 686650056 | DA183: 408919217 | DB183: 82723993 | DC183: 46304697
A184: 42 | B184: 68643317 | C184: 0.03196453537 | D184: 3 | E184: 4 | F184: 0.17 | G184: 0.013 | H184: 0.8792067811 | I184: 14.87920678 | J184: 32.51682712 | K184: 52.15444747 | L184: 74.55048137 | M184: 100.7049288 | N184: 127.6177899 | O184: 157.5306509 | P184: 191.0811323 | Q184: 227.3900272 | R184: 17.63762034 | S184: 19.63762034 | T184: 22.39603391 | U184: 26.15444747 | V184: 26.91286103 | W184: 29.91286103 | X184: 33.55048137 | Y184: 36.30889493 | Z184: 0 | AB184: 1751807704 | AC184: 589984078 | AD184: 306292514 | AE184: 674435659 | AF184: 112241965 | AG184: 1502867807 | AH184: 2125030644 | AI184: 807431244 | AJ184: 199517239 | AK184: 1459856426 | AL184: 844220462 | AM184: 1358821715 | AN184: 1300028727 | AO184: 56839157 | AP184: 742217835 | AQ184: 1716733530 | AR184: 602417750 | AS184: 1906822892 | AT184: 249421624 | AU184: 1312103354 | AV184: 708024761 | AW184: 216192120 | AX184: 1234814582 | AY184: 681774986 | AZ184: 228395566 | BA184: 13823027 | BB184: 1296071424 | BC184: 222418442 | BD184: 288607903 | BE184: 843198466 | BF184: 402324682 | BG184: 262506286 | BH184: 749540456 | BI184: 1572181358 | BJ184: 1164885077 | BK184: 366339369 | BL184: 1591786230 | BM184: 1239306285 | BN184: 969765575 | BO184: 107979672 | BP184: 1646598869 | BQ184: 1820524217 | BR184: 255500658 | BS184: 651158821 | BT184: 97360033 | BU184: 377416641 | BV184: 295443342 | BW184: 429191439 | BX184: 1441660888 | BY184: 1326912681 | BZ184: 487180104 | CA184: 2035401390 | CB184: 921071873 | CC184: 1170029828 | CD184: 1581453876 | CE184: 1968953313 | CF184: 1909783181 | CG184: 1835137521 | CH184: 193241864 | CI184: 1695454655 | CJ184: 414112161 | CK184: 942494414 | CL184: 918598301 | CM184: 276240332 | CN184: 1247170424 | CO184: 302881324 | CP184: 969002558 | CQ184: 645080569 | CR184: 1437917101 | CS184: 1830948488 | CT184: 1596181305 | CU184: 929213061 | CV184: 2020358447 | CW184: 361243458 | CX184: 1931971858 | CY184: 1985971522 | CZ184: 1022245378 | DA184: 1417324230 | DB184: 997766330 | DC184: 1791036007
A185: 43 | B185: 2061771233 | C185: 0.9600870469 | D185: 1 | E185: 2 | F185: 1 | G185: 0.96 | H185: 0.9978238265 | I185: 11.99782383 | J185: 24.99564765 | K185: 37.99347148 | L185: 50.99129531 | M185: 63.98911913 | N185: 75.98476679 | O185: 88.98041444 | P185: 100.9760621 | Q185: 111.9760621 | R185: 12.99782383 | S185: 12.99782383 | T185: 12.99782383 | U185: 12.99782383 | V185: 11.99564765 | W185: 12.99564765 | X185: 11.99564765 | Y185: 11 | Z185: 0 | AB185: 46111865 | AC185: 1340786271 | AD185: 1768517346 | AE185: 1979090716 | AF185: 2078134781 | AG185: 786832390 | AH185: 650333922 | AI185: 832869721 | AJ185: 1579970621 | AK185: 1201146788 | AL185: 716235730 | AM185: 1089974444 | AN185: 2067032030 | AO185: 1346330328 | AP185: 1127430384 | AQ185: 1345256194 | AR185: 231146223 | AS185: 951225665 | AT185: 1037887022 | AU185: 805799963 | AV185: 2008479873 | AW185: 1186783747 | AX185: 178581590 | AY185: 1920942578 | AZ185: 1848806335 | BA185: 1531405747 | BB185: 22619853 | BC185: 1089862429 | BD185: 665667624 | BE185: 775590695 | BF185: 920105001 | BG185: 1287414206 | BH185: 262866920 | BI185: 841730685 | BJ185: 455738819 | BK185: 1187331601 | BL185: 148218670 | BM185: 101728756 | BN185: 705533519 | BO185: 343935843 | BP185: 309262735 | BQ185: 1346159920 | BR185: 273677597 | BS185: 1516790999 | BT185: 971933307 | BU185: 1174900210 | BV185: 2054145602 | BW185: 725209360 | BX185: 1205143613 | BY185: 554769129 | BZ185: 1724865534 | CA185: 1336162793 | CB185: 1706437742 | CC185: 1837394935 | CD185: 1758848487 | CE185: 14122897 | CF185: 2113415282 | CG185: 222837441 | CH185: 1456538223 | CI185: 689864335 | CJ185: 830337355 | CK185: 706796499 | CL185: 416244315 | CM185: 671101749 | CN185: 1754460553 | CO185: 315722028 | CP185: 381161911 | CQ185: 171264699 | CR185: 877427684 | CS185: 2024971963 | CT185: 1849486589 | CU185: 1700216289 | CV185: 1047733926 | CW185: 15747478 | CX185: 1588702896 | CY185: 1161336382 | CZ185: 2074884319 | DA185: 1123880204 | DB185: 1562764161 | DC185: 1702432971
A186: 44 | B186: 777051575 | C186: 0.3618428369 | D186: 2 | E186: 3 | F186: 0.96 | G186: 0.17 | H186: 0.757160966 | I186: 13.51432193 | J186: 28.02864386 | K186: 44.05728773 | L186: 60.84309256 | M186: 79.14321932 | N186: 96.44334608 | O186: 116.2577948 | P186: 136.5865654 | Q186: 157.429658 | R186: 14.51432193 | S186: 16.02864386 | T186: 16.78580483 | U186: 18.30012676 | V186: 17.30012676 | W186: 19.81444869 | X186: 20.32877063 | Y186: 20.84309256 | Z186: 0 | AB186: 1072777123 | AC186: 231934155 | AD186: 1330873222 | AE186: 1877915241 | AF186: 387894987 | AG186: 790516848 | AH186: 352797016 | AI186: 412946904 | AJ186: 1027606733 | AK186: 645618195 | AL186: 1075689777 | AM186: 807034824 | AN186: 1317913216 | AO186: 1561137374 | AP186: 661483790 | AQ186: 1251222588 | AR186: 1481784268 | AS186: 1266218708 | AT186: 1198438099 | AU186: 1546199509 | AV186: 1035222121 | AW186: 964484065 | AX186: 312571832 | AY186: 1770272472 | AZ186: 752678406 | BA186: 1804716403 | BB186: 961231487 | BC186: 1842409700 | BD186: 1791551690 | BE186: 1456020194 | BF186: 131716017 | BG186: 889360940 | BH186: 1515708844 | BI186: 791294395 | BJ186: 146052081 | BK186: 1640140735 | BL186: 1395391413 | BM186: 1401163834 | BN186: 2012821523 | BO186: 2078486143 | BP186: 1262650888 | BQ186: 1925307394 | BR186: 1519372090 | BS186: 710851911 | BT186: 117426188 | BU186: 712403287 | BV186: 2047404858 | BW186: 450086813 | BX186: 302829540 | BY186: 139547869 | BZ186: 895713877 | CA186: 390326905 | CB186: 425996103 | CC186: 1816286285 | CD186: 609331832 | CE186: 974044988 | CF186: 458426687 | CG186: 1988010335 | CH186: 2089443300 | CI186: 1559884403 | CJ186: 579675597 | CK186: 701103340 | CL186: 672328033 | CM186: 2109194631 | CN186: 1400250771 | CO186: 1674054476 | CP186: 1574202032 | CQ186: 1453728126 | CR186: 1639248230 | CS186: 408465474 | CT186: 1376964535 | CU186: 757948920 | CV186: 1924455096 | CW186: 2084783147 | CX186: 1636458446 | CY186: 955374234 | CZ186: 251150016 | DA186: 1089436770 | DB186: 1530747462 | DC186: 385223392
A187: 45 | B187: 1107198323 | C187: 0.5155793966 | D187: 2 | E187: 3 | F187: 0.96 | G187: 0.17 | H187: 0.5625577258 | I187: 13.12511545 | J187: 27.2502309 | K187: 42.50046181 | L187: 58.31325044 | M187: 75.25115452 | N187: 91.1890586 | O187: 109.2520781 | P187: 127.4402131 | Q187: 145.7534635 | R187: 14.12511545 | S187: 15.2502309 | T187: 15.81278863 | U187: 16.93790408 | V187: 15.93790408 | W187: 18.06301953 | X187: 18.18813498 | Y187: 18.31325044 | Z187: 0 | AB187: 1751324222 | AC187: 861344194 | AD187: 607999157 | AE187: 1414374794 | AF187: 168999284 | AG187: 401846265 | AH187: 319438626 | AI187: 416791530 | AJ187: 1027330237 | AK187: 353205581 | AL187: 614124754 | AM187: 1024632724 | AN187: 2080774455 | AO187: 313523477 | AP187: 1697163494 | AQ187: 1935457120 | AR187: 970569999 | AS187: 2111176601 | AT187: 890993943 | AU187: 802347454 | AV187: 1410020748 | AW187: 1312318302 | AX187: 2082282297 | AY187: 153214488 | AZ187: 1410996080 | BA187: 643865011 | BB187: 1073431895 | BC187: 1218355489 | BD187: 825163300 | BE187: 705985558 | BF187: 1512261487 | BG187: 2143831210 | BH187: 13755434 | BI187: 1427595503 | BJ187: 2038672497 | BK187: 2101288883 | BL187: 1114308768 | BM187: 581968749 | BN187: 157611865 | BO187: 168620913 | BP187: 1687629141 | BQ187: 2010908202 | BR187: 748644046 | BS187: 1038884115 | BT187: 1070176515 | BU187: 763427366 | BV187: 934981931 | BW187: 48493624 | BX187: 2111023858 | BY187: 1606467507 | BZ187: 1716291616 | CA187: 1595996124 | CB187: 1101967888 | CC187: 787890813 | CD187: 1120833160 | CE187: 1118648330 | CF187: 1043109489 | CG187: 792630943 | CH187: 800569298 | CI187: 2108386099 | CJ187: 1956306024 | CK187: 764532067 | CL187: 1173607479 | CM187: 734328731 | CN187: 1604661263 | CO187: 621458033 | CP187: 1744921224 | CQ187: 1734720774 | CR187: 1968852968 | CS187: 989532347 | CT187: 688710688 | CU187: 273423381 | CV187: 1671820737 | CW187: 1336106770 | CX187: 447175618 | CY187: 1805813736 | CZ187: 717235021 | DA187: 622776934 | DB187: 93412226 | DC187: 57455859
A188: 46 | B188: 1144726644 | C188: 0.5330548829 | D188: 2 | E188: 3 | F188: 0.96 | G188: 0.17 | H188: 0.5404368571 | I188: 13.08087371 | J188: 27.16174743 | K188: 42.32349486 | L188: 58.02567914 | M188: 74.80873714 | N188: 90.59179514 | O188: 108.4557269 | P188: 126.4005323 | Q188: 144.4262114 | R188: 14.08087371 | S188: 15.16174743 | T188: 15.70218429 | U188: 16.783058 | V188: 15.783058 | W188: 17.86393171 | X188: 17.94480543 | Y188: 18.02567914 | Z188: 0 | AB188: 330272360 | AC188: 514699007 | AD188: 1215787645 | AE188: 485575750 | AF188: 1621546658 | AG188: 1448758111 | AH188: 689330186 | AI188: 1317139534 | AJ188: 565493703 | AK188: 713926918 | AL188: 551737146 | AM188: 1350346147 | AN188: 1106063468 | AO188: 774497858 | AP188: 1572853118 | AQ188: 174576785 | AR188: 881178777 | AS188: 1916722133 | AT188: 1513624084 | AU188: 246378389 | AV188: 764818690 | AW188: 444136636 | AX188: 876660652 | AY188: 2030353627 | AZ188: 600429428 | BA188: 1624606597 | BB188: 1145568729 | BC188: 250652777 | BD188: 2078453391 | BE188: 210875975 | BF188: 1110110153 | BG188: 1934356274 | BH188: 416107691 | BI188: 859776730 | BJ188: 321978912 | BK188: 1368056189 | BL188: 775633719 | BM188: 979896572 | BN188: 1695257741 | BO188: 537069293 | BP188: 901599913 | BQ188: 141490695 | BR188: 2089416397 | BS188: 2084474068 | BT188: 771426980 | BU188: 583001666 | BV188: 996465949 | BW188: 78548874 | BX188: 986115721 | BY188: 158537227 | BZ188: 1488461970 | CA188: 1500549126 | CB188: 2069469105 | CC188: 342045953 | CD188: 34463842 | CE188: 1944717262 | CF188: 2036555957 | CG188: 1519594601 | CH188: 312355993 | CI188: 360386205 | CJ188: 1549674973 | CK188: 220932462 | CL188: 588010949 | CM188: 417096719 | CN188: 1016162630 | CO188: 201646000 | CP188: 488801070 | CQ188: 2024117930 | CR188: 1612820343 | CS188: 1384645463 | CT188: 1706764888 | CU188: 2133013436 | CV188: 170825114 | CW188: 1981007966 | CX188: 1256120481 | CY188: 2073618726 | CZ188: 2067825404 | DA188: 1589290408 | DB188: 1533386193 | DC188: 1050381512
A189: 47 | B189: 198111567 | C189: 0.09225288736 | D189: 3 | E189: 4 | F189: 0.17 | G189: 0.013 | H189: 0.4952045391 | I189: 14.49520454 | J189: 30.98081816 | K189: 49.46643177 | L189: 69.94245447 | M189: 93.40888624 | N189: 116.8657271 | O189: 143.3225679 | P189: 172.2650224 | Q189: 203.197886 | R189: 16.48561362 | S189: 18.48561362 | T189: 20.4760227 | U189: 23.46643177 | V189: 23.45684085 | W189: 26.45684085 | X189: 28.94245447 | Y189: 30.93286355 | Z189: 0 | AB189: 1805977879 | AC189: 797454754 | AD189: 852306579 | AE189: 1590504892 | AF189: 47278815 | AG189: 197811526 | AH189: 1545781788 | AI189: 1241592632 | AJ189: 281900496 | AK189: 1296175369 | AL189: 1959068119 | AM189: 2135208093 | AN189: 51232114 | AO189: 243292895 | AP189: 1056002940 | AQ189: 270157907 | AR189: 172148438 | AS189: 2056118342 | AT189: 312036883 | AU189: 166778333 | AV189: 1171609413 | AW189: 590308355 | AX189: 1121068557 | AY189: 341247131 | AZ189: 889619076 | BA189: 1724706288 | BB189: 44207309 | BC189: 337331369 | BD189: 735132768 | BE189: 121702445 | BF189: 2115235519 | BG189: 722730694 | BH189: 519801870 | BI189: 13571908 | BJ189: 904907813 | BK189: 170670322 | BL189: 1385348051 | BM189: 112618190 | BN189: 1922046876 | BO189: 449255819 | BP189: 225810321 | BQ189: 899340885 | BR189: 1649418232 | BS189: 1448939890 | BT189: 185312600 | BU189: 1447709198 | BV189: 1069098673 | BW189: 1324059899 | BX189: 1816932636 | BY189: 1266250256 | BZ189: 1187376191 | CA189: 530931483 | CB189: 846359956 | CC189: 1045919127 | CD189: 1451774404 | CE189: 494292691 | CF189: 1233691628 | CG189: 752054292 | CH189: 253452516 | CI189: 1584960855 | CJ189: 1062745732 | CK189: 227082200 | CL189: 585156780 | CM189: 1016532224 | CN189: 512331603 | CO189: 1258177796 | CP189: 513620381 | CQ189: 2133111471 | CR189: 1873605909 | CS189: 2087598892 | CT189: 1185275140 | CU189: 1588113741 | CV189: 1709357061 | CW189: 2083693170 | CX189: 2138448953 | CY189: 1436736076 | CZ189: 960163924 | DA189: 2078962787 | DB189: 766061154 | DC189: 877060082
A190: 48 | B190: 298770566 | C190: 0.1391258864 | D190: 3 | E190: 4 | F190: 0.17 | G190: 0.013 | H190: 0.1966504049 | I190: 14.1966504 | J190: 29.78660162 | K190: 47.37655283 | L190: 66.35980486 | M190: 87.73635769 | N190: 108.5062113 | O190: 132.276065 | P190: 157.6358698 | Q190: 184.3889755 | R190: 15.58995121 | S190: 17.58995121 | T190: 18.98325202 | U190: 21.37655283 | V190: 20.76985364 | W190: 23.76985364 | X190: 25.35980486 | Y190: 26.75310567 | Z190: 0 | AB190: 1407030891 | AC190: 294057859 | AD190: 199165683 | AE190: 573777835 | AF190: 1568045751 | AG190: 847876984 | AH190: 2113373533 | AI190: 944318796 | AJ190: 1162455024 | AK190: 745181654 | AL190: 1734776604 | AM190: 152219438 | AN190: 1271697197 | AO190: 1550752749 | AP190: 1646071548 | AQ190: 1271624213 | AR190: 1163020455 | AS190: 636773283 | AT190: 2029562882 | AU190: 1788203287 | AV190: 776131178 | AW190: 1961575809 | AX190: 659894194 | AY190: 1140688011 | AZ190: 1719412184 | BA190: 1798684799 | BB190: 1479751268 | BC190: 1101501445 | BD190: 574061100 | BE190: 1330948050 | BF190: 276257387 | BG190: 1061484559 | BH190: 157135222 | BI190: 147058733 | BJ190: 987661343 | BK190: 679843370 | BL190: 1642485888 | BM190: 911538933 | BN190: 1388750055 | BO190: 737771543 | BP190: 1610496466 | BQ190: 701935730 | BR190: 1111264347 | BS190: 382531047 | BT190: 955124845 | BU190: 1105339631 | BV190: 282523326 | BW190: 287082615 | BX190: 1923128876 | BY190: 1486546462 | BZ190: 1645060978 | CA190: 523772595 | CB190: 912535548 | CC190: 221638447 | CD190: 1915886580 | CE190: 1459169091 | CF190: 1807043878 | CG190: 1349160244 | CH190: 192062877 | CI190: 1393023683 | CJ190: 709869836 | CK190: 728341912 | CL190: 250518389 | CM190: 1173134401 | CN190: 337129561 | CO190: 515369909 | CP190: 270706636 | CQ190: 2025393932 | CR190: 1704523581 | CS190: 1963463904 | CT190: 1156959566 | CU190: 1114644852 | CV190: 1758006497 | CW190: 261434531 | CX190: 1972949914 | CY190: 1850228378 | CZ190: 1080705850 | DA190: 1701866967 | DB190: 1017047041 | DC190: 1074601264
A191: 49 | B191: 1601301781 | C191: 0.7456642491 | D191: 2 | E191: 3 | F191: 0.96 | G191: 0.17 | H191: 0.2713110771 | I191: 12.54262215 | J191: 26.08524431 | K191: 40.17048862 | L191: 54.527044 | M191: 69.42622154 | N191: 83.32539908 | O191: 98.76719878 | P191: 113.7516206 | Q191: 128.2786646 | R191: 13.54262215 | S191: 14.08524431 | T191: 14.35655539 | U191: 14.89917754 | V191: 13.89917754 | W191: 15.44179969 | X191: 14.98442185 | Y191: 14.527044 | Z191: 0 | AB191: 322835792 | AC191: 1747488766 | AD191: 1789880121 | AE191: 733277926 | AF191: 927824359 | AG191: 1126550138 | AH191: 590644355 | AI191: 724710494 | AJ191: 1266251041 | AK191: 312532984 | AL191: 424120566 | AM191: 1242935311 | AN191: 275346892 | AO191: 1548463500 | AP191: 624754508 | AQ191: 1047303522 | AR191: 642883431 | AS191: 749704182 | AT191: 825900882 | AU191: 255675612 | AV191: 1775871323 | AW191: 376912715 | AX191: 127702623 | AY191: 670269901 | AZ191: 1797544608 | BA191: 1550084319 | BB191: 1619874761 | BC191: 1028635522 | BD191: 1521860859 | BE191: 2072537898 | BF191: 1494363654 | BG191: 2108813716 | BH191: 162059958 | BI191: 1238647308 | BJ191: 1263724553 | BK191: 1021703463 | BL191: 1487536055 | BM191: 1103391460 | BN191: 504380153 | BO191: 1248833952 | BP191: 1366888886 | BQ191: 142640464 | BR191: 1994759271 | BS191: 1091772831 | BT191: 504975552 | BU191: 1618118286 | BV191: 1162310896 | BW191: 52934574 | BX191: 2078364527 | BY191: 1065686344 | BZ191: 1235653919 | CA191: 701957114 | CB191: 1966353891 | CC191: 2093429430 | CD191: 377845125 | CE191: 235053708 | CF191: 1324261092 | CG191: 725059202 | CH191: 380231568 | CI191: 638247229 | CJ191: 877782024 | CK191: 1337649115 | CL191: 292739162 | CM191: 1374382928 | CN191: 2097445712 | CO191: 970310491 | CP191: 1989518008 | CQ191: 1449978250 | CR191: 369327293 | CS191: 1322833286 | CT191: 135486504 | CU191: 1966358954 | CV191: 767821835 | CW191: 1092336129 | CX191: 1808005185 | CY191: 676639355 | CZ191: 79332426 | DA191: 980931719 | DB191: 254062044 | DC191: 1757604906
A192: 50 | B192: 2059364180 | C192: 0.9589661755 | D192: 2 | E192: 3 | F192: 0.96 | G192: 0.17 | H192: 0.001308638556 | I192: 12.00261728 | J192: 25.00523455 | K192: 38.01046911 | L192: 51.0170123 | M192: 64.02617277 | N192: 76.03533324 | O192: 89.04711099 | P192: 101.061506 | Q192: 112.0785183 | R192: 13.00261728 | S192: 13.00523455 | T192: 13.00654319 | U192: 13.00916047 | V192: 12.00916047 | W192: 13.01177775 | X192: 12.01439502 | Y192: 11.0170123 | Z192: 0 | AB192: 1465173000 | AC192: 2020053073 | AD192: 1741234687 | AE192: 1233296092 | AF192: 1238175104 | AG192: 1120802064 | AH192: 1000762633 | AI192: 2139129891 | AJ192: 1524439197 | AK192: 207050489 | AL192: 762234535 | AM192: 1332267395 | AN192: 493532449 | AO192: 565791018 | AP192: 412000847 | AQ192: 475776435 | AR192: 1487398651 | AS192: 1723633725 | AT192: 1175052114 | AU192: 128947543 | AV192: 1979895234 | AW192: 472208381 | AX192: 1055247943 | AY192: 609765469 | AZ192: 199015733 | BA192: 1494933675 | BB192: 947517314 | BC192: 1295880175 | BD192: 624928213 | BE192: 803695216 | BF192: 452239504 | BG192: 1674533589 | BH192: 1660790244 | BI192: 504504694 | BJ192: 1974904828 | BK192: 1685909118 | BL192: 1589689813 | BM192: 2067236413 | BN192: 912259424 | BO192: 450242055 | BP192: 1805845678 | BQ192: 565265462 | BR192: 153006255 | BS192: 1717627821 | BT192: 1735477142 | BU192: 2060058469 | BV192: 751499294 | BW192: 1846765271 | BX192: 740545918 | BY192: 922230986 | BZ192: 2039512271 | CA192: 1174867528 | CB192: 1238958708 | CC192: 2089005945 | CD192: 383414904 | CE192: 1121431767 | CF192: 1408935330 | CG192: 1791744583 | CH192: 1762771666 | CI192: 1031591197 | CJ192: 1563725194 | CK192: 1269615816 | CL192: 369691642 | CM192: 626010717 | CN192: 537942490 | CO192: 1239369991 | CP192: 555070328 | CQ192: 1113082726 | CR192: 1536006656 | CS192: 1206788608 | CT192: 981329469 | CU192: 1483354781 | CV192: 107533712 | CW192: 991298168 | CX192: 482871055 | CY192: 979517982 | CZ192: 492192845 | DA192: 688075146 | DB192: 1697301554 | DC192: 709975497
A193: 51 | B193: 550313150 | C193: 0.25625953 | D193: 2 | E193: 3 | F193: 0.96 | G193: 0.17 | H193: 0.8908107216 | I193: =IF($D193>0,INDEX(RSLtable,$D193,I$141)+IF($E193>$D193,$H193*INDEX(RSLdiff,$D193,I$141),0),$H193*INDEX(RSLtable,$E193,I$141)) -> 13.78162144 | J193: 28.56324289 | K193: 45.12648577 | L193: 62.58053938 | M193: 81.81621443 | N193: 100.0518895 | O193: 121.069186 | P193: 142.8681039 | Q193: 165.4486433 | R193: 14.78162144 | S193: 16.56324289 | T193: 17.45405361 | U193: 19.23567505 | V193: 18.23567505 | W193: 21.01729649 | X193: 21.79891794 | Y193: 22.58053938 | Z193: 0 | AB193: 139452702 | AC193: 1339411101 | AD193: 777116244 | AE193: 2041478445 | AF193: 1333065527 | AG193: 680912473 | AH193: 168418278 | AI193: 482769760 | AJ193: 529830285 | AK193: 145261381 | AL193: 985914934 | AM193: 1334130983 | AN193: 1268749508 | AO193: 1748690979 | AP193: 1994314317 | AQ193: 1014172867 | AR193: 1399512270 | AS193: 1564603754 | AT193: 1602510330 | AU193: 1019239147 | AV193: 2058097973 | AW193: 579329993 | AX193: 1708833360 | AY193: 578088317 | AZ193: 994094612 | BA193: 50435784 | BB193: 501550288 | BC193: 1528257609 | BD193: 206980314 | BE193: 879688481 | BF193: 881825829 | BG193: 126401539 | BH193: 293841967 | BI193: 481527094 | BJ193: 1684378411 | BK193: 1626231913 | BL193: 2031288719 | BM193: 446266774 | BN193: 1522474169 | BO193: 1099729265 | BP193: 1468007361 | BQ193: 1897420 | BR193: 568673072 | BS193: 1563904115 | BT193: 2027535659 | BU193: 1852082764 | BV193: 328655550 | BW193: 1012725824 | BX193: 2026703463 | BY193: 1823406543 | BZ193: 56520373 | CA193: 1282294112 | CB193: 503708565 | CC193: 1163842563 | CD193: 806761138 | CE193: 1012534928 | CF193: 2057697587 | CG193: 1546366715 | CH193: 1006544405 | CI193: 87863751 | CJ193: 676131171 | CK193: 736736050 | CL193: 1943628059 | CM193: 920923370 | CN193: 1797158913 | CO193: 1029397435 | CP193: 1793822916 | CQ193: 1722902453 | CR193: 556895454 | CS193: 251488246 | CT193: 560512573 | CU193: 1618875377 | CV193: 291837153 | CW193: 723245074 | CX193: 2028675014 | CY193: 1165053123 | CZ193: 1029234234 | DA193: 1093288064 | DB193: 1794696437 | DC193: 1683176861
A194: 52 | B194: 1940833907 | C194: 0.903771216 | D194: 2 | E194: 3 | F194: 0.96 | G194: 0.17 | H194: 0.07117567594 | I194: 12.14235135 | J194: 25.2847027 | K194: 38.56940541 | L194: 51.92528379 | M194: 65.42351352 | N194: 77.92174325 | O194: 91.56232433 | P194: 104.3452568 | Q194: 116.2705406 | R194: 13.14235135 | S194: 13.2847027 | T194: 13.35587838 | U194: 13.49822973 | V194: 12.49822973 | W194: 13.64058108 | X194: 12.78293244 | Y194: 11.92528379 | Z194: 0 | AB194: 1307628544 | AC194: 423096142 | AD194: 2081351975 | AE194: 476425059 | AF194: 1206055109 | AG194: 1088766848 | AH194: 1493093443 | AI194: 1434031363 | AJ194: 1054935112 | AK194: 378014796 | AL194: 714677947 | AM194: 1097074157 | AN194: 1868855522 | AO194: 2070018327 | AP194: 149468191 | AQ194: 1101245945 | AR194: 316217844 | AS194: 135427991 | AT194: 267690843 | AU194: 842512067 | AV194: 1706260816 | AW194: 306040869 | AX194: 100755643 | AY194: 498640789 | AZ194: 418923637 | BA194: 1486757413 | BB194: 1750799417 | BC194: 164802295 | BD194: 1052811250 | BE194: 1248514220 | BF194: 1341224472 | BG194: 527647942 | BH194: 2063584269 | BI194: 1578842993 | BJ194: 751918314 | BK194: 723439985 | BL194: 381916476 | BM194: 334984697 | BN194: 165244165 | BO194: 1383080622 | BP194: 1665422772 | BQ194: 1396047646 | BR194: 1281882558 | BS194: 722892174 | BT194: 1754067211 | BU194: 2142876434 | BV194: 1070353661 | BW194: 2117993643 | BX194: 237839741 | BY194: 892481211 | BZ194: 990693393 | CA194: 697922871 | CB194: 706289781 | CC194: 1672153053 | CD194: 698437700 | CE194: 1493187415 | CF194: 1706581033 | CG194: 283613692 | CH194: 87460380 | CI194: 2138405343 | CJ194: 71288235 | CK194: 656675230 | CL194: 1604465853 | CM194: 980500370 | CN194: 908485211 | CO194: 1566960599 | CP194: 937847549 | CQ194: 625111394 | CR194: 1847650535 | CS194: 2011549822 | CT194: 355942730 | CU194: 2098376131 | CV194: 1925971790 | CW194: 121317775 | CX194: 917297594 | CY194: 2125036344 | CZ194: 131536069 | DA194: 1844995966 | DB194: 153906800 | DC194: 733956733
A195: 53 | B195: 2019424422 | C195: 0.9403677764 | D195: 2 | E195: 3 | F195: 0.96 | G195: 0.17 | H195: 0.02485091594 | I195: 12.04970183 | J195: 25.09940366 | K195: 38.19880733 | L195: 51.32306191 | M195: 64.49701832 | N195: 76.67097473 | O195: 89.89463297 | P195: 102.167993 | Q195: 113.491055 | R195: 13.04970183 | S195: 13.09940366 | T195: 13.12425458 | U195: 13.17395641 | V195: 12.17395641 | W195: 13.22365824 | X195: 12.27336008 | Y195: 11.32306191 | Z195: 0 | AB195: 1698094800 | AC195: 704387512 | AD195: 1066243977 | AE195: 111647266 | AF195: 1351980016 | AG195: 497226777 | AH195: 1414910086 | AI195: 140045975 | AJ195: 1640553688 | AK195: 2131152804 | AL195: 1041874229 | AM195: 2067381174 | AN195: 31859286 | AO195: 1588051354 | AP195: 1581477488 | AQ195: 1580296904 | AR195: 1985268495 | AS195: 304332093 | AT195: 295578454 | AU195: 2002162918 | AV195: 475535745 | AW195: 358779786 | AX195: 1672666445 | AY195: 892810243 | AZ195: 1156861475 | BA195: 511083830 | BB195: 767213969 | BC195: 892153457 | BD195: 51342495 | BE195: 48844212 | BF195: 2056981803 | BG195: 937754862 | BH195: 247282804 | BI195: 282966720 | BJ195: 1227817147 | BK195: 939932068 | BL195: 1490587148 | BM195: 1641930624 | BN195: 746823757 | BO195: 1713086626 | BP195: 572301767 | BQ195: 579077206 | BR195: 159152560 | BS195: 266351051 | BT195: 1740591912 | BU195: 943520565 | BV195: 732506958 | BW195: 269674877 | BX195: 314560949 | BY195: 291093714 | BZ195: 1594922107 | CA195: 1858935552 | CB195: 2011122526 | CC195: 1179665221 | CD195: 940442447 | CE195: 1656065204 | CF195: 900345023 | CG195: 108276907 | CH195: 1994636625 | CI195: 2015335251 | CJ195: 885589191 | CK195: 1511397610 | CL195: 173461108 | CM195: 1341264037 | CN195: 1873548441 | CO195: 86059695 | CP195: 1883759019 | CQ195: 459375777 | CR195: 795631428 | CS195: 1048358657 | CT195: 1842343830 | CU195: 353041452 | CV195: 1869712813 | CW195: 2089895303 | CX195: 2054326128 | CY195: 925478622 | CZ195: 1415926167 | DA195: 1505950049 | DB195: 1089207827 | DC195: 1787734084
A196: 54 | B196: 1058569738 | C196: 0.4929349471 | D196: 2 | E196: 3 | F196: 0.96 | G196: 0.17 | H196: 0.5912215859 | I196: 13.18244317 | J196: 27.36488634 | K196: 42.72977269 | L196: 58.68588062 | M196: 75.82443172 | N196: 91.96298282 | O196: 110.2839771 | P196: 128.7874145 | Q196: 147.4732952 | R196: 14.18244317 | S196: 15.36488634 | T196: 15.95610793 | U196: 17.1385511 | V196: 16.1385511 | W196: 18.32099427 | X196: 18.50343745 | Y196: 18.68588062 | Z196: 0 | AB196: 1430768457 | AC196: 381008801 | AD196: 2069929765 | AE196: 1288706763 | AF196: 1546803653 | AG196: 1356513695 | AH196: 554852118 | AI196: 2028222116 | AJ196: 560106676 | AK196: 1967859643 | AL196: 391378966 | AM196: 991574064 | AN196: 281303254 | AO196: 250645622 | AP196: 751139692 | AQ196: 1745227897 | AR196: 1585258417 | AS196: 1626315723 | AT196: 2133686013 | AU196: 1052165190 | AV196: 133244112 | AW196: 1350920598 | AX196: 191806689 | AY196: 1141411857 | AZ196: 1842986784 | BA196: 235421194 | BB196: 830005084 | BC196: 1649949556 | BD196: 157447507 | BE196: 1969396693 | BF196: 1514709921 | BG196: 1704632136 | BH196: 874121858 | BI196: 1090546200 | BJ196: 1707812931 | BK196: 1573844259 | BL196: 692628373 | BM196: 454191275 | BN196: 121591958 | BO196: 1399212264 | BP196: 348959849 | BQ196: 988661474 | BR196: 904218441 | BS196: 46988232 | BT196: 1961978924 | BU196: 848007539 | BV196: 525121763 | BW196: 1577603200 | BX196: 1462184889 | BY196: 399166173 | BZ196: 1196282047 | CA196: 73840697 | CB196: 1897189911 | CC196: 943499039 | CD196: 440545204 | CE196: 1992186356 | CF196: 1928040894 | CG196: 1806864646 | CH196: 675212130 | CI196: 1238691921 | CJ196: 466361579 | CK196: 212092779 | CL196: 102404615 | CM196: 1819340271 | CN196: 1077969400 | CO196: 954164047 | CP196: 31541228 | CQ196: 1759476292 | CR196: 327118040 | CS196: 2016074139 | CT196: 186228366 | CU196: 1381190547 | CV196: 611963854 | CW196: 1144369641 | CX196: 24157169 | CY196: 1823737668 | CZ196: 209974188 | DA196: 1393364329 | DB196: 308887616 | DC196: 1229097716
A197: 55 | B197: 993926280 | C197: 0.4628329912 | D197: 2 | E197: 3 | F197: 0.96 | G197: 0.17 | H197: 0.6293253275 | I197: 13.25865066 | J197: 27.51730131 | K197: 43.03460262 | L197: 59.18122926 | M197: 76.58650655 | N197: 92.99178384 | O197: 111.6557118 | P197: 130.5782904 | Q197: 149.7595197 | R197: 14.25865066 | S197: 15.51730131 | T197: 16.14662664 | U197: 17.40527729 | V197: 16.40527729 | W197: 18.66392795 | X197: 18.9225786 | Y197: 19.18122926 | Z197: 0 | AB197: 1550100327 | AC197: 625880163 | AD197: 1608042346 | AE197: 1005354124 | AF197: 2047695067 | AG197: 1348690668 | AH197: 1998026241 | AI197: 530294706 | AJ197: 90241466 | AK197: 908669502 | AL197: 840425127 | AM197: 1156119008 | AN197: 250273853 | AO197: 2139436011 | AP197: 150176584 | AQ197: 259827924 | AR197: 724253456 | AS197: 474065201 | AT197: 1841823403 | AU197: 1077634940 | AV197: 113007587 | AW197: 1947244903 | AX197: 898682502 | AY197: 1251301815 | AZ197: 1157489842 | BA197: 1680479297 | BB197: 1720491332 | BC197: 989001387 | BD197: 203983664 | BE197: 2089166054 | BF197: 1186867182 | BG197: 1314418404 | BH197: 977511262 | BI197: 488981289 | BJ197: 235751265 | BK197: 1654729917 | BL197: 1838776587 | BM197: 606483302 | BN197: 292597367 | BO197: 867013747 | BP197: 1926627658 | BQ197: 148924173 | BR197: 2070723883 | BS197: 426215640 | BT197: 508324057 | BU197: 986119602 | BV197: 1403136232 | BW197: 566460933 | BX197: 1929234617 | BY197: 927055999 | BZ197: 2042906554 | CA197: 1688914514 | CB197: 1961551213 | CC197: 1956409640 | CD197: 1174469690 | CE197: 509877816 | CF197: 815700588 | CG197: 1262487808 | CH197: 805416711 | CI197: 510535170 | CJ197: 1816192055 | CK197: 875989860 | CL197: 1813298918 | CM197: 30477376 | CN197: 1132140590 | CO197: 1370935528 | CP197: 2108194712 | CQ197: 849335929 | CR197: 2015136096 | CS197: 398332570 | CT197: 62908844 | CU197: 671589475 | CV197: 1469631949 | CW197: 145088930 | CX197: 7084478 | CY197: 1843830557 | CZ197: 1688698755 | DA197: 2049184766 | DB197: 335150815 | DC197: 1245133367
A198: 56 | B198: 883304253 | C198: 0.4113205957 | D198: 2 | E198: 3 | F198: 0.96 | G198: 0.17 | H198: 0.6945308915 | I198: 13.38906178 | J198: 27.77812357 | K198: 43.55624713 | L198: 60.02890159 | M198: 77.89061783 | N198: 94.75233407 | O198: 114.0031121 | P198: 133.6429519 | Q198: 153.6718535 | R198: 14.38906178 | S198: 15.77812357 | T198: 16.47265446 | U198: 17.86171624 | V198: 16.86171624 | W198: 19.25077802 | X198: 19.63983981 | Y198: 20.02890159 | Z198: 0 | AB198: 120172196 | AC198: 1061402177 | AD198: 1015662951 | AE198: 613464698 | AF198: 2058758688 | AG198: 1680476223 | AH198: 1086608894 | AI198: 1998164733 | AJ198: 948969170 | AK198: 32041067 | AL198: 47729940 | AM198: 363100579 | AN198: 1373643788 | AO198: 227102751 | AP198: 1416577639 | AQ198: 849220924 | AR198: 1552285063 | AS198: 15575039 | AT198: 834500413 | AU198: 19807459 | AV198: 380768697 | AW198: 99483523 | AX198: 1133384642 | AY198: 1464856343 | AZ198: 2110119183 | BA198: 1516347356 | BB198: 202006541 | BC198: 1524479067 | BD198: 282923449 | BE198: 302529514 | BF198: 697007656 | BG198: 886428869 | BH198: 935436118 | BI198: 623037142 | BJ198: 433467362 | BK198: 1961056989 | BL198: 1938016920 | BM198: 1058394938 | BN198: 2115039785 | BO198: 1459268701 | BP198: 1316862336 | BQ198: 1090988374 | BR198: 1286206678 | BS198: 961820180 | BT198: 162404825 | BU198: 2004272387 | BV198: 1302312139 | BW198: 1873903239 | BX198: 455845052 | BY198: 655891543 | BZ198: 693197894 | CA198: 670814233 | CB198: 1337122846 | CC198: 108871968 | CD198: 1405608837 | CE198: 1977869 | CF198: 570415603 | CG198: 258045402 | CH198: 226111393 | CI198: 1668341745 | CJ198: 534281777 | CK198: 953522630 | CL198: 466102705 | CM198: 147118701 | CN198: 394571034 | CO198: 1720289783 | CP198: 1859362563 | CQ198: 684323882 | CR198: 215215504 | CS198: 1490394879 | CT198: 130931866 | CU198: 2029896260 | CV198: 629015181 | CW198: 643567163 | CX198: 524937665 | CY198: 1085067032 | CZ198: 993329779 | DA198: 953575119 | DB198: 1070678014 | DC198: 60446221
A199: 57 | B199: 1839269025 | C199: 0.8564763823 | D199: 2 | E199: 3 | F199: 0.96 | G199: 0.17 | H199: 0.1310425541 | I199: 12.26208511 | J199: 25.52417022 | K199: 39.04834043 | L199: 52.7035532 | M199: 66.62085108 | N199: 79.53814896 | O199: 93.71753195 | P199: 107.159 | Q199: 119.8625532 | R199: 13.26208511 | S199: 13.52417022 | T199: 13.65521277 | U199: 13.91729788 | V199: 12.91729788 | W199: 14.17938299 | X199: 13.44146809 | Y199: 12.7035532 | Z199: 0 | AB199: 478742569 | AC199: 279635841 | AD199: 14646711 | AE199: 902428675 | AF199: 1387379876 | AG199: 1367962302 | AH199: 1557327946 | AI199: 1329305285 | AJ199: 1864614560 | AK199: 466119317 | AL199: 1869464156 | AM199: 1614005742 | AN199: 1454205776 | AO199: 1720359233 | AP199: 1592408042 | AQ199: 1575368468 | AR199: 352864949 | AS199: 203431119 | AT199: 1818669144 | AU199: 495630474 | AV199: 1920721861 | AW199: 395704041 | AX199: 316663010 | AY199: 2033971831 | AZ199: 266221736 | BA199: 770597128 | BB199: 1481983231 | BC199: 306911408 | BD199: 1149295406 | BE199: 513370694 | BF199: 630265227 | BG199: 196269024 | BH199: 1445690156 | BI199: 1264888894 | BJ199: 969858381 | BK199: 1102756259 | BL199: 1332114706 | BM199: 1146090068 | BN199: 1565399708 | BO199: 748360724 | BP199: 745869856 | BQ199: 358325973 | BR199: 582835321 | BS199: 1572944287 | BT199: 1127996025 | BU199: 1946611880 | BV199: 620463038 | BW199: 1024554482 | BX199: 979057930 | BY199: 189264432 | BZ199: 1412837367 | CA199: 1115411677 | CB199: 1635888681 | CC199: 466283119 | CD199: 398343862 | CE199: 984434031 | CF199: 1643734226 | CG199: 704447342 | CH199: 1111157449 | CI199: 1887610395 | CJ199: 1184540744 | CK199: 473866579 | CL199: 57503436 | CM199: 1985878989 | CN199: 305916971 | CO199: 1210452997 | CP199: 1358735855 | CQ199: 404649868 | CR199: 1289193045 | CS199: 1546062 | CT199: 167730565 | CU199: 1886004791 | CV199: 2068000765 | CW199: 132087671 | CX199: 1106476262 | CY199: 144551342 | CZ199: 6891893 | DA199: 860079451 | DB199: 1356965092 | DC199: 1516741265
A200: 58 | B200: 2086171501 | C200: 0.9714493072 | D200: 1 | E200: 2 | F200: 1 | G200: 0.96 | H200: 0.7137673212 | I200: 11.71376732 | J200: 24.42753464 | K200: 37.14130196 | L200: 49.85506928 | M200: 62.56883661 | N200: 73.99637125 | O200: 86.42390589 | P200: 97.85144053 | Q200: 108.8514405 | R200: 12.71376732 | S200: 12.71376732 | T200: 12.71376732 | U200: 12.71376732 | V200: 11.42753464 | W200: 12.42753464 | X200: 11.42753464 | Y200: 11 | Z200: 0 | AB200: 311022832 | AC200: 1366959516 | AD200: 489266818 | AE200: 1576275177 | AF200: 936462701 | AG200: 2081101886 | AH200: 1112218131 | AI200: 84039875 | AJ200: 1474812696 | AK200: 859381288 | AL200: 1493943689 | AM200: 1111942569 | AN200: 1169043807 | AO200: 267906653 | AP200: 98934664 | AQ200: 67894911 | AR200: 1451148822 | AS200: 1528311165 | AT200: 1994244311 | AU200: 1610782874 | AV200: 1853460400 | AW200: 1310206693 | AX200: 1999040011 | AY200: 1049397008 | AZ200: 247274808 | BA200: 929716001 | BB200: 1984778384 | BC200: 1578378562 | BD200: 1693490075 | BE200: 1102967341 | BF200: 131945468 | BG200: 1551690587 | BH200: 280927364 | BI200: 196750770 | BJ200: 890404651 | BK200: 1470220000 | BL200: 406131205 | BM200: 1587442061 | BN200: 2049701526 | BO200: 1298082017 | BP200: 1320477021 | BQ200: 919749745 | BR200: 2008004291 | BS200: 1161854445 | BT200: 48253090 | BU200: 1755084995 | BV200: 1564366236 | BW200: 1868493859 | BX200: 432719501 | BY200: 587962734 | BZ200: 1434364678 | CA200: 327062883 | CB200: 861336714 | CC200: 176333042 | CD200: 2035471011 | CE200: 96969585 | CF200: 1616517537 | CG200: 1121579084 | CH200: 1129653207 | CI200: 1257718482 | CJ200: 66668602 | CK200: 1165310712 | CL200: 1199487232 | CM200: 989643233 | CN200: 820550369 | CO200: 1041550611 | CP200: 1240393678 | CQ200: 1490008763 | CR200: 856352429 | CS200: 1615514804 | CT200: 508753925 | CU200: 1063019090 | CV200: 835080167 | CW200: 125018898 | CX200: 649858465 | CY200: 463460579 | CZ200: 1966085365 | DA200: 1741315417 | DB200: 1663238785 | DC200: 457625644
A201: 59 | B201: 1781349647 | C201: 0.8295055702 | D201: 2 | E201: 3 | F201: 0.96 | G201: 0.17 | H201: 0.1651828226 | I201: 12.33036565 | J201: 25.66073129 | K201: 39.32146258 | L201: 53.14737669 | M201: 67.30365645 | N201: 80.45993621 | O201: 94.94658161 | P201: 108.7635927 | Q201: 121.9109694 | R201: 13.33036565 | S201: 13.66073129 | T201: 13.82591411 | U201: 14.15627976 | V201: 13.15627976 | W201: 14.4866454 | X201: 13.81701105 | Y201: 13.14737669 | Z201: 0 | AB201: 324947295 | AC201: 920259114 | AD201: 1520905619 | AE201: 885972110 | AF201: 1607754268 | AG201: 1879099740 | AH201: 790226501 | AI201: 92196942 | AJ201: 1600750566 | AK201: 252543949 | AL201: 1654945459 | AM201: 373475081 | AN201: 1485815478 | AO201: 2123008376 | AP201: 1819018663 | AQ201: 295203559 | AR201: 1783188916 | AS201: 602520324 | AT201: 1065175859 | AU201: 159703925 | AV201: 2070750733 | AW201: 1593873653 | AX201: 630176683 | AY201: 598707732 | AZ201: 488146942 | BA201: 207829265 | BB201: 1549430453 | BC201: 1486738036 | BD201: 346903623 | BE201: 921940987 | BF201: 1850672473 | BG201: 1721685011 | BH201: 1433040486 | BI201: 1183731636 | BJ201: 985197363 | BK201: 1097537591 | BL201: 2128666739 | BM201: 904234277 | BN201: 128293315 | BO201: 439190441 | BP201: 1284154084 | BQ201: 163022817 | BR201: 1700723516 | BS201: 192989543 | BT201: 1352634042 | BU201: 1477919495 | BV201: 1555098495 | BW201: 1901377436 | BX201: 1377082049 | BY201: 405254162 | BZ201: 1197108811 | CA201: 1500136196 | CB201: 153631927 | CC201: 1294577321 | CD201: 401870790 | CE201: 1451970722 | CF201: 2099714782 | CG201: 1681222894 | CH201: 585190473 | CI201: 1966143932 | CJ201: 1229583936 | CK201: 1674213081 | CL201: 2141569105 | CM201: 294772628 | CN201: 598476731 | CO201: 1949883664 | CP201: 1051668731 | CQ201: 690693449 | CR201: 75379156 | CS201: 941430373 | CT201: 1585210230 | CU201: 1020231972 | CV201: 1886687067 | CW201: 358177288 | CX201: 1024332286 | CY201: 1368458110 | CZ201: 1161842044 | DA201: 379066780 | DB201: 375763993 | DC201: 1030668482
A202: 60 | B202: 136100810 | C202: 0.06337687842 | D202: 3 | E202: 4 | F202: 0.17 | G202: 0.013 | H202: 0.6791281629 | I202: 14.67912816 | J202: 31.71651265 | K202: 50.75389714 | L202: 72.14953796 | M202: 96.9034351 | N202: 122.0155886 | O202: 150.127742 | P202: 181.27728 | Q202: 214.7850743 | R202: 17.03738449 | S202: 19.03738449 | T202: 21.39564081 | U202: 24.75389714 | V202: 25.11215347 | W202: 28.11215347 | X202: 31.14953796 | Y202: 33.50779428 | Z202: 0 | AB202: 310319257 | AC202: 1128453699 | AD202: 1759178407 | AE202: 1770375452 | AF202: 2142235342 | AG202: 609267554 | AH202: 1418891757 | AI202: 852470698 | AJ202: 1221468679 | AK202: 1431781807 | AL202: 1628066636 | AM202: 2037902033 | AN202: 140096032 | AO202: 1817683056 | AP202: 1686006784 | AQ202: 1216998644 | AR202: 872625182 | AS202: 887528483 | AT202: 2050413315 | AU202: 1749354592 | AV202: 434799381 | AW202: 2125966541 | AX202: 152805338 | AY202: 1533493693 | AZ202: 1150462398 | BA202: 1230335678 | BB202: 2144422694 | BC202: 1723220310 | BD202: 1454790174 | BE202: 709766696 | BF202: 638712630 | BG202: 1987510728 | BH202: 1701546189 | BI202: 1812405627 | BJ202: 436546558 | BK202: 815483671 | BL202: 74616613 | BM202: 687659792 | BN202: 1651254064 | BO202: 203214327 | BP202: 286318109 | BQ202: 894316799 | BR202: 1619983320 | BS202: 14169467 | BT202: 905037994 | BU202: 1245189805 | BV202: 868571260 | BW202: 86624023 | BX202: 2066261688 | BY202: 595113379 | BZ202: 1149442305 | CA202: 2073223923 | CB202: 705715126 | CC202: 915217938 | CD202: 485120739 | CE202: 654934523 | CF202: 546554463 | CG202: 903296144 | CH202: 1876913192 | CI202: 1841446054 | CJ202: 1093138870 | CK202: 1835029047 | CL202: 114468169 | CM202: 1890364813 | CN202: 1120262657 | CO202: 773580581 | CP202: 735382668 | CQ202: 779857004 | CR202: 789941258 | CS202: 884080916 | CT202: 545702426 | CU202: 1522527408 | CV202: 1784909181 | CW202: 185027051 | CX202: 1880288978 | CY202: 244446090 | CZ202: 1741864519 | DA202: 1371864940 | DB202: 856823541 | DC202: 644644573
A203: 61 | B203: 569723337 | C203: 0.2652981026 | D203: 2 | E203: 3 | F203: 0.96 | G203: 0.17 | H203: 0.8793694903 | I203: =IF($D203>0,INDEX(RSLtable,$D203,I$141)+IF($E203>$D203,$H203*INDEX(RSLdiff,$D203,I$141),0),$H203*INDEX(RSLtable,$E203,I$141)) -> 13.75873898 | J203: 28.51747796 | K203: 45.03495592 | L203: 62.43180337 | M203: 81.58738981 | N203: 99.74297624 | O203: 120.6573017 | P203: 142.330366 | Q203: 164.7621694 | R203: 14.75873898 | S203: 16.51747796 | T203: 17.39684745 | U203: 19.15558643 | V203: 18.15558643 | W203: 20.91432541 | X203: 21.67306439 | Y203: 22.43180337 | Z203: 0 | AB203: 722416822 | AC203: 665798274 | AD203: 1502514623 | AE203: 829194774 | AF203: 62139691 | AG203: 165553469 | AH203: 1628048376 | AI203: 1678902991 | AJ203: 203591977 | AK203: 1073394296 | AL203: 1240524391 | AM203: 1785616814 | AN203: 149556269 | AO203: 1639430697 | AP203: 2045700105 | AQ203: 1326380839 | AR203: 1745908064 | AS203: 1736128890 | AT203: 127321782 | AU203: 1891026745 | AV203: 843238120 | AW203: 729861422 | AX203: 1607626800 | AY203: 1660226360 | AZ203: 43302438 | BA203: 873254953 | BB203: 421109380 | BC203: 936001112 | BD203: 1461232254 | BE203: 194078378 | BF203: 2022126398 | BG203: 298421563 | BH203: 529042410 | BI203: 295725784 | BJ203: 1429356854 | BK203: 837033331 | BL203: 488450104 | BM203: 371087953 | BN203: 1681881292 | BO203: 1800962768 | BP203: 1804171094 | BQ203: 849932535 | BR203: 1892801509 | BS203: 1074541811 | BT203: 829177453 | BU203: 637281272 | BV203: 1480051079 | BW203: 277553524 | BX203: 639956533 | BY203: 1976655437 | BZ203: 194517116 | CA203: 1706553286 | CB203: 41754785 | CC203: 451499114 | CD203: 1101505381 | CE203: 1237592246 | CF203: 893880078 | CG203: 500198336 | CH203: 289107749 | CI203: 1946839657 | CJ203: 1085703333 | CK203: 1429139928 | CL203: 17562068 | CM203: 1072243646 | CN203: 413000940 | CO203: 1062571415 | CP203: 1899565765 | CQ203: 1236591821 | CR203: 534828786 | CS203: 674863052 | CT203: 567391344 | CU203: 587660287 | CV203: 159674764 | CW203: 56290948 | CX203: 32916583 | CY203: 1382053772 | CZ203: 1114965658 | DA203: 1486779848 | DB203: 1341590038 | DC203: 600138253
A204: 62 | B204: 439616845 | C204: 0.2047125461 | D204: 2 | E204: 3 | F204: 0.96 | G204: 0.17 | H204: 0.9560600683 | I204: 13.91212014 | J204: 28.82424027 | K204: 45.64848055 | L204: 63.42878089 | M204: 83.12120137 | N204: 101.8136218 | O204: 123.4181625 | P204: 145.9348232 | Q204: 169.3636041 | R204: 14.91212014 | S204: 16.82424027 | T204: 17.78030034 | U204: 19.69242048 | V204: 18.69242048 | W204: 21.60454061 | X204: 22.51666075 | Y204: 23.42878089 | Z204: 0 | AB204: 942954776 | AC204: 1655706899 | AD204: 918156702 | AE204: 1260722968 | AF204: 1657853049 | AG204: 644851612 | AH204: 359095931 | AI204: 588408075 | AJ204: 703153095 | AK204: 1478111047 | AL204: 918865013 | AM204: 2105572602 | AN204: 1538123332 | AO204: 39299290 | AP204: 249228454 | AQ204: 652027711 | AR204: 879914476 | AS204: 1275808662 | AT204: 1999024855 | AU204: 812108513 | AV204: 542245282 | AW204: 1671472327 | AX204: 284194808 | AY204: 991884814 | AZ204: 750396167 | BA204: 2080812947 | BB204: 1438163125 | BC204: 801228119 | BD204: 1041747119 | BE204: 1033716224 | BF204: 489150767 | BG204: 1934447144 | BH204: 1678126633 | BI204: 655517855 | BJ204: 2130088618 | BK204: 1678586043 | BL204: 752009771 | BM204: 625479636 | BN204: 472571297 | BO204: 1988259921 | BP204: 91058036 | BQ204: 1565804697 | BR204: 582395677 | BS204: 1035232790 | BT204: 424620977 | BU204: 1648521084 | BV204: 1059666013 | BW204: 1783167018 | BX204: 1937025995 | BY204: 288679570 | BZ204: 737201752 | CA204: 1708453233 | CB204: 1205565849 | CC204: 1649682138 | CD204: 1218630178 | CE204: 1115214420 | CF204: 1243809614 | CG204: 915233835 | CH204: 1171413773 | CI204: 2012690327 | CJ204: 794665855 | CK204: 248788260 | CL204: 1630027510 | CM204: 1769659719 | CN204: 877679639 | CO204: 885348517 | CP204: 682282709 | CQ204: 68339479 | CR204: 1819408419 | CS204: 1134941749 | CT204: 1688616033 | CU204: 838220554 | CV204: 341723961 | CW204: 653537453 | CX204: 1925962860 | CY204: 1538134157 | CZ204: 272116204 | DA204: 1594043715 | DB204: 375865366 | DC204: 1866696180
A205: 63 | B205: 1458808988 | C205: 0.6793108716 | D205: 2 | E205: 3 | F205: 0.96 | G205: 0.17 | H205: 0.3553026942 | I205: 12.71060539 | J205: 26.42121078 | K205: 40.84242155 | L205: 55.61893502 | M205: 71.10605388 | N205: 85.59317274 | O205: 101.790897 | P205: 117.6992266 | Q205: 133.3181617 | R205: 13.71060539 | S205: 14.42121078 | T205: 14.77651347 | U205: 15.48711886 | V205: 14.48711886 | W205: 16.19772425 | X205: 15.90832964 | Y205: 15.61893502 | Z205: 0 | AB205: 1454094131 | AC205: 1876314877 | AD205: 574655456 | AE205: 966799642 | AF205: 246422824 | AG205: 2004183234 | AH205: 1579170364 | AI205: 427473103 | AJ205: 924007910 | AK205: 1901661809 | AL205: 405797385 | AM205: 1989025926 | AN205: 1799231241 | AO205: 787967289 | AP205: 303312540 | AQ205: 509307249 | AR205: 1420100630 | AS205: 1171378383 | AT205: 2046065054 | AU205: 1123538685 | AV205: 1191317786 | AW205: 532595180 | AX205: 242039932 | AY205: 1123946729 | AZ205: 766703308 | BA205: 816627153 | BB205: 2015833953 | BC205: 2049533426 | BD205: 698103097 | BE205: 1733310659 | BF205: 213975092 | BG205: 814149170 | BH205: 1767536703 | BI205: 1478323807 | BJ205: 2138144765 | BK205: 321396696 | BL205: 1347570700 | BM205: 1054916183 | BN205: 917779053 | BO205: 2102978514 | BP205: 1710913994 | BQ205: 124089075 | BR205: 113301590 | BS205: 1925024047 | BT205: 1295253799 | BU205: 754706179 | BV205: 225125630 | BW205: 1963070471 | BX205: 743814265 | BY205: 1977621734 | BZ205: 1661740002 | CA205: 1078998049 | CB205: 1357230673 | CC205: 965368991 | CD205: 625263614 | CE205: 1542688471 | CF205: 586074568 | CG205: 1218863201 | CH205: 2069810973 | CI205: 267100690 | CJ205: 962583991 | CK205: 529544436 | CL205: 1404592777 | CM205: 639785483 | CN205: 916466153 | CO205: 1733688807 | CP205: 659435747 | CQ205: 280109017 | CR205: 1172565837 | CS205: 317847362 | CT205: 1295223411 | CU205: 1004969007 | CV205: 535428824 | CW205: 371619333 | CX205: 1438652783 | CY205: 174281169 | CZ205: 1311298232 | DA205: 1745094755 | DB205: 1455232330 | DC205: 1024960307
A206: 64 | B206: 32390971 | C206: 0.01508322126 | D206: 3 | E206: 4 | F206: 0.17 | G206: 0.013 | H206: 0.9867310748 | I206: 14.98673107 | J206: 32.9469243 | K206: 52.90711752 | L206: 75.8407729 | M206: 102.7478904 | N206: 130.6284701 | O206: 161.5090498 | P206: 196.3498227 | Q206: 234.1640577 | R206: 17.96019322 | S206: 19.96019322 | T206: 22.93365537 | U206: 26.90711752 | V206: 27.88057967 | W206: 30.88057967 | X206: 34.8407729 | Y206: 37.81423505 | Z206: 0 | AB206: 74795306 | AC206: 1472615442 | AD206: 147248277 | AE206: 1418386025 | AF206: 164216571 | AG206: 1938074711 | AH206: 1053106732 | AI206: 1531274537 | AJ206: 1697959067 | AK206: 928691224 | AL206: 1047227048 | AM206: 424100223 | AN206: 10098690 | AO206: 1886135302 | AP206: 1803596741 | AQ206: 377425623 | AR206: 1999498490 | AS206: 361500283 | AT206: 685812457 | AU206: 1783842297 | AV206: 783748640 | AW206: 1375195543 | AX206: 1198517892 | AY206: 5697751 | AZ206: 1949691717 | BA206: 199478131 | BB206: 1689216046 | BC206: 603872803 | BD206: 1968690210 | BE206: 528449822 | BF206: 1542807509 | BG206: 843844970 | BH206: 1238895203 | BI206: 1434381534 | BJ206: 174392848 | BK206: 718046688 | BL206: 1305592070 | BM206: 726831929 | BN206: 1672513400 | BO206: 1323855604 | BP206: 1750791695 | BQ206: 571847842 | BR206: 1687685628 | BS206: 1218367047 | BT206: 1357232771 | BU206: 509378801 | BV206: 772031910 | BW206: 1658781766 | BX206: 879291622 | BY206: 1835645470 | BZ206: 1042453798 | CA206: 1393932588 | CB206: 1598197354 | CC206: 1078908308 | CD206: 1364736456 | CE206: 972240269 | CF206: 1603389997 | CG206: 1136098612 | CH206: 168801008 | CI206: 1873074049 | CJ206: 1935643069 | CK206: 141619915 | CL206: 744235483 | CM206: 122722386 | CN206: 574543263 | CO206: 1602162754 | CP206: 1620327603 | CQ206: 585318095 | CR206: 1846517495 | CS206: 1186836934 | CT206: 2037857270 | CU206: 1350834814 | CV206: 719071659 | CW206: 505919852 | CX206: 2029795154 | CY206: 1032863500 | CZ206: 596461547 | DA206: 275381383 | DB206: 1329708060 | DC206: 2130719611
A207: 65 | B207: =MOD(ROUND(Lehmer_Constant*B206,0),2^31-1) -> 176466125 | C207: =B207/(2^31-1) -> 0.08217344297 | D207: =IFERROR(MATCH($C207,$D$120:$D$125,-1),0) -> 3 | E207: =IFERROR(IF($C207=INDEX($D$120:$D$125,D207),D207,MIN(D207+1,6)),1) -> 4 | F207: =IFERROR(INDEX($D$120:$D$125,D207,1),1) -> 0.17 | G207: =INDEX($D$120:$D$125,E207,1) -> 0.013 | H207: =(C207-F207)/(G207-F207) -> 0.5594048218 | I207: 14.55940482 | J207: 31.23761929 | K207: 49.91583375 | L207: 70.71285786 | M207: 94.62869161 | N207: 118.663335 | O207: 145.6979784 | P207: 175.4108363 | Q207: 207.2425038 | R207: =J207-I207 -> 16.67821447 | S207: =K207-J207 -> 18.67821447 | T207: =L207-K207 -> 20.79702411 | U207: =M207-L207 -> 23.91583375 | V207: =N207-M207 -> 24.0346434 | W207: =O207-N207 -> 27.0346434 | X207: =P207-O207 -> 29.71285786 | Y207: =Q207-P207 -> 31.83166751 | Z207: 0 | AB207: =MOD(ROUND(Lehmer_Constant*AB206,0),2^31-1) -> 524205319 | AC207: =MOD(ROUND(Lehmer_Constant*AC206,0),2^31-1) -> 763801435 | AD207: =MOD(ROUND(Lehmer_Constant*AD206,0),2^31-1) -> 1798191144 | AE207: =MOD(ROUND(Lehmer_Constant*AE206,0),2^31-1) -> 838179121 | AF207: =MOD(ROUND(Lehmer_Constant*AF206,0),2^31-1) -> 535957664 | AG207: =MOD(ROUND(Lehmer_Constant*AG206,0),2^31-1) -> 1974260420 | AH207: =MOD(ROUND(Lehmer_Constant*AH206,0),2^31-1) -> 1429652235 | AI207: =MOD(ROUND(Lehmer_Constant*AI206,0),2^31-1) -> 1913529434 | AJ207: =MOD(ROUND(Lehmer_Constant*AJ206,0),2^31-1) -> 1321251755 | AK207: =MOD(ROUND(Lehmer_Constant*AK206,0),2^31-1) -> 132942579 | AL207: =MOD(ROUND(Lehmer_Constant*AL206,0),2^31-1) -> 1079267275 | AM207: =MOD(ROUND(Lehmer_Constant*AM206,0),2^31-1) -> 1927741229 | AN207: =MOD(ROUND(Lehmer_Constant*AN206,0),2^31-1) -> 2142560768 | AO207: =MOD(ROUND(Lehmer_Constant*AO206,0),2^31-1) -> 920464630 | AP207: =MOD(ROUND(Lehmer_Constant*AP206,0),2^31-1) -> 283751784 | AQ207: =MOD(ROUND(Lehmer_Constant*AQ206,0),2^31-1) -> 1608470332 | AR207: =MOD(ROUND(Lehmer_Constant*AR206,0),2^31-1) -> 1286580022 | AS207: =MOD(ROUND(Lehmer_Constant*AS206,0),2^31-1) -> 1675528818 | AT207: =MOD(ROUND(Lehmer_Constant*AT206,0),2^31-1) -> 1392693342 | AU207: =MOD(ROUND(Lehmer_Constant*AU206,0),2^31-1) -> 199724728 | AV207: =MOD(ROUND(Lehmer_Constant*AV206,0),2^31-1) -> 111192241 | AW207: =MOD(ROUND(Lehmer_Constant*AW206,0),2^31-1) -> 1197043736 | AX207: =MOD(ROUND(Lehmer_Constant*AX206,0),2^31-1) -> 447714552 | AY207: =MOD(ROUND(Lehmer_Constant*AY206,0),2^31-1) -> 158231705 | AZ207: =MOD(ROUND(Lehmer_Constant*AZ206,0),2^31-1) -> 98041532 | BA207: =MOD(ROUND(Lehmer_Constant*BA206,0),2^31-1) -> 1839672000 | BB207: =MOD(ROUND(Lehmer_Constant*BB206,0),2^31-1) -> 193679876 | BC207: =MOD(ROUND(Lehmer_Constant*BC206,0),2^31-1) -> 1748532882 | BD207: =MOD(ROUND(Lehmer_Constant*BD206,0),2^31-1) -> 198779866 | BE207: =MOD(ROUND(Lehmer_Constant*BE206,0),2^31-1) -> 990598696 | BF207: =MOD(ROUND(Lehmer_Constant*BF206,0),2^31-1) -> 275872626 | BG207: =MOD(ROUND(Lehmer_Constant*BG206,0),2^31-1) -> 1918214221 | BH207: =MOD(ROUND(Lehmer_Constant*BH206,0),2^31-1) -> 1733226004 | BI207: =MOD(ROUND(Lehmer_Constant*BI206,0),2^31-1) -> 2010764787 | BJ207: =MOD(ROUND(Lehmer_Constant*BJ206,0),2^31-1) -> 2128753215 | BK207: =MOD(ROUND(Lehmer_Constant*BK206,0),2^31-1) -> 445613868 | BL207: =MOD(ROUND(Lehmer_Constant*BL206,0),2^31-1) -> 32222461 | BM207: =MOD(ROUND(Lehmer_Constant*BM206,0),2^31-1) -> 1463703720 | BN207: =MOD(ROUND(Lehmer_Constant*BN206,0),2^31-1) -> 1394106082 | BO207: =MOD(ROUND(Lehmer_Constant*BO206,0),2^31-1) -> 1162976905 | BP207: =MOD(ROUND(Lehmer_Constant*BP206,0),2^31-1) -> 394465307 | BQ207: =MOD(ROUND(Lehmer_Constant*BQ206,0),2^31-1) -> 2059866291 | BR207: =MOD(ROUND(Lehmer_Constant*BR206,0),2^31-1) -> 1480800243 | BS207: =MOD(ROUND(Lehmer_Constant*BS206,0),2^31-1) -> 808568995 | BT207: =MOD(ROUND(Lehmer_Constant*BT206,0),2^31-1) -> 1699469912 | BU207: =MOD(ROUND(Lehmer_Constant*BU206,0),2^31-1) -> 1683828568 | BV207: =MOD(ROUND(Lehmer_Constant*BV206,0),2^31-1) -> 1468601219 | BW207: =MOD(ROUND(Lehmer_Constant*BW206,0),2^31-1) -> 2126848191 | BX207: =MOD(ROUND(Lehmer_Constant*BX206,0),2^31-1) -> 1419086254 | BY207: =MOD(ROUND(Lehmer_Constant*BY206,0),2^31-1) -> 1119723503 | BZ207: =MOD(ROUND(Lehmer_Constant*BZ206,0),2^31-1) -> 450466754 | CA207: =MOD(ROUND(Lehmer_Constant*CA206,0),2^31-1) -> 1562327544 | CB207: =MOD(ROUND(Lehmer_Constant*CB206,0),2^31-1) -> 381940106 | CC207: =MOD(ROUND(Lehmer_Constant*CC206,0),2^31-1) -> 1357012071 | CD207: =MOD(ROUND(Lehmer_Constant*CD206,0),2^31-1) -> 985112204 | CE207: =MOD(ROUND(Lehmer_Constant*CE206,0),2^31-1) -> 2049887008 | CF207: =MOD(ROUND(Lehmer_Constant*CF206,0),2^31-1) -> 1927907307 | CG207: =MOD(ROUND(Lehmer_Constant*CG206,0),2^31-1) -> 326206413 | CH207: =MOD(ROUND(Lehmer_Constant*CH206,0),2^31-1) -> 640500450 | CI207: =MOD(ROUND(Lehmer_Constant*CI206,0),2^31-1) -> 1800913285 | CJ207: =MOD(ROUND(Lehmer_Constant*CJ206,0),2^31-1) -> 560586376 | CK207: =MOD(ROUND(Lehmer_Constant*CK206,0),2^31-1) -> 694468564 | CL207: =MOD(ROUND(Lehmer_Constant*CL206,0),2^31-1) -> 1884552877 | CM207: =MOD(ROUND(Lehmer_Constant*CM206,0),2^31-1) -> 1172396180 | CN207: =MOD(ROUND(Lehmer_Constant*CN206,0),2^31-1) -> 1174030915 | CO207: =MOD(ROUND(Lehmer_Constant*CO206,0),2^31-1) -> 669718923 | CP207: =MOD(ROUND(Lehmer_Constant*CP206,0),2^31-1) -> 1331817026 | CQ207: =MOD(ROUND(Lehmer_Constant*CQ206,0),2^31-1) -> 1594903813 | CR207: =MOD(ROUND(Lehmer_Constant*CR206,0),2^31-1) -> 1937232410 | CS207: =MOD(ROUND(Lehmer_Constant*CS206,0),2^31-1) -> 1384390095 | CT207: =MOD(ROUND(Lehmer_Constant*CT206,0),2^31-1) -> 1772345688 | CU207: =MOD(ROUND(Lehmer_Constant*CU206,0),2^31-1) -> 2101332733 | CV207: =MOD(ROUND(Lehmer_Constant*CV206,0),2^31-1) -> 529865128 | CW207: =MOD(ROUND(Lehmer_Constant*CW206,0),2^31-1) -> 73142208 | CX207: =MOD(ROUND(Lehmer_Constant*CX206,0),2^31-1) -> 1300484359 | CY207: =MOD(ROUND(Lehmer_Constant*CY206,0),2^31-1) -> 1373659748 | CZ207: =MOD(ROUND(Lehmer_Constant*CZ206,0),2^31-1) -> 482079908 | DA207: =MOD(ROUND(Lehmer_Constant*DA206,0),2^31-1) -> 10963863 | DB207: =MOD(ROUND(Lehmer_Constant*DB206,0),2^31-1) -> 199039077 | DC207: =MOD(ROUND(Lehmer_Constant*DC206,0),2^31-1) -> 384553163
A208: 66 | B208: 1276175873 | C208: 0.5942657001 | D208: 2 | E208: 3 | F208: 0.96 | G208: 0.17 | H208: 0.46295481 | I208: 12.92590962 | J208: 26.85181924 | K208: 41.70363848 | L208: 57.01841253 | M208: 73.2590962 | N208: 88.49977987 | O208: 105.6663732 | P208: 122.7588761 | Q208: 139.7772886 | R208: 13.92590962 | S208: 14.85181924 | T208: 15.31477405 | U208: 16.24068367 | V208: 15.24068367 | W208: 17.16659329 | X208: 17.09250291 | Y208: 17.01841253 | Z208: 0 | AB208: 115140848 | AC208: 1459817189 | AD208: 1343183931 | AE208: 1152440311 | AF208: 476903535 | AG208: 642930901 | AH208: 1356039340 | AI208: 412683850 | AJ208: 26633352 | AK208: 590093673 | AL208: 1504838952 | AM208: 1382956902 | AN208: 738392608 | AO208: 311498300 | AP208: 331664898 | AQ208: 200138687 | AR208: 1424654369 | AS208: 922460364 | AT208: 1872225994 | AU208: 858253905 | AV208: 799031458 | AW208: 155690627 | AX208: 1501199831 | AY208: 1550783323 | AZ208: 1656316831 | BA208: 63341256 | BB208: 1124979005 | BC208: 880968981 | BD208: 345976890 | BE208: 1318770514 | BF208: 101434599 | BG208: 1066254192 | BH208: 737035611 | BI208: 1808639818 | BJ208: 2101415962 | BK208: 1030813876 | BL208: 632254503 | BM208: 82798173 | BN208: 1347121830 | BO208: 688165028 | BP208: 1644819895 | BQ208: 1165393114 | BR208: 715339458 | BS208: 2066157067 | BT208: 1236806752 | BU208: 2127734272 | BV208: 266771232 | BW208: 338315632 | BX208: 279194828 | BY208: 157301970 | BZ208: 1208756459 | CA208: 1929644725 | CB208: 483747231 | CC208: 1783478447 | CD208: 620803763 | CE208: 491760349 | CF208: 809773452 | CG208: 959662119 | CH208: 275156091 | CI208: 1747149675 | CJ208: 1771003696 | CK208: 472323174 | CL208: 1844638747 | CM208: 99455389 | CN208: 1700337282 | CO208: 1930793842 | CP208: 1069205454 | CQ208: 313212373 | CR208: 2117738142 | CS208: 498148399 | CT208: 1445176262 | CU208: 1337255892 | CV208: 589357918 | CW208: 184406700 | CX208: 438524185 | CY208: 77127289 | CZ208: 346440176 | DA208: 955653711 | DB208: 2120932836 | DC208: 2064570152
A209: 67 | B209: 1717151388 | C209: 0.7996109262 | D209: 2 | E209: 3 | F209: 0.96 | G209: 0.17 | H209: 0.203024144 | I209: 12.40604829 | J209: 25.81209658 | K209: 39.62419315 | L209: 53.63931387 | M209: 68.06048288 | N209: 81.48165189 | O209: 96.30886919 | P209: 110.5421348 | Q209: 124.1814486 | R209: 13.40604829 | S209: 13.81209658 | T209: 14.01512072 | U209: 14.42116901 | V209: 13.42116901 | W209: 14.8272173 | X209: 14.23326558 | Y209: 13.63931387 | Z209: 0 | AB209: 276195372 | AC209: 1454621208 | AD209: 5263077 | AE209: 1029860393 | AF209: 1733325792 | AG209: 1631339374 | AH209: 2073420580 | AI209: 603813778 | AJ209: 1423313486 | AK209: 188595575 | AL209: 1446692217 | AM209: 35965800 | AN209: 1163491509 | AO209: 1801426653 | AP209: 305702973 | AQ209: 1513115971 | AR209: 622218118 | AS209: 10810099 | AT209: 1666639673 | AU209: 1667213978 | AV209: 1241208998 | AW209: 1296975064 | AX209: 1876341480 | AY209: 876817407 | AZ209: 1253571391 | BA209: 1676538695 | BB209: 442568666 | BC209: 782503957 | BD209: 1817618118 | BE209: 513733273 | BF209: 86813169 | BG209: 415534383 | BH209: 84398732 | BI209: 1052469540 | BJ209: 1059835657 | BK209: 1220507406 | BL209: 1667006796 | BM209: 283541816 | BN209: 1113024770 | BO209: 1137014792 | BP209: 335754661 | BQ209: 1356872729 | BR209: 761417005 | BS209: 2032247183 | BT209: 1853339192 | BU209: 160658643 | BV209: 1002192460 | BW209: 1368220484 | BX209: 1553657463 | BY209: 1768701725 | BZ209: 752343399 | CA209: 924815497 | CB209: 1372893770 | CC209: 1963674201 | CD209: 831633535 | CE209: 1627056288 | CF209: 76958798 | CG209: 480396812 | CH209: 2020795613 | CI209: 684176941 | CJ209: 1090389840 | CK209: 1825535602 | CL209: 1442500876 | CM209: 1185131374 | CN209: 155951082 | CO209: 559267382 | CP209: 1141981683 | CQ209: 789582203 | CR209: 821287988 | CS209: 746972670 | CT209: 1244553854 | CU209: 1615701206 | CV209: 1180187969 | CW209: 176098885 | CX209: 254625656 | CY209: 1422207068 | CZ209: 558576507 | DA209: 264062474 | DB209: 413539478 | DC209: 592200863
A210: 68 | B210: 40843242 | C210: 0.01901911666 | D210: 3 | E210: 4 | F210: 0.17 | G210: 0.013 | H210: 0.9616616773 | I210: 14.96166168 | J210: 32.84664671 | K210: 52.73163174 | L210: 75.53994013 | M210: 102.2715719 | N210: 129.926527 | O210: 160.5814821 | P210: 195.1214222 | Q210: 232.5846857 | R210: 17.88498503 | S210: 19.88498503 | T210: 22.80830839 | U210: 26.73163174 | V210: 27.6549551 | W210: 30.6549551 | X210: 34.53994013 | Y210: 37.46326348 | Z210: 0 | AB210: 648321236 | AC210: 1895009056 | AD210: 650919521 | AE210: 292086100 | AF210: 1258934865 | AG210: 305070511 | AH210: 461965098 | AI210: 1046820754 | AJ210: 320964235 | AK210: 513821192 | AL210: 1406773661 | AM210: 938345024 | AN210: 1906294595 | AO210: 758132639 | AP210: 1228071146 | AQ210: 1554718024 | AR210: 384487036 | AS210: 2123246255 | AT210: 1331271469 | AU210: 1136260713 | AV210: 1753274805 | AW210: 692553353 | AX210: 609285208 | AY210: 97854574 | AZ210: 1497893442 | BA210: 278109150 | BB210: 64756130 | BC210: 158641264 | BD210: 652292146 | BE210: 1425149074 | BF210: 817885502 | BG210: 762938813 | BH210: 234714013 | BI210: 736528261 | BJ210: 1971560213 | BK210: 1046623228 | BL210: 1872796626 | BM210: 933717805 | BN210: 1072792024 | BO210: 1601458253 | BP210: 154157222 | BQ210: 1499751706 | BR210: 177629950 | BS210: 1550775633 | BT210: 514886659 | BU210: 589906936 | BV210: 468120691 | BW210: 1658903326 | BX210: 27992292 | BY210: 1641097343 | BZ210: 272258712 | CA210: 2026285498 | CB210: 1757308897 | CC210: 736661538 | CD210: 870554614 | CE210: 1862139964 | CF210: 1878912595 | CG210: 706091746 | CH210: 675337442 | CI210: 1901595445 | CJ210: 1531262317 | CK210: 585073144 | CL210: 950015068 | CM210: 659681921 | CN210: 984496487 | CO210: 378870085 | CP210: 840085250 | CQ210: 382754057 | CR210: 1844345128 | CS210: 867320440 | CT210: 4061609 | CU210: 1349306727 | CV210: 407263983 | CW210: 729003009 | CX210: 986128995 | CY210: 600152132 | CZ210: 1389381312 | DA210: 1244237509 | DB210: 1103643673 | DC210: 973032656
A211: 69 | B211: 154146636 | C211: 0.07178012099 | D211: 3 | E211: 4 | F211: 0.17 | G211: 0.013 | H211: 0.6256043249 | I211: 14.62560432 | J211: 31.5024173 | K211: 50.37923027 | L211: 71.5072519 | M211: 95.88648217 | N211: 120.5169211 | O211: 148.14736 | P211: 178.6546119 | Q211: 211.4130725 | R211: 16.87681297 | S211: 18.87681297 | T211: 21.12802162 | U211: 24.37923027 | V211: 24.63043892 | W211: 27.63043892 | X211: 30.5072519 | Y211: 32.75846055 | Z211: 0 | AB211: 1982678872 | AC211: 1916198211 | AD211: 702958934 | AE211: 1057990545 | AF211: 552625609 | AG211: 763269002 | AH211: 47055110 | AI211: 794402424 | AJ211: 1317558227 | AK211: 1374119829 | AL211: 790988344 | AM211: 127570980 | AN211: 1219604942 | AO211: 551788642 | AP211: 1083696778 | AQ211: 1830208442 | AR211: 1020037382 | AS211: 415438383 | AT211: 504427271 | AU211: 1708532843 | AV211: 2145067532 | AW211: 364969814 | AX211: 1017729703 | AY211: 1221601801 | AZ211: 1187427939 | BA211: 686502253 | BB211: 1254444845 | BC211: 1993252989 | BD211: 388947252 | BE211: 879803056 | BF211: 811700594 | BG211: 622379920 | BH211: 1903883598 | BI211: 1363910646 | BJ211: 1297741271 | BK211: 1997043113 | BL211: 1294329534 | BM211: 105381919 | BN211: 323126746 | BO211: 1022489504 | BP211: 292426307 | BQ211: 693376309 | BR211: 1620597626 | BS211: 505613417 | BT211: 1265669858 | BU211: 1912032083 | BV211: 830941527 | BW211: 1552220010 | BX211: 448713169 | BY211: 1033073417 | BZ211: 1747850959 | CA211: 1537087696 | CB211: 1453710587 | CC211: 1354873772 | CD211: 581767898 | CE211: 135189765 | CF211: 165525847 | CG211: 1041709629 | CH211: 411901322 | CI211: 2020201874 | CJ211: 1323657814 | CK211: 508292327 | CL211: 811549390 | CM211: 618490875 | CN211: 964299514 | CO211: 467135183 | CP211: 821396449 | CQ211: 1119270306 | CR211: 154120009 | CS211: 1231260975 | CT211: 636916162 | CU211: 1353489154 | CV211: 974418755 | CW211: 1037207697 | CX211: 310198243 | CY211: 389165742 | CZ211: 911015742 | DA211: 1913641290 | DB211: 1356908254 | DC211: 1644494239
A212: 70 | B212: 1928913148 | C212: 0.89822018 | D212: 2 | E212: 3 | F212: 0.96 | G212: 0.17 | H212: 0.07820230377 | I212: 12.15640461 | J212: 25.31280922 | K212: 38.62561843 | L212: 52.01662995 | M212: 65.56404608 | N212: 78.1114622 | O212: 91.81528294 | P212: 104.6755083 | Q212: 116.6921382 | R212: 13.15640461 | S212: 13.31280922 | T212: 13.39101152 | U212: 13.54741613 | V212: 12.54741613 | W212: 13.70382073 | X212: 12.86022534 | Y212: 12.01662995 | Z212: 0 | AB212: 1135618110 | AC212: 388199597 | AD212: 141596867 | AE212: 952988388 | AF212: 1896392652 | AG212: 1528547610 | AH212: 1506999931 | AI212: 1131408072 | AJ212: 2124969612 | AK212: 810860770 | AL212: 1686593211 | AM212: 1143159631 | AN212: 433456424 | AO212: 149864241 | AP212: 573013565 | AQ212: 661949849 | AR212: 719408106 | AS212: 423890107 | AT212: 1039208755 | AU212: 626885065 | AV212: 1483313420 | AW212: 1649535253 | AX212: 994584741 | AY212: 187073098 | AZ212: 1995505039 | BA212: 330097706 | BB212: 710718536 | BC212: 457711831 | BD212: 1570759218 | BE212: 336713104 | BF212: 760233459 | BG212: 1752380437 | BH212: 802485693 | BI212: 1924626987 | BJ212: 1170909451 | BK212: 874677440 | BL212: 1839193543 | BM212: 1649335953 | BN212: 477428005 | BO212: 974188583 | BP212: 300253466 | BQ212: 1435173244 | BR212: 1481195377 | BS212: 313603852 | BT212: 1387442015 | BU212: 1148497727 | BV212: 1826374798 | BW212: 1507658880 | BX212: 313317157 | BY212: 769145020 | BZ212: 176118553 | CA212: 1200169766 | CB212: 888095705 | CC212: 1644862474 | CD212: 2022036186 | CE212: 1689826729 | CF212: 1458993697 | CG212: 1035906954 | CH212: 1485110336 | CI212: 2079733231 | CJ212: 205390403 | CK212: 778249642 | CL212: 2051399763 | CM212: 855366531 | CN212: 993791569 | CO212: 504125093 | CP212: 637415118 | CQ212: 1903349700 | CR212: 643601231 | CS212: 441109853 | CT212: 1204165450 | CU212: 1379960053 | CV212: 1980886011 | CW212: 618995729 | CX212: 1323400969 | CY212: 1380071773 | CZ212: 1618242463 | DA212: 1517117532 | DB212: 1067095334 | DC212: 1795883061
A213: 71 | B213: 2118084129 | C213: 0.9863097826 | D213: 1 | E213: 2 | F213: 1 | G213: 0.96 | H213: 0.3422554351 | I213: =IF($D213>0,INDEX(RSLtable,$D213,I$141)+IF($E213>$D213,$H213*INDEX(RSLdiff,$D213,I$141),0),$H213*INDEX(RSLtable,$E213,I$141)) -> 11.34225544 | J213: 23.68451087 | K213: 36.02676631 | L213: 48.36902174 | M213: 60.71127718 | N213: 71.39578805 | O213: 83.08029892 | P213: 93.76480979 | Q213: 104.7648098 | R213: 12.34225544 | S213: 12.34225544 | T213: 12.34225544 | U213: 12.34225544 | V213: 10.68451087 | W213: 11.68451087 | X213: 10.68451087 | Y213: 11 | Z213: 0 | AB213: 754214488 | AC213: 1987926712 | AD213: 1729402203 | AE213: 455274761 | AF213: 2131767670 | AG213: 1278538684 | AH213: 532610823 | AI213: 1542416655 | AJ213: 1999225544 | AK213: 1023278448 | AL213: 288346764 | AM213: 1866238336 | AN213: 441870183 | AO213: 1371854215 | AP213: 348422755 | AQ213: 571977366 | AR213: 1738112736 | AS213: 375166381 | AT213: 575302332 | AU213: 176902738 | AV213: 1769822193 | AW213: 317534097 | AX213: 455620479 | AY213: 36777923 | AZ213: 1792235031 | BA213: 1965189233 | BB213: 1043190431 | BC213: 896033865 | BD213: 913087449 | BE213: 1322002688 | BF213: 1028739453 | BG213: 1922702744 | BH213: 476862217 | BI213: 1379236610 | BJ213: 1348003828 | BK213: 2026206220 | BL213: 590063526 | BM213: 1434542032 | BN213: 1280213398 | BO213: 1607671634 | BP213: 167923683 | BQ213: 1572692551 | BR213: 461499949 | BS213: 359312189 | BT213: 1788490723 | BU213: 1843432712 | BV213: 291713967 | BW213: 128483297 | BX213: 1552643373 | BY213: 1701971084 | BZ213: 1678397037 | CA213: 728429467 | CB213: 1199214641 | CC213: 243601923 | CD213: 429494609 | CE213: 1754671558 | CF213: 358544522 | CG213: 107856139 | CH213: 461924902 | CI213: 237263645 | CJ213: 1615628661 | CK213: 957032011 | CL213: 499512956 | CM213: 1877220679 | CN213: 823120513 | CO213: 1485160046 | CP213: 1666950409 | CQ213: 800499099 | CR213: 1776584099 | CS213: 513354158 | CT213: 330563601 | CU213: 1403955717 | CV213: 491770659 | CW213: 1602853848 | CX213: 692127290 | CY213: 354340896 | CZ213: 1611755495 | DA213: 1440540825 | DB213: 216110572 | DC213: 1598859082
A214: 72 | B214: 342557289 | C214: 0.1595156682 | D214: 3 | E214: 4 | F214: 0.17 | G214: 0.013 | H214: 0.06677918314 | I214: 14.06677918 | J214: 29.26711673 | K214: 46.46745428 | L214: 64.8013502 | M214: 85.26880448 | N214: 104.8698171 | O214: 127.4708298 | P214: 151.27218 | Q214: 176.2070885 | R214: 15.20033755 | S214: 17.20033755 | T214: 18.33389592 | U214: 20.46745428 | V214: 19.60101265 | W214: 22.60101265 | X214: 23.8013502 | Y214: 24.93490856 | Z214: 0 | AB214: 397282657 | AC214: 1051032404 | AD214: 841931182 | AE214: 1367828480 | AF214: 1583285271 | AG214: 1955767878 | AH214: 2130298796 | AI214: 736312015 | AJ214: 996105538 | AK214: 402598761 | AL214: 945128837 | AM214: 399209053 | AN214: 708021589 | AO214: 969073373 | AP214: 1770366948 | AQ214: 1869668354 | AR214: 401274813 | AS214: 2074265747 | AT214: 1307828615 | AU214: 877085526 | AV214: 2040116996 | AW214: 1097607648 | AX214: 876112882 | AY214: 1485628711 | AZ214: 1598462006 | BA214: 854327212 | BB214: 1648739945 | BC214: 2130046835 | BD214: 689879651 | BE214: 1915181843 | BF214: 2017766182 | BG214: 835899578 | BH214: 1886348261 | BI214: 842377016 | BJ214: 738277288 | BK214: 2005226652 | BL214: 880853385 | BM214: 1168229157 | BN214: 1191508786 | BO214: 300893175 | BP214: 1240818315 | BQ214: 1895207871 | BR214: 1216167848 | BS214: 1280742047 | BT214: 1245596886 | BU214: 1208043860 | BV214: 274627678 | BW214: 84456951 | BX214: 468977783 | BY214: 1711796132 | BZ214: 1935306305 | CA214: 1269049226 | CB214: 1868230826 | CC214: 1435457808 | CD214: 327142901 | CE214: 848254891 | CF214: 731910289 | CG214: 823325341 | CH214: 254237641 | CI214: 423118344 | CJ214: 2142454326 | CK214: 223988717 | CL214: 43510560 | CM214: 99427197 | CN214: 107846229 | CO214: 713992665 | CP214: 1298423396 | CQ214: 1218747358 | CR214: 2026567178 | CS214: 304758085 | CT214: 832086661 | CU214: 57483281 | CV214: 2124730298 | CW214: 1817262692 | CX214: 1273319211 | CY214: 1829626108 | CZ214: 2011935629 | DA214: 825673715 | DB214: 1545347533 | DC214: 111957689
